Workbook

Sheet Main
A2: EFM NCI Reporting
F4: * Please sheet(s) to print | H4: * For pivot table listing control
F5: Sheet | G5: YES/NO | H5: Start Row | I5: Last Col
B6: Company : | C6: NOMURA ASSET MANAGEMENT MALAYSIA SDN BHD | D6: =VLOOKUP(FundCode,InFund!A2:G75,7,0) -> NI | F6: Descriptions | G6: YES
B7: Fund : | C7: EPF-SHWORLD | D7: =VLOOKUP(FundCode,InFund!A2:G76,6,0) -> 2020-12-31 | F7: 1) List of Reclassed Securities | G7: YES | H7: 42 | I7: 12
B8: Fund Name : | C8: =VLOOKUP(FundCode,InFund!A2:G75,2,0) -> EPF SHARIAH WORLD NOMURA ISLAMIC | F8: 2) ITM Reclassed Securities | G8: YES | H8: 10 | I8: 40
B9: End Date: | C9: 2022-05-20 | F9: 3) OTM Reclassed Securities | G9: YES | H9: 289 | I9: 35
B10: Email Address : | F10: 4) Reclassed Sec Not Disposed | G10: YES | H10: 42 | I10: 14
F11: 5) Cash Account Interest | G11: YES | H11: 75 | I11: 11
D13: http://192.168.82.6:8099/RiskkSvc
D14: =VLOOKUP(FundCode,InFund!A2:H75,8,0) -> 1
D16: =VLOOKUP(FundCode,InFund!A:I,9) -> USD

Sheet Template
A1: 1) List of Reclassed Securities
A2: Note :
A4: All transactions are in USD unless stated otherwise.
A6: 1. Total no. of shares are as at ending of the Reclass Date.
A8: 2. Reclass Date = Effective date of reclassification (MMYYYY) based on the periodic review by the shariah index used as performance benchmark as stated in the mandate (i.e. FTSE and MSCI).
A10: 3. Reclass Price = Closing market price on Reclass Date.
A12: 4. Investment Cost = Original investment cost excluding impairment.
A14: 2) ITM Reclassed Securities
A15: Important:
A16: When the reclassed securities are "in-the-money" on the Reclass Date, all holdings need to be disposed immediately.
A17: Disposal in stages is allowed only if there is no liquidity in the market or any other reasons that could prevent the Portfolio Manager from trading on the Reclass Date and any entitlement of shares resulting from corporate action must be disposed immediately.
A19: Note :
A21: All transactions are in USD unless stated otherwise.
A23: 1. Except for corporate action involving dividend, exchange rate is based on the rate on the transaction date. For dividend, exchange rate is based on the payment date.
A25: 2. Average Investment Cost Per Share should reflect the latest (adjusted, if any) average investment cost excluding impairment.
A27: 3. Any capital gain up to Reclass Price is deemed shariah-compliant.
A29: 4. Dividend income (net of withholding tax) are deemed shariah-compliant if the ex-date is before/on the Reclass Date
A31: 5. Any excess capital gain above Reclass Price is considered as NCI.
A33: 6. Dividend income (net of withholding tax) is deemed as NCI when the Ex-Date is after the Reclass Date
A35: 3) OTM Reclassed Securities
A36: Note :
A37: All transactions are in USD unless stated otherwise.
A39: 1. Except for corporate action involving dividend, exchange rate is based on the rate on the transaction date. For dividend, exchange rate is based on the payment date.
A41: 2. Current Average Investment Cost Per Share should reflect the latest (adjusted, if any) average investment cost excluding impairment.
A43: 3. Dividend income (net of withholding tax) are deemed shariah-compliant until the total investment cost is fully recovered.
A45: 4. Any capital gain is considered as NCI.
A47: 5. Dividend income (net of withholding tax) are deemed as NCI if it is received when the total investment cost has been fully recovered.
A49: 4) Reclassed Sec Not Disposed
A50: Note :
A51: All transactions are in USD unless stated otherwise.
A53: 1. Current Average Investment Cost Per Share should reflect the latest (adjusted, if any) average investment cost excluding impairment.
A55: 5) Cash Account Interest
B56: Cash Sweep Service Fees (If applicable) | I56: Cash Sweep Fees2
I57: USD | J57: RM
A58: 1 | B58: 212401 | C58: EPF-SHWORLD-USD (Jan 2018) | D58: 2018-04-30 | F58: 3.9205 | I58: 350 | J58: 1372.175
A59: 2 | B59: 212401 | C59: EPF-SHWORLD-USD (Feb 2018) | D59: 2018-04-30 | F59: 3.9205 | I59: 500 | J59: 1960.25
A60: 3 | B60: 212401 | C60: EPF-SHWORLD-USD (Mar 2018) | D60: 2018-04-30 | F60: 3.9205 | I60: 500 | J60: 1960.25
A61: 4 | B61: 212401 | C61: EPF-SHWORLD-USD (Apr 2018) | D61: 2018-05-29 | F61: 3.9835 | I61: 500 | J61: 1991.75
A62: 5 | B62: 212401 | C62: EPF-SHWORLD-USD (May 2018) | D62: 2018-06-28 | F62: 4.0445 | I62: 500 | J62: 2022.25
A63: 6 | B63: 212401 | C63: EPF-SHWORLD-USD (Jun 2018) | D63: 2018-07-30 | F63: 4.0645 | I63: 500 | J63: 2032.25
A64: 7 | B64: 212401 | C64: EPF-SHWORLD-USD (Jul 2018) | D64: 2018-08-28 | F64: 4.0955 | I64: 500 | J64: 2047.75
A65: 8 | B65: 212401 | C65: EPF-SHWORLD-USD (Aug 2018) | D65: 2018-09-28 | F65: 4.1365 | I65: 500 | J65: 2068.25
A66: 9 | B66: 212401 | C66: EPF-SHWORLD-USD (Sep 2018) | D66: 2018-10-29 | F66: 4.18 | I66: 500 | J66: 2090
A67: 10 | B67: 212401 | C67: EPF-SHWORLD-USD (Oct 2018) | D67: 2018-11-28 | F67: 4.1975 | I67: 500 | J67: 2098.75
A68: 11 | B68: 212401 | C68: EPF-SHWORLD-USD (Nov 2018) | D68: 2018-12-28 | F68: 4.1575 | I68: 500 | J68: 2078.75
A69: 12 | B69: 212401 | C69: EPF-SHWORLD-USD (Dec 2018) | D69: 2019-01-28 | F69: 4.1105 | I69: 166.67 | J69: 685.097035
A70: 13 | B70: 212401 | C70: EPF-SHWORLD-USD (Jan 2019) | D70: 2019-03-28 | F70: 4.079 | I70: 833.33 | J70: 3399.15307
A71: 14 | B71: 212401 | C71: EPF-SHWORLD-USD (Feb 2019) | D71: 2019-03-28 | F71: 4.079 | I71: 500 | J71: 2039.5
A72: 15 | B72: 212401 | C72: EPF-SHWORLD-USD (Mar 2019) | D72: 2019-04-29 | F72: 4.133 | I72: 500 | J72: 2066.5
A73: 16 | B73: 212401 | C73: EPF-SHWORLD-USD (Apr 2019) | D73: 2019-05-28 | F73: 4.187 | I73: 500 | J73: 2093.5
A74: 17 | B74: 212401 | C74: EPF-SHWORLD-USD (May 2019) | D74: 2019-06-28 | F74: 4.1335 | I74: 500 | J74: 2066.75
A75: 18 | B75: 212401 | C75: EPF-SHWORLD-USD (Jun 2019) | D75: 2019-07-29 | F75: 4.126 | I75: 500 | J75: 2063
A76: 19 | B76: 212401 | C76: EPF-SHWORLD-USD (Jul 2019) | D76: 2019-08-28 | F76: 4.213 | I76: 500 | J76: 2106.5
A77: 20 | B77: 212401 | C77: EPF-SHWORLD-USD (Aug 2019) | D77: 2019-09-30 | F77: 4.19 | I77: 500 | J77: 2095
A78: 21 | B78: 212401 | C78: EPF-SHWORLD-USD (Sep 2019) | D78: 2019-10-28 | F78: 4.186 | I78: 500 | J78: 2093
A79: 22 | B79: 212401 | C79: EPF-SHWORLD-USD (Oct 2019) | D79: 2019-11-29 | F79: 4.176 | I79: 500 | J79: 2088
A80: 23 | B80: 212401 | C80: EPF-SHWORLD-USD (Nov 2019) | D80: 2019-12-30 | F80: 4.11 | I80: 500 | J80: 2055
A81: 24 | B81: 212401 | C81: EPF-SHWORLD-USD (Dec 2019) | D81: 2020-01-28 | F81: 4.084 | I81: 500 | J81: 2042
A82: 25 | B82: 212401 | C82: EPF-SHWORLD-USD (Jan 2020) | D82: 2020-02-28 | F82: 4.217 | I82: 500 | J82: 2108.5
A83: 26 | B83: 212401 | C83: EPF-SHWORLD-USD (Feb 2020) | D83: 2020-03-30 | F83: 4.335 | I83: 500 | J83: 2167.5
A84: 27 | B84: 212401 | C84: EPF-SHWORLD-USD (Mar 2020) | D84: 2020-04-28 | F84: 4.367 | I84: 500 | J84: 2183.5
A85: 28 | B85: 212401 | C85: EPF-SHWORLD-USD (Apr 2020) | D85: 2020-05-28 | F85: 4.357 | I85: 500 | J85: 2178.5
A86: Total NCI | I86: 239396.392 | J86: 988502.0837
A89: Note :
A91: 1. Exchange rate is based on the rate on the payment date.
A92: 2. Cash sweep service fees will be deducted from total interest income on cash account.
A93: 3. Local currency type as per the interest income received to be filled by EFM. (e.g GBP, CAD, AUD )

Sheet InTrn (hidden)
A1: CustNo | B1: qStockCode | C1: StockName | D1: TranType | E1: ExRate | F1: BeginUFV | G1: BeginCostPrice | H1: BeginCostFC | I1: TradeDate | J1: UnitFaceValue | K1: TranPrice | L1: FCNetProceed | M1: FCGrossProceed | N1: PayDate | O1: MVPrice | P1: ReclassDt | Q1: ReclassPrice | R1: ReClassMV | S1: qTrnCode | T1: TranDesc | U1: MarketValueFC | V1: OutMoney | W1: SeqName | X1: row_num | Y1: ImportCost | Z1: ImportCostPrice | AA1: FilterInOut
A2: 212401 | B2: BYP20B9 | C2: BAYCURRENT CONSULTING INC | D2: SELL | E2: 4.1985 | F2: 7200 | G2: 425.5806861 | H2: 3055905.74 | I2: 2022-02-28 | J2: 400 | K2: 396.3533784 | L2: 158382.81 | M2: 158541.3514 | N2: 2022-02-28 | O2: 394.9645264 | P2: 2021-12-20 | Q2: 388.0241639 | R2: 2793773.98 | S2: SS | T2: Share Sale | U2: 2843744.59 | V2: 1 | W2: 202112_BYP20B9 | X2: 1 | Y2: =IF(X2<>1,0,ROUND(SUMIFS(BNYM_NAV_HistCost_RCdate!$AA:$AA,BNYM_NAV_HistCost_RCdate!C:C,P2,BNYM_NAV_HistCost_RCdate!I:I,B2),2)) -> 3063971.51 | Z2: =SUMIFS(BNYM_NAV_HistCost_RCdate!$AA:$AA,BNYM_NAV_HistCost_RCdate!C:C,P2,BNYM_NAV_HistCost_RCdate!I:I,B2)/SUMIFS(BNYM_NAV_HistCost_RCdate!$W:$W,BNYM_NAV_HistCost_RCdate!C:C,P2,BNYM_NAV_HistCost_RCdate!I:I,B2) -> 425.5515986 | AA2: =IF(ISERROR(IF(Z2>Q2,1,0)),V1,IF(Z2>Q2,1,0)) -> 1
A3: 212401 | B3: BYP20B9 | C3: BAYCURRENT CONSULTING INC | D3: SELL | E3: 4.193 | F3: 6800 | G3: 425.5806868 | H3: 2885673.47 | I3: 2022-03-01 | J3: 800 | K3: 424.7963964 | L3: 339497.28 | M3: 339837.1171 | N3: 2022-03-01 | O3: 393.7486426 | P3: 2021-12-20 | Q3: 388.0241639 | R3: 2793773.98 | S3: SS | T3: Share Sale | U3: 2677490.77 | V3: 1 | W3: 202112_BYP20B9 | X3: 2 | Y3: =IF(X3<>1,0,ROUND(SUMIFS(BNYM_NAV_HistCost_RCdate!$AA:$AA,BNYM_NAV_HistCost_RCdate!C:C,P3,BNYM_NAV_HistCost_RCdate!I:I,B3),2)) -> 0 | Z3: =SUMIFS(BNYM_NAV_HistCost_RCdate!$AA:$AA,BNYM_NAV_HistCost_RCdate!C:C,P3,BNYM_NAV_HistCost_RCdate!I:I,B3)/SUMIFS(BNYM_NAV_HistCost_RCdate!$W:$W,BNYM_NAV_HistCost_RCdate!C:C,P3,BNYM_NAV_HistCost_RCdate!I:I,B3) -> 425.5515986 | AA3: =IF(ISERROR(IF(Z3>Q3,1,0)),V2,IF(Z3>Q3,1,0)) -> 1
A4: 212401 | B4: BYP20B9 | C4: BAYCURRENT CONSULTING INC | D4: SELL | E4: 4.194 | F4: 6000 | G4: 425.589185 | H4: 2545259.91 | I4: 2022-03-02 | J4: 1500 | K4: 410.4516383 | L4: 615061.78 | M4: 615677.4575 | N4: 2022-03-02 | O4: 424.6330733 | P4: 2021-12-20 | Q4: 388.0241639 | R4: 2793773.98 | S4: SS | T4: Share Sale | U4: 2547798.44 | V4: 1 | W4: 202112_BYP20B9 | X4: 3 | Y4: =IF(X4<>1,0,ROUND(SUMIFS(BNYM_NAV_HistCost_RCdate!$AA:$AA,BNYM_NAV_HistCost_RCdate!C:C,P4,BNYM_NAV_HistCost_RCdate!I:I,B4),2)) -> 0 | Z4: =SUMIFS(BNYM_NAV_HistCost_RCdate!$AA:$AA,BNYM_NAV_HistCost_RCdate!C:C,P4,BNYM_NAV_HistCost_RCdate!I:I,B4)/SUMIFS(BNYM_NAV_HistCost_RCdate!$W:$W,BNYM_NAV_HistCost_RCdate!C:C,P4,BNYM_NAV_HistCost_RCdate!I:I,B4) -> 425.5515986 | AA4: 1
A5: 212401 | B5: BYP20B9 | C5: BAYCURRENT CONSULTING INC | D5: SELL | E5: 4.1775 | F5: 4500 | G5: 425.5891844 | H5: 1906876.13 | I5: 2022-03-07 | J5: 700 | K5: 357.9940516 | L5: 250345.24 | M5: 250595.8358 | N5: 2022-03-07 | O5: 388.0155022 | P5: 2021-12-20 | Q5: 388.0241639 | R5: 2793773.98 | S5: SS | T5: Share Sale | U5: 1746069.76 | V5: 1 | W5: 202112_BYP20B9 | X5: 4 | Y5: =IF(X5<>1,0,ROUND(SUMIFS(BNYM_NAV_HistCost_RCdate!$AA:$AA,BNYM_NAV_HistCost_RCdate!C:C,P5,BNYM_NAV_HistCost_RCdate!I:I,B5),2)) -> 0 | Z5: =SUMIFS(BNYM_NAV_HistCost_RCdate!$AA:$AA,BNYM_NAV_HistCost_RCdate!C:C,P5,BNYM_NAV_HistCost_RCdate!I:I,B5)/SUMIFS(BNYM_NAV_HistCost_RCdate!$W:$W,BNYM_NAV_HistCost_RCdate!C:C,P5,BNYM_NAV_HistCost_RCdate!I:I,B5) -> 425.5515986 | AA5: 1
A6: 212401 | B6: BYP20B9 | C6: BAYCURRENT CONSULTING INC | D6: SELL | E6: 4.1823 | F6: 3800 | G6: 425.5891842 | H6: 1608963.7 | I6: 2022-03-08 | J6: 400 | K6: 349.4593381 | L6: 139671.91 | M6: 139783.7353 | N6: 2022-03-08 | O6: 354.4654842 | P6: 2021-12-20 | Q6: 388.0241639 | R6: 2793773.98 | S6: SS | T6: Share Sale | U6: 1346968.84 | V6: 1 | W6: 202112_BYP20B9 | X6: 5 | Y6: =IF(X6<>1,0,ROUND(SUMIFS(BNYM_NAV_HistCost_RCdate!$AA:$AA,BNYM_NAV_HistCost_RCdate!C:C,P6,BNYM_NAV_HistCost_RCdate!I:I,B6),2)) -> 0 | Z6: =SUMIFS(BNYM_NAV_HistCost_RCdate!$AA:$AA,BNYM_NAV_HistCost_RCdate!C:C,P6,BNYM_NAV_HistCost_RCdate!I:I,B6)/SUMIFS(BNYM_NAV_HistCost_RCdate!$W:$W,BNYM_NAV_HistCost_RCdate!C:C,P6,BNYM_NAV_HistCost_RCdate!I:I,B6) -> 425.5515986 | AA6: 1
A7: 212401 | B7: BYP20B9 | C7: BAYCURRENT CONSULTING INC | D7: SELL | E7: 4.1875 | F7: 3400 | G7: 425.5891853 | H7: 1438728.03 | I7: 2022-03-10 | J7: 400 | K7: 348.4887638 | L7: 139256.11 | M7: 139395.5055 | N7: 2022-03-10 | O7: 333.2901618 | P7: 2021-12-20 | Q7: 388.0241639 | R7: 2793773.98 | S7: SS | T7: Share Sale | U7: 1133186.55 | V7: 1 | W7: 202112_BYP20B9 | X7: 6 | Y7: =IF(X7<>1,0,ROUND(SUMIFS(BNYM_NAV_HistCost_RCdate!$AA:$AA,BNYM_NAV_HistCost_RCdate!C:C,P7,BNYM_NAV_HistCost_RCdate!I:I,B7),2)) -> 0 | Z7: =SUMIFS(BNYM_NAV_HistCost_RCdate!$AA:$AA,BNYM_NAV_HistCost_RCdate!C:C,P7,BNYM_NAV_HistCost_RCdate!I:I,B7)/SUMIFS(BNYM_NAV_HistCost_RCdate!$W:$W,BNYM_NAV_HistCost_RCdate!C:C,P7,BNYM_NAV_HistCost_RCdate!I:I,B7) -> 425.5515986 | AA7: 1
A8: 212401 | B8: BYP20B9 | C8: BAYCURRENT CONSULTING INC | D8: SELL | E8: 4.2175 | F8: 3000 | G8: 425.5891867 | H8: 1268492.36 | I8: 2022-03-29 | J8: 500 | K8: 383.5873273 | L8: 191601.87 | M8: 191793.6637 | N8: 2022-03-29 | O8: 356.5502433 | P8: 2021-12-20 | Q8: 388.0241639 | R8: 2793773.98 | S8: SS | T8: Share Sale | U8: 1069650.73 | V8: 1 | W8: 202112_BYP20B9 | X8: 7 | Y8: =IF(X8<>1,0,ROUND(SUMIFS(BNYM_NAV_HistCost_RCdate!$AA:$AA,BNYM_NAV_HistCost_RCdate!C:C,P8,BNYM_NAV_HistCost_RCdate!I:I,B8),2)) -> 0 | Z8: =SUMIFS(BNYM_NAV_HistCost_RCdate!$AA:$AA,BNYM_NAV_HistCost_RCdate!C:C,P8,BNYM_NAV_HistCost_RCdate!I:I,B8)/SUMIFS(BNYM_NAV_HistCost_RCdate!$W:$W,BNYM_NAV_HistCost_RCdate!C:C,P8,BNYM_NAV_HistCost_RCdate!I:I,B8) -> 425.5515986 | AA8: 1
A9: 212401 | B9: 2459020 | C9: INTUIT INC | D9: Dividend | E9: 4.2545 | F9: 7242 | G9: 541.5736495 | H9: 3922076.37 | I9: 2022-04-08 | J9: 0 | K9: 0.68 | L9: 3447.19 | M9: 4924.56 | N9: 2022-04-18 | O9: 495.01 | P9: 2022-03-21 | Q9: 466.5 | R9: 3378393 | S9: SI | T9: Share Income-Dividend | U9: 3584862.42 | V9: 1 | W9: 202203_2459020 | X9: 1 | Y9: =IF(X9<>1,0,ROUND(SUMIFS(BNYM_NAV_HistCost_RCdate!$AA:$AA,BNYM_NAV_HistCost_RCdate!C:C,P9,BNYM_NAV_HistCost_RCdate!I:I,B9),2)) -> 3922076.37 | Z9: =SUMIFS(BNYM_NAV_HistCost_RCdate!$AA:$AA,BNYM_NAV_HistCost_RCdate!C:C,P9,BNYM_NAV_HistCost_RCdate!I:I,B9)/SUMIFS(BNYM_NAV_HistCost_RCdate!$W:$W,BNYM_NAV_HistCost_RCdate!C:C,P9,BNYM_NAV_HistCost_RCdate!I:I,B9) -> 541.5736495 | AA9: 1
A10: 212401 | B10: BLDBN85 | C10: ATLAS COPCO AB-B RDS | D10: Corporate Action | E10: 0 | F10: 162879 | G10: 0 | H10: 0 | I10: 2022-05-13 | J10: 162879 | K10: 0.1003436771 | L10: 0 | M10: 0 | N10: 2022-05-17 | O10: 0 | P10: 2022-05-13 | Q10: 0.7940052432 | R10: 129326.78 | S10: SB | T10: Bonus Issue | U10: 0 | V10: 0 | W10: 202205_BLDBN85 | X10: 1 | Y10: =IF(X10<>1,0,ROUND(SUMIFS(BNYM_NAV_HistCost_RCdate!$AA:$AA,BNYM_NAV_HistCost_RCdate!C:C,P10,BNYM_NAV_HistCost_RCdate!I:I,B10),2)) -> 174044.25 | Z10: =SUMIFS(BNYM_NAV_HistCost_RCdate!$AA:$AA,BNYM_NAV_HistCost_RCdate!C:C,P10,BNYM_NAV_HistCost_RCdate!I:I,B10)/SUMIFS(BNYM_NAV_HistCost_RCdate!$W:$W,BNYM_NAV_HistCost_RCdate!C:C,P10,BNYM_NAV_HistCost_RCdate!I:I,B10) -> 1.068549353 | AA10: 1
A11: 212401 | B11: BLDBN85 | C11: ATLAS COPCO AB-B RDS | D11: SELL | E11: 4.3955 | F11: 162879 | G11: 0 | H11: 0 | I11: 2022-05-18 | J11: 162879 | K11: 0.8012542948 | L11: 130376.99 | M11: 130507.498 | N11: 2022-05-18 | O11: 0 | P11: 2022-05-13 | Q11: 0.7940052432 | R11: 129326.78 | S11: SS | T11: Share Sale | U11: 0 | V11: 0 | W11: 202205_BLDBN85 | X11: 2 | Y11: =IF(X11<>1,0,ROUND(SUMIFS(BNYM_NAV_HistCost_RCdate!$AA:$AA,BNYM_NAV_HistCost_RCdate!C:C,P11,BNYM_NAV_HistCost_RCdate!I:I,B11),2)) -> 0 | Z11: =SUMIFS(BNYM_NAV_HistCost_RCdate!$AA:$AA,BNYM_NAV_HistCost_RCdate!C:C,P11,BNYM_NAV_HistCost_RCdate!I:I,B11)/SUMIFS(BNYM_NAV_HistCost_RCdate!$W:$W,BNYM_NAV_HistCost_RCdate!C:C,P11,BNYM_NAV_HistCost_RCdate!I:I,B11) -> 1.068549353 | AA11: 1
A12: 212401 | B12: BQ7ZVF1 | C12: EUROAPI SASU | D12: SELL | E12: 4.3765 | F12: 2740 | G12: 11.76447445 | H12: 32234.66 | I12: 2022-05-11 | J12: 2740 | K12: 14.69148682 | L12: 40214.42 | M12: 40254.676 | N12: 2022-05-11 | O12: 15.28735036 | P12: 2022-05-10 | Q12: 15.28735036 | R12: 41887.34 | S12: SS | T12: Share Sale | U12: 41887.34 | V12: 0 | W12: 202205_BQ7ZVF1 | X12: 1 | Y12: =IF(X12<>1,0,ROUND(SUMIFS(BNYM_NAV_HistCost_RCdate!$AA:$AA,BNYM_NAV_HistCost_RCdate!C:C,P12,BNYM_NAV_HistCost_RCdate!I:I,B12),2)) -> 34956.93 | Z12: =SUMIFS(BNYM_NAV_HistCost_RCdate!$AA:$AA,BNYM_NAV_HistCost_RCdate!C:C,P12,BNYM_NAV_HistCost_RCdate!I:I,B12)/SUMIFS(BNYM_NAV_HistCost_RCdate!$W:$W,BNYM_NAV_HistCost_RCdate!C:C,P12,BNYM_NAV_HistCost_RCdate!I:I,B12) -> 12.75800365 | AA12: 0

Sheet InFund (hidden)
A1: qFundCode | B1: FundName | C1: qFundType | D1: Islamic | E1: FinanceYrStart | F1: FinanceYrEnd | G1: qCompanyID | H1: RollEOYFlag | I1: Fundcurrency
A2: AJC-MASHAREQ | B2: ALJAZIRA JAPANESE EQUITY FUND | C2: 1 | D2: 1 | E2: 2013-03-01 | F2: 2020-12-31 | G2: NI | H2: 1 | I2: USD
A3: BNM-ICLIF | B3: IFM ICLIF SHARIAH EQUITY NOMURA-I | C3: 1 | D3: 1 | E3: 2013-08-26 | F3: 2020-12-31 | G3: NI | H3: 1 | I3: MYR
A4: BNM-ICLIF-FI2 | B4: IFM ICLIF CORP BOND NOMURA | C4: 2 | D4: 0 | E4: 2021-01-04 | F4: 2020-12-31 | G4: NM | H4: 1 | I4: MYR
A5: BNM-INCEIF | B5: IFM INCEIF SHARIAH EQUITY NOMURA-I | C5: 1 | D5: 1 | E5: 2013-08-26 | F5: 2020-12-31 | G5: NI | H5: 1 | I5: MYR
A6: BNM-INCEIF-FI | B6: IFM INCEIF SUKUK NOMURA-I | C6: 2 | D6: 1 | E6: 2016-11-28 | F6: 2020-12-31 | G6: NI | H6: 1 | I6: MYR
A7: BNM-MEDF-FI | B7: IFM MEDF CORP BOND NOMURA | C7: 2 | D7: 0 | E7: 2016-11-28 | F7: 2020-12-31 | G7: NM | H7: 1 | I7: MYR
A8: BNMMF | B8: IFM MEDF CONV EQUITY NOMURA | C8: 1 | D8: 0 | E8: 2011-08-08 | F8: 2020-12-31 | G8: NM | H8: 1 | I8: MYR
A9: BNM-NTF | B9: IFM NTF CONV EQUITY NOMURA | C9: 1 | D9: 0 | E9: 2020-09-17 | F9: 2020-12-31 | G9: NM | H9: 1 | I9: MYR
A10: BNM-NTF-FI | B10: IFM NTF CORP BOND NOMURA | C10: 2 | D10: 0 | E10: 2016-11-28 | F10: 2020-12-31 | G10: NM | H10: 1 | I10: MYR
A11: CGC | B11: CREDIT GUARANTEE CORPORATION MALAYSIA BERHAD | C11: 2 | D11: 0 | E11: 2017-03-16 | F11: 2020-12-31 | G11: NM | H11: 1 | I11: MYR
A12: EPF | B12: EMPLOYEES PROVIDENT FUND BOARD | C12: 1 | D12: 0 | E12: 1994-07-05 | F12: 2020-12-31 | G12: NM | H12: 1 | I12: MYR
A13: EPF-ASEAN | B13: EPF ASEAN 40 EX MALAYSIA EQUITY | C13: 1 | D13: 0 | E13: 2007-01-23 | F13: 2020-12-31 | G13: NM | H13: 1 | I13: USD
A14: EPF-ASIA | B14: EPF-ASIA EX JAPAN EX MALAYSIA EQUITY | C14: 1 | D14: 0 | E14: 2007-05-24 | F14: 2020-12-31 | G14: NM | H14: 1 | I14: USD
A15: EPF-DMSUKUK | B15: EMPLOYEES PROVIDENT FUND BOARD (NIAM-FI RR) - IC | C15: 2 | D15: 1 | E15: 2013-07-16 | F15: 2020-12-31 | G15: NI | H15: 1 | I15: MYR
A16: EPF-GLOBAL | B16: NOMURA FOR EPF GLOBAL EQUITY FUND | C16: 1 | D16: 0 | E16: 2007-12-10 | F16: 2020-12-31 | G16: NM | H16: 1 | I16: USD
A17: EPFMSIANFI | B17: EMPLOYEES PROVIDENT FUND BOARD (NAM-FI RR) | C17: 3 | D17: 0 | E17: 2010-04-23 | F17: 2020-12-31 | G17: NM | H17: 1 | I17: MYR
A18: EPF-NIAMEQ | B18: EMPLOYEES PROVIDENT FUND BOARD (NIAM EQ) | C18: 1 | D18: 1 | E18: 2018-11-01 | F18: 2020-12-31 | G18: NI | H18: 1 | I18: MYR
A19: EPF-SHASIA | B19: EPF SHARIAH ASIA NOMURA ISLAMIC | C19: 1 | D19: 1 | E19: 2010-09-20 | F19: 2020-12-31 | G19: NI | H19: 1 | I19: USD
A20: EPF-SHWORLD | B20: EPF SHARIAH WORLD NOMURA ISLAMIC | C20: 1 | D20: 1 | E20: 2010-09-15 | F20: 2020-12-31 | G20: NI | H20: 1 | I20: USD
A21: i-CASH | B21: NOMURA i-CASH FUND | C21: 4 | D21: 1 | E21: 2012-11-07 | F21: 2020-04-30 | G21: NI | H21: 1 | I21: MYR
A22: i-INCOME2 | B22: NOMURA I-INCOME FUND 2 | C22: 2 | D22: 1 | E22: 2021-06-30 | F22: 2022-10-31 | G22: NM | H22: 0 | I22: MYR
A23: i-INCOME2H | B23: NOMURA I-INCOME FUND 2 - CLASS H | C23: 2 | D23: 1 | E23: 2021-06-30 | F23: 2022-10-31 | G23: NM | H23: 0 | I23: MYR
A24: i-INCOME2I | B24: NOMURA I-INCOME FUND 2 - CLASS I | C24: 2 | D24: 1 | E24: 2021-06-30 | F24: 2022-10-31 | G24: NM | H24: 0 | I24: MYR
A25: i-INCOME2S | B25: NOMURA I-INCOME FUND 2 - CLASS S | C25: 2 | D25: 1 | E25: 2021-06-30 | F25: 2022-10-31 | G25: NM | H25: 0 | I25: MYR
A26: i-MONEY | B26: NOMURA i-INCOME FUND | C26: 2 | D26: 1 | E26: 2012-11-07 | F26: 2020-12-31 | G26: NI | H26: 1 | I26: MYR
A27: KWAP | B27: KUMPULAN WANG PERSARAAN | C27: 1 | D27: 0 | E27: 2007-09-10 | F27: 2020-12-31 | G27: NM | H27: 1 | I27: MYR
A28: KWAP-NIAM | B28: KWAP (NOMURA ISLAMIC AM) | C28: 2 | D28: 1 | E28: 2014-07-23 | F28: 2020-12-31 | G28: NI | H28: 1 | I28: MYR
A29: LAB-NGBF | B29: LABUAN RE - NOMURA-GLOBAL BALANCED FUND | C29: 3 | D29: 0 | E29: 2015-06-08 | F29: 2020-12-31 | G29: NM | H29: 1 | I29: USD
A30: MHILJP-EQ | B30: BHT05 (MT HATTON INVT LTD JP PORTFOLIO) | C30: 1 | D30: 0 | E30: 2020-08-04 | F30: 2020-12-31 | G30: NM | H30: 1 | I30: JPY
A31: MSIG-EQ | B31: NOMURA FOR MSIG INSURANCE (MALAYSIA)BHD (EQ) | C31: 1 | D31: 0 | E31: 2021-05-03 | F31: 2021-12-31 | G31: NM | H31: 1 | I31: MYR
A32: NAM-CO(CIMB) | B32: NOMURA ASSET MANAGEMENT MALAYSIA SDN BHD – COLLECT | C32: 1 | D32: 0 | E32: 1994-07-05 | F32: 2020-12-31 | G32: NM | H32: 1 | I32: MYR
A33: NAM-CO(DEUT) | B33: NOMURA ASSET MGMT MY SDN BHD – CTA (COLLECTION) | C33: 1 | D33: 0 | E33: 1994-07-05 | F33: 2020-12-31 | G33: NM | H33: 1 | I33: MYR
A34: NGAWAF | B34: NOMURA GLOBAL ALL WEATHER (ACCUMULATION) FUND | C34: 1 | D34: 0 | E34: 2021-12-28 | F34: 2021-10-31 | G34: NM | H34: 1 | I34: MYR
A35: NGAWDF | B35: NOMURA GLOBAL ALL WEATHER (DECUMULATION) FUND | C35: 1 | D35: 0 | E35: 2021-12-28 | F35: 2021-10-31 | G35: NM | H35: 1 | I35: MYR
A36: NGDBF | B36: NOMURA GLOBAL DYNAMIC BOND FUND | C36: 2 | D36: 0 | E36: 2021-02-02 | F36: 2020-01-31 | G36: NM | H36: 1 | I36: USD
A37: NGDBFM | B37: NOMURA GLOBAL DYNAMIC BOND FUND - CLASS MYR | C37: 2 | D37: 0 | E37: 2021-02-02 | F37: 2020-01-31 | G37: NM | H37: 1 | I37: USD
A38: NGDBFU | B38: NOMURA GLOBAL DYNAMIC BOND FUND - CLASS USD | C38: 2 | D38: 0 | E38: 2021-02-02 | F38: 2020-01-31 | G38: NM | H38: 1 | I38: USD
A39: NGHC | B39: NOMURA GLOBAL HIGH CONVICTION FUND | C39: 1 | D39: 0 | E39: 2016-12-13 | F39: 2020-08-31 | G39: NM | H39: 1 | I39: USD
A40: NGHM | B40: NOMURA GLOBAL HIGH CONVICTION FUND - CLASS MYR | C40: 1 | D40: 0 | E40: 2016-12-13 | F40: 2020-08-31 | G40: NM | H40: 1 | I40: USD
A41: NGHU | B41: NOMURA GLOBAL HIGH CONVICTION FUND - CLASS USD | C41: 1 | D41: 0 | E41: 2016-12-13 | F41: 2020-08-31 | G41: NM | H41: 1 | I41: USD
A42: NGSEF | B42: NOMURA GLOBAL SUSTAINABLE EQUITY FUND | C42: 1 | D42: 0 | E42: 2021-06-18 | F42: 2021-07-31 | G42: NM | H42: 0 | I42: USD
A43: NGSEFA | B43: NOMURA GLOBAL SUSTAINABLE EQUITY FUND-MYR CLASS A | C43: 1 | D43: 0 | E43: 2021-06-18 | F43: 2021-07-31 | G43: NM | H43: 0 | I43: USD
A44: NGSEFB | B44: NOMURA GLOBAL SUSTAINABLE EQUITY FUND-MYR CLASS B | C44: 1 | D44: 0 | E44: 2021-06-18 | F44: 2021-07-31 | G44: NM | H44: 0 | I44: USD
A45: NGSEFU | B45: NOMURA GLOBAL SUSTAINABLE EQUITY FUND-USD CLASS | C45: 1 | D45: 0 | E45: 2021-06-18 | F45: 2021-07-31 | G45: NM | H45: 0 | I45: USD
A46: NGSSEF | B46: NOMURA GLOBAL SHARIAH SUSTAINABLE EQUITY | C46: 1 | D46: 1 | E46: 2022-05-23 | F46: 2023-05-31 | G46: NM | H46: 1 | I46: USD
A47: NGSSEFMA | B47: NOMURA GLOBAL SHARIAH SUSTAINABLE EQUITY FUND | C47: 1 | D47: 1 | E47: 2022-05-23 | F47: 2023-05-31 | G47: NM | H47: 1 | I47: USD
A48: NGSSEFUA | B48: NOMURA GLOBAL SHARIAH SUSTAINABLE EQUITY FUND | C48: 1 | D48: 1 | E48: 2022-05-23 | F48: 2023-05-31 | G48: NM | H48: 1 | I48: USD
A49: NGSSGF | B49: NOMURA GLOBAL SHARIAH STRATEGIC GROWTH FUND | C49: 1 | D49: 1 | E49: 2020-05-22 | F49: 2020-09-30 | G49: NM | H49: 1 | I49: MYR
A50: NGSSGFA | B50: NOMURA GLOBAL SHARIAH STRATEGIC GROWTH FUND A | C50: 1 | D50: 1 | E50: 2020-05-22 | F50: 2020-09-30 | G50: NM | H50: 1 | I50: MYR
A51: NGSSGFB | B51: NOMURA GLOBAL SHARIAH STRATEGIC GROWTH FUND B | C51: 1 | D51: 1 | E51: 2020-05-22 | F51: 2020-09-30 | G51: NM | H51: 1 | I51: MYR
A52: NIAM-CO(DEUT) | B52: NOMURA ISLAMIC ASSET MANAGEMENT SDN BHD – CLIENT T | C52: 1 | D52: 0 | E52: 1994-07-05 | F52: 2020-12-31 | G52: NM | H52: 1 | I52: MYR
A53: NRBF1 | B53: NOMURA RINGGIT BOND FUND 1 | C53: 2 | D53: 0 | E53: 2019-07-01 | F53: 2020-12-31 | G53: NM | H53: 1 | I53: MYR
A54: NRBF2 | B54: NOMURA RINGGIT BOND FUND 2 | C54: 2 | D54: 0 | E54: 2020-07-28 | F54: 2020-03-31 | G54: NM | H54: 1 | I54: MYR
A55: PET-ACF | B55: PETRONAS EFM (ACF-NOMURA-FI) | C55: 2 | D55: 0 | E55: 3000-01-01 | F55: 2020-12-31 | G55: NM | H55: 1 | I55: MYR
A56: PET-FI | B56: PETRONAS EFM (NOMURA-FI) | C56: 2 | D56: 0 | E56: 2019-04-15 | F56: 2020-12-31 | G56: NM | H56: 1 | I56: MYR
A57: RHBI-GDMF | B57: RHB ISLAMIC GLOBAL DEVELOPED MARKETS FUND | C57: 1 | D57: 1 | E57: 2015-05-28 | F57: 2020-12-31 | G57: NI | H57: 1 | I57: MYR
A58: SLMAB-LFNP | B58: SUN LIFE (LIFE FUND NON PAR-NA) | C58: 1 | D58: 0 | E58: 2016-04-01 | F58: 2020-12-31 | G58: NM | H58: 1 | I58: MYR
A59: SLMAB-LNUL | B59: SUN LIFE (LNUL-NA) | C59: 1 | D59: 0 | E59: 3000-01-01 | F59: 2020-12-31 | G59: NM | H59: 1 | I59: MYR
A60: SLMTB-FTFPA | B60: SUN LIFE TAKAFUL(FTFPA) | C60: 1 | D60: 1 | E60: 2016-04-01 | F60: 2020-12-31 | G60: NI | H60: 1 | I60: MYR
A61: SOCSO | B61: PERTUBUHAN KESELAMATAN SOSIAL(SOCSO) | C61: 1 | D61: 0 | E61: 2009-11-16 | F61: 2020-12-31 | G61: NM | H61: 1 | I61: MYR
A62: TNB-RBTF | B62: TNB RETIREMENT BENEFIT TRUST FUND | C62: 1 | D62: 0 | E62: 2010-12-15 | F62: 2020-12-31 | G62: NM | H62: 1 | I62: MYR
A63: TNB-RBTFI | B63: MTRUSTEE BHD FOR NOMURA TNB RBTF (EQ) | C63: 1 | D63: 1 | E63: 2021-09-15 | F63: 2021-04-30 | G63: NI | H63: 1 | I63: MYR
A64: UJSB-EQ1 | B64: URUSHARTA JAMAAH SDN BHD (NOMURA 1) | C64: 1 | D64: 1 | E64: 2020-03-26 | F64: 2020-12-31 | G64: NI | H64: 1 | I64: MYR
A65: UJSB-EQ2 | B65: URUSHARTA JAMAAH SDN BHD (NOMURA 2) | C65: 1 | D65: 1 | E65: 2020-03-26 | F65: 2020-12-31 | G65: NI | H65: 1 | I65: MYR
A66: WB-EQ | B66: WARBA BANK K.S.C | C66: 1 | D66: 1 | E66: 2020-02-13 | F66: 2020-12-31 | G66: NM | H66: 1 | I66: USD
A5001: PS4733 | B5001: Ahmad Wasfi bin Saian | C5001: 10 | D5001: 0 | E5001: 3000-01-01 | F5001: 2020-12-31 | G5001: IP | H5001: 0 | I5001: USD
A5002: PS4734 | B5002: Nor Amin bin Md Zaini | C5002: 10 | D5002: 0 | E5002: 3000-01-01 | F5002: 2020-12-31 | G5002: IP | H5002: 0 | I5002: USD
A5003: PS4735 | B5003: Mohd Nazri Bin Md Noor & Zuraihan Selina Binti Suh | C5003: 10 | D5003: 0 | E5003: 3000-01-01 | F5003: 2020-12-31 | G5003: IP | H5003: 0 | I5003: USD
A5004: PS4736 | B5004: Nur Liyana Binti Aziz | C5004: 10 | D5004: 0 | E5004: 3000-01-01 | F5004: 2020-12-31 | G5004: IP | H5004: 0 | I5004: USD
A5005: PS4737 | B5005: Nik Ahmad Zulfahmi Bin Zakaria | C5005: 10 | D5005: 0 | E5005: 3000-01-01 | F5005: 2020-12-31 | G5005: IP | H5005: 0 | I5005: USD
A5006: PS4738 | B5006: Ong Siew Lee | C5006: 10 | D5006: 0 | E5006: 3000-01-01 | F5006: 2020-12-31 | G5006: IP | H5006: 0 | I5006: USD
A5007: PS4739 | B5007: Salina Binti Syed Hassan Aljaffri & Siti Marzairin | C5007: 10 | D5007: 0 | E5007: 3000-01-01 | F5007: 2020-12-31 | G5007: IP | H5007: 0 | I5007: USD
A5008: PS4740 | B5008: Zainal Bin Abu Hassan | C5008: 10 | D5008: 0 | E5008: 3000-01-01 | F5008: 2020-12-31 | G5008: IP | H5008: 0 | I5008: USD
A5009: PS4741 | B5009: Khirani Binti Abdul Hamid | C5009: 10 | D5009: 0 | E5009: 3000-01-01 | F5009: 2020-12-31 | G5009: IP | H5009: 0 | I5009: USD
A5010: PS4742 | B5010: Norilah Binti Abd Ghani | C5010: 10 | D5010: 0 | E5010: 3000-01-01 | F5010: 2020-12-31 | G5010: IP | H5010: 0 | I5010: USD
A5011: PS4743 | B5011: Mohd Norizan Bin Ambak & Zulbakri Hadi Bin Mohd N | C5011: 10 | D5011: 0 | E5011: 3000-01-01 | F5011: 2020-12-31 | G5011: IP | H5011: 0 | I5011: USD
A5012: PS4744 | B5012: Noraini Binti Rahmat | C5012: 10 | D5012: 0 | E5012: 3000-01-01 | F5012: 2020-12-31 | G5012: IP | H5012: 0 | I5012: USD
A5013: PS4745 | B5013: Abdul Halim Bin Abdullah | C5013: 10 | D5013: 0 | E5013: 3000-01-01 | F5013: 2020-12-31 | G5013: IP | H5013: 0 | I5013: USD
A5014: PS4746 | B5014: Azahara@Azhar Bin Abdul Kadir Endang Werdiningsih | C5014: 10 | D5014: 0 | E5014: 3000-01-01 | F5014: 2020-12-31 | G5014: IP | H5014: 0 | I5014: USD
A5015: PS4747 | B5015: Ashraf Bin Zainal | C5015: 10 | D5015: 0 | E5015: 3000-01-01 | F5015: 2020-12-31 | G5015: IP | H5015: 0 | I5015: USD
A5016: PS4748 | B5016: Ruzailan bin Razali & Norhafiza Binti Mohd Nasir | C5016: 10 | D5016: 0 | E5016: 3000-01-01 | F5016: 2020-12-31 | G5016: IP | H5016: 0 | I5016: USD
A5017: PS4749 | B5017: AHMAD MUNZIR BIN MADZLAN | C5017: 10 | D5017: 0 | E5017: 3000-01-01 | F5017: 2020-12-31 | G5017: IP | H5017: 0 | I5017: USD
A5018: PS4750 | B5018: Rosilawate bt Stapa@Mustapa | C5018: 10 | D5018: 0 | E5018: 3000-01-01 | F5018: 2020-12-31 | G5018: IP | H5018: 0 | I5018: USD
A5019: PS4751 | B5019: Mariam Binti Mohamed Zin | C5019: 10 | D5019: 0 | E5019: 3000-01-01 | F5019: 2020-12-31 | G5019: IP | H5019: 0 | I5019: USD
A5020: PS4752 | B5020: MOHD MIZUAR BIN OMAR | C5020: 10 | D5020: 0 | E5020: 3000-01-01 | F5020: 2020-12-31 | G5020: IP | H5020: 0 | I5020: USD
A5021: PS4753 | B5021: KAMARUL AZMAN BIN MOHAMAD | C5021: 10 | D5021: 0 | E5021: 3000-01-01 | F5021: 2020-12-31 | G5021: IP | H5021: 0 | I5021: USD
A5022: PS4754 | B5022: Mukhtar Bin Hashim | C5022: 10 | D5022: 0 | E5022: 3000-01-01 | F5022: 2020-12-31 | G5022: IP | H5022: 0 | I5022: USD
A5023: PS4756 | B5023: Suriana Binti Soib | C5023: 10 | D5023: 0 | E5023: 3000-01-01 | F5023: 2020-12-31 | G5023: IP | H5023: 0 | I5023: USD
A5024: PS4757 | B5024: Nor Adilah binti Abdullah | C5024: 10 | D5024: 0 | E5024: 3000-01-01 | F5024: 2020-12-31 | G5024: IP | H5024: 0 | I5024: USD
A5025: PS4758 | B5025: Mohd Hanafiah Bin Kahmis | C5025: 10 | D5025: 0 | E5025: 3000-01-01 | F5025: 2020-12-31 | G5025: IP | H5025: 0 | I5025: USD
A5026: PS4759 | B5026: Izakey Bin Ismail | C5026: 10 | D5026: 0 | E5026: 3000-01-01 | F5026: 2020-12-31 | G5026: IP | H5026: 0 | I5026: USD
A5027: PS4760 | B5027: Syedi bin Aripen | C5027: 10 | D5027: 0 | E5027: 3000-01-01 | F5027: 2020-12-31 | G5027: IP | H5027: 0 | I5027: USD
A5028: PS4761 | B5028: Zainal Bin Said | C5028: 10 | D5028: 0 | E5028: 3000-01-01 | F5028: 2020-12-31 | G5028: IP | H5028: 0 | I5028: USD
A5029: PS4762 | B5029: Azmi Bin Ismail | C5029: 10 | D5029: 0 | E5029: 3000-01-01 | F5029: 2020-12-31 | G5029: IP | H5029: 0 | I5029: USD
A5030: PS4763 | B5030: KHAIRUL BIN AHMAT | C5030: 10 | D5030: 0 | E5030: 3000-01-01 | F5030: 2020-12-31 | G5030: IP | H5030: 0 | I5030: USD
A5031: PS4764 | B5031: ROSE MARIA IRA BINTI AHMAD JAILANI | C5031: 10 | D5031: 0 | E5031: 3000-01-01 | F5031: 2020-12-31 | G5031: IP | H5031: 0 | I5031: USD
A5032: PS4765 | B5032: Mohamad Shamil Maula Hazar | C5032: 10 | D5032: 0 | E5032: 3000-01-01 | F5032: 2020-12-31 | G5032: IP | H5032: 0 | I5032: USD
A5033: PS4766 | B5033: Sa'adah Binti Atan | C5033: 10 | D5033: 0 | E5033: 3000-01-01 | F5033: 2020-12-31 | G5033: IP | H5033: 0 | I5033: USD
A5034: PS4767 | B5034: Ahmad Shukeri Bin Mohamed & Noni binti Mohamad Ami | C5034: 10 | D5034: 0 | E5034: 3000-01-01 | F5034: 2020-12-31 | G5034: IP | H5034: 0 | I5034: USD
A5035: PS4768 | B5035: Ahmad Shukeri Bin Mohamed & Noni binti Mohamad Ami | C5035: 10 | D5035: 0 | E5035: 3000-01-01 | F5035: 2020-12-31 | G5035: IP | H5035: 0 | I5035: USD
A5036: PS4769 | B5036: Sallehuddin Bin Marzuki | C5036: 10 | D5036: 0 | E5036: 3000-01-01 | F5036: 2020-12-31 | G5036: IP | H5036: 0 | I5036: USD
A5037: PS4770 | B5037: Fazilah binti Jamaludin | C5037: 10 | D5037: 0 | E5037: 3000-01-01 | F5037: 2020-12-31 | G5037: IP | H5037: 0 | I5037: USD
A5038: PS4771 | B5038: Rozilah Binti Mohamad Tahir | C5038: 10 | D5038: 0 | E5038: 3000-01-01 | F5038: 2020-12-31 | G5038: IP | H5038: 0 | I5038: USD
A5039: PS4772 | B5039: Amril Haq bin Mohamad | C5039: 10 | D5039: 0 | E5039: 3000-01-01 | F5039: 2020-12-31 | G5039: IP | H5039: 0 | I5039: USD
A5040: PS4773 | B5040: Rosli Bin Sunar | C5040: 10 | D5040: 0 | E5040: 3000-01-01 | F5040: 2020-12-31 | G5040: IP | H5040: 0 | I5040: USD
A5041: PS4774 | B5041: Mardiana Norhafiza Binti Md Mansor | C5041: 10 | D5041: 0 | E5041: 3000-01-01 | F5041: 2020-12-31 | G5041: IP | H5041: 0 | I5041: USD
A5042: PS4775 | B5042: Haris Fazillah Bin Chee | C5042: 10 | D5042: 0 | E5042: 3000-01-01 | F5042: 2020-12-31 | G5042: IP | H5042: 0 | I5042: USD
A5043: PS4776 | B5043: Ahmad Aizuddin Bin Zubaidi | C5043: 10 | D5043: 0 | E5043: 3000-01-01 | F5043: 2020-12-31 | G5043: IP | H5043: 0 | I5043: USD
A5044: PS4777 | B5044: Muhammad Syahril Bin Sapiran | C5044: 10 | D5044: 0 | E5044: 3000-01-01 | F5044: 2020-12-31 | G5044: IP | H5044: 0 | I5044: USD
A5045: PS4778 | B5045: Hana Binti Hussein | C5045: 10 | D5045: 0 | E5045: 3000-01-01 | F5045: 2020-12-31 | G5045: IP | H5045: 0 | I5045: USD
A5046: PS4779 | B5046: Mahaliana Binti Kunyi Mohamad & Mohd Nazarrudin Bi | C5046: 10 | D5046: 0 | E5046: 3000-01-01 | F5046: 2020-12-31 | G5046: IP | H5046: 0 | I5046: USD
A5047: PS4780 | B5047: Nurul 'Asyiqin Binti Mahayuddin & Noorisah Binti A | C5047: 10 | D5047: 0 | E5047: 3000-01-01 | F5047: 2020-12-31 | G5047: IP | H5047: 0 | I5047: USD
A5048: PS4781 | B5048: Adam Bin Mohd Anshar@Mohd Khair & Nor Huda Binti M | C5048: 10 | D5048: 0 | E5048: 3000-01-01 | F5048: 2020-12-31 | G5048: IP | H5048: 0 | I5048: USD
A5049: PS4782 | B5049: Mohd Zafri Bin Mohd Yunus & Fadzilah Binti Md Zaid | C5049: 10 | D5049: 0 | E5049: 3000-01-01 | F5049: 2020-12-31 | G5049: IP | H5049: 0 | I5049: USD
A5050: PS4783 | B5050: M Alim Mustofa Bin Mualim | C5050: 10 | D5050: 0 | E5050: 3000-01-01 | F5050: 2020-12-31 | G5050: IP | H5050: 0 | I5050: USD
A5051: PS4784 | B5051: Mohamed Amin Bin Hussin | C5051: 10 | D5051: 0 | E5051: 3000-01-01 | F5051: 2020-12-31 | G5051: IP | H5051: 0 | I5051: USD
A5052: PS4785 | B5052: Suhaila Binti Ab Talib | C5052: 10 | D5052: 0 | E5052: 3000-01-01 | F5052: 2020-12-31 | G5052: IP | H5052: 0 | I5052: USD
A5053: PS4786 | B5053: PS4786 | C5053: 10 | D5053: 0 | E5053: 3000-01-01 | F5053: 2020-12-31 | G5053: IP | H5053: 0 | I5053: USD
A5054: PS4788 | B5054: Mohd Azarull Azmeer bin Abdullah | C5054: 10 | D5054: 0 | E5054: 3000-01-01 | F5054: 2020-12-31 | G5054: IP | H5054: 0 | I5054: USD
A5055: PS4789 | B5055: Abd Rahman bin Amir | C5055: 10 | D5055: 0 | E5055: 3000-01-01 | F5055: 2020-12-31 | G5055: IP | H5055: 0 | I5055: USD
A5056: PS4790 | B5056: Marlyna binti Abdul Malek | C5056: 10 | D5056: 0 | E5056: 3000-01-01 | F5056: 2020-12-31 | G5056: IP | H5056: 0 | I5056: USD
A5057: PS4791 | B5057: Muhammad Hanif bin Mohd Ihwan | C5057: 10 | D5057: 0 | E5057: 3000-01-01 | F5057: 2020-12-31 | G5057: IP | H5057: 0 | I5057: USD
A5058: PS4792 | B5058: Mariatul Kabtiah binti Jamil | C5058: 10 | D5058: 0 | E5058: 3000-01-01 | F5058: 2020-12-31 | G5058: IP | H5058: 0 | I5058: USD
A5059: PS4793 | B5059: Mohd Fahmi bin Sabri | C5059: 10 | D5059: 0 | E5059: 3000-01-01 | F5059: 2020-12-31 | G5059: IP | H5059: 0 | I5059: USD
A5060: PS4794 | B5060: Mohd Saifuddin Bin Awang | C5060: 10 | D5060: 0 | E5060: 3000-01-01 | F5060: 2020-12-31 | G5060: IP | H5060: 0 | I5060: USD
A5061: PS4795 | B5061: Norziany Binti Mohd Noor | C5061: 10 | D5061: 0 | E5061: 3000-01-01 | F5061: 2020-12-31 | G5061: IP | H5061: 0 | I5061: USD
A5062: PS4796 | B5062: Mohd Zaidi Bin Mohd Zain | C5062: 10 | D5062: 0 | E5062: 3000-01-01 | F5062: 2020-12-31 | G5062: IP | H5062: 0 | I5062: USD
A5063: PS4797 | B5063: Mohd Farid Bin Mohamed Sangido & Hizatulhusna Bint | C5063: 10 | D5063: 0 | E5063: 3000-01-01 | F5063: 2020-12-31 | G5063: IP | H5063: 0 | I5063: USD
A5064: PS4798 | B5064: Dato Sri Dr Dzulkefly Bin Ahmad | C5064: 10 | D5064: 0 | E5064: 3000-01-01 | F5064: 2020-12-31 | G5064: IP | H5064: 0 | I5064: USD
A5065: PS4799 | B5065: Faiz Hazim Bin Mohd Nordin | C5065: 10 | D5065: 0 | E5065: 3000-01-01 | F5065: 2020-12-31 | G5065: IP | H5065: 0 | I5065: USD
A5066: PS4800 | B5066: LIM AI MEI & LIM AI PHENG | C5066: 10 | D5066: 0 | E5066: 3000-01-01 | F5066: 2020-12-31 | G5066: IP | H5066: 0 | I5066: USD
A5067: PS4801 | B5067: Hishamudi Bin Bahari | C5067: 10 | D5067: 0 | E5067: 3000-01-01 | F5067: 2020-12-31 | G5067: IP | H5067: 0 | I5067: USD
A5068: PS4802 | B5068: Mohammad Mahbubi Ali | C5068: 10 | D5068: 0 | E5068: 3000-01-01 | F5068: 2020-12-31 | G5068: IP | H5068: 0 | I5068: USD
A5069: PS4803 | B5069: Nackshabandey Bin Abd Rauof | C5069: 10 | D5069: 0 | E5069: 3000-01-01 | F5069: 2020-12-31 | G5069: IP | H5069: 0 | I5069: USD
A5070: PS4804 | B5070: Joel Thean SiYang | C5070: 10 | D5070: 0 | E5070: 3000-01-01 | F5070: 2020-12-31 | G5070: IP | H5070: 0 | I5070: USD
A5071: PS4805 | B5071: Rosli Bin Abu Hassan | C5071: 10 | D5071: 0 | E5071: 3000-01-01 | F5071: 2020-12-31 | G5071: IP | H5071: 0 | I5071: USD
A5072: PS4806 | B5072: Norita Binti Ibrahim | C5072: 10 | D5072: 0 | E5072: 3000-01-01 | F5072: 2020-12-31 | G5072: IP | H5072: 0 | I5072: USD
A5073: PS4807 | B5073: Mohamad Muzani Bin Hj Mahmood | C5073: 10 | D5073: 0 | E5073: 3000-01-01 | F5073: 2020-12-31 | G5073: IP | H5073: 0 | I5073: USD
A5074: PS4808 | B5074: Ruhana Binti Abu | C5074: 10 | D5074: 0 | E5074: 3000-01-01 | F5074: 2020-12-31 | G5074: IP | H5074: 0 | I5074: USD
A5075: PS4809 | B5075: Ikhwannudin Bin Iskandar | C5075: 10 | D5075: 0 | E5075: 3000-01-01 | F5075: 2020-12-31 | G5075: IP | H5075: 0 | I5075: USD
A5076: PS4810 | B5076: PS4810 | C5076: 10 | D5076: 0 | E5076: 3000-01-01 | F5076: 2020-12-31 | G5076: IP | H5076: 0 | I5076: USD
A5077: PS4811 | B5077: Khairul Bin Mohd Noor | C5077: 10 | D5077: 0 | E5077: 3000-01-01 | F5077: 2020-12-31 | G5077: IP | H5077: 0 | I5077: USD
A5078: PS4812 | B5078: Rosmiza Binti Mohd Zainol | C5078: 10 | D5078: 0 | E5078: 3000-01-01 | F5078: 2020-12-31 | G5078: IP | H5078: 0 | I5078: USD
A5079: PS4813 | B5079: Johana binti Mat Said | C5079: 10 | D5079: 0 | E5079: 3000-01-01 | F5079: 2020-12-31 | G5079: IP | H5079: 0 | I5079: USD
A5080: PS4814 | B5080: Mohd Marzuki Bin Ismail | C5080: 10 | D5080: 0 | E5080: 3000-01-01 | F5080: 2020-12-31 | G5080: IP | H5080: 0 | I5080: USD
A5081: PS4815 | B5081: Ahmad As-Shaqawi Bin Mohd Zin | C5081: 10 | D5081: 0 | E5081: 3000-01-01 | F5081: 2020-12-31 | G5081: IP | H5081: 0 | I5081: USD
A5082: PS4816 | B5082: Johari Bin Abdul Jalil | C5082: 10 | D5082: 0 | E5082: 3000-01-01 | F5082: 2020-12-31 | G5082: IP | H5082: 0 | I5082: USD
A5083: PS4817 | B5083: Rosnani Binti Stopha | C5083: 10 | D5083: 0 | E5083: 3000-01-01 | F5083: 2020-12-31 | G5083: IP | H5083: 0 | I5083: USD
A5084: PS4818 | B5084: Nurulhidayah Binti Mohd Nor | C5084: 10 | D5084: 0 | E5084: 3000-01-01 | F5084: 2020-12-31 | G5084: IP | H5084: 0 | I5084: USD
A5085: PS4819 | B5085: Khairul Azuan bin Abdul Aziz | C5085: 10 | D5085: 0 | E5085: 3000-01-01 | F5085: 2020-12-31 | G5085: IP | H5085: 0 | I5085: USD
A5086: PS4820 | B5086: Muhammad Nazri Bin Rahmad | C5086: 10 | D5086: 0 | E5086: 3000-01-01 | F5086: 2020-12-31 | G5086: IP | H5086: 0 | I5086: USD
A5087: PS4821 | B5087: Haliza binti Ismail | C5087: 10 | D5087: 0 | E5087: 3000-01-01 | F5087: 2020-12-31 | G5087: IP | H5087: 0 | I5087: USD
A5088: PS4822 | B5088: Norzalizan Bin Ishak | C5088: 10 | D5088: 0 | E5088: 3000-01-01 | F5088: 2020-12-31 | G5088: IP | H5088: 0 | I5088: USD
A5089: PS4823 | B5089: Wan Suhil Bin Wan Salim | C5089: 10 | D5089: 0 | E5089: 3000-01-01 | F5089: 2020-12-31 | G5089: IP | H5089: 0 | I5089: USD
A5090: PS4824 | B5090: E.zani Bin Mohd Hussain & Ahmad Khaeri Bin E. Zani | C5090: 10 | D5090: 0 | E5090: 3000-01-01 | F5090: 2020-12-31 | G5090: IP | H5090: 0 | I5090: USD
A5091: PS4825 | B5091: Ruzlan Bin Hashim | C5091: 10 | D5091: 0 | E5091: 3000-01-01 | F5091: 2020-12-31 | G5091: IP | H5091: 0 | I5091: USD
A5092: PS4826 | B5092: Zuraida Binti Abdul Majid | C5092: 10 | D5092: 0 | E5092: 3000-01-01 | F5092: 2020-12-31 | G5092: IP | H5092: 0 | I5092: USD
A5093: PS4827 | B5093: Ahmad Kamil Bin Abdul Rauf | C5093: 10 | D5093: 0 | E5093: 3000-01-01 | F5093: 2020-12-31 | G5093: IP | H5093: 0 | I5093: USD
A5094: PS4828 | B5094: Yasir Fahmi Bin Mohamed Badri | C5094: 10 | D5094: 0 | E5094: 3000-01-01 | F5094: 2020-12-31 | G5094: IP | H5094: 0 | I5094: USD
A5095: PS4829 | B5095: Zaliza Binti Ismail & E.zani Bin Mohd Hussain | C5095: 10 | D5095: 0 | E5095: 3000-01-01 | F5095: 2020-12-31 | G5095: IP | H5095: 0 | I5095: USD
A5096: PS4830 | B5096: E.zani Bin Mohd Hussain & Ahmad Khaezuran Bin E.za | C5096: 10 | D5096: 0 | E5096: 3000-01-01 | F5096: 2020-12-31 | G5096: IP | H5096: 0 | I5096: USD
A5097: PS4831 | B5097: Nabilah Syahmie Binti Fadzle | C5097: 10 | D5097: 0 | E5097: 3000-01-01 | F5097: 2020-12-31 | G5097: IP | H5097: 0 | I5097: USD
A5098: PS4833 | B5098: Ahmad Muid Bin Setapa | C5098: 10 | D5098: 0 | E5098: 3000-01-01 | F5098: 2020-12-31 | G5098: IP | H5098: 0 | I5098: USD
A5099: PS4834 | B5099: Mohd Azim Bin Mohd Akhir | C5099: 10 | D5099: 0 | E5099: 3000-01-01 | F5099: 2020-12-31 | G5099: IP | H5099: 0 | I5099: USD
A5100: PS4835 | B5100: Saripah Binti Sairin & Mohd Shahril Bin Mohammed S | C5100: 10 | D5100: 0 | E5100: 3000-01-01 | F5100: 2020-12-31 | G5100: IP | H5100: 0 | I5100: USD
A5101: PS4836 | B5101: Mohd Yusri Bin Mohd Yusof | C5101: 10 | D5101: 0 | E5101: 3000-01-01 | F5101: 2020-12-31 | G5101: IP | H5101: 0 | I5101: USD
A5102: PS4837 | B5102: Farah Lyana Binti Muhammad Sabri & Muhammad Hafiz | C5102: 10 | D5102: 0 | E5102: 3000-01-01 | F5102: 2020-12-31 | G5102: IP | H5102: 0 | I5102: USD
A5103: PS4838 | B5103: Farizul Arif Bin Abd Mutalib | C5103: 10 | D5103: 0 | E5103: 3000-01-01 | F5103: 2020-12-31 | G5103: IP | H5103: 0 | I5103: USD
A5104: PS4839 | B5104: Muhammad Zaki Bin Kariah | C5104: 10 | D5104: 0 | E5104: 3000-01-01 | F5104: 2020-12-31 | G5104: IP | H5104: 0 | I5104: USD
A5105: PS4840 | B5105: Basri Bin Bakar | C5105: 10 | D5105: 0 | E5105: 3000-01-01 | F5105: 2020-12-31 | G5105: IP | H5105: 0 | I5105: USD
A5106: PS4841 | B5106: Mohd Hidayat Bin Daud | C5106: 10 | D5106: 0 | E5106: 3000-01-01 | F5106: 2020-12-31 | G5106: IP | H5106: 0 | I5106: USD
A5107: PS4842 | B5107: Mohd Idris Bin Omar | C5107: 10 | D5107: 0 | E5107: 3000-01-01 | F5107: 2020-12-31 | G5107: IP | H5107: 0 | I5107: USD
A5108: PS4843 | B5108: Mohd Noor Bin Ahmad | C5108: 10 | D5108: 0 | E5108: 3000-01-01 | F5108: 2020-12-31 | G5108: IP | H5108: 0 | I5108: USD
A5109: PS4844 | B5109: ZAINURRIZAL BIN AHMAD | C5109: 10 | D5109: 0 | E5109: 3000-01-01 | F5109: 2020-12-31 | G5109: IP | H5109: 0 | I5109: USD
A5110: PS4845 | B5110: KU MAHADZIR BIN KU YAHYA | C5110: 10 | D5110: 0 | E5110: 3000-01-01 | F5110: 2020-12-31 | G5110: IP | H5110: 0 | I5110: USD
A5111: PS4846 | B5111: MOHD JASNI BIN ABDULLAH | C5111: 10 | D5111: 0 | E5111: 3000-01-01 | F5111: 2020-12-31 | G5111: IP | H5111: 0 | I5111: USD
A5112: PS4847 | B5112: HILMI BIN ABU HASSAN | C5112: 10 | D5112: 0 | E5112: 3000-01-01 | F5112: 2020-12-31 | G5112: IP | H5112: 0 | I5112: USD
A5113: PS4848 | B5113: AZMI BIN ABDUL JALIL | C5113: 10 | D5113: 0 | E5113: 3000-01-01 | F5113: 2020-12-31 | G5113: IP | H5113: 0 | I5113: USD
A5114: PS4849 | B5114: NOR AZMI BIN EMBONG | C5114: 10 | D5114: 0 | E5114: 3000-01-01 | F5114: 2020-12-31 | G5114: IP | H5114: 0 | I5114: USD
A5115: PS4850 | B5115: MOHAMAD SHAHRUL AMRIE BIN SHAFEHARDIN | C5115: 10 | D5115: 0 | E5115: 3000-01-01 | F5115: 2020-12-31 | G5115: IP | H5115: 0 | I5115: USD
A5116: PS4851 | B5116: Mohd Norhafizi Bin Hassan | C5116: 10 | D5116: 0 | E5116: 3000-01-01 | F5116: 2020-12-31 | G5116: IP | H5116: 0 | I5116: USD
A5117: PS4852 | B5117: W Faridah Binti W Bakar | C5117: 10 | D5117: 0 | E5117: 3000-01-01 | F5117: 2020-12-31 | G5117: IP | H5117: 0 | I5117: USD
A5118: PS4853 | B5118: Mohd Nor Bin Samausi | C5118: 10 | D5118: 0 | E5118: 3000-01-01 | F5118: 2020-12-31 | G5118: IP | H5118: 0 | I5118: USD
A5119: PS4854 | B5119: Noorain Bt Mohammad Thoha | C5119: 10 | D5119: 0 | E5119: 3000-01-01 | F5119: 2020-12-31 | G5119: IP | H5119: 0 | I5119: USD
A5120: PS4855 | B5120: Norkhamsiah Binti Abdul Malik | C5120: 10 | D5120: 0 | E5120: 3000-01-01 | F5120: 2020-12-31 | G5120: IP | H5120: 0 | I5120: USD
A5121: PS4856 | B5121: Mohd Azhar Bin Haron | C5121: 10 | D5121: 0 | E5121: 3000-01-01 | F5121: 2020-12-31 | G5121: IP | H5121: 0 | I5121: USD
A5122: PS4857 | B5122: HAIRUL EFFEZAN BIN MANAP | C5122: 10 | D5122: 0 | E5122: 3000-01-01 | F5122: 2020-12-31 | G5122: IP | H5122: 0 | I5122: USD
A5123: PS4858 | B5123: Rusli binti Othman | C5123: 10 | D5123: 0 | E5123: 3000-01-01 | F5123: 2020-12-31 | G5123: IP | H5123: 0 | I5123: USD
A5124: PS4859 | B5124: Adriana Tham Binti Alvin | C5124: 10 | D5124: 0 | E5124: 3000-01-01 | F5124: 2020-12-31 | G5124: IP | H5124: 0 | I5124: USD
A5125: PS4860 | B5125: Mohd Omeershffudin Bin Abdul Aziz | C5125: 10 | D5125: 0 | E5125: 3000-01-01 | F5125: 2020-12-31 | G5125: IP | H5125: 0 | I5125: USD
A5126: PS4861 | B5126: Mohd Noor Bin Razali | C5126: 10 | D5126: 0 | E5126: 3000-01-01 | F5126: 2020-12-31 | G5126: IP | H5126: 0 | I5126: USD
A5127: PS4862 | B5127: Wan Malihah Binti Abdul Rahman | C5127: 10 | D5127: 0 | E5127: 3000-01-01 | F5127: 2020-12-31 | G5127: IP | H5127: 0 | I5127: USD
A5128: PS4863 | B5128: Zainab Binti Mohd Shah | C5128: 10 | D5128: 0 | E5128: 3000-01-01 | F5128: 2020-12-31 | G5128: IP | H5128: 0 | I5128: USD
A5129: PS4864 | B5129: Al-Hakim Bin Abdullah | C5129: 10 | D5129: 0 | E5129: 3000-01-01 | F5129: 2020-12-31 | G5129: IP | H5129: 0 | I5129: USD
A5130: PS4865 | B5130: Shaheran binti Abdul Mutalib | C5130: 10 | D5130: 0 | E5130: 3000-01-01 | F5130: 2020-12-31 | G5130: IP | H5130: 0 | I5130: USD
A5131: PS4866 | B5131: Madzlan bin Aziz | C5131: 10 | D5131: 0 | E5131: 3000-01-01 | F5131: 2020-12-31 | G5131: IP | H5131: 0 | I5131: USD
A5132: PS4867 | B5132: Abdul Rahman Bin Mokhtar | C5132: 10 | D5132: 0 | E5132: 3000-01-01 | F5132: 2020-12-31 | G5132: IP | H5132: 0 | I5132: USD
A5133: PS4868 | B5133: Nik Azalina Binti Nik Anuwa | C5133: 10 | D5133: 0 | E5133: 3000-01-01 | F5133: 2020-12-31 | G5133: IP | H5133: 0 | I5133: USD
A5134: PS4869 | B5134: Sirajudin Bin Ahmad | C5134: 10 | D5134: 0 | E5134: 3000-01-01 | F5134: 2020-12-31 | G5134: IP | H5134: 0 | I5134: USD
... 2150 more rows

Sheet InIntRec (hidden)
A1: CustNo | B1: AccName | C1: accdate | D1: ExRateSCUSD | E1: ExRateUSDMYR | F1: qCurrencyCode | G1: Amount
A2: 212401 | B2: EPF-SHWORLD-AUD | C2: 2021-09-30 | D2: 0.7223499674 | E2: 4.1865 | F2: AUD | G2: 3.62
A3: 212401 | B3: EPF-SHWORLD-AUD | C3: 2021-10-29 | D3: 0.7510999446 | E3: 4.1425 | F3: AUD | G3: 1.17
A4: 212401 | B4: EPF-SHWORLD-GBP | C4: 2021-10-29 | D4: 1.370749945 | E4: 4.1425 | F4: GBP | G4: 0.3
A5: 212401 | B5: EPF-SHWORLD-AUD | C5: 2021-11-30 | D5: 0.7090499678 | E5: 4.2115 | F5: AUD | G5: 0.62
A6: 212401 | B6: EPF-SHWORLD-GBP | C6: 2021-11-30 | D6: 1.322999963 | E6: 4.2115 | F6: GBP | G6: 0.04
A7: 212401 | B7: EPF-SHWORLD-GBP | C7: 2021-12-31 | D7: 1.354449948 | E7: 4.166 | F7: GBP | G7: 0.11
A8: 212401 | B8: EPF-SHWORLD-GBP | C8: 2022-01-31 | D8: 1.341649953 | E8: 4.1855 | F8: GBP | G8: 0.89
A9: 212401 | B9: EPF-SHWORLD-AUD | C9: 2022-02-28 | D9: 0.7256499681 | E9: 4.1985 | F9: AUD | G9: 1.63
A10: 212401 | B10: EPF-SHWORLD-AUD | C10: 2022-04-29 | D10: 0.7106499681 | E10: 4.35 | F10: AUD | G10: 3.04

Sheet InHolding (hidden)
A1: HistoryDate | B1: qStockCode | C1: StockName | D1: UnitFaceValue | E1: costfc | F1: MarketValueFC | G1: ExchgRate | H1: StockCurrency | I1: CustNo | J1: CostPrice | K1: MVPrice | L1: MthEndPrice | M1: MthEndMV | N1: MthEndUint | O1: MthEndCost | P1: ISINCode | Q1: OtherCode1 | R1: CostSC | S1: MarketValueSC | T1: Price | U1: AccIntSC | V1: AccIntFC | W1: curUFV
A2: 2021-12-20 | B2: BYP20B9 | C2: BAYCURRENT CONSULTING INC | D2: 7200 | E2: 3063971.5 | F2: 2793773.98 | G2: 113.395 | H2: JPY | I2: 212401 | J2: 425.5515972 | K2: 388.0241639 | L2: 333.050324 | M2: 832625.81 | N2: 2500 | O2: 1063878.993 | P2: JP3835250006 | Q2: 6532 JP | R2: 349127897 | S2: 316800000 | T2: 44000 | U2: 0 | V2: 0 | W2: 2500
A3: 2022-03-21 | B3: 2459020 | C3: INTUIT INC | D3: 7242 | E3: 3922076.37 | F3: 3378393 | G3: 1 | H3: USD | I3: 212401 | J3: 541.5736495 | K3: 466.5 | L3: 418.75 | M3: 3032587.5 | N3: 7242 | O3: 3922076.37 | P3: US4612021034 | Q3: INTU US | R3: 3922076.37 | S3: 3378393 | T3: 466.5 | U3: 0 | V3: 0 | W3: 7242
A4: 2022-05-10 | B4: BQ7ZVF1 | C4: EUROAPI SASU | D4: 2740 | E4: 32234.66 | F4: 41887.34 | G4: 0.94849664 | H4: EUR | I4: 212401 | J4: 11.76447445 | K4: 15.28735036 | P4: FR0014008VX5 | Q4: EAPI FP | R4: 30458.91 | S4: 39730 | T4: 14.5 | U4: 0 | V4: 0
A5: 2022-05-13 | B5: BLDBN85 | C5: ATLAS COPCO AB-B RDS | D5: 162879 | E5: 0 | F5: 129326.78 | G5: 10.0755 | H5: SEK | I5: 212401 | J5: 0 | K5: 0.7940052432 | P5: SE0017486871 | Q5: ATCOILB SS | R5: 0 | S5: 1303032 | T5: 8 | U5: 0 | V5: 0

Sheet Descriptions
B1: =FundCode -> EPF-SHWORLD
B4: Worksheet Name | C4: Descriptions
B5: 1) List of Reclassed Securities | C5: Listing of all securities in the portfolio that are reclassified from shariah to non-shariah on the effective date of reclassification (MMYYYY) based on the periodic review by the shariah index used as performance benchmark as stated in the mandate (i.e. FTSE and MSCI).
B6: 2) ITM Reclassed Securities | C6: Disclosure of all the transactions related to the in-the-money (ITM)1 reclassed securites for the month.
B7: 3) OTM Reclassed Securities | C7: Disclosure of all the transactions related to the out-of-the-money (OTM)2 reclassed securites for the month.
B8: 4) Reclassed Sec Not Disposed | C8: Listing of the remaining reclassed securities that have yet to be disposed in the following month.
B10: Note :
B12: 1. In-the-money (ITM) = Average investment cost per share on the Reclass Date more than or equal to Investment Cost per share.
B14: 2. Out-of-the-money (OTM) = Average investment cost per share on the Reclass Date less than Investment Cost per share.

Sheet 1) List of Reclassed Securities
C1: =IF(OR(U1="",U1="(blank)"),"",U1) ->  | D1: =IF(OR(N1="",N1="(blank)"),"",N1) ->  | E1: =IF(OR(O1="",O1="(blank)"),"",O1) ->  | F1: =IF(OR(P1="",P1="(blank)"),"",P1) ->  | G1: =IF(OR(M1="",M1="(blank)"),"",M1) ->  | H1: =IF(OR(W1="",W1="(blank)"),"",ROUND(W1,2)) ->  | I1: =IF(OR(Q1="",Q1="(blank)"),"",ROUND(SUMIFS(BNYM_NAV_HistCost_RCdate!$AA:$AA,BNYM_NAV_HistCost_RCdate!C:C,G1,BNYM_NAV_HistCost_RCdate!I:I,D1),2)) ->  | J1: =IF(OR(V1="",V1="(blank)"),"",IF(F1=0,0,ROUND(I1/F1,2))) ->  | K1: =IF(D1="","",IF(H1>=J1,"IN-THE-MONEY","OUT-OF-THE-MONEY")) ->  | L1: =IF(OR(R1="",R1="(blank)"),"",R1) -> 
B2: ="LIST OF SECURITIES RECLASSIFIED FROM SHARIAH TO NON-SHARIAH IN " & UPPER(TEXT(EndDate,"MMMm-yyyy")) -> LIST OF SECURITIES RECLASSIFIED FROM SHARIAH TO NON-SHARIAH IN MAY-2022
B4: Mandate : | D4: =FundName -> EPF SHARIAH WORLD NOMURA ISLAMIC
B5: Portfolio Manager : | D5: NOMURA ISLAMIC ASSET MANAGEMENT SDN BHD
B7: No. | C7: Custody Account No. | D7: Security Identifier (Sedol) | E7: Security Name | F7: Total No. of Shares1 [a] | G7: Reclass Date2 (DD/MM/YY) | H7: Reclass Price3 Per Share [b] | I7: Investment Cost4 as of Reclass Date [c] | J7: Average Investment Cost Per Share [d = c / a] | K7: In-the-money or Out-of-the-money (Reclass Date) | L7: Trading Currency
B8: 1 | C8: 212401 | D8: B4W9F29 | E8: Mead Johnson Nutrition Co. | F8: 41816 | G8: 2015-06-22 | H8: 91.29 | I8: 4076253.79 | J8: 97.48072006 | K8: OUT-OF-THE-MONEY | L8: USD
B9: 2 | C9: 212401 | D9: 2654320 | E9: Monsanto Co | F9: 51033 | G9: 2016-06-20 | H9: 108.71 | I9: 5549088.46 | J9: 108.7352979 | K9: OUT-OF-THE-MONEY | L9: USD
B10: 3 | C10: 212401 | D10: B1YXBJ7 | E10: Air Liquide | F10: 52835 | G10: 2016-09-19 | H10: 108.3856885 | I10: 6177913.36 | J10: 116.9284255 | K10: OUT-OF-THE-MONEY | L10: EUR
B11: 4 | C11: 212401 | D11: 2257019 | E11: Cognizant Tech Solutions | F11: 89869 | G11: 2016-09-19 | H11: 53.33 | I11: 5517821.39 | J11: 61.39849548 | K11: OUT-OF-THE-MONEY | L11: USD
B12: 5 | C12: 212401 | D12: BZB1Y59 | E12: LINE CORPORATION | F12: 118100 | G12: 2017-03-20 | H12: 36.01723141 | I12: 4921763.61 | J12: 41.67454369 | K12: OUT-OF-THE-MONEY | L12: JPY
B13: 6 | C13: 212401 | D13: BDTYZ53 | E13: BIOVERATIV INC | F13: 9119 | G13: 2017-03-20 | H13: 49.17 | I13: 569099.27 | J13: 62.40807874 | K13: OUT-OF-THE-MONEY | L13: USD
B14: 7 | C14: 212401 | D14: BDSFG98 | E14: TECHNIPFMC PLC | F14: 62737 | G14: 2017-03-20 | H14: 31.39 | I14: 2149258.43 | J14: 34.25822768 | K14: OUT-OF-THE-MONEY | L14: USD
B15: 8 | C15: 212401 | D15: 2369174 | E15: GILEAD SCIENCES INC | F15: 80560 | G15: 2017-09-18 | H15: 82.97 | I15: 8717505.39 | J15: 108.211338 | K15: OUT-OF-THE-MONEY | L15: USD
B16: 9 | C16: 212401 | D16: B24CGK7 | E16: RECKITT BENCKISER GROUP PLC | F16: 58259 | G16: 2017-09-18 | H16: 92.41691412 | I16: 5569721.2 | J16: 95.60276009 | K16: OUT-OF-THE-MONEY | L16: GBP
B17: 10 | C17: 212401 | D17: 2182348 | E17: CELGENE CORP | F17: 54655 | G17: 2017-12-18 | H17: 108.04 | I17: 7379900.6 | J17: 135.0269984 | K17: OUT-OF-THE-MONEY | L17: USD
B18: 11 | C18: 212401 | D18: 6667733 | E18: PARK24 CO LTD | F18: 121200 | G18: 2018-03-19 | H18: 27.12969521 | I18: 3846676.89 | J18: 31.73825817 | K18: OUT-OF-THE-MONEY | L18: JPY
B19: 12 | C19: 212401 | D19: B3CTNK6 | E19: SIGNET JEWELERS LTD | F19: 30171 | G19: 2018-03-19 | H19: 39.46 | I19: 3055359.47 | J19: 101.2680876 | K19: OUT-OF-THE-MONEY | L19: USD
B20: 13 | C20: 212401 | D20: 6496584 | E20: KOMATSU LTD | F20: 175200 | G20: 2018-06-18 | H20: 29.52066267 | I20: 6322006.2 | J20: 36.08451027 | K20: OUT-OF-THE-MONEY | L20: JPY
B21: 14 | C21: 212401 | D21: B12T3J1 | E21: UNILEVER NV-CVA | F21: 136655 | G21: 2018-09-24 | H21: 55.99425619 | I21: 7803307.42 | J21: 57.10224595 | K21: OUT-OF-THE-MONEY | L21: EUR
B22: 15 | C22: 212401 | D22: BPF0548 | E22: AMS AG | F22: 44783 | G22: 2018-09-24 | H22: 64.91328585 | I22: 5195693.26 | J22: 116.0193212 | K22: OUT-OF-THE-MONEY | L22: CHF
B23: 16 | C23: 212401 | D23: 3091357 | E23: BT GROUP PLC | F23: 625651 | G23: 2018-12-24 | H23: 3.095561791 | I23: 2612596.35 | J23: 4.175804642 | K23: OUT-OF-THE-MONEY | L23: GBP
B24: 17 | C24: 212401 | D24: 6194468 | E24: KOSE CORP | F24: 18400 | G24: 2018-12-24 | H24: 147.6722614 | I24: 3982864.16 | J24: 216.4600087 | K24: OUT-OF-THE-MONEY | L24: JPY
B25: 18 | C25: 212401 | D25: 6895675 | E25: TOKYO ELECTRON | F25: 9100 | G25: 2019-03-18 | H25: 140.9594758 | I25: 1877058.46 | J25: 206.2701604 | K25: OUT-OF-THE-MONEY | L25: JPY
B26: 19 | C26: 212401 | D26: BDZ78H9 | E26: BROADCOM INC | F26: 34082 | G26: 2019-06-24 | H26: 279.2 | I26: 10243450.08 | J26: 300.5530802 | K26: OUT-OF-THE-MONEY | L26: USD
B27: 20 | C27: 212401 | D27: 2126335 | E27: BRISTOL-MYERS SQUIBB CO | F27: 108062 | G27: 2019-09-23 | H27: 50.52 | I27: 6564361.2 | J27: 60.74624938 | K27: OUT-OF-THE-MONEY | L27: USD
B28: 21 | C28: 212401 | D28: 2459020 | E28: INTUIT INC | F28: 24213 | G28: 2019-09-23 | H28: 269 | I28: 6758049.13 | J28: 279.1082943 | K28: OUT-OF-THE-MONEY | L28: USD
B29: 22 | C29: 212401 | D29: 2595708 | E29: 3M CO | F29: 21924 | G29: 2019-09-23 | H29: 166.76 | I29: 4335448.01 | J29: 197.7489514 | K29: OUT-OF-THE-MONEY | L29: USD
B30: 23 | C30: 212401 | D30: 6185495 | E30: CSL LTD | F30: 11615 | G30: 2019-09-23 | H30: 160.3219311 | I30: 1891408.97 | J30: 162.841926 | K30: OUT-OF-THE-MONEY | L30: AUD
B31: 24 | C31: 212401 | D31: BKM7ZR0 | E31: BRISTOL-MYERS SQUIBB-CVR | F31: 28105 | I31: 0 | J31: 0 | K31: OUT-OF-THE-MONEY | L31: USD
B32: 25 | C32: 212401 | D32: 3091357 | E32: BT GROUP PLC | F32: 556135 | G32: 2020-03-23 | H32: 1.353351309 | I32: 2322306.95 | J32: 4.175797154 | K32: OUT-OF-THE-MONEY | L32: GBP
B33: 26 | C33: 212401 | D33: B06CMQ9 | E33: GMO PAYMENT GATEWAY INC | F33: 17500 | G33: 2020-03-23 | H33: 66.45413317 | I33: 1222063.59 | J33: 69.83220514 | K33: OUT-OF-THE-MONEY | L33: JPY
B34: 27 | C34: 212401 | D34: BH4HKS3 | E34: VODAFONE GROUP PLC | F34: 2504866 | G34: 2020-03-23 | H34: 1.266253313 | I34: 7798144.63 | J34: 3.113198323 | K34: OUT-OF-THE-MONEY | L34: GBP
B35: 28 | C35: 212401 | D35: B92SR70 | E35: ABBVIE INC | F35: 17843 | G35: 2020-05-11 | H35: 87.9 | I35: 1958115.89 | J35: 109.741405 | K35: OUT-OF-THE-MONEY | L35: USD
B36: 29 | C36: 212401 | D36: 2595708 | E36: 3M CO | F36: 20942 | G36: 2020-06-22 | H36: 156.69 | I36: 4141245.33 | J36: 197.7483206 | K36: OUT-OF-THE-MONEY | L36: USD
B37: 30 | C37: 212401 | D37: BDRXDB4 | E37: BOOKING HOLDINGS INC | F37: 4246 | G37: 2020-06-22 | H37: 1633.52 | I37: 8733862.55 | J37: 2056.962447 | K37: OUT-OF-THE-MONEY | L37: USD
B38: 31 | C38: 212401 | D38: B4R28B3 | E38: FLEETCOR TECHNOLOGIES INC | F38: 32789 | G38: 2020-09-21 | H38: 235.44 | I38: 9316962.87 | J38: 284.1490399 | K38: OUT-OF-THE-MONEY | L38: USD
B39: 32 | C39: 212401 | D39: BF09HX3 | E39: TAPESTRY INC | F39: 136967 | G39: 2020-09-21 | H39: 16.51 | I39: 4147133.1 | J39: 30.27833785 | K39: OUT-OF-THE-MONEY | L39: USD
B40: 33 | C40: 212401 | D40: BH4HKS3 | E40: VODAFONE GROUP PLC | F40: 2464465 | G40: 2021-03-22 | H40: 1.837872135 | I40: 7672368.31 | J40: 3.113198325 | K40: OUT-OF-THE-MONEY | L40: GBP
B41: 34 | C41: 212401 | D41: 2989301 | E41: TJX COMPANIES INC | F41: 165316 | G41: 2021-06-21 | H41: 64.91 | I41: 11199273.9 | J41: 67.74464601 | K41: OUT-OF-THE-MONEY | L41: USD | M41: Row Labels | N41: qStockCode | O41: StockName | P41: UnitFaceValue | Q41: costfc | R41: StockCurrency | S41: MarketValueFC | T41: ExchgRate | U41: CustNo | V41: CostPrice | W41: MVPrice
B42: 35 | C42: 212401 | D42: BYP20B9 | E42: BAYCURRENT CONSULTING INC | F42: 7200 | G42: 2021-12-20 | H42: 388.02 | I42: 3063971.51 | J42: 425.55 | K42: OUT-OF-THE-MONEY | L42: JPY | M42: 2021-12-20 | N42: BYP20B9 | O42: BAYCURRENT CONSULTING INC | P42: 7200 | Q42: 3063971.5 | R42: JPY | S42: 2793773.98 | T42: 113.395 | U42: 212401 | V42: 425.5515972 | W42: 388.0241639
B43: 36 | C43: 212401 | D43: 2459020 | E43: INTUIT INC | F43: 7242 | G43: 2022-03-21 | H43: 466.5 | I43: 3922076.37 | J43: 541.57 | K43: OUT-OF-THE-MONEY | L43: USD | M43: 2022-03-21 | N43: 2459020 | O43: INTUIT INC | P43: 7242 | Q43: 3922076.37 | R43: USD | S43: 3378393 | T43: 1 | U43: 212401 | V43: 541.5736495 | W43: 466.5
B44: 37 | C44: 212401 | D44: BQ7ZVF1 | E44: EUROAPI SASU | F44: 2740 | G44: 2022-05-10 | H44: 15.29 | I44: 34956.93 | J44: 12.76 | K44: IN-THE-MONEY | L44: EUR | M44: 2022-05-10 | N44: BQ7ZVF1 | O44: EUROAPI SASU | P44: 2740 | Q44: 32234.66 | R44: EUR | S44: 41887.34 | T44: 0.94849664 | U44: 212401 | V44: 11.76447445 | W44: 15.28735036
B45: 38 | C45: 212401 | D45: BLDBN85 | E45: ATLAS COPCO AB-B RDS | F45: 162879 | G45: 2022-05-13 | H45: 0.79 | I45: 174044.25 | J45: 1.07 | K45: OUT-OF-THE-MONEY | L45: SEK | M45: 2022-05-13 | N45: BLDBN85 | O45: ATLAS COPCO AB-B RDS | P45: 162879 | Q45: 0 | R45: SEK | S45: 129326.78 | T45: 10.0755 | U45: 212401 | V45: 0 | W45: 0.7940052432
M46: (blank) | N46: (blank) | O46: (blank) | P46: (blank) | Q46: (blank) | R46: (blank) | S46: (blank) | T46: (blank) | U46: (blank) | V46: (blank) | W46: (blank)
B48: Note :
B50: All transactions are in USD unless stated otherwise.
B52: 1. Total no. of shares are as at ending of the Reclass Date.
B54: 2. Reclass Date = Effective date of reclassification (MMYYYY) based on the periodic review by the shariah index used as performance benchmark as stated in the mandate (i.e. FTSE and MSCI).
B56: 3. Reclass Price = Closing market price on Reclass Date.
B58: 4. Investment Cost = Original investment cost excluding impairment.

Sheet 2) ITM Reclassed Securities
C1: =IF(OR(AR1="",AT1=""),"",AT1) ->  | D1: =IF(OR(AR1="",AU1=""),"",AU1) ->  | E1: =IF(OR(AR1="",AV1=""),"",AV1) ->  | F1: =IF(OR(AW1="",AW1="(blank)"),"",AW1) ->  | G1: =IF(OR(AX1="",AX1=0),"",ROUND(AX1,4)) ->  | H1: =IF(OR(AY1="",AY1=0),"",IF(F1="Corporate Action",BB1,AY1)) ->  | I1: =IF(BM1="","",IF(BM1=1,AZ1,AZ1)) ->  | J1: =IF(H1="","",I1*H1) ->  | K1: =IF(OR(BG1="",BH1<>"SS"),"",BG1) ->  | L1: =IF(OR(BB1="",BH1<>"SS"),"",BB1) ->  | M1: =IF(OR(BC1="",BH1<>"SS"),"",BC1) ->  | N1: =IF(OR(BE1="",BH1<>"SS"),"",BE1) ->  | O1: =IF(L1="","",L1*I1) ->  | P1: =IF(OR(BE1="",BH1<>"SS"),"",BE1-BD1) ->  | Q1: =IF(OR(BI1=0,BI1=""),"",BI1) ->  | R1: =IF(OR(BJ1="",BJ1=0),"",BJ1) ->  | S1: =IF(OR(R1="",L1=0),"",L1*R1) ->  | T1: =IF(OR(BG1="",BH1<>"SI"),"",BG1) ->  | U1: =IF(OR(AS1="",BH1<>"SI"),"",AS1) ->  | V1: =IF(OR(BC1="",BH1<>"SI"),"",W1/H1) ->  | W1: =IF(OR(BD1="",BH1<>"SI"),"",BD1) ->  | X1: =IF(OR(BL1="",BL1="(blank)",BH1="SI",BH1="SS"),"",BL1) ->  | Y1: =IF(OR(BG1="",BG1="(blank)",BH1="SI",BH1="SS",BL1="(blank)"),"",BG1) ->  | Z1: =IF(OR(BB1="",BB1="(blank)",BH1="SI",BH1="SS",BH1="",BL1="(blank)"),"",BB1) ->  | AA1: =IF(OR(BD1="",BD1="(blank)",BH1="SI",BH1="SS",BH1="",BL1="(blank)"),"",BD1) ->  | AB1: =IF(N1="","",N1-O1-P1) ->  | AC1: =IF(W1="","",W1) ->  | AD1: =IF(S1="","",IF(S1="",0,S1)-IF(O1="",0,O1)-IF(P1="",0,P1)) ->  | AE1: =IF(AC1="","",AC1) ->  | AF1: =IF(N1="","",N1-S1) ->  | AG1: =IF(OR(AF1="",G1=""),"",AF1*G1) ->  | AH1: =IF(AE1="","",AE1) ->  | AI1: =IF(OR(AH1="",G1=""),"",AH1*G1) ->  | AJ1: =IF(H1="","",IF(BH1="SS",H1-L1,IF(F1<>"",H1,""))) ->  | AK1: =IF($F1="","",IF($F1="Dividend",$AL1/$AJ1,IF($F1="SELL",IF(I1=0,AZ1,$I1),($J1-IF($AA1="",0,$AA1))/$AJ1))) ->  | AL1: =IF($F1="","",IF($F1="Dividend",$BA1,AK1*AJ1)) ->  | AM1: =IF(R1="","",IF(BH1="SS",R1,IF(F1<>"",R1,""))) -> 
B2: ="TRANSACTIONS OF THE IN-THE-MONEY (ITM) RECLASSED SECURITIES FOR THE MONTH OF "&UPPER(TEXT(EndDate,"MMMm-yyyy")) -> TRANSACTIONS OF THE IN-THE-MONEY (ITM) RECLASSED SECURITIES FOR THE MONTH OF MAY-2022
B4: Mandate : | D4: =FundName -> EPF SHARIAH WORLD NOMURA ISLAMIC
B5: Portfolio Manager : | D5: NOMURA ISLAMIC ASSET MANAGEMENT SDN BHD
H6: Beginning Holdings | K6: Disposal of Reclassed Securities | Q6: Details of Reclassed Securities | T6: Dividend Received from Reclassed Securities | X6: Corporate Action Events of the Reclassed Securities | AB6: Total Income | AD6: Shariah Income | AF6: Non-Compliant Income (NCI) | AJ6: Remaining Holdings | AN6: Note
G7: USD to Ringgit Malaysia Exchange Rate1 | H7: No. of Shares [a] | I7: Average Investment Cost Per Share2 [b] | J7: Total Investment Cost [c = a x b] | K7: Disposal Date (DD/MM/YY) | L7: No. of Shares Disposed [d] | M7: Disposal Price [e] | N7: Disposal Value [f = d x e] | O7: Investment Cost [g = b x d] | P7: Commission and Trade Expense [h] | Q7: Reclass Date (DD/MM/YY) | R7: Reclass Price [i] | S7: Reclass Value [j = d x i] | T7: Ex Date | U7: Payment Date | V7: Dividend Per Share [k] | W7: Entitlement Value [l = a x k] | X7: Type | Y7: Date (DD/MM/YY) | Z7: No. of Shares (If applicable) | AA7: Entitlement Value | AB7: Total Capital Gain/Loss [m = f - g - h] | AC7: Dividend Income | AD7: Capital Gain3 [n = j - g - h] | AE7: Dividend Income4 | AF7: Capital Gain5 | AH7: Dividend Income6 | AJ7: No. of Shares [o] | AK7: Average Investment Cost Per Share [p] | AL7: Total Investment Cost [q = o x p] | AM7: Reclass Price | AR7: FilterInOut | AS7: 0
B8: No. | C8: Custody Account No. | D8: Security Identifier (Sedol) | E8: Security Name | F8: Type of Transaction
AF9: =FundCur -> USD | AG9: RM | AH9: =FundCur -> USD | AI9: RM | AR9: Row Labels | AS9: PayDate | AT9: CustNo | AU9: qStockCode | AV9: StockName | AW9: TranType | AX9: ExRate | AY9: BeginUFV | AZ9: BeginCostPrice | BA9: BeginCostFC | BB9: UnitFaceValue | BC9: TranPrice | BD9: FCNetProceed | BE9: FCGrossProceed | BF9: MVPrice | BG9: TradeDate | BH9: qTrnCode | BI9: ReclassDt | BJ9: ReclassPrice | BK9: ReClassMV | BL9: TranDesc | BM9: row_num | BN9: ImportCost | BP9: Stock Code | BQ9: ReClassDt | BR9: Unit | BS9: Price | BT9: Cost | BU9: Last
B10: 1 | C10: 212401 | D10: BQ7ZVF1 | E10: EUROAPI SASU | F10: SELL | G10: 4.3765 | H10: 2740 | I10: =IF(BB10="","",IF(BM10=1,BN10/H10,AK9)) -> 12.75800365 | J10: =IF(H10="","",IF(BM10=1,BN10,H10*I10)) -> 34956.93 | K10: 2022-05-11 | L10: 2740 | M10: 14.69148682 | N10: 40254.676 | O10: =IF(L10="","",L10*I10) -> 34956.93 | P10: 40.256 | Q10: 2022-05-10 | R10: 15.28735036 | S10: 41887.34 | AB10: =IF(N10="","",N10-O10-P10) -> 5257.49 | AD10: =IF(S10="","",IF(S10="",0,S10)-IF(O10="",0,O10)-IF(P10="",0,P10)) -> 6890.154 | AF10: -1632.664 | AG10: -7145.353996 | AJ10: 0 | AK10: =IF(F10="","",IF(F10="Dividend",AL10/AJ10,IF(F10="SELL",IF(I10=0,AZ10,$I10),(J10-IF(AA10="",0,AA10))/$AJ10))) -> 12.75800365 | AL10: =IF(F10="","",IF(F10="Dividend",IF(BM10=1,BN10-AE10,AL9-AE10),AK10*AJ10)) -> 0 | AM10: 15.28735036 | AR10: 202205_BQ7ZVF1 | AS10: 2022-05-11 | AT10: 212401 | AU10: BQ7ZVF1 | AV10: EUROAPI SASU | AW10: SELL | AX10: 4.3765 | AY10: 2740 | AZ10: 11.76447445 | BA10: 32234.66 | BB10: 2740 | BC10: 14.69148682 | BD10: 40214.42 | BE10: 40254.676 | BF10: 15.28735036 | BG10: 2022-05-11 | BH10: SS | BI10: 2022-05-10 | BJ10: 15.28735036 | BK10: 41887.34 | BL10: Share Sale | BM10: 1 | BN10: 34956.93 | BP10: BQ7ZVF1 | BQ10: 44691 | BR10: 0 | BS10: 12.75800365 | BT10: 0 | BU10: 1
AE12: Total NCI | AF12: -1632.664 | AG12: -7145.353996 | AH12: 0 | AI12: 0
AF13: Grand total NCI (USD) | AI13: -1632.664
AF14: Grand total NCI (RM) | AI14: -7145.353996
B16: Important:
B17: When the reclassed securities are "in-the-money" on the Reclass Date, all holdings need to be disposed immediately.
B18: Disposal in stages is allowed only if there is no liquidity in the market or any other reasons that could prevent the Portfolio Manager from trading on the Reclass Date and any entitlement of shares resulting from corporate action must be disposed immediately.
B20: Note :
B22: All transactions are in USD unless stated otherwise.
B24: 1. Except for corporate action involving dividend, exchange rate is based on the rate on the transaction date. For dividend, exchange rate is based on the payment date.
B26: 2. Average Investment Cost Per Share should reflect the latest (adjusted, if any) average investment cost excluding impairment.
B28: 3. Any capital gain up to Reclass Price is deemed shariah-compliant.
B30: 4. Dividend income (net of withholding tax) are deemed shariah-compliant if the ex-date is before/on the Reclass Date
B32: 5. Any excess capital gain above Reclass Price is considered as NCI.
B34: 6. Dividend income (net of withholding tax) is deemed as NCI when the Ex-Date is after the Reclass Date

Sheet 3) OTM Reclassed Securities
C1: =IF(OR(AK1="",AM1=""),"",AM1) ->  | D1: =IF(OR(AK1="",AN1=""),"",AN1) ->  | E1: =IF(OR(AK1="",AO1=""),"",AO1) ->  | F1: =IF(OR(AP1="",AP1="(blank)"),"",AP1) ->  | G1: =IF(OR(AQ1="",AQ1=0),"",AQ1) ->  | H1: =IF(AR1="","",IF(F1="Corporate Action",AU1,AR1)) ->  | I1: =IF(BB1="","",IF(BB1=1,AS1,AS1)) ->  | J1: =IF(H1="","",I1*H1) ->  | K1: =IF(OR(AY1="",AZ1<>"SS"),"",AY1) ->  | L1: =IF(OR(AU1="",AZ1<>"SS"),"",AU1) ->  | M1: =IF(OR(AV1="",AZ1<>"SS"),"",AV1) ->  | N1: =IF(OR(AX1="",AZ1<>"SS"),"",AX1) ->  | O1: =IF(L1="","",L1*I1) ->  | P1: =IF(OR(AX1="",AZ1<>"SS"),"",AX1-AW1) ->  | Q1: =IF(OR(AY1="",AZ1<>"SI"),"",AY1) ->  | R1: =IF(OR(AL1="",AZ1<>"SI"),"",AL1) ->  | S1: =IF(OR(AV1="",AZ1<>"SI"),"",T1/H1) ->  | T1: =IF(OR(AW1="",AZ1<>"SI"),"",AW1) ->  | U1: =IF(OR(BA1="",BA1="(blank)",AZ1="SI",AZ1="SS"),"",BA1) ->  | V1: =IF(OR(AY1="",AY1="(blank)",AZ1="SI",AZ1="SS",BA1="(blank)"),"",AY1) ->  | W1: =IF(OR(AU1="",AU1="(blank)",AZ1="SI",AZ1="SS",BA1="(blank)"),"",AU1) ->  | X1: =IF(OR(AW1="",AW1="(blank)",AZ1="SI",AZ1="SS",BA1="(blank)"),"",AW1) ->  | Y1: =IF(N1="","",N1-O1-P1) ->  | Z1: =IF(T1="","",T1) ->  | AA1: =IF(Z1="","",IF(J1>0,Z1,"")) ->  | AB1: =IF(Y1="","",IF(Y1>=0,Y1,"")) ->  | AC1: =IF(AB1="","",IF(G1="","",AB1*G1)) ->  | AD1: =IF(Z1="","",IF(J1<=0,Z1,"")) ->  | AE1: =IF(AD1="","",IF(G1="","",AD1*G1)) ->  | AF1: =IF(H1="","",IF(AZ1="SS",H1-L1,IF(F1<>"",H1,""))) ->  | AG1: =IF($F1="","",IF($F1="Dividend",$AH1/$AF1,IF($F1="SELL",$I1,($J1-IF($X1="",0,$X1))/$AF1))) ->  | AH1: =IF($F1="","",IF($F1="Dividend",$AT1,AG1*AF1)) -> 
B2: ="TRANSACTIONS OF THE OUT-OF-THE-MONEY (OTM) RECLASSED SECURITIES FOR THE MONTH OF "&UPPER(TEXT(EndDate,"MMMm-yyyy")) -> TRANSACTIONS OF THE OUT-OF-THE-MONEY (OTM) RECLASSED SECURITIES FOR THE MONTH OF MAY-2022
B4: Mandate : | D4: =FundName -> EPF SHARIAH WORLD NOMURA ISLAMIC
B5: Portfolio Manager : | D5: NOMURA ISLAMIC ASSET MANAGEMENT SDN BHD
H6: Beginning Holdings | K6: Disposal of Reclassed Securities | Q6: Dividend Received from Reclassed Securities | U6: Corporate Action Events of the Reclassed Securities | Y6: Total Income | AA6: Shariah Income | AB6: Non-Compliant Income (NCI) | AF6: Remaining Holdings | AI6: Note
G7: USD to Ringgit Malaysia Exchange Rate1 | H7: No. of Shares [a] | I7: Recoverable Average Investment Cost Per Share2 [b] | J7: Total Recoverable Investment Cost [c = a x b] | K7: Disposal Date (DD/MM/YY) | L7: No. of Shares Disposed [d] | M7: Disposal Price [e] | N7: Disposal Value [f = d x e] | O7: Investment Cost [g = b x d] | P7: Commission and Trade Expense [h] | Q7: Ex Date | R7: Payment Date | S7: Dividend Per Share [k] | T7: Entitlement Value [l = a x k] | U7: Type | V7: Date (DD/MM/YY) | W7: No. of Shares (If applicable) | X7: Entitlement Value | Y7: Total Capital Gain/Loss [m = f - g - h] | Z7: Dividend Income | AA7: Dividend Income3 | AB7: Capital Gain4 | AD7: Dividend Income5 | AF7: No. of Shares [n] | AG7: Recoverable Average Investment Cost Per Share (adjusted, if any) [o] | AH7: Total Recoverable Investment Cost [p = n x o]
B8: No. | C8: Custody Account No. | D8: Security Identifier (Sedol) | E8: Security Name | F8: Type of Transaction
AB9: =FundCur -> USD | AC9: RM | AD9: =FundCur -> USD | AE9: RM | BE9: Stock Code | BF9: ReClassDt | BG9: Unit | BH9: Price | BI9: Cost | BJ9: Last
B10: 1 | C10: 212401 | D10: B4W9F29 | E10: Mead Johnson Nutrition Co. | F10: Dividend | G10: 4.4005 | H10: 41816 | I10: 97.48072006 | J10: 4076253.79 | O10: N/A | Q10: 2015-09-10 | R10: 2015-10-01 | S10: 0.28875 | T10: 12074.37 | Z10: 12074.37 | AA10: 12074.37 | AF10: 41816 | AG10: 97.19197006 | AH10: 4064179.42 | BE10: B4W9F29 | BF10: 2015-06-22 | BG10: 41816 | BH10: 97.19197006 | BI10: 4064179.42
F11: Dividend | G11: 4.349 | H11: 41816 | I11: 97.19197006 | J11: 4064179.42 | O11: N/A | Q11: 2015-12-10 | R11: 2016-01-04 | S11: 0.28875 | T11: 12074.37 | Z11: 12074.37 | AA11: 12074.37 | AF11: 41816 | AG11: 96.90322006 | AH11: 4052105.05 | BE11: B4W9F29 | BF11: 2015-06-22 | BG11: 41816 | BH11: 96.90322006 | BI11: 4052105.05
F12: Dividend | G12: 3.8915 | H12: 41816 | I12: 96.90322006 | J12: 4052105.05 | O12: N/A | Q12: 2016-03-10 | R12: 2016-04-01 | S12: 0.28875 | T12: 12074.37 | Z12: 12074.37 | AA12: 12074.37 | AF12: 41816 | AG12: 96.61447006 | AH12: 4040030.68 | BE12: B4W9F29 | BF12: 2015-06-22 | BG12: 41816 | BH12: 96.61447006 | BI12: 4040030.68
F13: Dividend | G13: 4.025 | H13: 41816 | I13: 96.61447006 | J13: 4040030.68 | O13: N/A | Q13: 2016-06-16 | R13: 2016-07-05 | S13: 0.28875 | T13: 12074.37 | Z13: 12074.37 | AA13: 12074.37 | AF13: 41816 | AG13: 96.32572006 | AH13: 4027956.31 | BE13: B4W9F29 | BF13: 2015-06-22 | BG13: 41816 | BH13: 96.32572006 | BI13: 4027956.31
F14: SELL | G14: 4.075 | H14: 41816 | I14: 96.32572006 | J14: 4027956.31 | K14: 2016-07-29 | L14: 2367 | M14: 89.24760034 | N14: 211249.07 | O14: 228002.9794 | P14: 99.29 | Y14: -16853.19938 | AF14: 39449 | AG14: 96.32572006 | AH14: 3799953.331 | BE14: B4W9F29 | BF14: 2015-06-22 | BG14: 39449 | BH14: 96.32572006 | BI14: 3799953.331
F15: Dividend | G15: 4.1355 | H15: 39449 | I15: 96.32572006 | J15: 3799953.331 | O15: N/A | Q15: 2016-09-15 | R15: 2016-10-03 | S15: 0.2887500317 | T15: 11390.9 | Z15: 11390.9 | AA15: 11390.9 | AF15: 39449 | AG15: 96.03697003 | AH15: 3788562.431 | BE15: B4W9F29 | BF15: 2015-06-22 | BG15: 39449 | BH15: 96.03697003 | BI15: 3788562.431
F16: Dividend | G16: 4.4755 | H16: 39449 | I16: 96.03697003 | J16: 3788562.431 | O16: N/A | Q16: 2016-12-21 | R16: 2017-01-06 | S16: 0.2887500317 | T16: 11390.9 | Z16: 11390.9 | AA16: 11390.9 | AF16: 39449 | AG16: 95.74822 | AH16: 3777171.531 | BE16: B4W9F29 | BF16: 2015-06-22 | BG16: 39449 | BH16: 95.74822 | BI16: 3777171.531
F17: SELL | G17: 4.426 | H17: 39449 | I17: 95.74822 | J17: 3777171.531 | K17: 2017-02-02 | L17: 3864 | M17: 85.32659938 | N17: 329701.98 | O17: 369971.1221 | P17: 135.77 | Y17: -40404.91206 | AF17: 35585 | AG17: 95.74822 | AH17: 3407200.409 | BE17: B4W9F29 | BF17: 2015-06-22 | BG17: 35585 | BH17: 95.74822 | BI17: 3407200.409
F18: SELL | G18: 4.428 | H18: 35585 | I18: 95.74822 | J18: 3407200.409 | K18: 2017-02-06 | L18: 1027 | M18: 84.12180136 | N18: 86393.09 | O18: 98333.42194 | P18: 42.97 | Y18: -11983.30194 | AF18: 34558 | AG18: 95.74822 | AH18: 3308866.987 | BE18: B4W9F29 | BF18: 2015-06-22 | BG18: 34558 | BH18: 95.74822 | BI18: 3308866.987
F19: SELL | G19: 4.4345 | H19: 34558 | I19: 95.74822 | J19: 3308866.987 | K19: 2017-02-07 | L19: 410 | M19: 84.12119512 | N19: 34489.69 | O19: 39256.7702 | P19: 17.15 | Y19: -4784.230198 | AF19: 34148 | AG19: 95.74822 | AH19: 3269610.216 | BE19: B4W9F29 | BF19: 2015-06-22 | BG19: 34148 | BH19: 95.74822 | BI19: 3269610.216
F20: SELL | G20: 4.4405 | H20: 34148 | I20: 95.74822 | J20: 3269610.216 | K20: 2017-02-08 | L20: 416 | M20: 84.03420673 | N20: 34958.23 | O20: 39831.25952 | P20: 17.4 | Y20: -4890.429518 | AF20: 33732 | AG20: 95.74822 | AH20: 3229778.957 | BE20: B4W9F29 | BF20: 2015-06-22 | BG20: 33732 | BH20: 95.74822 | BI20: 3229778.957
F21: SELL | G21: 4.4455 | H21: 33732 | I21: 95.74822 | J21: 3229778.957 | K21: 2017-02-10 | L21: 2409 | M21: 87.44379826 | N21: 210652.11 | O21: 230657.462 | P21: 100.95 | Y21: -20106.30197 | AF21: 31323 | AG21: 95.74822 | AH21: 2999121.495 | BE21: B4W9F29 | BF21: 2015-06-22 | BG21: 31323 | BH21: 95.74822 | BI21: 2999121.495
F22: Dividend | G22: 4.4275 | H22: 31323 | I22: 95.74822 | J22: 2999121.495 | O22: N/A | Q22: 2017-03-09 | R22: 2017-04-03 | S22: 0.2887501197 | T22: 9044.52 | Z22: 9044.52 | AA22: 9044.52 | AF22: 31323 | AG22: 95.45946988 | AH22: 2990076.975 | BE22: B4W9F29 | BF22: 2015-06-22 | BG22: 31323 | BH22: 95.45946988 | BI22: 2990076.975
F23: Corporate Action | G23: 4.2645 | H23: 31323 | I23: 95.45946988 | J23: 2990076.975 | O23: N/A | U23: CASH_MGR | V23: 2017-06-15 | W23: 31323 | X23: 2819070 | Y23: -171006.9749 | AF23: 0 | AG23: 95.46 | AH23: 0 | BE23: B4W9F29 | BF23: 2015-06-22 | BG23: 0 | BH23: 95.46 | BI23: 0 | BJ23: 1
B25: 2 | C25: 212401 | D25: 2654320 | E25: Monsanto Co | F25: Dividend | G25: 4.075 | H25: 51033 | I25: 108.7352979 | J25: 5549088.46 | O25: N/A | Q25: 2016-07-06 | R25: 2016-07-29 | S25: 0.3779999216 | T25: 19290.47 | Z25: 19290.47 | AA25: 19290.47 | AF25: 51033 | AG25: 108.357298 | AH25: 5529797.99 | BE25: 2654320 | BF25: 2016-06-20 | BG25: 51033 | BH25: 108.357298 | BI25: 5529797.99
F26: Dividend | G26: 4.1985 | H26: 51033 | I26: 108.357298 | J26: 5529797.99 | O26: N/A | Q26: 2016-10-05 | R26: 2016-10-28 | S26: 0.3779999216 | T26: 19290.47 | Z26: 19290.47 | AA26: 19290.47 | AF26: 51033 | AG26: 107.9792981 | AH26: 5510507.52 | BE26: 2654320 | BF26: 2016-06-20 | BG26: 51033 | BH26: 107.9792981 | BI26: 5510507.52
F27: SELL | G27: 4.4705 | H27: 51033 | I27: 107.9792981 | J27: 5510507.52 | K27: 2017-01-11 | L27: 7290 | M27: 108.2562003 | N27: 789187.7 | O27: 787169.0832 | P27: 253.96 | Y27: 1764.656842 | AB27: 1764.656842 | AC27: 7888.898412 | AF27: 43743 | AG27: 107.9792981 | AH27: 4723338.437 | BE27: 2654320 | BF27: 2016-06-20 | BG27: 43743 | BH27: 107.9792981 | BI27: 4723338.437
F28: SELL | G28: 4.4615 | H28: 43743 | I28: 107.9792981 | J28: 4723338.437 | K28: 2017-01-12 | L28: 100 | M28: 108.07 | N28: 10807 | O28: 10797.92981 | P28: 4.24 | Y28: 4.830189877 | AB28: 4.830189877 | AC28: 21.54989214 | AF28: 43643 | AG28: 107.9792981 | AH28: 4712540.507 | BE28: 2654320 | BF28: 2016-06-20 | BG28: 43643 | BH28: 107.9792981 | BI28: 4712540.507
F29: SELL | G29: 4.4655 | H29: 43643 | I29: 107.9792981 | J29: 4712540.507 | K29: 2017-01-17 | L29: 3515 | M29: 108.149101 | N29: 380144.09 | O29: 379547.2328 | P29: 148.89 | Y29: 447.9671742 | AB29: 447.9671742 | AC29: 2000.397416 | AF29: 40128 | AG29: 107.9792981 | AH29: 4332993.274 | BE29: 2654320 | BF29: 2016-06-20 | BG29: 40128 | BH29: 107.9792981 | BI29: 4332993.274
F30: SELL | G30: 4.4445 | H30: 40128 | I30: 107.9792981 | J30: 4332993.274 | K30: 2017-01-18 | L30: 3648 | M30: 108.2277988 | N30: 394815.01 | O30: 393908.4795 | P30: 154.53 | Y30: 752.0005267 | AB30: 752.0005267 | AC30: 3342.266341 | AF30: 36480 | AG30: 107.9792981 | AH30: 3939084.795 | BE30: 2654320 | BF30: 2016-06-20 | BG30: 36480 | BH30: 107.9792981 | BI30: 3939084.795
F31: SELL | G31: 4.4475 | H31: 36480 | I31: 107.9792981 | J31: 3939084.795 | K31: 2017-01-20 | L31: 1824 | M31: 108.3292982 | N31: 197592.64 | O31: 196954.2397 | P31: 77.27 | Y31: 561.1302634 | AB31: 561.1302634 | AC31: 2495.626846 | AF31: 34656 | AG31: 107.9792981 | AH31: 3742130.555 | BE31: 2654320 | BF31: 2016-06-20 | BG31: 34656 | BH31: 107.9792981 | BI31: 3742130.555
F32: SELL | G32: 4.438 | H32: 34656 | I32: 107.9792981 | J32: 3742130.555 | K32: 2017-01-23 | L32: 1824 | M32: 108.3083991 | N32: 197554.52 | O32: 196954.2397 | P32: 77.27 | Y32: 523.0102634 | AB32: 523.0102634 | AC32: 2321.119549 | AF32: 32832 | AG32: 107.9792981 | AH32: 3545176.315 | BE32: 2654320 | BF32: 2016-06-20 | BG32: 32832 | BH32: 107.9792981 | BI32: 3545176.315
F33: SELL | G33: 4.4355 | H33: 32832 | I33: 107.9792981 | J33: 3545176.315 | K33: 2017-01-24 | L33: 1824 | M33: 108.7512007 | N33: 198362.19 | O33: 196954.2397 | P33: 77.29 | Y33: 1330.660263 | AB33: 1330.660263 | AC33: 5902.143598 | AF33: 31008 | AG33: 107.9792981 | AH33: 3348222.076 | BE33: 2654320 | BF33: 2016-06-20 | BG33: 31008 | BH33: 107.9792981 | BI33: 3348222.076
F34: SELL | G34: 4.4295 | H34: 31008 | I34: 107.9792981 | J34: 3348222.076 | K34: 2017-01-26 | L34: 1802 | M34: 110.1956992 | N34: 198572.65 | O34: 194578.6952 | P34: 63.9 | Y34: 3930.054822 | AB34: 3930.054822 | AC34: 17408.17783 | AF34: 29206 | AG34: 107.9792981 | AH34: 3153643.38 | BE34: 2654320 | BF34: 2016-06-20 | BG34: 29206 | BH34: 107.9792981 | BI34: 3153643.38
F35: Dividend | G35: 4.4315 | H35: 29206 | I35: 107.9792981 | J35: 3153643.38 | O35: N/A | Q35: 2017-01-04 | R35: 2017-01-27 | S35: 0.3779999216 | T35: 19290.47 | Z35: 19290.47 | AA35: 19290.47 | AF35: 29206 | AG35: 107.3188013 | AH35: 3134352.91 | BE35: 2654320 | BF35: 2016-06-20 | BG35: 29206 | BH35: 107.3188013 | BI35: 3134352.91
F36: SELL | G36: 4.429 | H36: 29206 | I36: 107.3188013 | J36: 3134352.91 | K36: 2017-01-31 | L36: 1825 | M36: 108.3142027 | N36: 197673.42 | O36: 195856.8123 | P36: 83.38 | Y36: 1733.227654 | AB36: 1733.227654 | AC36: 7676.465279 | AF36: 27381 | AG36: 107.3188013 | AH36: 2938496.098 | BE36: 2654320 | BF36: 2016-06-20 | BG36: 27381 | BH36: 107.3188013 | BI36: 2938496.098
F37: SELL | G37: 4.427 | H37: 27381 | I37: 107.3188013 | J37: 2938496.098 | K37: 2017-02-03 | L37: 1825 | M37: 108.9319014 | N37: 198800.72 | O37: 195856.8123 | P37: 63.97 | Y37: 2879.937654 | AB37: 2879.937654 | AC37: 12749.48399 | AF37: 25556 | AG37: 107.3188013 | AH37: 2742639.286 | BE37: 2654320 | BF37: 2016-06-20 | BG37: 25556 | BH37: 107.3188013 | BI37: 2742639.286
F38: SELL | G38: 4.4405 | H38: 25556 | I38: 107.3188013 | J38: 2742639.286 | K38: 2017-02-08 | L38: 600 | M38: 108.0167 | N38: 64810.02 | O38: 64391.28077 | P38: 25.41 | Y38: 393.3292287 | AB38: 393.3292287 | AC38: 1746.57844 | AF38: 24956 | AG38: 107.3188013 | AH38: 2678248.005 | BE38: 2654320 | BF38: 2016-06-20 | BG38: 24956 | BH38: 107.3188013 | BI38: 2678248.005
F39: SELL | G39: 4.449 | H39: 24956 | I39: 107.3188013 | J39: 2678248.005 | K39: 2017-02-15 | L39: 2733 | M39: 109.0394987 | N39: 298004.95 | O39: 293302.2839 | P39: 95.9 | Y39: 4606.766087 | AB39: 4606.766087 | AC39: 20495.50232 | AF39: 22223 | AG39: 107.3188013 | AH39: 2384945.721 | BE39: 2654320 | BF39: 2016-06-20 | BG39: 22223 | BH39: 107.3188013 | BI39: 2384945.721
F40: SELL | G40: 4.456 | H40: 22223 | I40: 107.3188013 | J40: 2384945.721 | K40: 2017-02-16 | L40: 3703 | M40: 108.8339995 | N40: 403012.3 | O40: 397401.5212 | P40: 156.91 | Y40: 5453.86884 | AB40: 5453.86884 | AC40: 24302.43955 | AF40: 18520 | AG40: 107.3188013 | AH40: 1987544.2 | BE40: 2654320 | BF40: 2016-06-20 | BG40: 18520 | BH40: 107.3188013 | BI40: 1987544.2
F41: SELL | G41: 4.454 | H41: 18520 | I41: 107.3188013 | J41: 1987544.2 | K41: 2017-02-17 | L41: 3402 | M41: 108.9104997 | N41: 370513.52 | O41: 365098.562 | P41: 144.16 | Y41: 5270.798027 | AB41: 5270.798027 | AC41: 23476.13441 | AF41: 15118 | AG41: 107.3188013 | AH41: 1622445.638 | BE41: 2654320 | BF41: 2016-06-20 | BG41: 15118 | BH41: 107.3188013 | BI41: 1622445.638
F42: SELL | G42: 4.4575 | H42: 15118 | I42: 107.3188013 | J42: 1622445.638 | K42: 2017-02-21 | L42: 15118 | M42: 110.5753003 | N42: 1671677.39 | O42: 1622445.638 | P42: 641.16 | Y42: 48590.59217 | AB42: 48590.59217 | AC42: 216592.5646 | AF42: 0 | AG42: 107.3188013 | AH42: 0 | BE42: 2654320 | BF42: 2016-06-20 | BG42: 0 | BH42: 107.3188013 | BI42: 0 | BJ42: 1
B44: 3 | C44: 212401 | D44: B1YXBJ7 | E44: Air Liquide | F44: SELL | G44: 4.1265 | H44: 52835 | I44: 116.9284255 | J44: 6177913.36 | K44: 2016-09-27 | L44: 5355 | M44: 105.1628945 | N44: 563147.3 | O44: 626151.7184 | P44: 844.72 | Y44: -63849.13842 | AF44: 47480 | AG44: 116.9284255 | AH44: 5551761.642 | BE44: B1YXBJ7 | BF44: 2016-09-19 | BG44: 47480 | BH44: 116.9284255 | BI44: 5551761.642
F45: SELL | G45: 4.137 | H45: 47480 | I45: 116.9284255 | J45: 5551761.642 | K45: 2016-09-28 | L45: 3597 | M45: 106.983275 | N45: 384818.84 | O45: 420591.5464 | P45: 577.23 | Y45: -36349.93644 | AF45: 43883 | AG45: 116.9284255 | AH45: 5131170.095 | BE45: B1YXBJ7 | BF45: 2016-09-19 | BG45: 43883 | BH45: 116.9284255 | BI45: 5131170.095
F46: SELL | G46: 4.3695 | H46: 43883 | I46: 116.9284255 | J46: 5131170.095 | K46: 2017-04-25 | L46: 43883 | M46: 121.0754846 | N46: 5313155.49 | O46: 5131170.095 | P46: 1593.95 | Y46: 180391.4449 | AB46: 180391.4449 | AC46: 788220.4183 | AF46: 0 | AG46: 116.9284255 | AH46: 0 | BE46: B1YXBJ7 | BF46: 2016-09-19 | BG46: 0 | BH46: 116.9284255 | BI46: 0 | BJ46: 1
B48: 4 | C48: 212401 | D48: 2257019 | E48: Cognizant Tech Solutions | F48: SELL | G48: 4.444 | H48: 89869 | I48: 61.39849548 | J48: 5517821.39 | K48: 2017-02-24 | L48: 4839 | M48: 59.16359992 | N48: 286292.66 | O48: 297107.3196 | P48: 92.13 | Y48: -10906.78961 | AF48: 85030 | AG48: 61.39849548 | AH48: 5220714.07 | BE48: 2257019 | BF48: 2016-09-19 | BG48: 85030 | BH48: 61.39849548 | BI48: 5220714.07
F49: SELL | G49: 4.4545 | H49: 85030 | I49: 61.39849548 | J49: 5220714.07 | K49: 2017-03-03 | L49: 2481 | M49: 59.88440145 | N49: 148573.2 | O49: 152329.6673 | P49: 62.67 | Y49: -3819.137278 | AF49: 82549 | AG49: 61.39849548 | AH49: 5068384.403 | BE49: 2257019 | BF49: 2016-09-19 | BG49: 82549 | BH49: 61.39849548 | BI49: 5068384.403
F50: SELL | G50: 4.319 | H50: 82549 | I50: 61.39849548 | J50: 5068384.403 | K50: 2017-05-03 | L50: 6243 | M50: 60.56180042 | N50: 378087.32 | O50: 383310.8073 | P50: 257.97 | Y50: -5481.457261 | AF50: 76306 | AG50: 61.39849548 | AH50: 4685073.596 | BE50: 2257019 | BF50: 2016-09-19 | BG50: 76306 | BH50: 61.39849548 | BI50: 4685073.596
F51: SELL | G51: 4.3305 | H51: 76306 | I51: 61.39849548 | J51: 4685073.596 | K51: 2017-05-04 | L51: 7562 | M51: 60.83090056 | N51: 460003.27 | O51: 464295.4228 | P51: 312.51 | Y51: -4604.662795 | AF51: 68744 | AG51: 61.39849548 | AH51: 4220778.173 | BE51: 2257019 | BF51: 2016-09-19 | BG51: 68744 | BH51: 61.39849548 | BI51: 4220778.173
F52: SELL | G52: 4.3355 | H52: 68744 | I52: 61.39849548 | J52: 4220778.173 | K52: 2017-05-08 | L52: 68744 | M52: 64.07270002 | N52: 4404613.69 | O52: 4220778.173 | P52: 2078.11 | Y52: 181757.4069 | AB52: 181757.4069 | AC52: 788009.2378 | AF52: 0 | AG52: 61.39849548 | AH52: 0 | BE52: 2257019 | BF52: 2016-09-19 | BG52: 0 | BH52: 61.39849548 | BI52: 0 | BJ52: 1
B54: 5 | C54: 212401 | D54: BZB1Y59 | E54: LINE CORPORATION | F54: SELL | G54: 4.234 | H54: 118100 | I54: 41.67454369 | J54: 4921763.61 | K54: 2017-10-26 | L54: 118100 | M54: 42.41833362 | N54: 5009605.2 | O54: 4921763.61 | P54: 5510.57 | Y54: 82331.02 | AB54: 82331.02 | AC54: 348589.5387 | AF54: 0 | AG54: 41.67454369 | AH54: 0 | BE54: BZB1Y59 | BF54: 2017-03-20 | BG54: 0 | BH54: 41.67454369 | BI54: 0 | BJ54: 1
B56: 6 | C56: 212401 | D56: BDTYZ53 | E56: BIOVERATIV INC | F56: SELL | G56: 4.277 | H56: 9119 | I56: 62.40807874 | J56: 569099.27 | K56: 2017-07-24 | L56: 9119 | M56: 63.56520013 | N56: 579651.06 | O56: 569099.27 | P56: 378.15 | Y56: 10173.64 | AB56: 10173.64 | AC56: 43512.65828 | AF56: 0 | AG56: 62.40807874 | AH56: 0 | BE56: BDTYZ53 | BF56: 2017-03-20 | BG56: 0 | BH56: 62.40807874 | BI56: 0 | BJ56: 1
B58: 7 | C58: 212401 | D58: BDSFG98 | E58: TECHNIPFMC PLC | F58: Dividend | G58: 4.0875 | H58: 62737 | I58: 34.25822768 | J58: 2149258.43 | O58: N/A | Q58: 2017-11-20 | R58: 2017-12-01 | S58: 0.13 | T58: 8155.81 | Z58: 8155.81 | AA58: 8155.81 | AF58: 62737 | AG58: 34.12822768 | AH58: 2141102.62 | BE58: BDSFG98 | BF58: 2017-03-20 | BG58: 62737 | BH58: 34.12822768 | BI58: 2141102.62
F59: SELL | G59: 4.0815 | H59: 62737 | I59: 34.12822768 | J59: 2141102.62 | K59: 2017-12-14 | L59: 8000 | M59: 27.9443 | N59: 223554.4 | O59: 273025.8214 | P59: 325.17 | Y59: -49796.59145 | AF59: 54737 | AG59: 34.12822768 | AH59: 1868076.799 | BE59: BDSFG98 | BF59: 2017-03-20 | BG59: 54737 | BH59: 34.12822768 | BI59: 1868076.799
F60: SELL | G60: 3.9125 | H60: 54737 | I60: 34.12822768 | J60: 1868076.799 | K60: 2018-03-16 | L60: 16100 | M60: 29.7722 | N60: 479332.42 | O60: 549464.4657 | P60: 655.07 | Y60: -70787.11566 | AF60: 38637 | AG60: 34.12822768 | AH60: 1318612.333 | BE60: BDSFG98 | BF60: 2017-03-20 | BG60: 38637 | BH60: 34.12822768 | BI60: 1318612.333
F61: Dividend | G61: 3.8675 | H61: 38637 | I61: 34.12822768 | J61: 1318612.333 | Q61: 2018-03-19 | R61: 2018-04-04 | S61: 0.13 | T61: 5022.81 | Z61: 5022.81 | AA61: 5022.81 | AF61: 38637 | AG61: 33.99822768 | AH61: 1313589.523 | BE61: BDSFG98 | BF61: 2017-03-20 | BG61: 38637 | BH61: 33.99822768 | BI61: 1313589.523
F62: SELL | G62: 3.9805 | H62: 38637 | I62: 33.99822768 | J62: 1313589.523 | K62: 2018-05-25 | L62: 8916 | M62: 30.84910049 | N62: 275050.58 | O62: 303128.198 | P62: 58.59 | Y62: -28136.208 | AF62: 29721 | AG62: 33.99822768 | AH62: 1010461.325 | BE62: BDSFG98 | BF62: 2017-03-20 | BG62: 29721 | BH62: 33.99822768 | BI62: 1010461.325
F63: Dividend | G63: 3.9725 | H63: 29721 | I63: 33.99822768 | J63: 1010461.325 | Q63: 2018-05-21 | R63: 2018-06-06 | S63: 0.13 | T63: 5022.81 | Z63: 5022.81 | AA63: 5022.81 | AF63: 29721 | AG63: 33.82922899 | AH63: 1005438.515 | BE63: BDSFG98 | BF63: 2017-03-20 | BG63: 29721 | BH63: 33.82922899 | BI63: 1005438.515
F64: Dividend | G64: 4.1475 | H64: 29721 | I64: 33.82922899 | J64: 1005438.515 | Q64: 2018-08-20 | R64: 2018-09-05 | S64: 0.13 | T64: 3863.73 | Z64: 3863.73 | AA64: 3863.73 | AF64: 29721 | AG64: 33.69922899 | AH64: 1001574.785 | BE64: BDSFG98 | BF64: 2017-03-20 | BG64: 29721 | BH64: 33.69922899 | BI64: 1001574.785
F65: SELL | G65: 4.1775 | H65: 29721 | I65: 33.69922899 | J65: 1001574.785 | K65: 2018-11-09 | L65: 3496 | M65: 25.38310069 | N65: 88739.32 | O65: 117812.5046 | P65: 106.03 | Y65: -29179.21456 | AF65: 26225 | AG65: 33.69922899 | AH65: 883762.2803 | BE65: BDSFG98 | BF65: 2017-03-20 | BG65: 26225 | BH65: 33.69922899 | BI65: 883762.2803
F66: Dividend | G66: 4.1545 | H66: 26225 | I66: 33.69922899 | J66: 883762.2803 | Q66: 2018-11-19 | R66: 2018-12-05 | S66: 0.13 | T66: 3409.25 | Z66: 3409.25 | AA66: 3409.25 | AF66: 26225 | AG66: 33.56922899 | AH66: 880353.0303 | BE66: BDSFG98 | BF66: 2017-03-20 | BG66: 26225 | BH66: 33.56922899 | BI66: 880353.0303
F67: Dividend | G67: 4.079 | H67: 26225 | I67: 33.56922899 | J67: 880353.0303 | Q67: 2019-03-18 | R67: 2019-04-03 | S67: 0.13 | T67: 3409.25 | Z67: 3409.25 | AA67: 3409.25 | AF67: 26225 | AG67: 33.43922899 | AH67: 876943.7803 | BE67: BDSFG98 | BF67: 2017-03-20 | BG67: 26225 | BH67: 33.43922899 | BI67: 876943.7803
F68: SELL | G68: 4.1935 | H68: 26225 | I68: 33.43922899 | J68: 876943.7803 | K68: 2019-05-23 | L68: 6051 | M68: 21.93960007 | N68: 132756.52 | O68: 202340.7746 | P68: 244.79 | Y68: -69829.04464 | AF68: 20174 | AG68: 33.43922899 | AH68: 674603.0057 | BE68: BDSFG98 | BF68: 2017-03-20 | BG68: 20174 | BH68: 33.43922899 | BI68: 674603.0057
F69: Dividend | G69: 4.1755 | H69: 20174 | I69: 33.43922899 | J69: 674603.0057 | Q69: 2019-05-20 | R69: 2019-06-05 | S69: 0.13 | T69: 3409.25 | Z69: 3409.25 | AA69: 3409.25 | AF69: 20174 | AG69: 33.27023673 | AH69: 671193.7557 | BE69: BDSFG98 | BF69: 2017-03-20 | BG69: 20174 | BH69: 33.27023673 | BI69: 671193.7557
F70: SELL | G70: 4.1105 | H70: 20174 | I70: 33.27023673 | J70: 671193.7557 | K70: 2019-07-19 | L70: 1834 | M70: 25.00900218 | N70: 45866.51 | O70: 61017.61415 | P70: 74.31 | Y70: -15225.41415 | AF70: 18340 | AG70: 33.27023673 | AH70: 610176.1415 | BE70: BDSFG98 | BF70: 2017-03-20 | BG70: 18340 | BH70: 33.27023673 | BI70: 610176.1415
F71: Dividend | G71: 4.203 | H71: 18340 | I71: 33.27023673 | J71: 610176.1415 | Q71: 2019-08-19 | R71: 2019-09-04 | S71: 0.13 | T71: 2384.2 | Z71: 2384.2 | AA71: 2384.2 | AF71: 18340 | AG71: 33.14023673 | AH71: 607791.9415 | BE71: BDSFG98 | BF71: 2017-03-20 | BG71: 18340 | BH71: 33.14023673 | BI71: 607791.9415
F72: Dividend | G72: 4.1775 | H72: 18340 | I72: 33.14023673 | J72: 607791.9415 | Q72: 2019-11-18 | R72: 2019-12-04 | S72: 0.13 | T72: 2384.2 | Z72: 2384.2 | AA72: 2384.2 | AF72: 18340 | AG72: 33.01023673 | AH72: 605407.7415 | BE72: BDSFG98 | BF72: 2017-03-20 | BG72: 18340 | BH72: 33.01023673 | BI72: 605407.7415
F73: SELL | G73: 4.1015 | H73: 18340 | I73: 33.01023673 | J73: 605407.7415 | K73: 2020-01-03 | L73: 18340 | M73: 21.4775 | N73: 393897.35 | O73: 605407.7415 | P73: 126.33 | Y73: -211636.7215 | AF73: 0 | AG73: 33.01023673 | AH73: 0 | BE73: BDSFG98 | BF73: 2017-03-20 | BG73: 0 | BH73: 33.01023673 | BI73: 0 | BJ73: 1
B75: 8 | C75: 212401 | D75: 2369174 | E75: GILEAD SCIENCES INC | F75: SELL | G75: 4.1885 | H75: 80560 | I75: 108.211338 | J75: 8717505.39 | K75: 2017-09-20 | L75: 5370 | M75: 82.41610056 | N75: 442574.46 | O75: 581094.8851 | P75: 225.03 | Y75: -138745.4551 | AF75: 75190 | AG75: 108.211338 | AH75: 8136410.505 | BE75: 2369174 | BF75: 2017-09-18 | BG75: 75190 | BH75: 108.211338 | BI75: 8136410.505
F76: SELL | G76: 4.222 | H76: 75190 | I76: 108.211338 | J76: 8136410.505 | K76: 2017-09-29 | L76: 2163 | M76: 80.61539991 | N76: 174371.11 | O76: 234061.1241 | P76: 56.34 | Y76: -59746.35411 | AF76: 73027 | AG76: 108.211338 | AH76: 7902349.381 | BE76: 2369174 | BF76: 2017-09-18 | BG76: 73027 | BH76: 108.211338 | BI76: 7902349.381
F77: SELL | G77: 4.2375 | H77: 73027 | I77: 108.211338 | J77: 7902349.381 | K77: 2017-11-06 | L77: 2921 | M77: 72.66909962 | N77: 212266.44 | O77: 316085.3183 | P77: 89.82 | Y77: -103908.6983 | AF77: 70106 | AG77: 108.211338 | AH77: 7586264.062 | BE77: 2369174 | BF77: 2017-09-18 | BG77: 70106 | BH77: 108.211338 | BI77: 7586264.062
F78: SELL | G78: 4.1895 | H78: 70106 | I78: 108.211338 | J78: 7586264.062 | K78: 2017-11-13 | L78: 3022 | M78: 72.88339841 | N78: 220253.63 | O78: 327014.6635 | P78: 71.17 | Y78: -106832.2035 | AF78: 67084 | AG78: 108.211338 | AH78: 7259249.399 | BE78: 2369174 | BF78: 2017-09-18 | BG78: 67084 | BH78: 108.211338 | BI78: 7259249.399
F79: Dividend | G79: 4.0665 | H79: 67084 | I79: 108.211338 | J79: 7259249.399 | Q79: 2017-12-14 | R79: 2017-12-28 | S79: 0.3640000596 | T79: 24418.58 | Z79: 24418.58 | AA79: 24418.58 | AF79: 67084 | AG79: 107.8473379 | AH79: 7234830.819 | BE79: 2369174 | BF79: 2017-09-18 | BG79: 67084 | BH79: 107.8473379 | BI79: 7234830.819
F80: SELL | G80: 3.998 | H80: 67084 | I80: 107.8473379 | J80: 7234830.819 | K80: 2018-01-05 | L80: 3164 | M80: 73.96019912 | N80: 234010.07 | O80: 341228.9773 | P80: 131.97 | Y80: -107350.8773 | AF80: 63920 | AG80: 107.8473379 | AH80: 6893601.842 | BE80: 2369174 | BF80: 2017-09-18 | BG80: 63920 | BH80: 107.8473379 | BI80: 6893601.842
F81: SELL | G81: 3.9955 | H81: 63920 | I81: 107.8473379 | J81: 6893601.842 | K81: 2018-01-08 | L81: 3164 | M81: 74.12849874 | N81: 234542.57 | O81: 341228.9773 | P81: 75.78 | Y81: -106762.1873 | AF81: 60756 | AG81: 107.8473379 | AH81: 6552372.864 | BE81: 2369174 | BF81: 2017-09-18 | BG81: 60756 | BH81: 107.8473379 | BI81: 6552372.864
F82: SELL | G82: 3.9285 | H82: 60756 | I82: 107.8473379 | J82: 6552372.864 | K82: 2018-01-23 | L82: 13104 | M82: 81.23400031 | N82: 1064490.34 | O82: 1413231.516 | P82: 237.49 | Y82: -348978.6665 | AF82: 47652 | AG82: 107.8473379 | AH82: 5139141.348 | BE82: 2369174 | BF82: 2017-09-18 | BG82: 47652 | BH82: 107.8473379 | BI82: 5139141.348
F83: SELL | G83: 3.885 | H83: 47652 | I83: 107.8473379 | J83: 5139141.348 | K83: 2018-01-29 | L83: 47652 | M83: 88.47679992 | N83: 4216096.47 | O83: 5139141.348 | P83: 1362.23 | Y83: -924407.108 | AF83: 0 | AG83: 107.8473379 | AH83: 0 | BE83: 2369174 | BF83: 2017-09-18 | BG83: 0 | BH83: 107.8473379 | BI83: 0 | BJ83: 1
B85: 9 | C85: 212401 | D85: B24CGK7 | E85: RECKITT BENCKISER GROUP PLC | F85: SELL | G85: 4.2165 | H85: 58259 | I85: 95.60276009 | J85: 5569721.2 | K85: 2017-10-16 | L85: 6200 | M85: 93.67715806 | N85: 580798.38 | O85: 592737.1125 | P85: 175.57 | Y85: -12114.30255 | AF85: 52059 | AG85: 95.60276009 | AH85: 4976984.087 | BE85: B24CGK7 | BF85: 2017-09-18 | BG85: 52059 | BH85: 95.60276009 | BI85: 4976984.087
F86: SELL | G86: 3.933 | H86: 52059 | I86: 95.60276009 | J86: 4976984.087 | K86: 2018-01-22 | L86: 52059 | M86: 96.2723385 | N86: 5011841.67 | O86: 4976984.087 | P86: 1504.95 | Y86: 33352.63255 | AB86: 33352.63255 | AC86: 131175.9038 | AF86: 0 | AG86: 95.60276009 | AH86: 0 | BE86: B24CGK7 | BF86: 2017-09-18 | BG86: 0 | BH86: 95.60276009 | BI86: 0 | BJ86: 1
B88: 10 | C88: 212401 | D88: 2182348 | E88: CELGENE CORP | F88: SELL | G88: 3.9785 | H88: 54655 | I88: 135.0269984 | J88: 7379900.6 | K88: 2018-05-21 | L88: 1782 | M88: 75.77010101 | N88: 135022.32 | O88: 240618.1112 | P88: 55.22 | Y88: -105651.0112 | AF88: 52873 | AG88: 135.0269984 | AH88: 7139282.489 | BE88: 2182348 | BF88: 2017-12-18 | BG88: 52873 | BH88: 135.0269984 | BI88: 7139282.489
F89: SELL | G89: 4.1925 | H89: 52873 | I89: 135.0269984 | J89: 7139282.489 | K89: 2018-11-13 | L89: 3110 | M89: 71.09639871 | N89: 221109.8 | O89: 419933.9652 | P89: 96.17 | Y89: -198920.3352 | AF89: 49763 | AG89: 135.0269984 | AH89: 6719348.524 | BE89: 2182348 | BF89: 2017-12-18 | BG89: 49763 | BH89: 135.0269984 | BI89: 6719348.524
F90: SELL | G90: 4.1125 | H90: 49763 | I90: 135.0269984 | J90: 6719348.524 | K90: 2019-01-09 | L90: 957 | M90: 87.23829676 | N90: 83487.05 | O90: 129220.8375 | P90: 39.37 | Y90: -45773.15751 | AF90: 48806 | AG90: 135.0269984 | AH90: 6590127.686 | BE90: 2182348 | BF90: 2017-12-18 | BG90: 48806 | BH90: 135.0269984 | BI90: 6590127.686
F91: SELL | G91: 4.0905 | H91: 48806 | I91: 135.0269984 | J91: 6590127.686 | K91: 2019-02-01 | L91: 1479 | M91: 89.69390128 | N91: 132657.28 | O91: 199704.9307 | P91: 60.89 | Y91: -67108.5407 | AF91: 47327 | AG91: 135.0269984 | AH91: 6390422.755 | BE91: 2182348 | BF91: 2017-12-18 | BG91: 47327 | BH91: 135.0269984 | BI91: 6390422.755
F92: SELL | G92: 4.0785 | H92: 47327 | I92: 135.0269984 | J92: 6390422.755 | K92: 2019-02-12 | L92: 976 | M92: 89.70319672 | N92: 87550.32 | O92: 131786.3505 | P92: 40.18 | Y92: -44276.21048 | AF92: 46351 | AG92: 135.0269984 | AH92: 6258636.405 | BE92: 2182348 | BF92: 2017-12-18 | BG92: 46351 | BH92: 135.0269984 | BI92: 6258636.405
F93: SELL | G93: 4.0715 | H93: 46351 | I93: 135.0269984 | J93: 6258636.405 | K93: 2019-02-14 | L93: 1495 | M93: 90.58139799 | N93: 135419.19 | O93: 201865.3627 | P93: 61.56 | Y93: -66507.73267 | AF93: 44856 | AG93: 135.0269984 | AH93: 6056771.042 | BE93: 2182348 | BF93: 2017-12-18 | BG93: 44856 | BH93: 135.0269984 | BI93: 6056771.042
F94: SELL | G94: 4.0775 | H94: 44856 | I94: 135.0269984 | J94: 6056771.042 | K94: 2019-02-21 | L94: 1008 | M94: 89.29100198 | N94: 90005.33 | O94: 136107.2144 | P94: 31.42 | Y94: -46133.30443 | AF94: 43848 | AG94: 135.0269984 | AH94: 5920663.828 | BE94: 2182348 | BF94: 2017-12-18 | BG94: 43848 | BH94: 135.0269984 | BI94: 5920663.828
F95: SELL | G95: 4.0715 | H95: 43848 | I95: 135.0269984 | J95: 5920663.828 | K95: 2019-02-26 | L95: 1008 | M95: 89.94360119 | N95: 90663.15 | O95: 136107.2144 | P95: 28.38 | Y95: -45472.44443 | AF95: 42840 | AG95: 135.0269984 | AH95: 5784556.613 | BE95: 2182348 | BF95: 2017-12-18 | BG95: 42840 | BH95: 135.0269984 | BI95: 5784556.613
F96: SELL | G96: 4.0625 | H96: 42840 | I96: 135.0269984 | J96: 5784556.613 | K96: 2019-03-22 | L96: 2580 | M96: 88.59810078 | N96: 228583.1 | O96: 348369.656 | P96: 80.38 | Y96: -119866.936 | AF96: 40260 | AG96: 135.0269984 | AH96: 5436186.957 | BE96: 2182348 | BF96: 2017-12-18 | BG96: 40260 | BH96: 135.0269984 | BI96: 5436186.957
F97: SELL | G97: 4.08 | H97: 40260 | I97: 135.0269984 | J97: 5436186.957 | K97: 2019-04-01 | L97: 2425 | M97: 93.7996 | N97: 227464.03 | O97: 327440.4712 | P97: 99.96 | Y97: -100076.4012 | AF97: 37835 | AG97: 135.0269984 | AH97: 5108746.486 | BE97: 2182348 | BF97: 2017-12-18 | BG97: 37835 | BH97: 135.0269984 | BI97: 5108746.486
F98: SELL | G98: 4.084 | H98: 37835 | I98: 135.0269984 | J98: 5108746.486 | K98: 2019-04-02 | L98: 1965 | M98: 93.73359796 | N98: 184186.52 | O98: 265328.0519 | P98: 81 | Y98: -81222.53194 | AF98: 35870 | AG98: 135.0269984 | AH98: 4843418.434 | BE98: 2182348 | BF98: 2017-12-18 | BG98: 35870 | BH98: 135.0269984 | BI98: 4843418.434
F99: SELL | G99: 4.0835 | H99: 35870 | I99: 135.0269984 | J99: 4843418.434 | K99: 2019-04-04 | L99: 1474 | M99: 94.10059701 | N99: 138704.28 | O99: 199029.7957 | P99: 60.77 | Y99: -60386.28571 | AF99: 34396 | AG99: 135.0269984 | AH99: 4644388.639 | BE99: 2182348 | BF99: 2017-12-18 | BG99: 34396 | BH99: 135.0269984 | BI99: 4644388.639
F100: SELL | G100: 4.1095 | H100: 34396 | I100: 135.0269984 | J100: 4644388.639 | K100: 2019-04-15 | L100: 997 | M100: 94.92259779 | N100: 94637.83 | O100: 134621.9174 | P100: 31.87 | Y100: -40015.95745 | AF100: 33399 | AG100: 135.0269984 | AH100: 4509766.721 | BE100: 2182348 | BF100: 2017-12-18 | BG100: 33399 | BH100: 135.0269984 | BI100: 4509766.721
F101: SELL | G101: 4.1475 | H101: 33399 | I101: 135.0269984 | J101: 4509766.721 | K101: 2019-05-06 | L101: 484 | M101: 96.29809917 | N101: 46608.28 | O101: 65353.06725 | P101: 20.33 | Y101: -18765.11725 | AF101: 32915 | AG101: 135.0269984 | AH101: 4444413.654 | BE101: 2182348 | BF101: 2017-12-18 | BG101: 32915 | BH101: 135.0269984 | BI101: 4444413.654
F102: SELL | G102: 4.1485 | H102: 32915 | I102: 135.0269984 | J102: 4444413.654 | K102: 2019-05-07 | L102: 484 | M102: 95.59890496 | N102: 46269.87 | O102: 65353.06725 | P102: 15.48 | Y102: -19098.67725 | AF102: 32431 | AG102: 135.0269984 | AH102: 4379060.587 | BE102: 2182348 | BF102: 2017-12-18 | BG102: 32431 | BH102: 135.0269984 | BI102: 4379060.587
F103: SELL | G103: 4.1535 | H103: 32431 | I103: 135.0269984 | J103: 4379060.587 | K103: 2019-05-09 | L103: 2420 | M103: 95.2875 | N103: 230595.75 | O103: 326765.3362 | P103: 77.38 | Y103: -96246.96624 | AF103: 30011 | AG103: 135.0269984 | AH103: 4052295.25 | BE103: 2182348 | BF103: 2017-12-18 | BG103: 30011 | BH103: 135.0269984 | BI103: 4052295.25
F104: SELL | G104: 4.166 | H104: 30011 | I104: 135.0269984 | J104: 4052295.25 | K104: 2019-05-13 | L104: 953 | M104: 94.36730325 | N104: 89932.04 | O104: 128680.7295 | P104: 30.45 | Y104: -38779.13952 | AF104: 29058 | AG104: 135.0269984 | AH104: 3923614.521 | BE104: 2182348 | BF104: 2017-12-18 | BG104: 29058 | BH104: 135.0269984 | BI104: 3923614.521
F105: SELL | G105: 4.176 | H105: 29058 | I105: 135.0269984 | J105: 3923614.521 | K105: 2019-05-17 | L105: 953 | M105: 95.51300105 | N105: 91023.89 | O105: 128680.7295 | P105: 30.47 | Y105: -37687.30952 | AF105: 28105 | AG105: 135.0269984 | AH105: 3794933.791 | BE105: 2182348 | BF105: 2017-12-18 | BG105: 28105 | BH105: 135.0269984 | BI105: 3794933.791
F106: Corporate Action | G106: 4.1685 | H106: 28105 | I106: 135.0269984 | J106: 3794933.791 | O106: N/A | U106: Merger | V106: 2019-11-21 | W106: 28105 | X106: 2041915.59 | AF106: 28105 | AG106: 62.37389081 | AH106: 1753018.201 | AI106: CELGENE Book Cost transferred to BRISTOL-MYERS SQUIBB CO from Merger | BE106: 2182348 | BF106: 2017-12-18 | BG106: 28105 | BH106: 62.37389081 | BI106: 1753018.201
F107: Corporate Action | G107: 4.1685 | H107: 28105 | I107: 62.37389081 | J107: 1753018.201 | O107: N/A | U107: Merger | V107: 2019-11-21 | W107: 28105 | X107: 1405250 | Y107: -347768.2013 | AF107: 0 | AG107: 0 | AH107: 0 | AI107: Entitlement of USD50 per CELGENE share net off with Cash Term Book Cost due to Merger | BE107: 2182348 | BF107: 2017-12-18 | BG107: 0 | BH107: 0 | BI107: 0 | BJ107: 1
B109: 11 | C109: 212401 | D109: 6667733 | E109: PARK24 CO LTD | F109: SELL | G109: 3.8635 | H109: 121200 | I109: 31.73825817 | J109: 3846676.89 | K109: 2018-04-02 | L109: 8400 | M109: 26.83195952 | N109: 225388.46 | O109: 266601.3686 | P109: 247.93 | Y109: -41460.83861 | AF109: 112800 | AG109: 31.73825817 | AH109: 3580075.521 | BE109: 6667733 | BF109: 2018-03-19 | BG109: 112800 | BH109: 31.73825817 | BI109: 3580075.521
F110: SELL | G110: 3.9735 | H110: 112800 | I110: 31.73825817 | J110: 3580075.521 | K110: 2018-06-05 | L110: 8800 | M110: 26.60121364 | N110: 234090.68 | O110: 279296.6719 | P110: 234.08 | Y110: -45440.07188 | AF110: 104000 | AG110: 31.73825817 | AH110: 3300778.85 | BE110: 6667733 | BF110: 2018-03-19 | BG110: 104000 | BH110: 31.73825817 | BI110: 3300778.85
F111: SELL | G111: 4.0445 | H111: 104000 | I111: 31.73825817 | J111: 3300778.85 | K111: 2018-06-28 | L111: 18800 | M111: 27.09737606 | N111: 509430.67 | O111: 596679.2536 | P111: 560.37 | Y111: -87808.95356 | AF111: 85200 | AG111: 31.73825817 | AH111: 2704099.596 | BE111: 6667733 | BF111: 2018-03-19 | BG111: 85200 | BH111: 31.73825817 | BI111: 2704099.596
F112: SELL | G112: 4.04 | H112: 85200 | I112: 31.73825817 | J112: 2704099.596 | K112: 2018-07-02 | L112: 42600 | M112: 26.32767606 | N112: 1121559 | O112: 1352049.798 | P112: 1233.71 | Y112: -231724.508 | AF112: 42600 | AG112: 31.73825817 | AH112: 1352049.798 | BE112: 6667733 | BF112: 2018-03-19 | BG112: 42600 | BH112: 31.73825817 | BI112: 1352049.798
F113: SELL | G113: 4.044 | H113: 42600 | I113: 31.73825817 | J113: 1352049.798 | K113: 2018-07-04 | L113: 17000 | M113: 26.98049118 | N113: 458668.35 | O113: 539550.3889 | P113: 458.67 | Y113: -81340.70886 | AF113: 25600 | AG113: 31.73825817 | AH113: 812499.4091 | BE113: 6667733 | BF113: 2018-03-19 | BG113: 25600 | BH113: 31.73825817 | BI113: 812499.4091
F114: SELL | G114: 4.043 | H114: 25600 | I114: 31.73825817 | J114: 812499.4091 | K114: 2018-07-05 | L114: 25600 | M114: 26.55291406 | N114: 679754.6 | O114: 812499.4091 | P114: 747.73 | Y114: -133492.5391 | AF114: 0 | AG114: 31.73825817 | AH114: 0 | BE114: 6667733 | BF114: 2018-03-19 | BG114: 0 | BH114: 31.73825817 | BI114: 0 | BJ114: 1
B116: 12 | C116: 212401 | D116: B3CTNK6 | E116: SIGNET JEWELERS LTD | F116: SELL | G116: 3.9175 | H116: 30171 | I116: 101.2680876 | J116: 3055359.47 | K116: 2018-03-23 | L116: 3480 | M116: 39.56860057 | N116: 137698.73 | O116: 352412.9447 | P116: 142.39 | Y116: -214856.6047 | AF116: 26691 | AG116: 101.2680876 | AH116: 2702946.525 | BE116: B3CTNK6 | BF116: 2018-03-19 | BG116: 26691 | BH116: 101.2680876 | BI116: 2702946.525
F117: SELL | G117: 3.8765 | H117: 26691 | I117: 101.2680876 | J117: 2702946.525 | K117: 2018-03-27 | L117: 1213 | M117: 38.29660346 | N117: 46453.78 | O117: 122838.1902 | P117: 49.6 | Y117: -76434.01022 | AF117: 25478 | AG117: 101.2680876 | AH117: 2580108.335 | BE117: B3CTNK6 | BF117: 2018-03-19 | BG117: 25478 | BH117: 101.2680876 | BI117: 2580108.335
F118: SELL | G118: 3.8675 | H118: 25478 | I118: 101.2680876 | J118: 2580108.335 | K118: 2018-04-04 | L118: 2548 | M118: 36.46189953 | N118: 92904.92 | O118: 258031.0871 | P118: 104.07 | Y118: -165230.2371 | AF118: 22930 | AG118: 101.2680876 | AH118: 2322077.248 | BE118: B3CTNK7 | BG118: 22930 | BH118: 101.2680876 | BI118: 2322077.248
F119: SELL | G119: 3.8665 | H119: 22930 | I119: 101.2680876 | J119: 2322077.248 | K119: 2018-04-05 | L119: 1270 | M119: 37.08229921 | N119: 47094.52 | O119: 128610.4712 | P119: 51.89 | Y119: -81567.84121 | AF119: 21660 | AG119: 101.2680876 | AH119: 2193466.777 | BE119: B3CTNK8 | BG119: 21660 | BH119: 101.2680876 | BI119: 2193466.777
F120: SELL | G120: 3.8675 | H120: 21660 | I120: 101.2680876 | J120: 2193466.777 | K120: 2018-04-09 | L120: 2548 | M120: 37.87560047 | N120: 96507.03 | O120: 258031.0871 | P120: 104.15 | Y120: -161628.2071 | AF120: 19112 | AG120: 101.2680876 | AH120: 1935435.69 | BE120: B3CTNK9 | BG120: 19112 | BH120: 101.2680876 | BI120: 1935435.69
F121: SELL | G121: 3.867 | H121: 19112 | I121: 101.2680876 | J121: 1935435.69 | K121: 2018-04-10 | L121: 2389 | M121: 38.04110088 | N121: 90880.19 | O121: 241929.4612 | P121: 73.77 | Y121: -151123.0412 | AF121: 16723 | AG121: 101.2680876 | AH121: 1693506.228 | BE121: B3CTNK10 | BG121: 16723 | BH121: 101.2680876 | BI121: 1693506.228
F122: SELL | G122: 3.873 | H122: 16723 | I122: 101.2680876 | J122: 1693506.228 | K122: 2018-04-11 | L122: 1200 | M122: 37.8821 | N122: 45458.52 | O122: 121521.7051 | P122: 49.06 | Y122: -76112.24508 | AF122: 15523 | AG122: 101.2680876 | AH122: 1571984.523 | BE122: B3CTNK11 | BG122: 15523 | BH122: 101.2680876 | BI122: 1571984.523
F123: SELL | G123: 3.8775 | H123: 15523 | I123: 101.2680876 | J123: 1571984.523 | K123: 2018-04-12 | L123: 2388 | M123: 38.60620184 | N123: 92191.61 | O123: 241828.1931 | P123: 97.65 | Y123: -149734.2331 | AF123: 13135 | AG123: 101.2680876 | AH123: 1330156.33 | BE123: B3CTNK12 | BG123: 13135 | BH123: 101.2680876 | BI123: 1330156.33
F124: SELL | G124: 3.8885 | H124: 13135 | I124: 101.2680876 | J124: 1330156.33 | K124: 2018-04-16 | L124: 1194 | M124: 39.49 | N124: 47151.06 | O124: 120914.0966 | P124: 48.85 | Y124: -73811.88656 | AF124: 11941 | AG124: 101.2680876 | AH124: 1209242.234 | BE124: B3CTNK13 | BG124: 11941 | BH124: 101.2680876 | BI124: 1209242.234
F125: SELL | G125: 3.8965 | H125: 11941 | I125: 101.2680876 | J125: 1209242.234 | K125: 2018-04-23 | L125: 2388 | M125: 39.29590034 | N125: 93838.61 | O125: 241828.1931 | P125: 97.69 | Y125: -148087.2731 | AF125: 9553 | AG125: 101.2680876 | AH125: 967414.0405 | BE125: B3CTNK14 | BG125: 9553 | BH125: 101.2680876 | BI125: 967414.0405
F126: SELL | G126: 3.9175 | H126: 9553 | I126: 101.2680876 | J126: 967414.0405 | K126: 2018-04-26 | L126: 1194 | M126: 40.16299832 | N126: 47954.62 | O126: 120914.0966 | P126: 48.87 | Y126: -73008.34656 | AF126: 8359 | AG126: 101.2680876 | AH126: 846499.944 | BE126: B3CTNK15 | BG126: 8359 | BH126: 101.2680876 | BI126: 846499.944
F127: SELL | G127: 3.928 | H127: 8359 | I127: 101.2680876 | J127: 846499.944 | K127: 2018-05-02 | L127: 1194 | M127: 38.49589615 | N127: 45964.1 | O127: 120914.0966 | P127: 14.85 | Y127: -74964.84656 | AF127: 7165 | AG127: 101.2680876 | AH127: 725585.8474 | BE127: B3CTNK16 | BG127: 7165 | BH127: 101.2680876 | BI127: 725585.8474
F128: SELL | G128: 3.9405 | H128: 7165 | I128: 101.2680876 | J128: 725585.8474 | K128: 2018-05-04 | L128: 2388 | M128: 37.85229899 | N128: 90391.29 | O128: 241828.1931 | P128: 97.61 | Y128: -151534.5131 | AF128: 4777 | AG128: 101.2680876 | AH128: 483757.6543 | BE128: B3CTNK17 | BG128: 4777 | BH128: 101.2680876 | BI128: 483757.6543
F129: SELL | G129: 3.9445 | H129: 4777 | I129: 101.2680876 | J129: 483757.6543 | K129: 2018-05-07 | L129: 4777 | M129: 37.11159933 | N129: 177282.11 | O129: 483757.6543 | P129: 195.18 | Y129: -306670.7243 | AF129: 0 | AG129: 101.2680876 | AH129: 0 | BE129: B3CTNK18 | BG129: 0 | BH129: 101.2680876 | BI129: 0 | BJ129: 1
B131: 13 | C131: 212401 | D131: 6496584 | E131: KOMATSU LTD | F131: SELL | G131: 4.0375 | H131: 175200 | I131: 36.08451027 | J131: 6322006.2 | K131: 2018-06-29 | L131: 8300 | M131: 28.48856627 | N131: 236455.1 | O131: 299501.4353 | P131: 236.45 | Y131: -63282.78527 | AF131: 166900 | AG131: 36.08451027 | AH131: 6022504.765 | BE131: 6496584 | BF131: 2018-06-18 | BG131: 166900 | BH131: 36.08451027 | BI131: 6022504.765
F132: SELL | G132: 4.04 | H132: 166900 | I132: 36.08451027 | J132: 6022504.765 | K132: 2018-07-02 | L132: 6400 | M132: 28.25072187 | N132: 180804.62 | O132: 230940.8658 | P132: 198.88 | Y132: -50335.12575 | AF132: 160500 | AG132: 36.08451027 | AH132: 5791563.899 | BE132: 6496584 | BF132: 2018-06-18 | BG132: 160500 | BH132: 36.08451027 | BI132: 5791563.899
F133: SELL | G133: 4.0475 | H133: 160500 | I133: 36.08451027 | J133: 5791563.899 | K133: 2018-07-03 | L133: 8100 | M133: 28.27563704 | N133: 229032.66 | O133: 292284.5332 | P133: 229.03 | Y133: -63480.90322 | AF133: 152400 | AG133: 36.08451027 | AH133: 5499279.366 | BE133: 6496584 | BF133: 2018-06-18 | BG133: 152400 | BH133: 36.08451027 | BI133: 5499279.366
F134: SELL | G134: 4.06 | H134: 152400 | I134: 36.08451027 | J134: 5499279.366 | K134: 2018-07-25 | L134: 7600 | M134: 30.71644342 | N134: 233444.97 | O134: 274242.2781 | P134: 233.44 | Y134: -41030.74808 | AF134: 144800 | AG134: 36.08451027 | AH134: 5225037.088 | BE134: 6496584 | BF134: 2018-06-18 | BG134: 144800 | BH134: 36.08451027 | BI134: 5225037.088
F135: SELL | G135: 4.0645 | H135: 144800 | I135: 36.08451027 | J135: 5225037.088 | K135: 2018-07-30 | L135: 4600 | M135: 30.16687609 | N135: 138767.63 | O135: 165988.7473 | P135: 138.76 | Y135: -27359.87726 | AF135: 140200 | AG135: 36.08451027 | AH135: 5059048.34 | BE135: 6496584 | BF135: 2018-06-18 | BG135: 140200 | BH135: 36.08451027 | BI135: 5059048.34
F136: SELL | G136: 4.065 | H136: 140200 | I136: 36.08451027 | J136: 5059048.34 | K136: 2018-07-31 | L136: 7600 | M136: 29.23476579 | N136: 222184.22 | O136: 274242.2781 | P136: 222.18 | Y136: -52280.23808 | AF136: 132600 | AG136: 36.08451027 | AH136: 4784806.062 | BE136: 6496584 | BF136: 2018-06-18 | BG136: 132600 | BH136: 36.08451027 | BI136: 4784806.062
F137: SELL | G137: 4.0795 | H137: 132600 | I137: 36.08451027 | J137: 4784806.062 | K137: 2018-08-06 | L137: 3200 | M137: 28.79288125 | N137: 92137.22 | O137: 115470.4329 | P137: 92.14 | Y137: -23425.35288 | AF137: 129400 | AG137: 36.08451027 | AH137: 4669335.629 | BE137: 6496584 | BF137: 2018-06-18 | BG137: 129400 | BH137: 36.08451027 | BI137: 4669335.629
F138: SELL | G138: 4.0865 | H138: 129400 | I138: 36.08451027 | J138: 4669335.629 | K138: 2018-08-10 | L138: 8100 | M138: 28.59744938 | N138: 231639.34 | O138: 292284.5332 | P138: 231.63 | Y138: -60876.82322 | AF138: 121300 | AG138: 36.08451027 | AH138: 4377051.096 | BE138: 6496584 | BF138: 2018-06-18 | BG138: 121300 | BH138: 36.08451027 | BI138: 4377051.096
F139: SELL | G139: 4.136 | H139: 121300 | I139: 36.08451027 | J139: 4377051.096 | K139: 2018-09-25 | L139: 3000 | M139: 30.61220667 | N139: 91836.62 | O139: 108253.5308 | P139: 91.83 | Y139: -16508.74082 | AF139: 118300 | AG139: 36.08451027 | AH139: 4268797.565 | BE139: 6496584 | BF139: 2018-06-18 | BG139: 118300 | BH139: 36.08451027 | BI139: 4268797.565
F140: Dividend | G140: 4.1875 | H140: 118300 | I140: 36.08451027 | J140: 4268797.565 | Q140: 2018-09-26 | R140: 2018-11-29 | S140: 0.3826125106 | T140: 45263.06 | Z140: 45263.06 | AA140: 45263.06 | AF140: 118300 | AG140: 35.70189776 | AH140: 4223534.505 | BE140: 6496584 | BF140: 2018-06-18 | BG140: 118300 | BH140: 35.70189776 | BI140: 4223534.505
F141: SELL | G141: 4.116 | H141: 118300 | I141: 35.70189776 | J141: 4223534.505 | K141: 2019-01-07 | L141: 1900 | M141: 22.55778421 | N141: 42859.79 | O141: 67833.60575 | P141: 42.85 | Y141: -25016.66575 | AF141: 116400 | AG141: 35.70189776 | AH141: 4155700.9 | BE141: 6496584 | BF141: 2018-06-18 | BG141: 116400 | BH141: 35.70189776 | BI141: 4155700.9
F142: SELL | G142: 4.0995 | H142: 116400 | I142: 35.70189776 | J142: 4155700.9 | K142: 2019-02-04 | L142: 9000 | M142: 24.92589222 | N142: 224333.03 | O142: 321317.0799 | P142: 224.33 | Y142: -97208.37987 | AF142: 107400 | AG142: 35.70189776 | AH142: 3834383.82 | BE142: 6496584 | BF142: 2018-06-18 | BG142: 107400 | BH142: 35.70189776 | BI142: 3834383.82
F143: SELL | G143: 4.091 | H143: 107400 | I143: 35.70189776 | J143: 3834383.82 | K143: 2019-02-15 | L143: 3600 | M143: 24.26306111 | N143: 87347.02 | O143: 128526.8319 | P143: 87.34 | Y143: -41267.15195 | AF143: 103800 | AG143: 35.70189776 | AH143: 3705856.988 | BE143: 6496584 | BF143: 2018-06-18 | BG143: 103800 | BH143: 35.70189776 | BI143: 3705856.988 | BJ143: 1
B145: 14 | C145: 212401 | D145: B12T3J1 | E145: UNILEVER NV-CVA | F145: SELL | G145: 4.143 | H145: 136655 | I145: 57.10224595 | J145: 7803307.42 | K145: 2018-10-02 | L145: 6054 | M145: 55.00799306 | N145: 333018.39 | O145: 345696.997 | P145: 499.53 | Y145: -13178.13697 | AF145: 130601 | AG145: 57.10224595 | AH145: 7457610.423 | BE145: B12T3J1 | BF145: 2018-09-24 | BG145: 130601 | BH145: 57.10224595 | BI145: 7457610.423
F146: Dividend | G146: 4.1545 | H146: 130601 | I146: 57.10224595 | J146: 7457610.423 | O146: N/A | Q146: 2018-11-01 | R146: 2018-12-05 | S146: 0.3732549521 | T146: 48747.47 | Z146: 48747.47 | AA146: 48747.47 | AF146: 130601 | AG146: 56.728991 | AH146: 7408862.953 | BE146: B12T3J1 | BF146: 2018-09-24 | BG146: 130601 | BH146: 56.728991 | BI146: 7408862.953
F147: SELL | G147: 4.111 | H147: 130601 | I147: 56.728991 | J147: 7408862.953 | K147: 2019-01-29 | L147: 8111 | M147: 53.84603871 | N147: 436745.22 | O147: 460128.846 | P147: 655.12 | Y147: -24038.74597 | AF147: 122490 | AG147: 56.728991 | AH147: 6948734.107 | BE147: B12T3J1 | BF147: 2018-09-24 | BG147: 122490 | BH147: 56.728991 | BI147: 6948734.107
F148: SELL | G148: 4.0765 | H148: 122490 | I148: 56.728991 | J148: 6948734.107 | K148: 2019-03-18 | L148: 122490 | M148: 57.27013128 | N148: 7015018.38 | O148: 6948734.107 | P148: 2104.5 | Y148: 64179.77293 | AB148: 64179.77293 | AC148: 261628.8444 | AF148: 0 | AG148: 56.728991 | AH148: 0 | BE148: B12T3J1 | BF148: 2018-09-24 | BG148: 0 | BH148: 56.728991 | BI148: 0
F149: Dividend | G149: 4.0715 | H149: 0 | I149: 56.728991 | J149: 0 | O149: N/A | Q149: 2019-02-14 | R149: 2019-03-20 | S149: 0.37361703 | T149: 45764.35 | Z149: 45764.35 | AD149: 45764.35 | AE149: 186329.551 | AF149: 0 | AG149: 0 | AH149: 0 | BE149: B12T3J1 | BF149: 2018-09-24 | BG149: 0 | BH149: 0 | BI149: 0 | BJ149: 1
B151: 15 | C151: 212401 | D151: BPF0548 | E151: AMS AG | F151: SELL | G151: 4.136 | H151: 44783 | I151: 116.0193212 | J151: 5195693.26 | K151: 2018-09-25 | L151: 743 | M151: 65.20987887 | N151: 48450.94 | O151: 86202.35563 | P151: 72.67 | Y151: -37824.08563 | AF151: 44040 | AG151: 116.0193212 | AH151: 5109490.904 | BE151: BPF0548 | BF151: 2018-09-24 | BG151: 44040 | BH151: 116.0193212 | BI151: 5109490.904
F152: SELL | G152: 4.141 | H152: 44040 | I152: 116.0193212 | J152: 5109490.904 | K152: 2018-09-26 | L152: 759 | M152: 62.46426877 | N152: 47410.38 | O152: 88058.66477 | P152: 71.12 | Y152: -40719.40477 | AF152: 43281 | AG152: 116.0193212 | AH152: 5021432.24 | BE152: BPF0548 | BF152: 2018-09-24 | BG152: 43281 | BH152: 116.0193212 | BI152: 5021432.24
F153: SELL | G153: 4.139 | H153: 43281 | I153: 116.0193212 | J153: 5021432.24 | K153: 2018-10-03 | L153: 1250 | M153: 57.011032 | N153: 71263.79 | O153: 145024.1515 | P153: 106.9 | Y153: -73867.26146 | AF153: 42031 | AG153: 116.0193212 | AH153: 4876408.088 | BE153: BPF0548 | BF153: 2018-09-24 | BG153: 42031 | BH153: 116.0193212 | BI153: 4876408.088
F154: SELL | G154: 4.147 | H154: 42031 | I154: 116.0193212 | J154: 4876408.088 | K154: 2018-10-04 | L154: 858 | M154: 54.79536131 | N154: 47014.42 | O154: 99544.57756 | P154: 14.11 | Y154: -52544.26756 | AF154: 41173 | AG154: 116.0193212 | AH154: 4776863.511 | BE154: BPF0548 | BF154: 2018-09-24 | BG154: 41173 | BH154: 116.0193212 | BI154: 4776863.511
F155: SELL | G155: 4.1465 | H155: 41173 | I155: 116.0193212 | J155: 4776863.511 | K155: 2018-10-05 | L155: 2628 | M155: 52.72324962 | N155: 138556.7 | O155: 304898.776 | P155: 41.57 | Y155: -166383.646 | AF155: 38545 | AG155: 116.0193212 | AH155: 4471964.735 | BE155: BPF0548 | BF155: 2018-09-24 | BG155: 38545 | BH155: 116.0193212 | BI155: 4471964.735
F156: SELL | G156: 4.155 | H156: 38545 | I156: 116.0193212 | J156: 4471964.735 | K156: 2018-10-08 | L156: 3585 | M156: 50.30176569 | N156: 180331.83 | O156: 415929.2664 | P156: 270.49 | Y156: -235867.9264 | AF156: 34960 | AG156: 116.0193212 | AH156: 4056035.468 | BE156: BPF0548 | BF156: 2018-09-24 | BG156: 34960 | BH156: 116.0193212 | BI156: 4056035.468
F157: SELL | G157: 4.1545 | H157: 34960 | I157: 116.0193212 | J157: 4056035.468 | K157: 2018-10-09 | L157: 945 | M157: 49.83065608 | N157: 47089.97 | O157: 109638.2585 | P157: 70.64 | Y157: -62618.92851 | AF157: 34015 | AG157: 116.0193212 | AH157: 3946397.21 | BE157: BPF0548 | BF157: 2018-09-24 | BG157: 34015 | BH157: 116.0193212 | BI157: 3946397.21
F158: SELL | G158: 4.159 | H158: 34015 | I158: 116.0193212 | J158: 3946397.21 | K158: 2018-10-12 | L158: 1845 | M158: 50.1724607 | N158: 92568.19 | O158: 214055.6476 | P158: 138.86 | Y158: -121626.3176 | AF158: 32170 | AG158: 116.0193212 | AH158: 3732341.562 | BE158: BPF0548 | BF158: 2018-09-24 | BG158: 32170 | BH158: 116.0193212 | BI158: 3732341.562
F159: SELL | G159: 4.07 | H159: 32170 | I159: 116.0193212 | J159: 3732341.562 | K159: 2019-02-25 | L159: 476 | M159: 32.42434874 | N159: 15433.99 | O159: 55225.19688 | P159: 4.63 | Y159: -39795.83688 | AF159: 31694 | AG159: 116.0193212 | AH159: 3677116.365 | BE159: BPF0548 | BF159: 2018-09-24 | BG159: 31694 | BH159: 116.0193212 | BI159: 3677116.365
F160: SELL | G160: 4.0715 | H160: 31694 | I160: 116.0193212 | J160: 3677116.365 | K160: 2019-02-26 | L160: 922 | M160: 32.06274403 | N160: 29561.85 | O160: 106969.8141 | P160: 44.34 | Y160: -77452.30412 | AF160: 30772 | AG160: 116.0193212 | AH160: 3570146.551 | BE160: BPF0548 | BF160: 2018-09-24 | BG160: 30772 | BH160: 116.0193212 | BI160: 3570146.551
F161: SELL | G161: 4.1365 | H161: 30772 | I161: 116.0193212 | J161: 3570146.551 | K161: 2019-04-30 | L161: 2500 | M161: 41.495388 | N161: 103738.47 | O161: 290048.3029 | P161: 31.12 | Y161: -186340.9529 | AF161: 28272 | AG161: 116.0193212 | AH161: 3280098.248 | BE161: BPF0548 | BF161: 2018-09-24 | BG161: 28272 | BH161: 116.0193212 | BI161: 3280098.248
F162: SELL | G162: 4.1365 | H162: 28272 | I162: 116.0193212 | J162: 3280098.248 | K162: 2019-05-02 | L162: 1064 | M162: 45.9543797 | N162: 48895.46 | O162: 123444.5577 | P162: 73.34 | Y162: -74622.43773 | AF162: 27208 | AG162: 116.0193212 | AH162: 3156653.69 | BE162: BPF0548 | BF162: 2018-09-24 | BG162: 27208 | BH162: 116.0193212 | BI162: 3156653.69
F163: SELL | G163: 4.186 | H163: 27208 | I163: 116.0193212 | J163: 3156653.69 | K163: 2019-05-21 | L163: 1040 | M163: 37.78186538 | N163: 39293.14 | O163: 120660.094 | P163: 58.94 | Y163: -81425.89402 | AF163: 26168 | AG163: 116.0193212 | AH163: 3035993.596 | BE163: BPF0548 | BF163: 2018-09-24 | BG163: 26168 | BH163: 116.0193212 | BI163: 3035993.596
F164: SELL | G164: 4.1375 | H164: 26168 | I164: 116.0193212 | J164: 3035993.596 | K164: 2019-07-02 | L164: 1190 | M164: 40.48415126 | N164: 48176.14 | O164: 138062.9922 | P164: 72.26 | Y164: -89959.11219 | AF164: 24978 | AG164: 116.0193212 | AH164: 2897930.604 | BE164: BPF0548 | BF164: 2018-09-24 | BG164: 24978 | BH164: 116.0193212 | BI164: 2897930.604
F165: SELL | G165: 4.115 | H165: 24978 | I165: 116.0193212 | J165: 2897930.604 | K165: 2019-07-17 | L165: 1100 | M165: 42.15437273 | N165: 46369.81 | O165: 127621.2533 | P165: 13.91 | Y165: -81265.35329 | AF165: 23878 | AG165: 116.0193212 | AH165: 2770309.351 | BE165: BPF0548 | BF165: 2018-09-24 | BG165: 23878 | BH165: 116.0193212 | BI165: 2770309.351
F166: SELL | G166: 4.1105 | H166: 23878 | I166: 116.0193212 | J166: 2770309.351 | K166: 2019-07-19 | L166: 1000 | M166: 43.16574 | N166: 43165.74 | O166: 116019.3212 | P166: 64.75 | Y166: -72918.33117 | AF166: 22878 | AG166: 116.0193212 | AH166: 2654290.03 | BE166: BPF0548 | BF166: 2018-09-24 | BG166: 22878 | BH166: 116.0193212 | BI166: 2654290.03
F167: SELL | G167: 4.1175 | H167: 22878 | I167: 116.0193212 | J167: 2654290.03 | K167: 2019-07-23 | L167: 1000 | M167: 48.02051 | N167: 48020.51 | O167: 116019.3212 | P167: 72.03 | Y167: -68070.84117 | AF167: 21878 | AG167: 116.0193212 | AH167: 2538270.709 | BE167: BPF0548 | BF167: 2018-09-24 | BG167: 21878 | BH167: 116.0193212 | BI167: 2538270.709
F168: SELL | G168: 4.1015 | H168: 21878 | I168: 116.0193212 | J168: 2538270.709 | K168: 2020-01-03 | L168: 1367 | M168: 39.97434528 | N168: 54644.93 | O168: 158598.412 | P168: 16.39 | Y168: -103969.872 | AF168: 20511 | AG168: 116.0193212 | AH168: 2379672.297 | BE168: BPF0548 | BF168: 2018-09-24 | BG168: 20511 | BH168: 116.0193212 | BI168: 2379672.297
F169: SELL | G169: 4.089 | H169: 20511 | I169: 116.0193212 | J169: 2379672.297 | K169: 2020-01-09 | L169: 1367 | M169: 44.35880761 | N169: 60638.49 | O169: 158598.412 | P169: 90.96 | Y169: -98050.88204 | AF169: 19144 | AG169: 116.0193212 | AH169: 2221073.884 | BE169: BPF0548 | BF169: 2018-09-24 | BG169: 19144 | BH169: 116.0193212 | BI169: 2221073.884
F170: SELL | G170: 4.1125 | H170: 19144 | I170: 116.0193212 | J170: 2221073.884 | K170: 2020-02-04 | L170: 1472 | M170: 42.38644701 | N170: 62392.85 | O170: 170780.4408 | P170: 62.39 | Y170: -108449.9808 | AF170: 17672 | AG170: 116.0193212 | AH170: 2050293.444 | BE170: BPF0548 | BF170: 2018-09-24 | BG170: 17672 | BH170: 116.0193212 | BI170: 2050293.444
F171: SELL | G171: 4.123 | H171: 17672 | I171: 116.0193212 | J171: 2050293.444 | K171: 2020-02-05 | L171: 4078 | M171: 43.93772437 | N171: 179178.04 | O171: 473126.7917 | P171: 268.77 | Y171: -294217.5217 | AF171: 13594 | AG171: 116.0193212 | AH171: 1577166.652 | BE171: BPF0548 | BF171: 2018-09-24 | BG171: 13594 | BH171: 116.0193212 | BI171: 1577166.652
F172: SELL | G172: 4.122 | H172: 13594 | I172: 116.0193212 | J172: 1577166.652 | K172: 2020-02-06 | L172: 13594 | M172: 45.78045608 | N172: 622339.52 | O172: 1577166.652 | P172: 622.34 | Y172: -955449.472 | AF172: 0 | AG172: 116.0193212 | AH172: 0 | BE172: BPF0548 | BF172: 2018-09-24 | BG172: 0 | BH172: 116.0193212 | BI172: 0 | BJ172: 1
B174: 16 | C174: 212401 | D174: 3091357 | E174: BT GROUP PLC | F174: Dividend | G174: 4.0995 | H174: 625651 | I174: 4.175804642 | J174: 2612596.35 | O174: N/A | Q174: 2018-12-27 | R174: 2019-02-04 | S174: 0.06044347408 | T174: 37816.52 | Z174: 37816.52 | AA174: 37816.52 | AF174: 625651 | AG174: 4.115361168 | AH174: 2574779.83 | BE174: 3091357 | BF174: 2018-12-24 | BG174: 625651 | BH174: 4.115361168 | BI174: 2574779.83
F175: Dividend | G175: 4.18 | H175: 625651 | I175: 4.115361168 | J175: 2574779.83 | O175: N/A | Q175: 2019-08-08 | R175: 2019-09-09 | S175: 0.1330575353 | T175: 83247.58 | Z175: 83247.58 | AA175: 83247.58 | AF175: 625651 | AG175: 3.982303633 | AH175: 2491532.25 | BE175: 3091357 | BF175: 2018-12-24 | BG175: 625651 | BH175: 3.982303633 | BI175: 2491532.25 | BJ175: 1
B177: 17 | C177: 212401 | D177: 6194468 | E177: KOSE CORP | F177: SELL | G177: 4.0675 | H177: 18400 | I177: 216.4600087 | J177: 3982864.16 | K177: 2019-02-08 | L177: 3700 | M177: 150.9057568 | N177: 558351.3 | O177: 800902.0322 | P177: 558.34 | Y177: -243109.0722 | AF177: 14700 | AG177: 216.4600087 | AH177: 3181962.128 | BE177: 6194468 | BF177: 2018-12-24 | BG177: 14700 | BH177: 216.4600087 | BI177: 3181962.128
F178: SELL | G178: 4.091 | H178: 14700 | I178: 216.4600087 | J178: 3181962.128 | K178: 2019-02-15 | L178: 600 | M178: 162.2993 | N178: 97379.58 | O178: 129876.0052 | P178: 97.37 | Y178: -32593.79522 | AF178: 14100 | AG178: 216.4600087 | AH178: 3052086.123 | BE178: 6194468 | BF178: 2018-12-24 | BG178: 14100 | BH178: 216.4600087 | BI178: 3052086.123
F179: SELL | G179: 4.067 | H179: 14100 | I179: 216.4600087 | J179: 3052086.123 | K179: 2019-02-27 | L179: 500 | M179: 165.31606 | N179: 82658.03 | O179: 108230.0043 | P179: 90.91 | Y179: -25662.88435 | AF179: 13600 | AG179: 216.4600087 | AH179: 2943856.118 | BE179: 6194468 | BF179: 2018-12-24 | BG179: 13600 | BH179: 216.4600087 | BI179: 2943856.118
F180: SELL | G180: 4.093 | H180: 13600 | I180: 216.4600087 | J180: 2943856.118 | K180: 2019-03-06 | L180: 1400 | M180: 166.0953286 | N180: 232533.46 | O180: 303044.0122 | P180: 232.53 | Y180: -70743.08217 | AF180: 12200 | AG180: 216.4600087 | AH180: 2640812.106 | BE180: 6194468 | BF180: 2018-12-24 | BG180: 12200 | BH180: 216.4600087 | BI180: 2640812.106
F181: SELL | G181: 4.1315 | H181: 12200 | I181: 216.4600087 | J181: 2640812.106 | K181: 2019-04-26 | L181: 2000 | M181: 185.711085 | N181: 371422.17 | O181: 432920.0174 | P181: 371.42 | Y181: -61869.26739 | AF181: 10200 | AG181: 216.4600087 | AH181: 2207892.089 | BE181: 6194468 | BF181: 2018-12-24 | BG181: 10200 | BH181: 216.4600087 | BI181: 2207892.089
F182: SELL | G182: 4.1645 | H182: 10200 | I182: 216.4600087 | J182: 2207892.089 | K182: 2019-05-16 | L182: 1300 | M182: 164.0262308 | N182: 213234.1 | O182: 281398.0113 | P182: 213.23 | Y182: -68377.1413 | AF182: 8900 | AG182: 216.4600087 | AH182: 1926494.077 | BE182: 6194468 | BF182: 2018-12-24 | BG182: 8900 | BH182: 216.4600087 | BI182: 1926494.077
F183: SELL | G183: 4.186 | H183: 8900 | I183: 216.4600087 | J183: 1926494.077 | K183: 2019-05-21 | L183: 800 | M183: 164.481425 | N183: 131585.14 | O183: 173168.007 | P183: 131.59 | Y183: -41714.45696 | AF183: 8100 | AG183: 216.4600087 | AH183: 1753326.07 | BE183: 6194468 | BF183: 2018-12-24 | BG183: 8100 | BH183: 216.4600087 | BI183: 1753326.07
F184: SELL | G184: 4.16 | H184: 8100 | I184: 216.4600087 | J184: 1753326.07 | K184: 2019-06-12 | L184: 600 | M184: 163.8009167 | N184: 98280.55 | O184: 129876.0052 | P184: 98.28 | Y184: -31693.73522 | AF184: 7500 | AG184: 216.4600087 | AH184: 1623450.065 | BE184: 6194468 | BF184: 2018-12-24 | BG184: 7500 | BH184: 216.4600087 | BI184: 1623450.065 | BJ184: 1
B186: 18 | C186: 212401 | D186: 6895675 | E186: TOKYO ELECTRON | F186: SELL | G186: 4.1575 | H186: 9100 | I186: 206.2701604 | J186: 1877058.46 | K186: 2019-05-10 | L186: 900 | M186: 153.3030222 | N186: 137972.72 | O186: 185643.1444 | P186: 137.97 | Y186: -47808.3944 | AF186: 8200 | AG186: 206.2701604 | AH186: 1691415.316 | BE186: 6895675 | BF186: 2019-03-18 | BG186: 8200 | BH186: 206.2701604 | BI186: 1691415.316
F187: SELL | G187: 4.166 | H187: 8200 | I187: 206.2701604 | J187: 1691415.316 | K187: 2019-05-13 | L187: 900 | M187: 149.9434778 | N187: 134949.13 | O187: 185643.1444 | P187: 134.94 | Y187: -50828.9544 | AF187: 7300 | AG187: 206.2701604 | AH187: 1505772.171 | BE187: 6895675 | BF187: 2019-03-18 | BG187: 7300 | BH187: 206.2701604 | BI187: 1505772.171
F188: Dividend | G188: 4.187 | H188: 7300 | I188: 206.2701604 | J188: 1505772.171 | O188: N/A | Q188: 2019-03-27 | R188: 2019-05-28 | S188: 2.677471429 | T188: 24364.99 | Z188: 24364.99 | AA188: 24364.99 | AF188: 7300 | AG188: 202.9324906 | AH188: 1481407.181 | BE188: 6895675 | BF188: 2019-03-18 | BG188: 7300 | BH188: 202.9324906 | BI188: 1481407.181
F189: SELL | G189: 4.1765 | H189: 7300 | I189: 202.9324906 | J189: 1481407.181 | K189: 2019-06-19 | L189: 300 | M189: 135.4949333 | N189: 40648.48 | O189: 60879.74717 | P189: 40.64 | Y189: -20271.90717 | AF189: 7000 | AG189: 202.9324906 | AH189: 1420527.434 | BE189: 6895675 | BF189: 2019-03-18 | BG189: 7000 | BH189: 202.9324906 | BI189: 1420527.434
F190: SELL | G190: 4.1525 | H190: 7000 | I190: 202.9324906 | J190: 1420527.434 | K190: 2019-06-21 | L190: 300 | M190: 139.4459667 | N190: 41833.79 | O190: 60879.74717 | P190: 41.83 | Y190: -19087.78717 | AF190: 6700 | AG190: 202.9324906 | AH190: 1359647.687 | BE190: 6895675 | BF190: 2019-03-18 | BG190: 6700 | BH190: 202.9324906 | BI190: 1359647.687 | BJ190: 1
B192: 19 | C192: 212401 | D192: BDZ78H9 | E192: BROADCOM INC | F192: SELL | G192: 4.1335 | H192: 34082 | I192: 300.5530802 | J192: 10243450.08 | K192: 2019-06-28 | L192: 1300 | M192: 287.9177 | N192: 374293.01 | O192: 390719.0043 | P192: 59.75 | Y192: -16485.74428 | AF192: 32782 | AG192: 300.5530802 | AH192: 9852731.076 | BE192: BDZ78H9 | BF192: 2019-06-24 | BG192: 32782 | BH192: 300.5530802 | BI192: 9852731.076
F193: SELL | G193: 4.1375 | H193: 32782 | I193: 300.5530802 | J193: 9852731.076 | K193: 2019-07-02 | L193: 16391 | M193: 295.7668001 | N193: 4847913.62 | O193: 4926365.538 | P193: 756 | Y193: -79207.91786 | AF193: 16391 | AG193: 300.5530802 | AH193: 4926365.538 | BE193: BDZ78H9 | BF193: 2019-06-24 | BG193: 16391 | BH193: 300.5530802 | BI193: 4926365.538
F194: SELL | G194: 4.1375 | H194: 16391 | I194: 300.5530802 | J194: 4926365.538 | K194: 2019-07-24 | L194: 16391 | M194: 303.1311 | N194: 4968621.86 | O194: 4926365.538 | P194: 758.5 | Y194: 41497.82214 | AB194: 41497.82214 | AC194: 171697.2391 | AF194: 0 | AG194: 300.5530802 | AH194: 0 | BE194: BDZ78H9 | BF194: 2019-06-24 | BG194: 0 | BH194: 300.5530802 | BI194: 0 | BJ194: 1
B196: 20 | C196: 212401 | D196: 2126335 | E196: BRISTOL-MYERS SQUIBB CO | F196: Dividend | G196: 4.1645 | H196: 108062 | I196: 60.74624938 | J196: 6564361.2 | O196: N/A | Q196: 2019-10-03 | R196: 2019-11-01 | S196: 0.286999963 | T196: 31013.79 | Z196: 31013.79 | AA196: 31013.79 | AF196: 108062 | AG196: 60.45924941 | AH196: 6533347.41 | BE196: 2126335 | BF196: 2019-09-23 | BG196: 108062 | BH196: 60.45924941 | BI196: 6533347.41
F197: Corporate Action | G197: 4.1685 | H197: 108062 | I197: 60.45924941 | J197: 6533347.41 | O197: N/A | U197: Merger | V197: 2019-11-21 | W197: 28105 | X197: 2041915.59 | AF197: 136167 | AG197: 62.9760735 | AH197: 8575263 | AI197: Shares received from Merger event with CELGENE CORP | BE197: 2126335 | BF197: 2019-09-23 | BG197: 136167 | BH197: 62.9760735 | BI197: 8575263
F198: SELL | G198: 4.143 | H198: 136167 | I198: 62.9760735 | J198: 8575263 | K198: 2019-12-16 | L198: 136167 | M198: 63.81239999 | N198: 8689143.07 | O198: 8575263 | P198: 1917.7 | Y198: 111962.37 | AB198: 111962.37 | AC198: 463860.0989 | AF198: 0 | AG198: 62.9760735 | AH198: 0 | BE198: 2126335 | BF198: 2019-09-23 | BG198: 0 | BH198: 62.9760735 | BI198: 0 | BJ198: 1
B200: 21 | C200: 212401 | D200: 2459020 | E200: INTUIT INC | F200: Dividend | G200: 4.1855 | H200: 24213 | I200: 279.1082943 | J200: 6758049.13 | O200: N/A | Q200: 2019-10-09 | R200: 2019-10-18 | S200: 0.3709998761 | T200: 8983.02 | Z200: 8983.02 | AA200: 8983.02 | AF200: 24213 | AG200: 278.7372944 | AH200: 6749066.11 | BE200: 2459020 | BF200: 2019-09-23 | BG200: 24213 | BH200: 278.7372944 | BI200: 6749066.11
F201: Dividend | G201: 4.0725 | H201: 24213 | I201: 278.7372944 | J201: 6749066.11 | O201: N/A | Q201: 2020-01-09 | R201: 2020-01-21 | S201: 0.3709998761 | T201: 8983.02 | Z201: 8983.02 | AA201: 8983.02 | AF201: 24213 | AG201: 278.3662946 | AH201: 6740083.09 | BE201: 2459020 | BF201: 2019-09-23 | BG201: 24213 | BH201: 278.3662946 | BI201: 6740083.09
F202: SELL | G202: 4.0725 | H202: 24213 | I202: 278.3662946 | J202: 6740083.09 | K202: 2020-01-21 | L202: 24213 | M202: 283.9587998 | N202: 6875494.42 | O202: 6740083.09 | P202: 868.72 | Y202: 134542.61 | AB202: 134542.61 | AC202: 547924.7792 | AF202: 0 | AG202: 278.3662946 | AH202: 0 | BE202: 2459020 | BF202: 2019-09-23 | BG202: 0 | BH202: 278.3662946 | BI202: 0 | BJ202: 1
B204: 22 | C204: 212401 | D204: 2595708 | E204: 3M CO | F204: SELL | G204: 4.193 | H204: 21924 | I204: 197.7489514 | J204: 4335448.01 | K204: 2019-10-02 | L204: 982 | M204: 155.6614969 | N204: 152859.59 | O204: 194189.4703 | P204: 32.63 | Y204: -41362.51025 | AF204: 20942 | AG204: 197.7489514 | AH204: 4141258.54 | BE204: 2595708 | BF204: 2019-09-23 | BG204: 20942 | BH204: 197.7489514 | BI204: 4141258.54
F205: Dividend | G205: 4.1585 | H205: 20942 | I205: 197.7489514 | J205: 4141258.54 | O205: N/A | Q205: 2019-11-21 | R205: 2019-12-12 | S205: 1.008000191 | T205: 21109.54 | Z205: 21109.54 | AA205: 21109.54 | AF205: 20942 | AG205: 196.7409512 | AH205: 4120149 | BE205: 2595708 | BF205: 2019-09-23 | BG205: 20942 | BH205: 196.7409512 | BI205: 4120149 | BJ205: 1
B207: 23 | C207: 212401 | D207: 6185495 | E207: CSL LTD | F207: SELL | G207: 4.1805 | H207: 11615 | I207: 162.841926 | J207: 1891408.97 | K207: 2019-09-24 | L207: 306 | M207: 161.9281699 | N207: 49550.02 | O207: 49829.62934 | P207: 49.55 | Y207: -329.1593431 | AF207: 11309 | AG207: 162.841926 | AH207: 1841579.341 | BE207: 6185495 | BF207: 2019-09-23 | BG207: 11309 | BH207: 162.841926 | BI207: 1841579.341
F208: SELL | G208: 4.1955 | H208: 11309 | I208: 162.841926 | J208: 1841579.341 | K208: 2019-10-07 | L208: 2309 | M208: 161.2286748 | N208: 372277.01 | O208: 376002.007 | P208: 744.56 | Y208: -4469.557037 | AF208: 9000 | AG208: 162.841926 | AH208: 1465577.334 | BE208: 6185495 | BF208: 2019-09-23 | BG208: 9000 | BH208: 162.841926 | BI208: 1465577.334
F209: SELL | G209: 4.1915 | H209: 9000 | I209: 162.841926 | J209: 1465577.334 | K209: 2019-10-08 | L209: 1000 | M209: 161.90996 | N209: 161909.96 | O209: 162841.926 | P209: 161.91 | Y209: -1093.875958 | AF209: 8000 | AG209: 162.841926 | AH209: 1302735.408 | BE209: 6185495 | BF209: 2019-09-23 | BG209: 8000 | BH209: 162.841926 | BI209: 1302735.408
F210: SELL | G210: 4.1975 | H210: 8000 | I210: 162.841926 | J210: 1302735.408 | K210: 2019-10-09 | L210: 363 | M210: 161.0446832 | N210: 58459.22 | O210: 59111.61912 | P210: 116.92 | Y210: -769.3191227 | AF210: 7637 | AG210: 162.841926 | AH210: 1243623.789 | BE210: 6185495 | BF210: 2019-09-23 | BG210: 7637 | BH210: 162.841926 | BI210: 1243623.789
F211: SELL | G211: 4.194 | H211: 7637 | I211: 162.841926 | J211: 1243623.789 | K211: 2019-10-10 | L211: 758 | M211: 161.7953298 | N211: 122640.86 | O211: 123434.1799 | P211: 245.28 | Y211: -1038.599876 | AF211: 6879 | AG211: 162.841926 | AH211: 1120189.609 | BE211: 6185495 | BF211: 2019-09-23 | BG211: 6879 | BH211: 162.841926 | BI211: 1120189.609
F212: SELL | G212: 4.1875 | H212: 6879 | I212: 162.841926 | J212: 1120189.609 | K212: 2019-10-11 | L212: 6879 | M212: 166.1261143 | N212: 1142781.54 | O212: 1120189.609 | P212: 2285.56 | Y212: 20306.37134 | AB212: 20306.37134 | AC212: 85032.92997 | AF212: 0 | AG212: 162.841926 | AH212: 0 | BE212: 6185495 | BF212: 2019-09-23 | BG212: 0 | BH212: 162.841926 | BI212: 0 | BJ212: 1
B214: 24 | C214: 212401 | D214: BKM7ZR0 | E214: BRISTOL-MYERS SQUIBB-CVR | F214: SELL | G214: 4.1385 | H214: 28105 | I214: 0 | J214: 0 | K214: 2019-12-18 | L214: 28105 | M214: 2.660599893 | N214: 74776.16 | O214: 0 | P214: 16.51 | Y214: 74759.65 | AB214: 74759.65 | AC214: 309392.8115 | AF214: 0 | AG214: 0 | AH214: 0 | BE214: BKM7ZR0 | BF214: 00:00:00 | BG214: 0 | BH214: 0 | BI214: 0 | BJ214: 1
B216: 25 | C216: 212401 | D216: 3091357 | E216: BT GROUP PLC | F216: SELL | G216: 4.252 | H216: 556135 | I216: 4.175797154 | J216: 2322306.95 | K216: 2020-07-23 | L216: 556135 | M216: 1.435922753 | N216: 798566.9 | O216: 2322306.95 | P216: 240.84 | Y216: -1523980.89 | AF216: 0 | AG216: 4.175797154 | AH216: 0 | BE216: 3091357 | BF216: 2018-12-24 | BG216: 0 | BH216: 4.175797154 | BI216: 0 | BJ216: 1
B218: 26 | C218: 212401 | D218: B06CMQ9 | E218: GMO PAYMENT GATEWAY INC | F218: SELL | G218: 4.444 | H218: 17500 | I218: 69.83220514 | J218: 1222063.59 | K218: 2020-03-23 | L218: 17500 | M218: 66.05746114 | N218: 1156005.57 | O218: 1222063.59 | P218: 1156.01 | Y218: -67214.03 | AF218: 0 | AG218: 69.83220514 | AH218: 0 | BE218: B06CMQ9 | BF218: 2020-03-23 | BG218: 0 | BH218: 69.83220514 | BI218: 0 | BJ218: 1
B220: 27 | C220: 212401 | D220: BH4HKS3 | E220: VODAFONE GROUP PLC | F220: Dividend | G220: 4.1905 | H220: 2504866 | I220: 3.113198323 | J220: 7798144.63 | O220: N/A | Q220: 2020-06-11 | R220: 2020-08-07 | S220: 0.05324416556 | T220: 133369.5 | Z220: 133369.5 | AA220: 133369.5 | AF220: 2504866 | AG220: 3.059954157 | AH220: 7664775.13 | BE220: BH4HKS3 | BF220: 2020-03-23 | BG220: 2504866 | BH220: 3.059954157 | BI220: 7664775.13
F221: SELL | G221: 4.1755 | H221: 2504866 | I221: 3.059954157 | J221: 7664775.13 | K221: 2020-08-20 | L221: 40401 | M221: 1.519130962 | N221: 61374.41 | O221: 123625.2079 | P221: 93.37 | Y221: -62344.16791 | AF221: 2464465 | AG221: 3.059954157 | AH221: 7541149.922 | BE221: BH4HKS3 | BF221: 2020-03-23 | BG221: 2464465 | BH221: 3.059954157 | BI221: 7541149.922
F222: Dividend | G222: 4.0705 | H222: 2464465 | I222: 3.059954157 | J222: 7541149.922 | O222: N/A | Q222: 2020-12-17 | R222: 2021-02-05 | S222: 0.05464080034 | T222: 134660.34 | Z222: 134660.34 | AA222: 134660.34 | AF222: 2464465 | AG222: 3.005313357 | AH222: 7406489.582 | BE222: BH4HKS3 | BF222: 2020-03-23 | BG222: 2464465 | BH222: 3.005313357 | BI222: 7406489.582 | BJ222: 1
B224: 28 | C224: 212401 | D224: B92SR70 | E224: ABBVIE INC | F224: Corporate Action | G224: 4.334 | H224: 0 | I224: 0 | J224: 0 | O224: N/A | U224: Merger | V224: 2020-05-11 | W224: 17843 | X224: 1958115.89 | AF224: 17843 | AG224: 109.741405 | AH224: 1958115.89 | BE224: B92SR70 | BF224: 2020-05-11 | BG224: 17843 | BH224: 109.741405 | BI224: 1958115.89
F225: Dividend | G225: 4.1935 | H225: 17843 | I225: 109.741405 | J225: 1958115.89 | O225: N/A | Q225: 2020-07-14 | R225: 2020-08-14 | S225: 0.8260001121 | T225: 14738.32 | Z225: 14738.32 | AA225: 14738.32 | AF225: 17843 | AG225: 108.9154049 | AH225: 1943377.57 | BE225: B92SR70 | BF225: 2020-05-11 | BG225: 17843 | BH225: 108.9154049 | BI225: 1943377.57
F226: Dividend | G226: 4.1165 | H226: 17843 | I226: 108.9154049 | J226: 1943377.57 | O226: N/A | Q226: 2020-10-14 | R226: 2020-11-16 | S226: 0.8260001121 | T226: 14738.32 | Z226: 14738.32 | AA226: 14738.32 | AF226: 17843 | AG226: 108.0894048 | AH226: 1928639.25 | BE226: B92SR70 | BF226: 2020-05-11 | BG226: 17843 | BH226: 108.0894048 | BI226: 1928639.25
F227: SELL | G227: 4.0435 | H227: 17843 | I227: 108.0894048 | J227: 1928639.25 | K227: 2021-01-13 | L227: 17843 | M227: 112.0216001 | N227: 1998801.41 | O227: 1928639.25 | P227: 579.47 | Y227: 69582.69 | AB227: 69582.69 | AC227: 281357.597 | AF227: 0 | AG227: 108.0894048 | AH227: 0 | BE227: B92SR70 | BF227: 2020-05-11 | BG227: 0 | BH227: 108.0894048 | BI227: 0 | BJ227: 1
B229: 29 | C229: 212401 | D229: 2595708 | E229: 3M CO | F229: SELL | G229: 4.243 | H229: 20942 | I229: 197.7483206 | J229: 4141245.33 | K229: 2020-07-30 | L229: 1939 | M229: 152.2823981 | N229: 295275.57 | O229: 383433.9936 | P229: 64.7 | Y229: -88223.12364 | AF229: 19003 | AG229: 197.7483206 | AH229: 3757811.336 | BE229: 2595708 | BF229: 2019-09-23 | BG229: 19003 | BH229: 197.7483206 | BI229: 3757811.336
... 76 more rows

Sheet 4) Reclassed Sec Not Disposed
C1: =IF(OR(P1="",P1="(blank)"),"",P1) ->  | D1: =IF(OR(Q1="",Q1="(blank)"),"",Q1) ->  | E1: =IF(OR(R1="",R1="(blank)"),"",R1) ->  | F1: =IF(OR(D1=""),"",IF(D1=0,0,ROUND(SUMIFS(BNYM_NAV_HistCost_MonthEnd!W:W,BNYM_NAV_HistCost_MonthEnd!I:I,D1),0))) ->  | G1: =IF(OR(O1="",O1="(blank)"),"",O1) ->  | H1: =IF(OR(W1="",W1="(blank)"),"",W1) ->  | I1: =IF(D1="","",IF(IF(M1="OUT-OF-THE-MONEY",SUMIFS('3) OTM Reclassed Securities'!BH:BH,'3) OTM Reclassed Securities'!BE:BE,D1,'3) OTM Reclassed Securities'!BF:BF,G1,'3) OTM Reclassed Securities'!BJ:BJ,1),SUMIFS('2) ITM Reclassed Securities'!BS:BS,'2) ITM Reclassed Securities'!BP:BP,D1,'2) ITM Reclassed Securities'!BQ:BQ,G1,'2) ITM Reclassed Securities'!BU:BU,1))=0,SUMIFS(BNYM_NAV_HistCost_RCdate!$AA:$AA,BNYM_NAV_HistCost_RCdate!C:C,G1,BNYM_NAV_HistCost_RCdate!I:I,D1)/SUMIFS(BNYM_NAV_HistCost_RCdate!$W:$W,BNYM_NAV_HistCost_RCdate!C:C,G1,BNYM_NAV_HistCost_RCdate!I:I,D1),IF(M1="OUT-OF-THE-MONEY",SUMIFS('3) OTM Reclassed Securities'!BH:BH,'3) OTM Reclassed Securities'!BE:BE,D1,'3) OTM Reclassed Securities'!BF:BF,G1,'3) OTM Reclassed Securities'!BJ:BJ,1),SUMIFS('2) ITM Reclassed Securities'!BS:BS,'2) ITM Reclassed Securities'!BP:BP,D1,'2) ITM Reclassed Securities'!BQ:BQ,G1,'2) ITM Reclassed Securities'!BU:BU,1)))) ->  | J1: =IF(D1="","",IF(F1=0,0,IF(IF(M1="OUT-OF-THE-MONEY",SUMIFS('3) OTM Reclassed Securities'!BI:BI,'3) OTM Reclassed Securities'!BE:BE,D1,'3) OTM Reclassed Securities'!BF:BF,G1,'3) OTM Reclassed Securities'!BJ:BJ,1),SUMIFS('2) ITM Reclassed Securities'!BT:BT,'2) ITM Reclassed Securities'!BP:BP,D1,'2) ITM Reclassed Securities'!BQ:BQ,G1,'2) ITM Reclassed Securities'!BU:BU,1))=0,SUMIFS(BNYM_NAV_HistCost_RCdate!$AA:$AA,BNYM_NAV_HistCost_RCdate!C:C,G1,BNYM_NAV_HistCost_RCdate!I:I,D1),IF(M1="OUT-OF-THE-MONEY",SUMIFS('3) OTM Reclassed Securities'!BI:BI,'3) OTM Reclassed Securities'!BE:BE,D1,'3) OTM Reclassed Securities'!BF:BF,G1,'3) OTM Reclassed Securities'!BJ:BJ,1),SUMIFS('2) ITM Reclassed Securities'!BT:BT,'2) ITM Reclassed Securities'!BP:BP,D1,'2) ITM Reclassed Securities'!BQ:BQ,G1,'2) ITM Reclassed Securities'!BU:BU,1))))) ->  | K1: =IF(OR(F1=""),"",IF(F1=0,0,IF(SUMIFS(BNYM_NAV_HistCost_MonthEnd!W:W,BNYM_NAV_HistCost_MonthEnd!I:I,D1)=0,0,SUMIFS(BNYM_NAV_HistCost_MonthEnd!AG:AG,BNYM_NAV_HistCost_MonthEnd!I:I,D1)/SUMIFS(BNYM_NAV_HistCost_MonthEnd!W:W,BNYM_NAV_HistCost_MonthEnd!I:I,D1)))) ->  | L1: =IF(OR(F1=""),"",IF(F1=0,0,ROUND(K1*F1,0))) ->  | M1: =IF(G1="","",IF(H1>=SUMIFS('1) List of Reclassed Securities'!J:J,'1) List of Reclassed Securities'!D:D,D1,'1) List of Reclassed Securities'!G:G,G1),"IN-THE-MONEY","OUT-OF-THE-MONEY")) -> 
B2: ="LIST OF REMAINING RECLASSIFIED SECURITIES NOT DISPOSED AS OF "&UPPER(TEXT(EndDate,"MMMm-yyyy")) -> LIST OF REMAINING RECLASSIFIED SECURITIES NOT DISPOSED AS OF MAY-2022
B4: Mandate : | D4: =FundName -> EPF SHARIAH WORLD NOMURA ISLAMIC
B5: Portfolio Manager : | D5: NOMURA ISLAMIC ASSET MANAGEMENT SDN BHD
B7: No. | C7: Custody Account No. | D7: Security Identifier (Sedol) | E7: Security Name | F7: No. of Shares Remaining [a] | G7: Reclass Date (DD/MM/YY) | H7: Reclass Price | I7: Current Average Investment Cost Per Share1 [b] | J7: Total Investment Cost [c = a x b] | K7: Month-End Closing Market Price per share [d] | L7: Month-End Market Value [e = a x d] | M7: In-the-money or Out-of-the-money (Reclass Date) | N7: Reason of Non-disposal
B8: 1 | C8: 212401 | D8: B4W9F29 | E8: Mead Johnson Nutrition Co. | F8: 0 | G8: 2015-06-22 | H8: 91.29 | I8: 95.46 | J8: 0 | K8: 0 | L8: 0 | M8: OUT-OF-THE-MONEY | N8: Sold entire holding in Jun-2017
B9: 2 | C9: 212401 | D9: 2654320 | E9: Monsanto Co | F9: 0 | G9: 2016-06-20 | H9: 108.71 | I9: 107.3188013 | J9: 0 | K9: 0 | L9: 0 | M9: OUT-OF-THE-MONEY | N9: Sold entire holding in February-2017
B10: 3 | C10: 212401 | D10: B1YXBJ7 | E10: Air Liquide | F10: 0 | G10: 2016-09-19 | H10: 108.3856885 | I10: 116.9284255 | J10: 0 | K10: 0 | L10: 0 | M10: OUT-OF-THE-MONEY | N10: Sold entire holding in April-2017
B11: 4 | C11: 212401 | D11: 2257019 | E11: Cognizant Tech Solutions | F11: 0 | G11: 2016-09-19 | H11: 53.33 | I11: 61.39849548 | J11: 0 | K11: 0 | L11: 0 | M11: OUT-OF-THE-MONEY | N11: Sold entire holding in May-2017
B12: 5 | C12: 212401 | D12: BZB1Y59 | E12: LINE CORPORATION | F12: 0 | G12: 2017-03-20 | H12: 36.01723141 | I12: 41.67454369 | J12: 0 | K12: 0 | L12: 0 | M12: OUT-OF-THE-MONEY | N12: Sold entire holding in Oct-2017
B13: 6 | C13: 212401 | D13: BDTYZ53 | E13: BIOVERATIV INC | F13: 0 | G13: 2017-03-20 | H13: 49.17 | I13: 62.40807874 | J13: 0 | K13: 0 | L13: 0 | M13: OUT-OF-THE-MONEY | N13: Sold entire holding in July-2017
B14: 7 | C14: 212401 | D14: BDSFG98 | E14: TECHNIPFMC PLC | F14: 0 | G14: 2017-03-20 | H14: 31.39 | I14: 33.01023673 | J14: 0 | K14: 0 | L14: 0 | M14: OUT-OF-THE-MONEY | N14: Sold entire holding in Jan-2020
B15: 8 | C15: 212401 | D15: 2369174 | E15: GILEAD SCIENCES INC | F15: 0 | G15: 2017-09-18 | H15: 82.97 | I15: 107.8473379 | J15: 0 | K15: 0 | L15: 0 | M15: OUT-OF-THE-MONEY | N15: Sold entire holding in Jan-2018
B16: 9 | C16: 212401 | D16: B24CGK7 | E16: RECKITT BENCKISER GROUP PLC | F16: 0 | G16: 2017-09-18 | H16: 92.41691412 | I16: 95.60276009 | J16: 0 | K16: 0 | L16: 0 | M16: OUT-OF-THE-MONEY | N16: Sold entire holding in Jan-2018
B17: 10 | C17: 212401 | D17: 2182348 | E17: CELGENE CORP | F17: =IF(OR(D17=""),"",IF(D17=0,0,ROUND(SUMIFS(BNYM_NAV_HistCost_MonthEnd!W:W,BNYM_NAV_HistCost_MonthEnd!I:I,D17),0))) -> 0 | G17: 2017-12-18 | H17: 108.04 | I17: =IF(D17="","",IF(IF(M17="OUT-OF-THE-MONEY",SUMIFS('3) OTM Reclassed Securities'!BH:BH,'3) OTM Reclassed Securities'!BE:BE,D17,'3) OTM Reclassed Securities'!BF:BF,G17,'3) OTM Reclassed Securities'!BJ:BJ,1),SUMIFS('2) ITM Reclassed Securities'!BS:BS,'2) ITM Reclassed Securities'!BP:BP,D17,'2) ITM Reclassed Securities'!BQ:BQ,G17,'2) ITM Reclassed Securities'!BU:BU,1))=0,SUMIFS(BNYM_NAV_HistCost_RCdate!$AA:$AA,BNYM_NAV_HistCost_RCdate!C:C,G17,BNYM_NAV_HistCost_RCdate!I:I,D17)/SUMIFS(BNYM_NAV_HistCost_RCdate!$W:$W,BNYM_NAV_HistCost_RCdate!C:C,G17,BNYM_NAV_HistCost_RCdate!I:I,D17),IF(M17="OUT-OF-THE-MONEY",SUMIFS('3) OTM Reclassed Securities'!BH:BH,'3) OTM Reclassed Securities'!BE:BE,D17,'3) OTM Reclassed Securities'!BF:BF,G17,'3) OTM Reclassed Securities'!BJ:BJ,1),SUMIFS('2) ITM Reclassed Securities'!BS:BS,'2) ITM Reclassed Securities'!BP:BP,D17,'2) ITM Reclassed Securities'!BQ:BQ,G17,'2) ITM Reclassed Securities'!BU:BU,1)))) -> 135.0269984 | J17: =IF(D17="","",IF(F17=0,0,IF(IF(M17="OUT-OF-THE-MONEY",SUMIFS('3) OTM Reclassed Securities'!BI:BI,'3) OTM Reclassed Securities'!BE:BE,D17,'3) OTM Reclassed Securities'!BF:BF,G17,'3) OTM Reclassed Securities'!BJ:BJ,1),SUMIFS('2) ITM Reclassed Securities'!BT:BT,'2) ITM Reclassed Securities'!BP:BP,D17,'2) ITM Reclassed Securities'!BQ:BQ,G17,'2) ITM Reclassed Securities'!BU:BU,1))=0,SUMIFS(BNYM_NAV_HistCost_RCdate!$AA:$AA,BNYM_NAV_HistCost_RCdate!C:C,G17,BNYM_NAV_HistCost_RCdate!I:I,D17),IF(M17="OUT-OF-THE-MONEY",SUMIFS('3) OTM Reclassed Securities'!BI:BI,'3) OTM Reclassed Securities'!BE:BE,D17,'3) OTM Reclassed Securities'!BF:BF,G17,'3) OTM Reclassed Securities'!BJ:BJ,1),SUMIFS('2) ITM Reclassed Securities'!BT:BT,'2) ITM Reclassed Securities'!BP:BP,D17,'2) ITM Reclassed Securities'!BQ:BQ,G17,'2) ITM Reclassed Securities'!BU:BU,1))))) -> 0 | K17: =IF(OR(F17=""),"",IF(F17=0,0,IF(SUMIFS(BNYM_NAV_HistCost_MonthEnd!W:W,BNYM_NAV_HistCost_MonthEnd!I:I,D17)=0,0,SUMIFS(BNYM_NAV_HistCost_MonthEnd!AG:AG,BNYM_NAV_HistCost_MonthEnd!I:I,D17)/SUMIFS(BNYM_NAV_HistCost_MonthEnd!W:W,BNYM_NAV_HistCost_MonthEnd!I:I,D17)))) -> 0 | L17: =IF(OR(F17=""),"",IF(F17=0,0,ROUND(K17*F17,0))) -> 0 | M17: OUT-OF-THE-MONEY | N17: Corporate Action (Merger), book cost transferred to BRISTOL-MYERS SQUIBB CO, CELGENE CORP delisted on 21 Nov 2019.
B18: 11 | C18: 212401 | D18: 6667733 | E18: PARK24 CO LTD | F18: 0 | G18: 2018-03-19 | H18: 27.12969521 | I18: 31.73825817 | J18: 0 | K18: 0 | L18: 0 | M18: OUT-OF-THE-MONEY | N18: Sold entire holding in Jul-2018
B19: 12 | C19: 212401 | D19: B3CTNK6 | E19: SIGNET JEWELERS LTD | F19: 0 | G19: 2018-03-19 | H19: 39.46 | I19: 101.2680876 | J19: 0 | K19: 0 | L19: 0 | M19: OUT-OF-THE-MONEY | N19: Sold entire holding in May-2018
B20: 13 | C20: 212401 | D20: 6496584 | E20: KOMATSU LTD | F20: 103800 | G20: 2018-06-18 | H20: 29.52066267 | I20: 35.70189776 | J20: 3705856.988 | K20: =IF(OR(F20=""),"",IF(F20=0,0,IF(SUMIFS(BNYM_NAV_HistCost_MonthEnd!W:W,BNYM_NAV_HistCost_MonthEnd!I:I,D20)=0,0,SUMIFS(BNYM_NAV_HistCost_MonthEnd!AG:AG,BNYM_NAV_HistCost_MonthEnd!I:I,D20)/SUMIFS(BNYM_NAV_HistCost_MonthEnd!W:W,BNYM_NAV_HistCost_MonthEnd!I:I,D20)))) -> 0 | L20: =IF(OR(F20=""),"",IF(F20=0,0,ROUND(K20*F20,0))) -> 0 | M20: OUT-OF-THE-MONEY | N20: This stock will be included as a constituent of the BM upon 1Q2019 rebalancing effective from 18-Mar-2019.
B21: 14 | C21: 212401 | D21: B12T3J1 | E21: UNILEVER NV-CVA | F21: 0 | G21: 2018-09-24 | H21: 55.99425619 | I21: 56.728991 | J21: 0 | K21: 0 | L21: 0 | M21: OUT-OF-THE-MONEY | N21: Sold entire holding in Mar-2019
B22: 15 | C22: 212401 | D22: BPF0548 | E22: AMS AG | F22: 0 | G22: 2018-09-24 | H22: 64.91328585 | I22: 116.0193212 | J22: 0 | K22: 0 | L22: 0 | M22: OUT-OF-THE-MONEY | N22: Sold entire holding in Feb-2020
B23: 16 | C23: 212401 | D23: 3091357 | E23: BT GROUP PLC | F23: 625651 | G23: 2018-12-24 | H23: 3.095561791 | I23: 3.982303633 | J23: 2491532.25 | K23: =IF(OR(F23=""),"",IF(F23=0,0,IF(SUMIFS(BNYM_NAV_HistCost_MonthEnd!W:W,BNYM_NAV_HistCost_MonthEnd!I:I,D23)=0,0,SUMIFS(BNYM_NAV_HistCost_MonthEnd!AG:AG,BNYM_NAV_HistCost_MonthEnd!I:I,D23)/SUMIFS(BNYM_NAV_HistCost_MonthEnd!W:W,BNYM_NAV_HistCost_MonthEnd!I:I,D23)))) -> 0 | L23: =IF(OR(F23=""),"",IF(F23=0,0,ROUND(K23*F23,0))) -> 0 | M23: OUT-OF-THE-MONEY | N23: This stock will be included as a constituent of the BM upon 4Q2019 rebalancing effective from 23-Dec-2019.
B24: 17 | C24: 212401 | D24: 6194468 | E24: KOSE CORP | F24: 7500 | G24: 2018-12-24 | H24: 147.6722614 | I24: 216.4600087 | J24: 1623450.065 | K24: =IF(OR(F24=""),"",IF(F24=0,0,IF(SUMIFS(BNYM_NAV_HistCost_MonthEnd!W:W,BNYM_NAV_HistCost_MonthEnd!I:I,D24)=0,0,SUMIFS(BNYM_NAV_HistCost_MonthEnd!AG:AG,BNYM_NAV_HistCost_MonthEnd!I:I,D24)/SUMIFS(BNYM_NAV_HistCost_MonthEnd!W:W,BNYM_NAV_HistCost_MonthEnd!I:I,D24)))) -> 0 | L24: =IF(OR(F24=""),"",IF(F24=0,0,ROUND(K24*F24,0))) -> 0 | M24: OUT-OF-THE-MONEY | N24: This stock will be included as a constituent of the BM upon 2Q2019 rebalancing effective from 24-Jun-2019.
B25: 18 | C25: 212401 | D25: 6895675 | E25: TOKYO ELECTRON | F25: 6700 | G25: 2019-03-18 | H25: 140.9594758 | I25: 202.9324906 | J25: 1359647.687 | K25: =IF(OR(F25=""),"",IF(F25=0,0,IF(SUMIFS(BNYM_NAV_HistCost_MonthEnd!W:W,BNYM_NAV_HistCost_MonthEnd!I:I,D25)=0,0,SUMIFS(BNYM_NAV_HistCost_MonthEnd!AG:AG,BNYM_NAV_HistCost_MonthEnd!I:I,D25)/SUMIFS(BNYM_NAV_HistCost_MonthEnd!W:W,BNYM_NAV_HistCost_MonthEnd!I:I,D25)))) -> 428.2185862 | L25: =IF(OR(F25=""),"",IF(F25=0,0,ROUND(K25*F25,0))) -> 2869065 | M25: OUT-OF-THE-MONEY | N25: This stock will be included as a constituent of the BM upon 2Q2019 rebalancing effective from 24-Jun-2019.
B26: 19 | C26: 212401 | D26: BDZ78H9 | E26: BROADCOM INC | F26: 0 | G26: 2019-06-24 | H26: 279.2 | I26: 300.5530802 | J26: 0 | K26: 0 | L26: 0 | M26: OUT-OF-THE-MONEY | N26: Sold entire holding in Jul-2019
B27: 20 | C27: 212401 | D27: 2126335 | E27: BRISTOL-MYERS SQUIBB CO | F27: 0 | G27: 2019-09-23 | H27: 50.52 | I27: 62.9760735 | J27: 0 | K27: 0 | L27: 0 | M27: OUT-OF-THE-MONEY | N27: Sold entire holding in Dec-2019
B28: 21 | C28: 212401 | D28: 2459020 | E28: INTUIT INC | F28: 0 | G28: 2019-09-23 | H28: 269 | I28: 278.3662946 | J28: 0 | K28: 418.75 | L28: 0 | M28: OUT-OF-THE-MONEY | N28: Sold entire holding in Jan-2020
B29: 22 | C29: 212401 | D29: 2595708 | E29: 3M CO | F29: 20942 | G29: 2019-09-23 | H29: 166.76 | I29: 196.7409512 | J29: 4120149 | K29: =IF(OR(F29=""),"",IF(F29=0,0,IF(SUMIFS(BNYM_NAV_HistCost_MonthEnd!W:W,BNYM_NAV_HistCost_MonthEnd!I:I,D29)=0,0,SUMIFS(BNYM_NAV_HistCost_MonthEnd!AG:AG,BNYM_NAV_HistCost_MonthEnd!I:I,D29)/SUMIFS(BNYM_NAV_HistCost_MonthEnd!W:W,BNYM_NAV_HistCost_MonthEnd!I:I,D29)))) -> 0 | L29: =IF(OR(F29=""),"",IF(F29=0,0,ROUND(K29*F29,0))) -> 0 | M29: OUT-OF-THE-MONEY | N29: This stock will be included as a constituent of the BM upon 4Q2019 rebalancing effective from 23-Dec-2019.
B30: 23 | C30: 212401 | D30: 6185495 | E30: CSL LTD | F30: 0 | G30: 2019-09-23 | H30: 160.3219311 | I30: 162.841926 | J30: 0 | K30: 194.22 | L30: 0 | M30: OUT-OF-THE-MONEY | N30: Sold entire holding in Oct-2019
B31: 24 | C31: 212401 | D31: BKM7ZR0 | E31: BRISTOL-MYERS SQUIBB-CVR | F31: 0 | G31: - | H31: 0 | I31: 0 | J31: 0 | K31: 0 | L31: 0 | M31: OUT-OF-THE-MONEY | N31: Sold entire holding in Dec-2019
B32: 25 | C32: 212401 | D32: 3091357 | E32: BT GROUP PLC | F32: 0 | G32: 2020-03-23 | H32: 1.353351309 | I32: 4.175797154 | J32: 0 | K32: 0 | L32: 0 | M32: OUT-OF-THE-MONEY | N32: Sold entire holding in Jul-2020
B33: 26 | C33: 212401 | D33: B06CMQ9 | E33: GMO PAYMENT GATEWAY INC | F33: 0 | G33: 2020-03-23 | H33: 66.45413317 | I33: 69.83220514 | J33: 0 | K33: 0 | L33: 0 | M33: OUT-OF-THE-MONEY | N33: Sold entire holding in Mar-2020
B34: 27 | C34: 212401 | D34: BH4HKS3 | E34: VODAFONE GROUP PLC | F34: 2464465 | G34: 2020-03-23 | H34: 1.266253313 | I34: 3.005313357 | J34: 7406489.582 | K34: =IF(OR(F34=""),"",IF(F34=0,0,IF(SUMIFS(BNYM_NAV_HistCost_MonthEnd!W:W,BNYM_NAV_HistCost_MonthEnd!I:I,D34)=0,0,SUMIFS(BNYM_NAV_HistCost_MonthEnd!AG:AG,BNYM_NAV_HistCost_MonthEnd!I:I,D34)/SUMIFS(BNYM_NAV_HistCost_MonthEnd!W:W,BNYM_NAV_HistCost_MonthEnd!I:I,D34)))) -> 0 | L34: =IF(OR(F34=""),"",IF(F34=0,0,ROUND(K34*F34,0))) -> 0 | M34: OUT-OF-THE-MONEY | N34: This stock will be included as a constituent of the BM upon 4Q2020 rebalancing effective from 21-Dec-2020.
B35: 28 | C35: 212401 | D35: B92SR70 | E35: ABBVIE INC | F35: 0 | G35: 2020-05-11 | H35: 87.9 | I35: 108.0894048 | J35: 0 | K35: 0 | L35: 0 | M35: OUT-OF-THE-MONEY | N35: Sold entire holding in Jan-2021
B36: 29 | C36: 212401 | D36: 2595708 | E36: 3M CO | F36: 0 | G36: 2020-06-22 | H36: 156.69 | I36: 195.6903211 | J36: 0 | K36: 0 | L36: 0 | M36: OUT-OF-THE-MONEY | N36: Sold entire holding in Jan-2021
B37: 30 | C37: 212401 | D37: BDRXDB4 | E37: BOOKING HOLDINGS INC | F37: 0 | G37: 2020-06-22 | H37: 1633.52 | I37: 2056.962447 | J37: 0 | K37: 0 | L37: 0 | M37: OUT-OF-THE-MONEY | N37: Sold entire holding in Nov-2020
B38: 31 | C38: 212401 | D38: B4R28B3 | E38: FLEETCOR TECHNOLOGIES INC | F38: 0 | G38: 2020-09-21 | H38: 235.44 | I38: 284.1490399 | J38: 0 | K38: 249.52 | L38: 0 | M38: OUT-OF-THE-MONEY | N38: Sold entire holding in Mar-2021
B39: 32 | C39: 212401 | D39: BF09HX3 | E39: TAPESTRY INC | F39: 0 | G39: 2020-09-21 | H39: 16.51 | I39: 30.27833785 | J39: 0 | K39: 0 | L39: 0 | M39: OUT-OF-THE-MONEY | N39: Sold entire holding in Dec-2020
B40: 33 | C40: 212401 | D40: BH4HKS3 | E40: VODAFONE GROUP PLC | F40: 861739 | G40: 2021-03-22 | H40: 1.837872135 | I40: 3.04 | J40: 2620061.229 | K40: =IF(OR(F40=""),"",IF(F40=0,0,IF(SUMIFS(BNYM_NAV_HistCost_MonthEnd!W:W,BNYM_NAV_HistCost_MonthEnd!I:I,D40)=0,0,SUMIFS(BNYM_NAV_HistCost_MonthEnd!AG:AG,BNYM_NAV_HistCost_MonthEnd!I:I,D40)/SUMIFS(BNYM_NAV_HistCost_MonthEnd!W:W,BNYM_NAV_HistCost_MonthEnd!I:I,D40)))) -> 0 | L40: =IF(OR(F40=""),"",IF(F40=0,0,ROUND(K40*F40,0))) -> 0 | M40: OUT-OF-THE-MONEY | N40: This stock will be included as a constituent of the BM upon 3Q2020 rebalancing effective from 21-Sep-2021.
B41: 34 | C41: 212401 | D41: 2989301 | E41: TJX COMPANIES INC | F41: 0 | G41: 2021-06-21 | H41: 64.91 | I41: 67.74464601 | J41: 0 | K41: 0 | L41: 0 | M41: OUT-OF-THE-MONEY | N41: Sold entire holding in Jul-2021 | O41: Row Labels | P41: CustNo | Q41: qStockCode | R41: StockName | S41: MthEndUint | T41: costfc | U41: MarketValueFC | V41: CostPrice | W41: MVPrice | X41: MthEndPrice | Y41: MthEndMV | Z41: MthEndCost | AA41: curUFV
B42: 35 | C42: 212401 | D42: BYP20B9 | E42: BAYCURRENT CONSULTING INC | F42: =IF(OR(D42=""),"",IF(D42=0,0,ROUND(SUMIFS(BNYM_NAV_HistCost_MonthEnd!W:W,BNYM_NAV_HistCost_MonthEnd!I:I,D42),0))) -> 2500 | G42: 2021-12-20 | H42: 388.0241639 | I42: =IF(D42="","",IF(IF(M42="OUT-OF-THE-MONEY",SUMIFS('3) OTM Reclassed Securities'!BH:BH,'3) OTM Reclassed Securities'!BE:BE,D42,'3) OTM Reclassed Securities'!BF:BF,G42,'3) OTM Reclassed Securities'!BJ:BJ,1),SUMIFS('2) ITM Reclassed Securities'!BS:BS,'2) ITM Reclassed Securities'!BP:BP,D42,'2) ITM Reclassed Securities'!BQ:BQ,G42,'2) ITM Reclassed Securities'!BU:BU,1))=0,SUMIFS(BNYM_NAV_HistCost_RCdate!$AA:$AA,BNYM_NAV_HistCost_RCdate!C:C,G42,BNYM_NAV_HistCost_RCdate!I:I,D42)/SUMIFS(BNYM_NAV_HistCost_RCdate!$W:$W,BNYM_NAV_HistCost_RCdate!C:C,G42,BNYM_NAV_HistCost_RCdate!I:I,D42),IF(M42="OUT-OF-THE-MONEY",SUMIFS('3) OTM Reclassed Securities'!BH:BH,'3) OTM Reclassed Securities'!BE:BE,D42,'3) OTM Reclassed Securities'!BF:BF,G42,'3) OTM Reclassed Securities'!BJ:BJ,1),SUMIFS('2) ITM Reclassed Securities'!BS:BS,'2) ITM Reclassed Securities'!BP:BP,D42,'2) ITM Reclassed Securities'!BQ:BQ,G42,'2) ITM Reclassed Securities'!BU:BU,1)))) -> 425.5515986 | J42: =IF(D42="","",IF(F42=0,0,IF(IF(M42="OUT-OF-THE-MONEY",SUMIFS('3) OTM Reclassed Securities'!BI:BI,'3) OTM Reclassed Securities'!BE:BE,D42,'3) OTM Reclassed Securities'!BF:BF,G42,'3) OTM Reclassed Securities'!BJ:BJ,1),SUMIFS('2) ITM Reclassed Securities'!BT:BT,'2) ITM Reclassed Securities'!BP:BP,D42,'2) ITM Reclassed Securities'!BQ:BQ,G42,'2) ITM Reclassed Securities'!BU:BU,1))=0,SUMIFS(BNYM_NAV_HistCost_RCdate!$AA:$AA,BNYM_NAV_HistCost_RCdate!C:C,G42,BNYM_NAV_HistCost_RCdate!I:I,D42),IF(M42="OUT-OF-THE-MONEY",SUMIFS('3) OTM Reclassed Securities'!BI:BI,'3) OTM Reclassed Securities'!BE:BE,D42,'3) OTM Reclassed Securities'!BF:BF,G42,'3) OTM Reclassed Securities'!BJ:BJ,1),SUMIFS('2) ITM Reclassed Securities'!BT:BT,'2) ITM Reclassed Securities'!BP:BP,D42,'2) ITM Reclassed Securities'!BQ:BQ,G42,'2) ITM Reclassed Securities'!BU:BU,1))))) -> 1063878.997 | K42: =IF(OR(F42=""),"",IF(F42=0,0,IF(SUMIFS(BNYM_NAV_HistCost_MonthEnd!W:W,BNYM_NAV_HistCost_MonthEnd!I:I,D42)=0,0,SUMIFS(BNYM_NAV_HistCost_MonthEnd!AG:AG,BNYM_NAV_HistCost_MonthEnd!I:I,D42)/SUMIFS(BNYM_NAV_HistCost_MonthEnd!W:W,BNYM_NAV_HistCost_MonthEnd!I:I,D42)))) -> 333.050324 | L42: =IF(OR(F42=""),"",IF(F42=0,0,ROUND(K42*F42,0))) -> 832626 | M42: OUT-OF-THE-MONEY | N42: Market value is below average investment cost | O42: 2021-12-20 | P42: 212401 | Q42: BYP20B9 | R42: BAYCURRENT CONSULTING INC | S42: 2500 | T42: 3063971.5 | U42: 2793773.98 | V42: 425.5515972 | W42: 388.0241639 | X42: 333.050324 | Y42: 832625.81 | Z42: 1063878.993 | AA42: 2500
B43: 36 | C43: 212401 | D43: 2459020 | E43: INTUIT INC | F43: =IF(OR(D43=""),"",IF(D43=0,0,ROUND(SUMIFS(BNYM_NAV_HistCost_MonthEnd!W:W,BNYM_NAV_HistCost_MonthEnd!I:I,D43),0))) -> 7242 | G43: 2022-03-21 | H43: 466.5 | I43: =IF(D43="","",IF(IF(M43="OUT-OF-THE-MONEY",SUMIFS('3) OTM Reclassed Securities'!BH:BH,'3) OTM Reclassed Securities'!BE:BE,D43,'3) OTM Reclassed Securities'!BF:BF,G43,'3) OTM Reclassed Securities'!BJ:BJ,1),SUMIFS('2) ITM Reclassed Securities'!BS:BS,'2) ITM Reclassed Securities'!BP:BP,D43,'2) ITM Reclassed Securities'!BQ:BQ,G43,'2) ITM Reclassed Securities'!BU:BU,1))=0,SUMIFS(BNYM_NAV_HistCost_RCdate!$AA:$AA,BNYM_NAV_HistCost_RCdate!C:C,G43,BNYM_NAV_HistCost_RCdate!I:I,D43)/SUMIFS(BNYM_NAV_HistCost_RCdate!$W:$W,BNYM_NAV_HistCost_RCdate!C:C,G43,BNYM_NAV_HistCost_RCdate!I:I,D43),IF(M43="OUT-OF-THE-MONEY",SUMIFS('3) OTM Reclassed Securities'!BH:BH,'3) OTM Reclassed Securities'!BE:BE,D43,'3) OTM Reclassed Securities'!BF:BF,G43,'3) OTM Reclassed Securities'!BJ:BJ,1),SUMIFS('2) ITM Reclassed Securities'!BS:BS,'2) ITM Reclassed Securities'!BP:BP,D43,'2) ITM Reclassed Securities'!BQ:BQ,G43,'2) ITM Reclassed Securities'!BU:BU,1)))) -> 541.0976498 | J43: =IF(D43="","",IF(F43=0,0,IF(IF(M43="OUT-OF-THE-MONEY",SUMIFS('3) OTM Reclassed Securities'!BI:BI,'3) OTM Reclassed Securities'!BE:BE,D43,'3) OTM Reclassed Securities'!BF:BF,G43,'3) OTM Reclassed Securities'!BJ:BJ,1),SUMIFS('2) ITM Reclassed Securities'!BT:BT,'2) ITM Reclassed Securities'!BP:BP,D43,'2) ITM Reclassed Securities'!BQ:BQ,G43,'2) ITM Reclassed Securities'!BU:BU,1))=0,SUMIFS(BNYM_NAV_HistCost_RCdate!$AA:$AA,BNYM_NAV_HistCost_RCdate!C:C,G43,BNYM_NAV_HistCost_RCdate!I:I,D43),IF(M43="OUT-OF-THE-MONEY",SUMIFS('3) OTM Reclassed Securities'!BI:BI,'3) OTM Reclassed Securities'!BE:BE,D43,'3) OTM Reclassed Securities'!BF:BF,G43,'3) OTM Reclassed Securities'!BJ:BJ,1),SUMIFS('2) ITM Reclassed Securities'!BT:BT,'2) ITM Reclassed Securities'!BP:BP,D43,'2) ITM Reclassed Securities'!BQ:BQ,G43,'2) ITM Reclassed Securities'!BU:BU,1))))) -> 3918629.18 | K43: =IF(OR(F43=""),"",IF(F43=0,0,IF(SUMIFS(BNYM_NAV_HistCost_MonthEnd!W:W,BNYM_NAV_HistCost_MonthEnd!I:I,D43)=0,0,SUMIFS(BNYM_NAV_HistCost_MonthEnd!AG:AG,BNYM_NAV_HistCost_MonthEnd!I:I,D43)/SUMIFS(BNYM_NAV_HistCost_MonthEnd!W:W,BNYM_NAV_HistCost_MonthEnd!I:I,D43)))) -> 418.75 | L43: =IF(OR(F43=""),"",IF(F43=0,0,ROUND(K43*F43,0))) -> 3032588 | M43: OUT-OF-THE-MONEY | N43: Market value is below average investment cost | O43: 2022-03-21 | P43: 212401 | Q43: 2459020 | R43: INTUIT INC | S43: 7242 | T43: 3922076.37 | U43: 3378393 | V43: 541.5736495 | W43: 466.5 | X43: 418.75 | Y43: 3032587.5 | Z43: 3922076.37 | AA43: 7242
B44: 37 | C44: 212401 | D44: BQ7ZVF1 | E44: EUROAPI SASU | F44: =IF(OR(D44=""),"",IF(D44=0,0,ROUND(SUMIFS(BNYM_NAV_HistCost_MonthEnd!W:W,BNYM_NAV_HistCost_MonthEnd!I:I,D44),0))) -> 0 | G44: 2022-05-10 | H44: 15.28735036 | I44: =IF(D44="","",IF(IF(M44="OUT-OF-THE-MONEY",SUMIFS('3) OTM Reclassed Securities'!BH:BH,'3) OTM Reclassed Securities'!BE:BE,D44,'3) OTM Reclassed Securities'!BF:BF,G44,'3) OTM Reclassed Securities'!BJ:BJ,1),SUMIFS('2) ITM Reclassed Securities'!BS:BS,'2) ITM Reclassed Securities'!BP:BP,D44,'2) ITM Reclassed Securities'!BQ:BQ,G44,'2) ITM Reclassed Securities'!BU:BU,1))=0,SUMIFS(BNYM_NAV_HistCost_RCdate!$AA:$AA,BNYM_NAV_HistCost_RCdate!C:C,G44,BNYM_NAV_HistCost_RCdate!I:I,D44)/SUMIFS(BNYM_NAV_HistCost_RCdate!$W:$W,BNYM_NAV_HistCost_RCdate!C:C,G44,BNYM_NAV_HistCost_RCdate!I:I,D44),IF(M44="OUT-OF-THE-MONEY",SUMIFS('3) OTM Reclassed Securities'!BH:BH,'3) OTM Reclassed Securities'!BE:BE,D44,'3) OTM Reclassed Securities'!BF:BF,G44,'3) OTM Reclassed Securities'!BJ:BJ,1),SUMIFS('2) ITM Reclassed Securities'!BS:BS,'2) ITM Reclassed Securities'!BP:BP,D44,'2) ITM Reclassed Securities'!BQ:BQ,G44,'2) ITM Reclassed Securities'!BU:BU,1)))) -> 12.75800365 | J44: =IF(D44="","",IF(F44=0,0,IF(IF(M44="OUT-OF-THE-MONEY",SUMIFS('3) OTM Reclassed Securities'!BI:BI,'3) OTM Reclassed Securities'!BE:BE,D44,'3) OTM Reclassed Securities'!BF:BF,G44,'3) OTM Reclassed Securities'!BJ:BJ,1),SUMIFS('2) ITM Reclassed Securities'!BT:BT,'2) ITM Reclassed Securities'!BP:BP,D44,'2) ITM Reclassed Securities'!BQ:BQ,G44,'2) ITM Reclassed Securities'!BU:BU,1))=0,SUMIFS(BNYM_NAV_HistCost_RCdate!$AA:$AA,BNYM_NAV_HistCost_RCdate!C:C,G44,BNYM_NAV_HistCost_RCdate!I:I,D44),IF(M44="OUT-OF-THE-MONEY",SUMIFS('3) OTM Reclassed Securities'!BI:BI,'3) OTM Reclassed Securities'!BE:BE,D44,'3) OTM Reclassed Securities'!BF:BF,G44,'3) OTM Reclassed Securities'!BJ:BJ,1),SUMIFS('2) ITM Reclassed Securities'!BT:BT,'2) ITM Reclassed Securities'!BP:BP,D44,'2) ITM Reclassed Securities'!BQ:BQ,G44,'2) ITM Reclassed Securities'!BU:BU,1))))) -> 0 | K44: =IF(OR(F44=""),"",IF(F44=0,0,IF(SUMIFS(BNYM_NAV_HistCost_MonthEnd!W:W,BNYM_NAV_HistCost_MonthEnd!I:I,D44)=0,0,SUMIFS(BNYM_NAV_HistCost_MonthEnd!AG:AG,BNYM_NAV_HistCost_MonthEnd!I:I,D44)/SUMIFS(BNYM_NAV_HistCost_MonthEnd!W:W,BNYM_NAV_HistCost_MonthEnd!I:I,D44)))) -> 0 | L44: =IF(OR(F44=""),"",IF(F44=0,0,ROUND(K44*F44,0))) -> 0 | M44: IN-THE-MONEY | N44: Sold entire holding in May-2022 | O44: 2022-05-10 | P44: 212401 | Q44: BQ7ZVF1 | R44: EUROAPI SASU | S44: (blank) | T44: 32234.66 | U44: 41887.34 | V44: 11.76447445 | W44: 15.28735036 | X44: (blank) | Y44: (blank) | Z44: (blank) | AA44: (blank)
B45: 38 | C45: 212401 | D45: BLDBN85 | E45: ATLAS COPCO AB-B RDS | F45: =IF(OR(D45=""),"",IF(D45=0,0,ROUND(SUMIFS(BNYM_NAV_HistCost_MonthEnd!W:W,BNYM_NAV_HistCost_MonthEnd!I:I,D45),0))) -> 0 | G45: 2022-05-13 | H45: 0.7940052432 | I45: =IF(D45="","",IF(IF(M45="OUT-OF-THE-MONEY",SUMIFS('3) OTM Reclassed Securities'!BH:BH,'3) OTM Reclassed Securities'!BE:BE,D45,'3) OTM Reclassed Securities'!BF:BF,G45,'3) OTM Reclassed Securities'!BJ:BJ,1),SUMIFS('2) ITM Reclassed Securities'!BS:BS,'2) ITM Reclassed Securities'!BP:BP,D45,'2) ITM Reclassed Securities'!BQ:BQ,G45,'2) ITM Reclassed Securities'!BU:BU,1))=0,SUMIFS(BNYM_NAV_HistCost_RCdate!$AA:$AA,BNYM_NAV_HistCost_RCdate!C:C,G45,BNYM_NAV_HistCost_RCdate!I:I,D45)/SUMIFS(BNYM_NAV_HistCost_RCdate!$W:$W,BNYM_NAV_HistCost_RCdate!C:C,G45,BNYM_NAV_HistCost_RCdate!I:I,D45),IF(M45="OUT-OF-THE-MONEY",SUMIFS('3) OTM Reclassed Securities'!BH:BH,'3) OTM Reclassed Securities'!BE:BE,D45,'3) OTM Reclassed Securities'!BF:BF,G45,'3) OTM Reclassed Securities'!BJ:BJ,1),SUMIFS('2) ITM Reclassed Securities'!BS:BS,'2) ITM Reclassed Securities'!BP:BP,D45,'2) ITM Reclassed Securities'!BQ:BQ,G45,'2) ITM Reclassed Securities'!BU:BU,1)))) -> 1.068549353 | J45: =IF(D45="","",IF(F45=0,0,IF(IF(M45="OUT-OF-THE-MONEY",SUMIFS('3) OTM Reclassed Securities'!BI:BI,'3) OTM Reclassed Securities'!BE:BE,D45,'3) OTM Reclassed Securities'!BF:BF,G45,'3) OTM Reclassed Securities'!BJ:BJ,1),SUMIFS('2) ITM Reclassed Securities'!BT:BT,'2) ITM Reclassed Securities'!BP:BP,D45,'2) ITM Reclassed Securities'!BQ:BQ,G45,'2) ITM Reclassed Securities'!BU:BU,1))=0,SUMIFS(BNYM_NAV_HistCost_RCdate!$AA:$AA,BNYM_NAV_HistCost_RCdate!C:C,G45,BNYM_NAV_HistCost_RCdate!I:I,D45),IF(M45="OUT-OF-THE-MONEY",SUMIFS('3) OTM Reclassed Securities'!BI:BI,'3) OTM Reclassed Securities'!BE:BE,D45,'3) OTM Reclassed Securities'!BF:BF,G45,'3) OTM Reclassed Securities'!BJ:BJ,1),SUMIFS('2) ITM Reclassed Securities'!BT:BT,'2) ITM Reclassed Securities'!BP:BP,D45,'2) ITM Reclassed Securities'!BQ:BQ,G45,'2) ITM Reclassed Securities'!BU:BU,1))))) -> 0 | K45: =IF(OR(F45=""),"",IF(F45=0,0,IF(SUMIFS(BNYM_NAV_HistCost_MonthEnd!W:W,BNYM_NAV_HistCost_MonthEnd!I:I,D45)=0,0,SUMIFS(BNYM_NAV_HistCost_MonthEnd!AG:AG,BNYM_NAV_HistCost_MonthEnd!I:I,D45)/SUMIFS(BNYM_NAV_HistCost_MonthEnd!W:W,BNYM_NAV_HistCost_MonthEnd!I:I,D45)))) -> 0 | L45: =IF(OR(F45=""),"",IF(F45=0,0,ROUND(K45*F45,0))) -> 0 | M45: OUT-OF-THE-MONEY | O45: 2022-05-13 | P45: 212401 | Q45: BLDBN85 | R45: ATLAS COPCO AB-B RDS | S45: (blank) | T45: 0 | U45: 129326.78 | V45: 0 | W45: 0.7940052432 | X45: (blank) | Y45: (blank) | Z45: (blank) | AA45: (blank)
B48: Note :
B49: All transactions are in USD unless stated otherwise.
B51: 1. Current Average Investment Cost Per Share should reflect the latest (adjusted, if any) average investment cost excluding impairment.

Sheet 5) Cash Account Interest
C1: =IF(OR(N1="",N1="(blank)"),"",N1) ->  | D1: =IF(OR(O1="",O1="(blank)"),"",O1) ->  | E1: =IF(OR(M1="",M1="(blank)"),"",M1) ->  | F1: =IF(OR(P1="",P1=0,P1="(blank)"),"",P1) ->  | G1: =IF(OR(Q1="",Q1="(blank)"),"",Q1) ->  | H1: =IF(OR(R1="",R1=FundCur,R1="(blank)"),"",R1) ->  | I1: =IF(OR(S1="",S1="(blank)"),"",S1) ->  | J1: =IF(OR(S1="",F1="",S1="(blank)"),"",ROUND(S1*F1,8)) ->  | K1: =IF(OR(S1="",G1="",S1="(blank)"),"",ROUND(J1*G1,2)) -> 
B2: ="INTEREST (NCI) RECEIVED ON CASH ACCOUNT IN "&UPPER(TEXT(EndDate,"MMMm-yyyy")) -> INTEREST (NCI) RECEIVED ON CASH ACCOUNT IN MAY-2022 | G2: .
B4: Mandate : | D4: =FundName -> EPF SHARIAH WORLD NOMURA ISLAMIC
B5: Portfolio Manager : | D5: NOMURA ISLAMIC ASSET MANAGEMENT SDN BHD
F6: Currency Exchange Rate1 | H6: Non-Compliant Income (NCI)
B7: No. | C7: Custody Account No. | D7: Account Name | E7: Payment Date (DD/MM/YY) | F7: Local Currency to USD | G7: USD to MYR | H7: Interest Income on Cash Account
H8: Local Currency3 | I8: Amount | J8: USD | K8: RM
B9: 1 | C9: 212401 | D9: EPF-SHWORLD-USD | E9: 2017-04-27 | G9: 4.3475 | J9: 12824.48 | K9: 55754.4268
B10: 2 | C10: 212401 | D10: EPF-SHWORLD-USD | E10: 2017-04-28 | G10: 4.34 | J10: 4638.86 | K10: 20132.6524
B11: 3 | C11: 212401 | D11: EPF-SHWORLD-USD | E11: 2017-05-31 | G11: 4.28 | J11: 4636.03 | K11: 19842.2084
B12: 4 | C12: 212401 | D12: EPF-SHWORLD-USD | E12: 2017-06-30 | G12: 4.294 | J12: 6518.86 | K12: 27991.98484
B13: 5 | C13: 212401 | D13: EPF-SHWORLD-USD | E13: 2017-07-31 | G13: 4.279 | J13: 8435.89 | K13: 36097.17331
B14: 6 | C14: 212401 | D14: EPF-SHWORLD-USD | E14: 2017-08-11 | G14: 4.295 | J14: 2.12 | K14: 9.1054
B15: 7 | C15: 212401 | D15: EPF-SHWORLD-USD | E15: 2017-08-31 | G15: 4.2705 | J15: 10276.56 | K15: 43886.04948
B16: 8 | C16: 212401 | D16: EPF-SHWORLD-USD | E16: 2017-09-29 | G16: 4.222 | J16: 9994.56 | K16: 42197.03232
B17: 9 | C17: 212401 | D17: EPF-SHWORLD-USD | E17: 2017-10-31 | G17: 4.231 | J17: 9729.18 | K17: 41164.16058
B18: 10 | C18: 212401 | D18: EPF-SHWORLD-USD | E18: 2017-11-30 | G18: 4.0875 | J18: 8288.51 | K18: 33879.28463
B19: 11 | C19: 212401 | D19: EPF-SHWORLD-USD | E19: 2017-12-29 | G19: 4.0475 | J19: 8366.78 | K19: 33864.54205
B20: 12 | C20: 212401 | D20: EPF-SHWORLD-USD | E20: 2018-01-31 | G20: 3.8985 | J20: 9938.37 | K20: 38744.73544
B21: 13 | C21: 212401 | D21: EPF-SHWORLD-USD | E21: 2018-02-28 | G21: 3.9215 | J21: 9398.51 | K21: 36856.25697
B22: 14 | C22: 212401 | D22: EPF-SHWORLD-USD | E22: 2018-03-30 | G22: 3.863 | J22: 8807.01 | K22: 34021.47963
B23: 15 | C23: 212401 | D23: EPF-SHWORLD-USD | E23: 2018-04-03 | G23: 3.864 | J23: 427.21 | K23: 1650.73944
B24: 16 | C24: 212401 | D24: EPF-SHWORLD-USD | E24: 2018-04-30 | G24: 3.9205 | J24: 10706.46 | K24: 41974.67643
B25: 17 | C25: 212401 | D25: EPF-SHWORLD-USD | E25: 2018-05-31 | G25: 3.9785 | J25: 10713.01 | K25: 42621.71029
B26: 18 | C26: 212401 | D26: EPF-SHWORLD-USD | E26: 2018-06-29 | G26: 4.0375 | J26: 7162.71 | K26: 28919.44162
B27: 19 | C27: 212401 | D27: EPF-SHWORLD-USD | E27: 2018-07-03 | G27: 4.0475 | J27: 886.19 | K27: 3586.854025
B28: 20 | C28: 212401 | D28: EPF-SHWORLD-USD | E28: 2018-07-31 | G28: 4.065 | J28: 6657.54 | K28: 27062.9001
B29: 21 | C29: 212401 | D29: EPF-SHWORLD-USD | E29: 2018-08-31 | G29: 4.1105 | J29: 9859.32 | K29: 40526.73486
B30: 22 | C30: 212401 | D30: EPF-SHWORLD-USD | E30: 2018-09-28 | G30: 4.1365 | J30: 8650.11 | K30: 35781.18001
B31: 23 | C31: 212401 | D31: EPF-SHWORLD-GBP | E31: 2018-09-28 | F31: 1.304049953 | G31: 4.1365 | H31: GBP | I31: 0.18 | J31: 0.2347289915 | K31: 0.9709564733
B32: 24 | C32: 212401 | D32: EPF-SHWORLD-USD | E32: 2018-10-31 | G32: 4.184 | J32: 4472.92 | K32: 18714.69728
B33: 25 | C33: 212401 | D33: EPF-SHWORLD-USD | E33: 2018-11-30 | G33: 4.188 | J33: 6863.68 | K33: 28745.09184
B34: 26 | C34: 212401 | D34: EPF-SHWORLD-GBP | E34: 2018-11-30 | F34: 1.275899972 | G34: 4.188 | H34: GBP | I34: 0.58 | J34: 0.7400219837 | K34: 3.099212068
B35: 27 | C35: 212401 | D35: EPF-SHWORLD-USD | E35: 2018-12-31 | G35: 4.136 | J35: 6789.5 | K35: 28081.372
B36: 28 | C36: 212401 | D36: EPF-SHWORLD-USD | E36: 2019-01-31 | G36: 4.0905 | J36: 2883.18 | K36: 11793.64779
B37: 29 | C37: 212401 | D37: EPF-SHWORLD-GBP | E37: 2019-02-28 | F37: 1.330099967 | G37: 4.0685 | H37: GBP | I37: 0.37 | J37: 0.4921369877 | K37: 2.002259334
B38: 30 | C38: 212401 | D38: EPF-SHWORLD-USD | E38: 2019-02-28 | G38: 4.0685 | J38: 1810.72 | K38: 7366.91432
B39: 31 | C39: 212401 | D39: EPF-SHWORLD-USD | E39: 2019-03-29 | G39: 4.085 | J39: 1876.84 | K39: 7666.8914
B40: 32 | C40: 212401 | D40: EPF-SHWORLD-USD | E40: 2019-04-30 | G40: 4.1365 | J40: 4206.62 | K40: 17400.68363
B41: 33 | C41: 212401 | D41: EPF-SHWORLD-USD | E41: 2019-05-31 | G41: 4.1905 | J41: 3016.59 | K41: 12641.0204
B42: 34 | C42: 212401 | D42: EPF-SHWORLD-USD | E42: 2019-06-28 | G42: 4.1335 | J42: 13803.08 | K42: 57055.03118
B43: 35 | C43: 212401 | D43: EPF-SHWORLD-USD | E43: 2019-07-31 | G43: 4.1305 | J43: 3254.71 | K43: 13443.57965
B44: 36 | C44: 212401 | D44: EPF-SHWORLD-USD | E44: 2019-08-30 | G44: 4.215 | J44: 17168.97 | K44: 72367.20855
B45: 37 | C45: 212401 | D45: EPF-SHWORLD-AUD | E45: 2019-08-30 | F45: 0.6737499662 | G45: 4.215 | H45: AUD | I45: 3.42 | J45: 2.304224884 | K45: 9.712307888
B46: 38 | C46: 212401 | D46: EPF-SHWORLD-GBP | E46: 2019-09-30 | F46: 1.232299967 | G46: 4.19 | H46: GBP | I46: 11.28 | J46: 13.90034363 | K46: 58.24243981
B47: 39 | C47: 212401 | D47: EPF-SHWORLD-USD | E47: 2019-09-30 | G47: 4.19 | J47: 7000.94 | K47: 29333.9386
B48: 40 | C48: 212401 | D48: EPF-SHWORLD-AUD | E48: 2019-10-31 | F48: 0.6889499679 | G48: 4.1735 | H48: AUD | I48: 4.96 | J48: 3.417191841 | K48: 14.26165015
B49: 41 | C49: 212401 | D49: EPF-SHWORLD-USD | E49: 2019-10-31 | G49: 4.1735 | J49: 2609.76 | K49: 10891.83336
B50: 42 | C50: 212401 | D50: EPF-SHWORLD-USD | E50: 2019-10-31 | G50: 4.1735 | J50: 0.65 | K50: 2.712775
B51: 43 | C51: 212401 | D51: EPF-SHWORLD-USD | E51: 2019-11-29 | G51: 4.176 | J51: 1985.98 | K51: 8293.45248
B52: 44 | C52: 212401 | D52: EPF-SHWORLD-GBP | E52: 2019-11-29 | F52: 1.293499967 | G52: 4.176 | H52: GBP | I52: 24.17 | J52: 31.26389421 | K52: 130.5580222
B53: 45 | C53: 212401 | D53: EPF-SHWORLD-USD | E53: 2019-12-31 | G53: 4.093 | J53: 4866 | K53: 19916.538
B54: 46 | C54: 212401 | D54: EPF-SHWORLD-USD | E54: 2020-01-31 | G54: 4.0935 | J54: 2030.86 | K54: 8313.32541
B55: 47 | C55: 212401 | D55: EPF-SHWORLD-USD | E55: 2020-02-28 | G55: 4.217 | J55: 944.06 | K55: 3981.10102
B56: 48 | C56: 212401 | D56: EPF-SHWORLD-USD | E56: 2020-03-31 | G56: 4.313 | J56: 411.63 | K56: 1775.36019
B57: 49 | C57: 212401 | D57: EPF-SHWORLD-USD | E57: 2020-04-30 | G57: 4.305 | J57: 9.4 | K57: 40.467
B58: 50 | C58: 212401 | D58: EPF-SHWORLD-USD | E58: 2020-05-29 | G58: 4.3455 | J58: 82.87 | K58: 360.111585
B59: 51 | C59: 212401 | D59: EPF-SHWORLD-USD | E59: 2020-06-30 | G59: 4.2825 | J59: 33.69 | K59: 144.277425
B60: 52 | C60: 212401 | D60: EPF-SHWORLD-USD | E60: 2020-07-09 | G60: 4.2625 | J60: 10.17 | K60: 43.349625
B61: 53 | C61: 212401 | D61: EPF-SHWORLD-USD | E61: 2020-07-31 | G61: 4.24 | J61: 61.81 | K61: 262.0744
B62: 54 | C62: 212401 | D62: EPF-SHWORLD-USD | E62: 2020-08-31 | G62: 4.1655 | J62: 58.69 | K62: 244.473195
B63: 55 | C63: 212401 | D63: EPF-SHWORLD-AUD | E63: 2020-09-30 | F63: 0.7167499672 | G63: 4.1555 | H63: AUD | I63: 0.19 | J63: 0.1361824938 | K63: 0.5659063529
B64: 56 | C64: 212401 | D64: EPF-SHWORLD-GBP | E64: 2020-09-30 | F64: 1.292799969 | G64: 4.1555 | H64: GBP | I64: 0.03 | J64: 0.03878399907 | K64: 0.1611669081
B65: 57 | C65: 212401 | D65: EPF-SHWORLD-USD | E65: 2020-09-30 | G65: 4.1555 | J65: 4.3 | K65: 17.86865
B66: 58 | C66: 212401 | D66: EPF-SHWORLD-USD | E66: 2020-10-29 | G66: 4.1545 | J66: -4.16 | K66: -17.28272
B67: 59 | C67: 212401 | D67: EPF-SHWORLD-AUD | E67: 2020-10-30 | F67: 0.7022499674 | G67: 4.155 | H67: AUD | I67: 0.63 | J67: 0.4424174795 | K67: 1.838244627
B68: 60 | C68: 212401 | D68: EPF-SHWORLD-AUD | E68: 2020-11-30 | F68: 0.7368499709 | G68: 4.074 | H68: AUD | I68: 0.3 | J68: 0.2210549913 | K68: 0.9005780344
B69: 61 | C69: 212401 | D69: EPF-SHWORLD-AUD | E69: 2021-01-29 | F69: 0.7672499717 | G69: 4.0425 | H69: AUD | I69: 1.35 | J69: 1.035787462 | K69: 4.187170814
B70: 62 | C70: 212401 | D70: EPF-SHWORLD-GBP | E70: 2021-01-29 | F70: 1.373199965 | G70: 4.0425 | H70: GBP | I70: 0.01 | J70: 0.01373199965 | K70: 0.05551160858
B71: 63 | C71: 212401 | D71: EPF-SHWORLD-AUD | E71: 2021-02-26 | F71: 0.7741999477 | G71: 4.0475 | H71: AUD | I71: 12.1 | J71: 9.367819367 | K71: 37.91624889
B72: 64 | C72: 212401 | D72: EPF-SHWORLD-AUD | E72: 2021-04-30 | F72: 0.7724499723 | G72: 4.0964 | H72: AUD | I72: 1.67 | J72: 1.289991454 | K72: 5.284320991
B73: 65 | C73: 212401 | D73: EPF-SHWORLD-AUD | E73: 2021-05-31 | F73: 0.7740499686 | G73: 4.1245 | H73: AUD | I73: 3.4 | J73: 2.631769893 | K73: 10.85473492
B74: 66 | C74: 212401 | D74: EPF-SHWORLD-GBP | E74: 2021-07-30 | F74: 1.390349953 | G74: 4.22 | H74: GBP | I74: 0.15 | J74: 0.208552493 | K74: 0.8800915206 | M74: Row Labels | N74: CustNo | O74: AccName | P74: ExRateSCUSD | Q74: ExRateUSDMYR | R74: qCurrencyCode | S74: Amount
B75: 67 | C75: 212401 | D75: EPF-SHWORLD-AUD | E75: 2021-09-30 | F75: 0.7223499674 | G75: 4.1865 | H75: AUD | I75: 3.62 | J75: 2.61490688 | K75: 10.95 | M75: 2021-09-30 | N75: 212401 | O75: EPF-SHWORLD-AUD | P75: 0.7223499674 | Q75: 4.1865 | R75: AUD | S75: 3.62
B76: 68 | C76: 212401 | D76: EPF-SHWORLD-AUD | E76: 2021-10-29 | F76: 0.7510999446 | G76: 4.1425 | H76: AUD | I76: 1.17 | J76: 0.87878694 | K76: 3.64 | M76: 2021-10-29 | N76: 212401 | O76: EPF-SHWORLD-AUD | P76: 0.7510999446 | Q76: 4.1425 | R76: AUD | S76: 1.17
B77: 69 | C77: 212401 | D77: EPF-SHWORLD-GBP | E77: 2021-10-29 | F77: 1.370749945 | G77: 4.1425 | H77: GBP | I77: 0.3 | J77: 0.41122498 | K77: 1.7 | M77: 2021-10-29 | N77: 212401 | O77: EPF-SHWORLD-GBP | P77: 1.370749945 | Q77: 4.1425 | R77: GBP | S77: 0.3
B78: 70 | C78: 212401 | D78: EPF-SHWORLD-AUD | E78: 2021-11-30 | F78: 0.7090499678 | G78: 4.2115 | H78: AUD | I78: 0.62 | J78: 0.43961098 | K78: 1.85 | M78: 2021-11-30 | N78: 212401 | O78: EPF-SHWORLD-AUD | P78: 0.7090499678 | Q78: 4.2115 | R78: AUD | S78: 0.62
B79: 71 | C79: 212401 | D79: EPF-SHWORLD-GBP | E79: 2021-11-30 | F79: 1.322999963 | G79: 4.2115 | H79: GBP | I79: 0.04 | J79: 0.05292 | K79: 0.22 | M79: 2021-11-30 | N79: 212401 | O79: EPF-SHWORLD-GBP | P79: 1.322999963 | Q79: 4.2115 | R79: GBP | S79: 0.04
B80: 72 | C80: 212401 | D80: EPF-SHWORLD-GBP | E80: 2021-12-31 | F80: 1.354449948 | G80: 4.166 | H80: GBP | I80: 0.11 | J80: 0.14898949 | K80: 0.62 | M80: 2021-12-31 | N80: 212401 | O80: EPF-SHWORLD-GBP | P80: 1.354449948 | Q80: 4.166 | R80: GBP | S80: 0.11
B81: 73 | C81: 212401 | D81: EPF-SHWORLD-GBP | E81: 2022-01-31 | F81: 1.341649953 | G81: 4.1855 | H81: GBP | I81: 0.89 | J81: 1.19406846 | K81: 5 | M81: 2022-01-31 | N81: 212401 | O81: EPF-SHWORLD-GBP | P81: 1.341649953 | Q81: 4.1855 | R81: GBP | S81: 0.89
B82: 74 | C82: 212401 | D82: EPF-SHWORLD-AUD | E82: 2022-02-28 | F82: 0.7256499681 | G82: 4.1985 | H82: AUD | I82: 1.63 | J82: 1.18280945 | K82: 4.97 | M82: 2022-02-28 | N82: 212401 | O82: EPF-SHWORLD-AUD | P82: 0.7256499681 | Q82: 4.1985 | R82: AUD | S82: 1.63
B83: 75 | C83: 212401 | D83: EPF-SHWORLD-AUD | E83: 2022-04-29 | F83: 0.7106499681 | G83: 4.35 | H83: AUD | I83: 3.04 | J83: 2.1603759 | K83: 9.4 | M83: 2022-04-29 | N83: 212401 | O83: EPF-SHWORLD-AUD | P83: 0.7106499681 | Q83: 4.35 | R83: AUD | S83: 3.04
I84: Total Interest Income | J84: 253248.5523 | K84: 1045764.909
C86: Cash Sweep Service Fees (If applicable) | J86: Cash Sweep Fees2
J87: USD | K87: RM
B88: 1 | C88: 212401 | D88: EPF-SHWORLD-USD (Jan 2018) | E88: 2018-04-30 | G88: 3.9205 | J88: 350 | K88: 1372.175
B89: 2 | C89: 212401 | D89: EPF-SHWORLD-USD (Feb 2018) | E89: 2018-04-30 | G89: 3.9205 | J89: 500 | K89: 1960.25
B90: 3 | C90: 212401 | D90: EPF-SHWORLD-USD (Mar 2018) | E90: 2018-04-30 | G90: 3.9205 | J90: 500 | K90: 1960.25
B91: 4 | C91: 212401 | D91: EPF-SHWORLD-USD (Apr 2018) | E91: 2018-05-29 | G91: 3.9835 | J91: 500 | K91: 1991.75
B92: 5 | C92: 212401 | D92: EPF-SHWORLD-USD (May 2018) | E92: 2018-06-28 | G92: 4.0445 | J92: 500 | K92: 2022.25
B93: 6 | C93: 212401 | D93: EPF-SHWORLD-USD (Jun 2018) | E93: 2018-07-30 | G93: 4.0645 | J93: 500 | K93: 2032.25
B94: 7 | C94: 212401 | D94: EPF-SHWORLD-USD (Jul 2018) | E94: 2018-08-28 | G94: 4.0955 | J94: 500 | K94: 2047.75
B95: 8 | C95: 212401 | D95: EPF-SHWORLD-USD (Aug 2018) | E95: 2018-09-28 | G95: 4.1365 | J95: 500 | K95: 2068.25
B96: 9 | C96: 212401 | D96: EPF-SHWORLD-USD (Sep 2018) | E96: 2018-10-29 | G96: 4.18 | J96: 500 | K96: 2090
B97: 10 | C97: 212401 | D97: EPF-SHWORLD-USD (Oct 2018) | E97: 2018-11-28 | G97: 4.1975 | J97: 500 | K97: 2098.75
B98: 11 | C98: 212401 | D98: EPF-SHWORLD-USD (Nov 2018) | E98: 2018-12-28 | G98: 4.1575 | J98: 500 | K98: 2078.75
B99: 12 | C99: 212401 | D99: EPF-SHWORLD-USD (Dec 2018) | E99: 2019-01-28 | G99: 4.1105 | J99: 166.67 | K99: 685.097035
B100: 13 | C100: 212401 | D100: EPF-SHWORLD-USD (Jan 2019) | E100: 2019-03-28 | G100: 4.079 | J100: 833.33 | K100: 3399.15307
B101: 14 | C101: 212401 | D101: EPF-SHWORLD-USD (Feb 2019) | E101: 2019-03-28 | G101: 4.079 | J101: 500 | K101: 2039.5
B102: 15 | C102: 212401 | D102: EPF-SHWORLD-USD (Mar 2019) | E102: 2019-04-29 | G102: 4.133 | J102: 500 | K102: 2066.5
B103: 16 | C103: 212401 | D103: EPF-SHWORLD-USD (Apr 2019) | E103: 2019-05-28 | G103: 4.187 | J103: 500 | K103: 2093.5
B104: 17 | C104: 212401 | D104: EPF-SHWORLD-USD (May 2019) | E104: 2019-06-28 | G104: 4.1335 | J104: 500 | K104: 2066.75
B105: 18 | C105: 212401 | D105: EPF-SHWORLD-USD (Jun 2019) | E105: 2019-07-29 | G105: 4.126 | J105: 500 | K105: 2063
B106: 19 | C106: 212401 | D106: EPF-SHWORLD-USD (Jul 2019) | E106: 2019-08-28 | G106: 4.213 | J106: 500 | K106: 2106.5
B107: 20 | C107: 212401 | D107: EPF-SHWORLD-USD (Aug 2019) | E107: 2019-09-30 | G107: 4.19 | J107: 500 | K107: 2095
B108: 21 | C108: 212401 | D108: EPF-SHWORLD-USD (Sep 2019) | E108: 2019-10-28 | G108: 4.186 | J108: 500 | K108: 2093
B109: 22 | C109: 212401 | D109: EPF-SHWORLD-USD (Oct 2019) | E109: 2019-11-29 | G109: 4.176 | J109: 500 | K109: 2088
B110: 23 | C110: 212401 | D110: EPF-SHWORLD-USD (Nov 2019) | E110: 2019-12-30 | G110: 4.11 | J110: 500 | K110: 2055
B111: 24 | C111: 212401 | D111: EPF-SHWORLD-USD (Dec 2019) | E111: 2020-01-28 | G111: 4.084 | J111: 500 | K111: 2042
B112: 25 | C112: 212401 | D112: EPF-SHWORLD-USD (Jan 2020) | E112: 2020-02-28 | G112: 4.217 | J112: 500 | K112: 2108.5
B113: 26 | C113: 212401 | D113: EPF-SHWORLD-USD (Feb 2020) | E113: 2020-03-30 | G113: 4.335 | J113: 500 | K113: 2167.5
B114: 27 | C114: 212401 | D114: EPF-SHWORLD-USD (Mar 2020) | E114: 2020-04-28 | G114: 4.367 | J114: 500 | K114: 2183.5
B115: 28 | C115: 212401 | D115: EPF-SHWORLD-USD (Apr 2020) | E115: 2020-05-28 | G115: 4.357 | J115: 500 | K115: 2178.5
B116: Total NCI | J116: 239396.392 | K116: 988502.0837
B119: Note :
B121: 1. Exchange rate is based on the rate on the payment date.
B122: 2. Cash sweep service fees will be deducted from total interest income on cash account.
B123: 3. Local currency type as per the interest income received to be filled by EFM. (e.g GBP, CAD, AUD )

Sheet BNYM_NAV_HistCost_RCdate
A1: EPF SHAR W NOM (MYR HC) Distribution
A7: Account Number | C7: Position Date | E7: Account Number | G7: Account Name | I7: Security SEDOL | K7: Security ISIN | M7: Stock Ticker | O7: Security Description (Long 1) | Q7: Security Description (Long 2) | S7: Asset Group | U7: Trading Currency | W7: Shares/Par | Y7: Amortized Cost | AA7: Amortized Cost (Base) | AC7: Price (Price File) | AE7: Traded Market Value | AG7: Traded Market Value (Base) | AI7: Accrued Income Net | AK7: Accrued Income Net (Base) | AM7: Traded MV and Accrued Incm | AO7: Traded MV and Accrued Incm (Base)
A9: 000000000212401 | C9: 2015-06-22 | E9: 000000000212401 | G9: EPF SHARIAH WD NOM USD | I9: B92SR70 | K9: US00287Y1091 | M9: ABBV UN | O9: ABBVIE INC | Q9: COMMON STOCK PAR USD 0.01 | S9: S | U9: USD | W9: 113571 | Y9: 7369258.37 | AA9: 7369258.37 | AC9: 70.12 | AE9: 7963598.52 | AG9: 7963598.52 | AI9: 0 | AK9: 0 | AM9: 7963598.52 | AO9: 7963598.52
A10: 000000000212401 | C10: 2015-06-22 | E10: 000000000212401 | G10: EPF SHARIAH WD NOM USD | I10: 2795393 | K10: US03073E1055 | M10: ABC UN | O10: AMERISOURCEBERGEN CORP | Q10: COMMON STOCK PAR USD 0.01 | S10: S | U10: USD | W10: 33935 | Y10: 3657058.41 | AA10: 3657058.41 | AC10: 111.79 | AE10: 3793593.65 | AG10: 3793593.65 | AI10: 0 | AK10: 0 | AM10: 3793593.65 | AO10: 3793593.65
A11: 000000000212401 | C11: 2015-06-22 | E11: 000000000212401 | G11: EPF SHARIAH WD NOM USD | I11: 2043962 | K11: US0374111054 | M11: APA UN | O11: APACHE CORP | Q11: COMMON STOCK PAR USD 0.625 | S11: S | U11: USD | W11: 41553 | Y11: 3731412.62 | AA11: 3731412.62 | AC11: 57.53 | AE11: 2390544.09 | AG11: 2390544.09 | AI11: 0 | AK11: 0 | AM11: 2390544.09 | AO11: 2390544.09
A12: 000000000212401 | C12: 2015-06-22 | E12: 000000000212401 | G12: EPF SHARIAH WD NOM USD | I12: 2046251 | K12: US0378331005 | M12: AAPL UW | O12: APPLE INC | Q12: COMMON STOCK PAR USD 0.00001 | S12: S | U12: USD | W12: 128600 | Y12: 15474793.23 | AA12: 15474793.23 | AC12: 127.61 | AE12: 16410646 | AG12: 16410646 | AI12: 0 | AK12: 0 | AM12: 16410646 | AO12: 16410646
A13: 000000000212401 | C13: 2015-06-22 | E13: 000000000212401 | G13: EPF SHARIAH WD NOM USD | I13: 2455965 | K13: US09062X1037 | M13: BIIB UW | O13: BIOGEN INC | Q13: COMMON STOCK PAR USD 0.0005 | S13: S | U13: USD | W13: 6360 | Y13: 2653947.23 | AA13: 2653947.23 | AC13: 417.57 | AE13: 2655745.2 | AG13: 2655745.2 | AI13: 0 | AK13: 0 | AM13: 2655745.2 | AO13: 2655745.2
A14: 000000000212401 | C14: 2015-06-22 | E14: 000000000212401 | G14: EPF SHARIAH WD NOM USD | I14: 0922320 | K14: GB0009223206 | M14: SN/ LN | O14: SMITH & NEPHEW PLC | Q14: COMMON STOCK PAR USD 0.2 | S14: S | U14: GBP | W14: 212973 | Y14: 2160673.45 | AA14: 3469279.84 | AC14: 10.87 | AE14: 2315016.51 | AG14: 3661894.13 | AI14: 0 | AK14: 0 | AM14: 2315016.51 | AO14: 3661894.13
A15: 000000000212401 | C15: 2015-06-22 | E15: 000000000212401 | G15: EPF SHARIAH WD NOM USD | I15: 0989529 | K15: GB0009895292 | M15: AZN LN | O15: ASTRAZENECA PLC | Q15: COMMON STOCK PAR USD 0.25 | S15: S | U15: GBP | W15: 100164 | Y15: 4247730.73 | AA15: 6949352.13 | AC15: 42.42 | AE15: 4248956.88 | AG15: 6721001.85 | AI15: 0 | AK15: 0 | AM15: 4248956.88 | AO15: 6721001.85
A16: 000000000212401 | C16: 2015-06-22 | E16: 000000000212401 | G16: EPF SHARIAH WD NOM USD | I16: 2577609 | K16: US1266501006 | M16: CVS UN | O16: CVS HEALTH CORP | Q16: COMMON STOCK PAR USD 0.01 | S16: S | U16: USD | W16: 64979 | Y16: 6202129.68 | AA16: 6202129.68 | AC16: 106.14 | AE16: 6896871.06 | AG16: 6896871.06 | AI16: 0 | AK16: 0 | AM16: 6896871.06 | AO16: 6896871.06
A17: 000000000212401 | C17: 2015-06-22 | E17: 000000000212401 | G17: EPF SHARIAH WD NOM USD | I17: 2685717 | K17: US20825C1045 | M17: COP UN | O17: CONOCOPHILLIPS | Q17: COMMON STOCK PAR USD 0.01 | S17: S | U17: USD | W17: 96491 | Y17: 7433717.24 | AA17: 7433717.24 | AC17: 62.58 | AE17: 6038406.78 | AG17: 6038406.78 | AI17: 0 | AK17: 0 | AM17: 6038406.78 | AO17: 6038406.78
A18: 000000000212401 | C18: 2015-06-22 | E18: 000000000212401 | G18: EPF SHARIAH WD NOM USD | I18: 2171573 | K18: CA1363851017 | M18: CNQ CT | O18: CANADIAN NATURAL RESOURCES | Q18: COMMON STOCK | S18: S | U18: CAD | W18: 76379 | Y18: 3440373.58 | AA18: 3167946.11 | AC18: 35.04 | AE18: 2676320.16 | AG18: 2179236.35 | AI18: 13175.38 | AK18: 10728.26 | AM18: 2693887.33 | AO18: 2193540.7
A19: 000000000212401 | C19: 2015-06-22 | E19: 000000000212401 | G19: EPF SHARIAH WD NOM USD | I19: 2272476 | K19: US2567461080 | M19: DLTR UW | O19: DOLLAR TREE INC | Q19: COMMON STOCK PAR USD 0.01 | S19: S | U19: USD | W19: 56823 | Y19: 4166447.88 | AA19: 4166447.88 | AC19: 80.64 | AE19: 4582206.72 | AG19: 4582206.72 | AI19: 0 | AK19: 0 | AM19: 4582206.72 | AO19: 4582206.72
A20: 000000000212401 | C20: 2015-06-22 | E20: 000000000212401 | G20: EPF SHARIAH WD NOM USD | I20: 2018175 | K20: US2635341090 | M20: DD UN | O20: DU PONT (E.I.) DE NEMOURS | Q20: COMMON STOCK PAR USD 0.3 | S20: S | U20: USD | W20: 70167 | Y20: 5136160.86 | AA20: 5136160.86 | AC20: 69.99 | AE20: 4910988.33 | AG20: 4910988.33 | AI20: 0 | AK20: 0 | AM20: 4910988.33 | AO20: 4910988.33
A21: 000000000212401 | C21: 2015-06-22 | E21: 000000000212401 | G21: EPF SHARIAH WD NOM USD | I21: 2318024 | K21: US26875P1012 | M21: EOG UN | O21: EOG RESOURCES INC | Q21: COMMON STOCK PAR USD 0.01 | S21: S | U21: USD | W21: 57942 | Y21: 5548127.65 | AA21: 5548127.65 | AC21: 88.08 | AE21: 5103531.36 | AG21: 5103531.36 | AI21: 0 | AK21: 0 | AM21: 5103531.36 | AO21: 5103531.36
A22: 000000000212401 | C22: 2015-06-22 | E22: 000000000212401 | G22: EPF SHARIAH WD NOM USD | I22: 2670519 | K22: US30161N1019 | M22: EXC UN | O22: EXELON CORP | Q22: COMMON STOCK | S22: S | U22: USD | W22: 118856 | Y22: 4039083.49 | AA22: 4039083.49 | AC22: 33.4 | AE22: 3969790.4 | AG22: 3969790.4 | AI22: 0 | AK22: 0 | AM22: 3969790.4 | AO22: 3969790.4
A23: 000000000212401 | C23: 2015-06-22 | E23: 000000000212401 | G23: EPF SHARIAH WD NOM USD | I23: B7QQYV9 | K23: US30219G1085 | M23: ESRX UW | O23: EXPRESS SCRIPTS HOLDING CO | Q23: COMMON STOCK PAR USD 0.01 | S23: S | U23: USD | W23: 61600 | Y23: 5098447.23 | AA23: 5098447.23 | AC23: 91.05 | AE23: 5608680 | AG23: 5608680 | AI23: 0 | AK23: 0 | AM23: 5608680 | AO23: 5608680
A24: 000000000212401 | C24: 2015-06-22 | E24: 000000000212401 | G24: EPF SHARIAH WD NOM USD | I24: 2326618 | K24: US30231G1022 | M24: XOM UN | O24: EXXON MOBIL CORP | Q24: COMMON STOCK | S24: S | U24: USD | W24: 131376 | Y24: 12658529.5 | AA24: 12658529.5 | AC24: 85.17 | AE24: 11189293.92 | AG24: 11189293.92 | AI24: 0 | AK24: 0 | AM24: 11189293.92 | AO24: 11189293.92
A25: 000000000212401 | C25: 2015-06-22 | E25: 000000000212401 | G25: EPF SHARIAH WD NOM USD | I25: B7TL820 | K25: US30303M1027 | M25: FB UW | O25: FACEBOOK INC-A | Q25: COMMON STOCK PAR USD 0.000006 | S25: S | U25: USD | W25: 77260 | Y25: 6386483.89 | AA25: 6386483.89 | AC25: 84.74 | AE25: 6547012.4 | AG25: 6547012.4 | AI25: 0 | AK25: 0 | AM25: 6547012.4 | AO25: 6547012.4
A26: 000000000212401 | C26: 2015-06-22 | E26: 000000000212401 | G26: EPF SHARIAH WD NOM USD | I26: 2696838 | K26: US3434121022 | M26: FLR UN | O26: FLUOR CORP | Q26: COMMON STOCK PAR USD 0.01 | S26: S | U26: USD | W26: 44886 | Y26: 3404286.16 | AA26: 3404286.16 | AC26: 55.96 | AE26: 2511820.56 | AG26: 2511820.56 | AI26: 6598.24 | AK26: 6598.24 | AM26: 2521246.62 | AO26: 2521246.62
A27: 000000000212401 | C27: 2015-06-22 | E27: 000000000212401 | G27: EPF SHARIAH WD NOM USD | I27: 2352118 | K27: US35671D8570 | M27: FCX UN | O27: FREEPORT-MCMORAN INC | Q27: COMMON STOCK PAR USD 0.1 | S27: S | U27: USD | W27: 109130 | Y27: 3629310.2 | AA27: 3629310.2 | AC27: 19.4 | AE27: 2117122 | AG27: 2117122 | AI27: 0 | AK27: 0 | AM27: 2117122 | AO27: 2117122
A28: 000000000212401 | C28: 2015-06-22 | E28: 000000000212401 | G28: EPF SHARIAH WD NOM USD | I28: B665KZ5 | K28: US37045V1008 | M28: GM UN | O28: GENERAL MOTORS CO | Q28: COMMON STOCK PAR USD 0.01 | S28: S | U28: USD | W28: 112072 | Y28: 4109551.98 | AA28: 4109551.98 | AC28: 36.19 | AE28: 4055885.68 | AG28: 4055885.68 | AI28: 28242.14 | AK28: 28242.14 | AM28: 4096231.6 | AO28: 4096231.6
A29: 000000000212401 | C29: 2015-06-22 | E29: 000000000212401 | G29: EPF SHARIAH WD NOM USD | I29: 2369174 | K29: US3755581036 | M29: GILD UW | O29: GILEAD SCIENCES INC | Q29: COMMON STOCK PAR USD 0.001 | S29: S | U29: USD | W29: 59474 | Y29: 6591045.47 | AA29: 6591045.47 | AC29: 121.49 | AE29: 7225496.26 | AG29: 7225496.26 | AI29: 21137.42 | AK29: 21137.42 | AM29: 7255692.58 | AO29: 7255692.58
A30: 000000000212401 | C30: 2015-06-22 | E30: 000000000212401 | G30: EPF SHARIAH WD NOM USD | I30: 4031976 | K30: DE000A1EWWW0 | M30: ADS GY | O30: ADIDAS AG | Q30: COMMON STOCK | S30: S | U30: EUR | W30: 30615 | Y30: 2407529.99 | AA30: 3280588.43 | AC30: 70.57 | AE30: 2160500.55 | AG30: 2462215.51 | AI30: 0 | AK30: 0 | AM30: 2160500.55 | AO30: 2462215.51
A31: 000000000212401 | C31: 2015-06-22 | E31: 000000000212401 | G31: EPF SHARIAH WD NOM USD | I31: 4356646 | K31: CH0011037469 | M31: SYNN VX | O31: SYNGENTA AG-REG | Q31: COMMON STOCK PAR CHF 0.1 | S31: S | U31: CHF | W31: 4281 | Y31: 1493153.41 | AA31: 1604654.23 | AC31: 400.2 | AE31: 1713256.2 | AG31: 1866902.26 | AI31: 0 | AK31: 0 | AM31: 1713256.2 | AO31: 1866902.26
A32: 000000000212401 | C32: 2015-06-22 | E32: 000000000212401 | G32: EPF SHARIAH WD NOM USD | I32: 2005973 | K32: US4592001014 | M32: IBM UN | O32: INTL BUSINESS MACHINES CORP | Q32: COMMON STOCK PAR USD 0.2 | S32: S | U32: USD | W32: 18228 | Y32: 3617018.48 | AA32: 3617018.48 | AC32: 167.73 | AE32: 3057382.44 | AG32: 3057382.44 | AI32: 0 | AK32: 0 | AM32: 3057382.44 | AO32: 3057382.44
A33: 000000000212401 | C33: 2015-06-22 | E33: 000000000212401 | G33: EPF SHARIAH WD NOM USD | I33: 4617859 | K33: DE0005552004 | M33: DPW GY | O33: DEUTSCHE POST AG-REG | Q33: COMMON STOCK | S33: S | U33: EUR | W33: 154755 | Y33: 3921043.51 | AA33: 5152876.93 | AC33: 27 | AE33: 4178385 | AG33: 4761898.52 | AI33: 0 | AK33: 0 | AM33: 4178385 | AO33: 4761898.52
A34: 000000000212401 | C34: 2015-06-22 | E34: 000000000212401 | G34: EPF SHARIAH WD NOM USD | I34: 4846288 | K34: DE0007164600 | M34: SAP GY | O34: SAP SE | Q34: COMMON STOCK | S34: S | U34: EUR | W34: 41811 | Y34: 2402523.21 | AA34: 3214959.16 | AC34: 66.29 | AE34: 2771651.19 | AG34: 3158713.64 | AI34: 0 | AK34: 0 | AM34: 2771651.19 | AO34: 3158713.64
A35: 000000000212401 | C35: 2015-06-22 | E35: 000000000212401 | G35: EPF SHARIAH WD NOM USD | I35: 2607647 | K35: US4851703029 | M35: KSU UN | O35: KANSAS CITY SOUTHERN | Q35: COMMON STOCK PAR USD 0.01 | S35: S | U35: USD | W35: 36810 | Y35: 4010630.19 | AA35: 4010630.19 | AC35: 95.76 | AE35: 3524925.6 | AG35: 3524925.6 | AI35: 8503.11 | AK35: 8503.11 | AM35: 3537072.9 | AO35: 3537072.9
A36: 000000000212401 | C36: 2015-06-22 | E36: 000000000212401 | G36: EPF SHARIAH WD NOM USD | I36: 4874160 | K36: FR0000131708 | M36: TEC FP | O36: TECHNIP SA | Q36: COMMON STOCK PAR EUR 0.7625 | S36: S | U36: EUR | W36: 18777 | Y36: 1501441.83 | AA36: 2036728.24 | AC36: 57.34 | AE36: 1076673.18 | AG36: 1227031.12 | AI36: 0 | AK36: 0 | AM36: 1076673.18 | AO36: 1227031.12
A37: 000000000212401 | C37: 2015-06-22 | E37: 000000000212401 | G37: EPF SHARIAH WD NOM USD | I37: 5069211 | K37: DE000BAY0017 | M37: BAYN GY | O37: BAYER AG-REG | Q37: COMMON STOCK | S37: S | U37: EUR | W37: 43908 | Y37: 5776589.58 | AA37: 6474099.27 | AC37: 133.6 | AE37: 5866108.8 | AG37: 6685313.78 | AI37: 0 | AK37: 0 | AM37: 5866108.8 | AO37: 6685313.78
A38: 000000000212401 | C38: 2015-06-22 | E38: 000000000212401 | G38: EPF SHARIAH WD NOM USD | I38: 5727973 | K38: DE0007236101 | M38: SIE GY | O38: SIEMENS AG-REG | Q38: COMMON STOCK | S38: S | U38: EUR | W38: 40464 | Y38: 3781179.27 | AA38: 5113709.14 | AC38: 96.66 | AE38: 3911250.24 | AG38: 4457458.26 | AI38: 0 | AK38: 0 | AM38: 3911250.24 | AO38: 4457458.26
A39: 000000000212401 | C39: 2015-06-22 | E39: 000000000212401 | G39: EPF SHARIAH WD NOM USD | I39: 2573760 | K39: US57772K1016 | M39: MXIM UW | O39: MAXIM INTEGRATED PRODUCTS | Q39: COMMON STOCK PAR USD 0.001 | S39: S | U39: USD | W39: 0 | Y39: 0 | AA39: 0 | AC39: 35.65 | AE39: 0 | AG39: 0 | AI39: 0 | AK39: 0 | AM39: 0 | AO39: 0
A40: 000000000212401 | C40: 2015-06-22 | E40: 000000000212401 | G40: EPF SHARIAH WD NOM USD | I40: B4W9F29 | K40: US5828391061 | M40: MJN UN | O40: MEAD JOHNSON NUTRITION CO | Q40: COMMON STOCK PAR USD 0.01 | S40: S | U40: USD | W40: 41816 | Y40: 4076253.79 | AA40: 4076253.79 | AC40: 91.29 | AE40: 3817382.64 | AG40: 3817382.64 | AI40: 12074.37 | AK40: 12074.37 | AM40: 3834631.74 | AO40: 3834631.74
A41: 000000000212401 | C41: 2015-06-22 | E41: 000000000212401 | G41: EPF SHARIAH WD NOM USD | I41: 2592174 | K41: US5950171042 | M41: MCHP UW | O41: MICROCHIP TECHNOLOGY INC | Q41: COMMON STOCK PAR USD 0.001 | S41: S | U41: USD | W41: 88589 | Y41: 4270613.74 | AA41: 4270613.74 | AC41: 50.41 | AE41: 4465771.49 | AG41: 4465771.49 | AI41: 0 | AK41: 0 | AM41: 4465771.49 | AO41: 4465771.49
A42: 000000000212401 | C42: 2015-06-22 | E42: 000000000212401 | G42: EPF SHARIAH WD NOM USD | I42: 2588184 | K42: US5951121038 | M42: MU UW | O42: MICRON TECHNOLOGY INC | Q42: COMMON STOCK PAR USD 0.1 | S42: S | U42: USD | W42: 213817 | Y42: 6891230.81 | AA42: 6891230.81 | AC42: 24.63 | AE42: 5266312.71 | AG42: 5266312.71 | AI42: 0 | AK42: 0 | AM42: 5266312.71 | AO42: 5266312.71
A43: 000000000212401 | C43: 2015-06-22 | E43: 000000000212401 | G43: EPF SHARIAH WD NOM USD | I43: 5959378 | K43: SE0000108656 | M43: ERICB S | O43: ERICSSON LM-B SHS | Q43: COMMON STOCK PAR SEK 5 | S43: S | U43: SEK | W43: 261475 | Y43: 24943539.05 | AA43: 2953708.44 | AC43: 91 | AE43: 23794225 | AG43: 2932616.64 | AI43: 0 | AK43: 0 | AM43: 23794225 | AO43: 2932616.64
A44: 000000000212401 | C44: 2015-06-22 | E44: 000000000212401 | G44: EPF SHARIAH WD NOM USD | I44: 5962332 | K44: NL0000226223 | M44: STM FP | O44: STMICROELECTRONICS NV | Q44: COMMON STOCK PAR EUR 1.04 | S44: S | U44: EUR | W44: 499496 | Y44: 3495849.19 | AA44: 4513697.42 | AC44: 7.354 | AE44: 3673293.58 | AG44: 4186270.84 | AI44: 0 | AK44: 0 | AM44: 3673293.58 | AO44: 4186270.84
A45: 000000000212401 | C45: 2015-06-22 | E45: 000000000212401 | G45: EPF SHARIAH WD NOM USD | I45: 5980613 | K45: CH0010645932 | M45: GIVN VX | O45: GIVAUDAN-REG | Q45: COMMON STOCK PAR CHF 10 | S45: S | U45: CHF | W45: 1670 | Y45: 2704883.95 | AA45: 3032558.98 | AC45: 1677 | AE45: 2800590 | AG45: 3051748.94 | AI45: 0 | AK45: 0 | AM45: 2800590 | AO45: 3051748.94
A46: 000000000212401 | C46: 2015-06-22 | E46: 000000000212401 | G46: EPF SHARIAH WD NOM USD | I46: 6021500 | K46: JP3126400005 | M46: 6770 JT | O46: ALPS ELECTRIC CO LTD | Q46: COMMON STOCK | S46: S | U46: JPY | W46: 141700 | Y46: 431808279 | AA46: 3589481.09 | AC46: 3595 | AE46: 509411500 | AG46: 4134330.24 | AI46: 0 | AK46: 0 | AM46: 509411500 | AO46: 4134330.24
A47: 000000000212401 | C47: 2015-06-22 | E47: 000000000212401 | G47: EPF SHARIAH WD NOM USD | I47: 6041995 | K47: AU000000RHC8 | M47: RHC AT | O47: RAMSAY HEALTH CARE LTD | Q47: COMMON STOCK | S47: S | U47: AUD | W47: 44099 | Y47: 2803854.01 | AA47: 2251064.76 | AC47: 61.46 | AE47: 2710324.54 | AG47: 2102534.41 | AI47: 0 | AK47: 0 | AM47: 2710324.54 | AO47: 2102534.41
A48: 000000000212401 | C48: 2015-06-22 | E48: 000000000212401 | G48: EPF SHARIAH WD NOM USD | I48: 2654320 | K48: US61166W1018 | M48: MON UN | O48: MONSANTO CO | Q48: COMMON STOCK PAR USD 0.01 | S48: S | U48: USD | W48: 28071 | Y48: 3264850.2 | AA48: 3264850.2 | AC48: 114.34 | AE48: 3209638.14 | AG48: 3209638.14 | AI48: 0 | AK48: 0 | AM48: 3209638.14 | AO48: 3209638.14
A49: 000000000212401 | C49: 2015-06-22 | E49: 000000000212401 | G49: EPF SHARIAH WD NOM USD | I49: 6132101 | K49: JP3830800003 | M49: 5108 JT | O49: BRIDGESTONE CORP | Q49: COMMON STOCK | S49: S | U49: JPY | W49: 58800 | Y49: 277251407 | AA49: 2302273.15 | AC49: 4780 | AE49: 281064000 | AG49: 2281085.91 | AI49: 0 | AK49: 0 | AM49: 281064000 | AO49: 2281085.91
A50: 000000000212401 | C50: 2015-06-22 | E50: 000000000212401 | G50: EPF SHARIAH WD NOM USD | I50: 6144690 | K50: AU000000BHP4 | M50: BHP AT | O50: BHP BILLITON LIMITED | Q50: COMMON STOCK | S50: S | U50: AUD | W50: 46888 | Y50: 1595942.83 | AA50: 1493370.56 | AC50: 28.32 | AE50: 1327868.16 | AG50: 1030093.8 | AI50: 0 | AK50: 0 | AM50: 1327868.16 | AO50: 1030093.8
A51: 000000000212401 | C51: 2015-06-22 | E51: 000000000212401 | G51: EPF SHARIAH WD NOM USD | I51: 6161503 | K51: AU000000CTX1 | M51: CTX AT | O51: CALTEX AUSTRALIA LTD | Q51: COMMON STOCK | S51: S | U51: AUD | W51: 92769 | Y51: 3238648.85 | AA51: 2499475.31 | AC51: 32.91 | AE51: 3053027.79 | AG51: 2368386.47 | AI51: 0 | AK51: 0 | AM51: 3053027.79 | AO51: 2368386.47
A52: 000000000212401 | C52: 2015-06-22 | E52: 000000000212401 | G52: EPF SHARIAH WD NOM USD | I52: 6248990 | K52: JP3496400007 | M52: 9433 JT | O52: KDDI CORP | Q52: COMMON STOCK | S52: S | U52: JPY | W52: 174600 | Y52: 504552016 | AA52: 4225238.27 | AC52: 2904.5 | AE52: 507125700 | AG52: 4115778.92 | AI52: 0 | AK52: 0 | AM52: 507125700 | AO52: 4115778.92
A53: 000000000212401 | C53: 2015-06-22 | E53: 000000000212401 | G53: EPF SHARIAH WD NOM USD | I53: 6332439 | K53: JP3802300008 | M53: 9983 JT | O53: FAST RETAILING CO LTD | Q53: COMMON STOCK | S53: S | U53: JPY | W53: 0 | Y53: 0 | AA53: 0 | AC53: 53910 | AE53: 0 | AG53: 0 | AI53: 0 | AK53: 0 | AM53: 0 | AO53: 0
A54: 000000000212401 | C54: 2015-06-22 | E54: 000000000212401 | G54: EPF SHARIAH WD NOM USD | I54: 2624486 | K54: US6370711011 | M54: NOV UN | O54: NATIONAL OILWELL VARCO INC | Q54: COMMON STOCK PAR USD 0.01 | S54: S | U54: USD | W54: 51126 | Y54: 4110349.33 | AA54: 4110349.33 | AC54: 49.16 | AE54: 2513354.16 | AG54: 2513354.16 | AI54: 16462.57 | AK54: 16462.57 | AM54: 2536872.12 | AO54: 2536872.12
A55: 000000000212401 | C55: 2015-06-22 | E55: 000000000212401 | G55: EPF SHARIAH WD NOM USD | I55: 6467074 | K55: AU000000FXJ5 | M55: FXJ AT | O55: FAIRFAX MEDIA LTD | Q55: COMMON STOCK | S55: S | U55: AUD | W55: 2541667 | Y55: 2215789.69 | AA55: 1938625.63 | AC55: 0.88 | AE55: 2236666.96 | AG55: 1735094.51 | AI55: 0 | AK55: 0 | AM55: 2236666.96 | AO55: 1735094.51
A56: 000000000212401 | C56: 2015-06-22 | E56: 000000000212401 | G56: EPF SHARIAH WD NOM USD | I56: 6483809 | K56: JP3205800000 | M56: 4452 JT | O56: KAO CORP | Q56: COMMON STOCK | S56: S | U56: JPY | W56: 78100 | Y56: 437572802 | AA56: 3706421.92 | AC56: 5938 | AE56: 463757800 | AG56: 3763809.6 | AI56: 0 | AK56: 0 | AM56: 463757800 | AO56: 3763809.6
A57: 000000000212401 | C57: 2015-06-22 | E57: 000000000212401 | G57: EPF SHARIAH WD NOM USD | I57: 6497509 | K57: JP3266400005 | M57: 6326 JT | O57: KUBOTA CORP | Q57: COMMON STOCK | S57: S | U57: JPY | W57: 0 | Y57: 0 | AA57: 0 | AC57: 1917.5 | AE57: 0 | AG57: 0 | AI57: 0 | AK57: 0 | AM57: 0 | AO57: 0
A58: 000000000212401 | C58: 2015-06-22 | E58: 000000000212401 | G58: EPF SHARIAH WD NOM USD | I58: 6597045 | K58: JP3902400005 | M58: 6503 JT | O58: MITSUBISHI ELECTRIC CORP | Q58: COMMON STOCK | S58: S | U58: JPY | W58: 303000 | Y58: 416603714 | AA58: 3892674.39 | AC58: 1619.5 | AE58: 490708500 | AG58: 3982538.65 | AI58: 0 | AK58: 0 | AM58: 490708500 | AO58: 3982538.65
A59: 000000000212401 | C59: 2015-06-22 | E59: 000000000212401 | G59: EPF SHARIAH WD NOM USD | I59: 6640682 | K59: JP3734800000 | M59: 6594 JT | O59: NIDEC CORP | Q59: COMMON STOCK | S59: S | U59: JPY | W59: 36100 | Y59: 327313731 | AA59: 2680702.75 | AC59: 9128 | AE59: 329520800 | AG59: 2674356.21 | AI59: 0 | AK59: 0 | AM59: 329520800 | AO59: 2674356.21
A60: 000000000212401 | C60: 2015-06-22 | E60: 000000000212401 | G60: EPF SHARIAH WD NOM USD | I60: 6641373 | K60: JP3735400008 | M60: 9432 JT | O60: NIPPON TELEGRAPH & TELEPHONE | Q60: COMMON STOCK | S60: S | U60: JPY | W60: 0 | Y60: 0 | AA60: 0 | AC60: 8707 | AE60: 0 | AG60: 0 | AI60: 3128850 | AK60: 25393.42 | AM60: 3681000 | AO60: 29874.61
A61: 000000000212401 | C61: 2015-06-22 | E61: 000000000212401 | G61: EPF SHARIAH WD NOM USD | I61: 6641801 | K61: JP3684000007 | M61: 6988 JT | O61: NITTO DENKO CORP | Q61: COMMON STOCK | S61: S | U61: JPY | W61: 17600 | Y61: 169973603 | AA61: 1374814.69 | AC61: 9930 | AE61: 174768000 | AG61: 1418398.73 | AI61: 0 | AK61: 0 | AM61: 174768000 | AO61: 1418398.73
A62: 000000000212401 | C62: 2015-06-22 | E62: 000000000212401 | G62: EPF SHARIAH WD NOM USD | I62: 6659428 | K62: JP3197800000 | M62: 6645 JT | O62: OMRON CORP | Q62: COMMON STOCK | S62: S | U62: JPY | W62: 28800 | Y62: 136148561 | AA62: 1269060.71 | AC62: 5780 | AE62: 166464000 | AG62: 1351004.34 | AI62: 1958400 | AK62: 15894.17 | AM62: 168768000 | AO62: 1369703.36
A63: 000000000212401 | C63: 2015-06-22 | E63: 000000000212401 | G63: EPF SHARIAH WD NOM USD | I63: 6673042 | K63: AU000000IPL1 | M63: IPL AT | O63: INCITEC PIVOT LTD | Q63: COMMON STOCK | S63: S | U63: AUD | W63: 750000 | Y63: 2966898.75 | AA63: 2288517.95 | AC63: 4 | AE63: 3000000 | AG63: 2327250.16 | AI63: 0 | AK63: 0 | AM63: 3000000 | AO63: 2327250.16
A64: 000000000212401 | C64: 2015-06-22 | E64: 000000000212401 | G64: EPF SHARIAH WD NOM USD | I64: 6687571 | K64: JP3651210001 | M64: 6268 JT | O64: NABTESCO CORP | Q64: COMMON STOCK | S64: S | U64: JPY | W64: 59700 | Y64: 198683872 | AA64: 1654987.64 | AC64: 3105 | AE64: 185368500 | AG64: 1504431.28 | AI64: 0 | AK64: 0 | AM64: 185368500 | AO64: 1504431.28
A65: 000000000212401 | C65: 2015-06-22 | E65: 000000000212401 | G65: EPF SHARIAH WD NOM USD | I65: 6740582 | K65: JP3977400005 | M65: 5947 JT | O65: RINNAI CORP | Q65: COMMON STOCK | S65: S | U65: JPY | W65: 32500 | Y65: 290410603 | AA65: 2422761.98 | AC65: 9810 | AE65: 318825000 | AG65: 2587550.22 | AI65: 1088510 | AK65: 8834.24 | AM65: 320105600 | AO65: 2597943.44
A66: 000000000212401 | C66: 2015-06-22 | E66: 000000000212401 | G66: EPF SHARIAH WD NOM USD | I66: 6883807 | K66: JP3351100007 | M66: 6869 JT | O66: SYSMEX CORP | Q66: COMMON STOCK | S66: S | U66: JPY | W66: 34000 | Y66: 232633401 | AA66: 1926970.89 | AC66: 7430 | AE66: 252620000 | AG66: 2050237.39 | AI66: 0 | AK66: 0 | AM66: 252620000 | AO66: 2050237.39
A67: 000000000212401 | C67: 2015-06-22 | E67: 000000000212401 | G67: EPF SHARIAH WD NOM USD | I67: 6900308 | K67: JP3868400007 | M67: 7261 JT | O67: MAZDA MOTOR CORP | Q67: COMMON STOCK | S67: S | U67: JPY | W67: 69000 | Y67: 171702393 | AA67: 1679371.18 | AC67: 2474 | AE67: 170706000 | AG67: 1385431.97 | AI67: 586500 | AK67: 4759.97 | AM67: 171396000 | AO67: 1391031.94
A68: 000000000212401 | C68: 2015-06-22 | E68: 000000000212401 | G68: EPF SHARIAH WD NOM USD | I68: 6911485 | K68: JP3951600000 | M68: 8113 JT | O68: UNICHARM CORP | Q68: COMMON STOCK | S68: S | U68: JPY | W68: 107000 | Y68: 354963705 | AA68: 2962739.16 | AC68: 2793.5 | AE68: 298904500 | AG68: 2425877.53 | AI68: 0 | AK68: 0 | AM68: 298904500 | AO68: 2425877.53
A69: 000000000212401 | C69: 2015-06-22 | E69: 000000000212401 | G69: EPF SHARIAH WD NOM USD | I69: 7062713 | K69: FR0000121220 | M69: SW FP | O69: SODEXO | Q69: COMMON STOCK PAR EUR 4 | S69: S | U69: EUR | W69: 37357 | Y69: 2777398.86 | AA69: 3766445.31 | AC69: 90.76 | AE69: 3390521.32 | AG69: 3864009.29 | AI69: 0 | AK69: 0 | AM69: 3390521.32 | AO69: 3864009.29
A70: 000000000212401 | C70: 2015-06-22 | E70: 000000000212401 | G70: EPF SHARIAH WD NOM USD | I70: 7103065 | K70: CH0012005267 | M70: NOVN VX | O70: NOVARTIS AG-REG | Q70: COMMON STOCK PAR CHF 0.5 | S70: S | U70: CHF | W70: 46623 | Y70: 4263881.69 | AA70: 4731765.79 | AC70: 94.05 | AE70: 4384893.15 | AG70: 4778133.54 | AI70: 0 | AK70: 0 | AM70: 4384893.15 | AO70: 4778133.54
A71: 000000000212401 | C71: 2015-06-22 | E71: 000000000212401 | G71: EPF SHARIAH WD NOM USD | I71: 7110388 | K71: CH0012032048 | M71: ROG VX | O71: ROCHE HOLDING AG-GENUSSCHEIN | Q71: COMMON STOCK | S71: S | U71: CHF | W71: 30611 | Y71: 8182179.43 | AA71: 8828562.32 | AC71: 269.3 | AE71: 8243542.3 | AG71: 8982829.14 | AI71: 0 | AK71: 0 | AM71: 8243542.3 | AO71: 8982829.14
A72: 000000000212401 | C72: 2015-06-22 | E72: 000000000212401 | G72: EPF SHARIAH WD NOM USD | I72: 2681511 | K72: US7134481081 | M72: PEP UN | O72: PEPSICO INC | Q72: COMMON STOCK PAR USD 0.017 | S72: S | U72: USD | W72: 87140 | Y72: 8046364.44 | AA72: 8046364.44 | AC72: 95.6 | AE72: 8330584 | AG72: 8330584 | AI72: 42851.09 | AK72: 42851.09 | AM72: 8391799.85 | AO72: 8391799.85
A73: 000000000212401 | C73: 2015-06-22 | E73: 000000000212401 | G73: EPF SHARIAH WD NOM USD | I73: 7145056 | K73: IT0003132476 | M73: ENI IM | O73: ENI SPA | Q73: COMMON STOCK | S73: S | U73: EUR | W73: 223085 | Y73: 4007305.38 | AA73: 5327592.79 | AC73: 16.81 | AE73: 3750058.85 | AG73: 4273756.41 | AI73: 0 | AK73: 0 | AM73: 3750058.85 | AO73: 4273756.41
A74: 000000000212401 | C74: 2015-06-22 | E74: 000000000212401 | G74: EPF SHARIAH WD NOM USD | I74: 2684703 | K74: US7170811035 | M74: PFE UN | O74: PFIZER INC | Q74: COMMON STOCK PAR USD 0.05 | S74: S | U74: USD | W74: 266497 | Y74: 9112067.34 | AA74: 9112067.34 | AC74: 34.31 | AE74: 9143512.07 | AG74: 9143512.07 | AI74: 0 | AK74: 0 | AM74: 9143512.07 | AO74: 9143512.07
A75: 000000000212401 | C75: 2015-06-22 | E75: 000000000212401 | G75: EPF SHARIAH WD NOM USD | I75: 2704407 | K75: US7427181091 | M75: PG UN | O75: PROCTER & GAMBLE CO/THE | Q75: COMMON STOCK | S75: S | U75: USD | W75: 109006 | Y75: 9303935.06 | AA75: 9303935.06 | AC75: 80.45 | AE75: 8769532.7 | AG75: 8769532.7 | AI75: 0 | AK75: 0 | AM75: 8769532.7 | AO75: 8769532.7
A76: 000000000212401 | C76: 2015-06-22 | E76: 000000000212401 | G76: EPF SHARIAH WD NOM USD | I76: 2746711 | K76: US7782961038 | M76: ROST UW | O76: ROSS STORES INC | Q76: COMMON STOCK PAR USD 0.01 | S76: S | U76: USD | W76: 114054 | Y76: 5496300.46 | AA76: 5496300.46 | AC76: 50.31 | AE76: 5738056.74 | AG76: 5738056.74 | AI76: 7768.84 | AK76: 7768.84 | AM76: 5749155.09 | AO76: 5749155.09
A77: 000000000212401 | C77: 2015-06-22 | E77: 000000000212401 | G77: EPF SHARIAH WD NOM USD | I77: 2767381 | K77: US7908491035 | M77: STJ UN | O77: ST JUDE MEDICAL INC | Q77: COMMON STOCK PAR USD 0.1 | S77: S | U77: USD | W77: 51019 | Y77: 3467818.34 | AA77: 3467818.34 | AC77: 75.82 | AE77: 3868260.58 | AG77: 3868260.58 | AI77: 0 | AK77: 0 | AM77: 3868260.58 | AO77: 3868260.58
A78: 000000000212401 | C78: 2015-06-22 | E78: 000000000212401 | G78: EPF SHARIAH WD NOM USD | I78: 2779201 | K78: AN8068571086 | M78: SLB UN | O78: SCHLUMBERGER LTD | Q78: COMMON STOCK PAR USD 0.01 | S78: S | U78: USD | W78: 79914 | Y78: 8218652.66 | AA78: 8218652.66 | AC78: 86.97 | AE78: 6950120.58 | AG78: 6950120.58 | AI78: 39957 | AK78: 39957 | AM78: 6990077.58 | AO78: 6990077.58
A79: 000000000212401 | C79: 2015-06-22 | E79: 000000000212401 | G79: EPF SHARIAH WD NOM USD | I79: 2853688 | K79: US8636671013 | M79: SYK UN | O79: STRYKER CORP | Q79: COMMON STOCK PAR USD 0.1 | S79: S | U79: USD | W79: 47316 | Y79: 4218276.28 | AA79: 4218276.28 | AC79: 97.4 | AE79: 4608578.4 | AG79: 4608578.4 | AI79: 0 | AK79: 0 | AM79: 4608578.4 | AO79: 4608578.4
A80: 000000000212401 | C80: 2015-06-22 | E80: 000000000212401 | G80: EPF SHARIAH WD NOM USD | I80: 2868165 | K80: US8718291078 | M80: SYY UN | O80: SYSCO CORP | Q80: COMMON STOCK PAR USD 1 | S80: S | U80: USD | W80: 72214 | Y80: 2964988.54 | AA80: 2964988.54 | AC80: 37.6 | AE80: 2715246.4 | AG80: 2715246.4 | AI80: 0 | AK80: 0 | AM80: 2715246.4 | AO80: 2715246.4
A81: 000000000212401 | C81: 2015-06-22 | E81: 000000000212401 | G81: EPF SHARIAH WD NOM USD | I81: 2595708 | K81: US88579Y1010 | M81: MMM UN | O81: 3M CO | Q81: COMMON STOCK PAR USD 0.01 | S81: S | U81: USD | W81: 40231 | Y81: 6392583.63 | AA81: 6392583.63 | AC81: 159.68 | AE81: 6424086.08 | AG81: 6424086.08 | AI81: 0 | AK81: 0 | AM81: 6424086.08 | AO81: 6424086.08
A82: 000000000212401 | C82: 2015-06-22 | E82: 000000000212401 | G82: EPF SHARIAH WD NOM USD | I82: B40PCD9 | K82: US98212B1035 | M82: WPX UN | O82: WPX ENERGY INC | Q82: COMMON STOCK | S82: S | U82: USD | W82: 137183 | Y82: 3227231.08 | AA82: 3227231.08 | AC82: 13.03 | AE82: 1787494.49 | AG82: 1787494.49 | AI82: 0 | AK82: 0 | AM82: 1787494.49 | AO82: 1787494.49
A83: 000000000212401 | C83: 2015-06-22 | E83: 000000000212401 | G83: EPF SHARIAH WD NOM USD | I83: B02K2M3 | K83: JP3435750009 | M83: 2413 JT | O83: M3 INC | Q83: COMMON STOCK | S83: S | U83: JPY | W83: 106700 | Y83: 261287541 | AA83: 2183095.32 | AC83: 2492 | AE83: 265896400 | AG83: 2157987.26 | AI83: 0 | AK83: 0 | AM83: 265896400 | AO83: 2157987.26
A84: 000000000212401 | C84: 2015-06-22 | E84: 000000000212401 | G84: EPF SHARIAH WD NOM USD | I84: B15C557 | K84: FR0000120271 | M84: FP FP | O84: TOTAL SA | Q84: COMMON STOCK PAR EUR 2.5 | S84: S | U84: EUR | W84: 80760 | Y84: 3836454.01 | AA84: 4893017.27 | AC84: 45.42 | AE84: 3668119.2 | AG84: 4180373.85 | AI84: 34484.52 | AK84: 39300.3 | AM84: 3717382.8 | AO84: 4236517.14
A85: 000000000212401 | C85: 2015-06-22 | E85: 000000000212401 | G85: EPF SHARIAH WD NOM USD | I85: B1XZS82 | K85: GB00B1XZS820 | M85: AAL LN | O85: ANGLO AMERICAN PLC | Q85: COMMON STOCK PAR USD 0.54945 | S85: S | U85: GBP | W85: 129886 | Y85: 1712704.58 | AA85: 2669845.4 | AC85: 9.951 | AE85: 1292495.59 | AG85: 2044470.09 | AI85: 0 | AK85: 0 | AM85: 1292495.59 | AO85: 2044470.09
A86: 000000000212401 | C86: 2015-06-22 | E86: 000000000212401 | G86: EPF SHARIAH WD NOM USD | I86: B1YXBJ7 | K86: FR0000120073 | M86: AI FP | O86: AIR LIQUIDE SA | Q86: COMMON STOCK PAR EUR 5.5 | S86: S | U86: EUR | W86: 34898 | Y86: 3247076.13 | AA86: 4316600.4 | AC86: 118.65 | AE86: 4140647.7 | AG86: 4718891.19 | AI86: 0 | AK86: 0 | AM86: 4140647.7 | AO86: 4718891.19
A87: 000000000212401 | C87: 2015-06-22 | E87: 000000000212401 | G87: EPF SHARIAH WD NOM USD | I87: B24CGK7 | K87: GB00B24CGK77 | M87: RB/ LN | O87: RECKITT BENCKISER GROUP PLC | Q87: COMMON STOCK PAR GBp 10 | S87: S | U87: GBP | W87: 45369 | Y87: 2398497.34 | AA87: 3832470.02 | AC87: 57.08 | AE87: 2589662.52 | AG87: 4096329.31 | AI87: 0 | AK87: 0 | AM87: 2589662.52 | AO87: 4096329.31
A88: 000000000212401 | C88: 2015-06-22 | E88: 000000000212401 | G88: EPF SHARIAH WD NOM USD | I88: B2QKY05 | K88: JE00B2QKY057 | M88: SHP LN | O88: SHIRE PLC | Q88: COMMON STOCK PAR GBp 5 | S88: S | U88: GBP | W88: 71131 | Y88: 3706594.63 | AA88: 5704452.29 | AC88: 53.25 | AE88: 3787725.75 | AG88: 5991426.25 | AI88: 0 | AK88: 0 | AM88: 3787725.75 | AO88: 5991426.25
A89: 000000000212401 | C89: 2015-06-22 | E89: 000000000212401 | G89: EPF SHARIAH WD NOM USD | I89: B3NB1P2 | K89: CA8672241079 | M89: SU CT | O89: SUNCOR ENERGY INC | Q89: COMMON STOCK | S89: S | U89: CAD | W89: 119476 | Y89: 4946734.95 | AA89: 4611268.31 | AC89: 34 | AE89: 4062184 | AG89: 3307698.07 | AI89: 25089.96 | AK89: 20429.9 | AM89: 4095637.28 | AO89: 3334937.94
A90: 000000000212401 | C90: 2015-06-22 | E90: 000000000212401 | G90: EPF SHARIAH WD NOM USD | I90: B3WS2X9 | K90: SG9999006241 | M90: AVGO UW | O90: AVAGO TECHNOLOGIES LTD | Q90: COMMON STOCK | S90: S | U90: USD | W90: 42078 | Y90: 5587062.29 | AA90: 5587062.29 | AC90: 143.275 | AE90: 6028725.45 | AG90: 6028725.45 | AI90: 16831.2 | AK90: 16831.2 | AM90: 6045556.65 | AO90: 6045556.65
A91: 000000000212401 | C91: 2015-06-22 | E91: 000000000212401 | G91: EPF SHARIAH WD NOM USD | I91: B58JVZ5 | K91: IE00B58JVZ52 | M91: STX UW | O91: SEAGATE TECHNOLOGY | Q91: COMMON STOCK PAR USD 0.00001 | S91: S | U91: USD | W91: 61418 | Y91: 3550568.53 | AA91: 3550568.53 | AC91: 53.865 | AE91: 3308280.57 | AG91: 3308280.57 | AI91: 0 | AK91: 0 | AM91: 3308280.57 | AO91: 3308280.57
A92: 000000000212401 | C92: 2015-06-22 | E92: 000000000212401 | G92: EPF SHARIAH WD NOM USD | I92: B62B7C3 | K92: CH0102993182 | M92: TEL UN | O92: TE CONNECTIVITY LTD | Q92: COMMON STOCK PAR CHF 0.57 | S92: S | U92: USD | W92: 69773 | Y92: 4726668.73 | AA92: 4726668.73 | AC92: 69.36 | AE92: 4839455.28 | AG92: 4839455.28 | AI92: 0 | AK92: 0 | AM92: 4839455.28 | AO92: 4839455.28
A93: 000000000212401 | C93: 2015-06-22 | E93: 000000000212401 | G93: EPF SHARIAH WD NOM USD | I93: B633030 | K93: IE00B6330302 | M93: IR UN | O93: INGERSOLL-RAND PLC | Q93: COMMON STOCK PAR USD 1 | S93: S | U93: USD | W93: 74464 | Y93: 4890582.37 | AA93: 4890582.37 | AC93: 69.27 | AE93: 5158121.28 | AG93: 5158121.28 | AI93: 21594.56 | AK93: 21594.56 | AM93: 5179715.84 | AO93: 5179715.84
A94: 000000000212401 | C94: 2015-06-22 | E94: 000000000212401 | G94: EPF SHARIAH WD NOM USD | I94: B88MHC4 | K94: DE000A1PHFF7 | M94: BOSS GY | O94: HUGO BOSS AG -ORD | Q94: COMMON STOCK | S94: S | U94: EUR | W94: 33762 | Y94: 3458988.15 | AA94: 4435756.99 | AC94: 103.75 | AE94: 3502807.5 | AG94: 3991976.29 | AI94: 0 | AK94: 0 | AM94: 3502807.5 | AO94: 3991976.29
A95: 000000000212401 | C95: 2015-06-22 | E95: 000000000212401 | G95: EPF SHARIAH WD NOM USD | I95: B8KQN82 | K95: IE00B8KQN827 | M95: ETN UN | O95: EATON CORP PLC | Q95: COMMON STOCK PAR USD 0.01 | S95: S | U95: USD | W95: 70695 | Y95: 5125879.4 | AA95: 5125879.4 | AC95: 70.2 | AE95: 4962789 | AG95: 4962789 | AI95: 0 | AK95: 0 | AM95: 4962789 | AO95: 4962789
A96: 000000000212401 | C96: 2015-06-22 | E96: 000000000212401 | G96: EPF SHARIAH WD NOM USD | I96: BH4HKS3 | K96: GB00BH4HKS39 | M96: VOD LN | O96: VODAFONE GROUP PLC | Q96: COMMON STOCK PAR USD 0.2095 | S96: S | U96: GBP | W96: 1545786 | Y96: 3910867.66 | AA96: 6509117.82 | AC96: 2.393 | AE96: 3699065.9 | AG96: 5851184.06 | AI96: 117788.94 | AK96: 186318.59 | AM96: 3829942.5 | AO96: 6058204.72
A97: 000000000212401 | C97: 2015-06-22 | E97: 000000000212401 | G97: EPF SHARIAH WD NOM USD | I97: BWSW5D9 | K97: AU000000S320 | M97: S32 AT | O97: SOUTH32 LTD | Q97: COMMON STOCK | S97: S | U97: AUD | W97: 46888 | Y97: 111857.51 | AA97: 104668.36 | AC97: 1.89 | AE97: 88618.32 | AG97: 68745.67 | AI97: 0 | AK97: 0 | AM97: 88618.32 | AO97: 68745.67
A98: 000000000212401 | C98: 2015-06-22 | E98: 000000000212401 | G98: EPF SHARIAH WD NOM USD | I98: BY9D546 | K98: IE00BY9D5467 | M98: AGN UN | O98: ALLERGAN PLC | Q98: COMMON STOCK PAR USD 0.0033 | S98: S | U98: USD | W98: 21574 | Y98: 6464822.62 | AA98: 6464822.62 | AC98: 307.25 | AE98: 6628611.5 | AG98: 6628611.5 | AI98: 0 | AK98: 0 | AM98: 6628611.5 | AO98: 6628611.5
A99: 000000000212401 | C99: 2016-06-20 | E99: 000000000212401 | G99: EPF SHARIAH WD NOM USD | I99: B92SR70 | K99: US00287Y1091 | M99: ABBV UN | O99: ABBVIE INC | Q99: COMMON STOCK PAR USD 0.01 | S99: S | U99: USD | W99: 48561 | Y99: 3160513.22 | AA99: 3160513.22 | AC99: 60.11 | AE99: 2919001.71 | AG99: 2919001.71 | AI99: 0 | AK99: 0 | AM99: 2919001.71 | AO99: 2919001.71
A100: 000000000212401 | C100: 2016-06-20 | E100: 000000000212401 | G100: EPF SHARIAH WD NOM USD | I100: 2507457 | K100: US00971T1016 | M100: AKAM UW | O100: AKAMAI TECHNOLOGIES INC | Q100: COMMON STOCK PAR USD 0.01 | S100: S | U100: USD | W100: 74278 | Y100: 4165846.82 | AA100: 4165846.82 | AC100: 54.14 | AE100: 4021410.92 | AG100: 4021410.92 | AI100: 0 | AK100: 0 | AM100: 4021410.92 | AO100: 4021410.92
A101: 000000000212401 | C101: 2016-06-20 | E101: 000000000212401 | G101: EPF SHARIAH WD NOM USD | I101: 2795393 | K101: US03073E1055 | M101: ABC UN | O101: AMERISOURCEBERGEN CORP | Q101: COMMON STOCK PAR USD 0.01 | S101: S | U101: USD | W101: 58449 | Y101: 5963711.94 | AA101: 5963711.94 | AC101: 76.37 | AE101: 4463750.13 | AG101: 4463750.13 | AI101: 0 | AK101: 0 | AM101: 4463750.13 | AO101: 4463750.13
A102: 000000000212401 | C102: 2016-06-20 | E102: 000000000212401 | G102: EPF SHARIAH WD NOM USD | I102: 2043962 | K102: US0374111054 | M102: APA UN | O102: APACHE CORP | Q102: COMMON STOCK PAR USD 0.625 | S102: S | U102: USD | W102: 41558 | Y102: 2586684.72 | AA102: 2586684.72 | AC102: 55.32 | AE102: 2298988.56 | AG102: 2298988.56 | AI102: 0 | AK102: 0 | AM102: 2298988.56 | AO102: 2298988.56
A103: 000000000212401 | C103: 2016-06-20 | E103: 000000000212401 | G103: EPF SHARIAH WD NOM USD | I103: 2046251 | K103: US0378331005 | M103: AAPL UW | O103: APPLE INC | Q103: COMMON STOCK PAR USD 0.00001 | S103: S | U103: USD | W103: 102275 | Y103: 12189841.99 | AA103: 12189841.99 | AC103: 95.1 | AE103: 9726352.5 | AG103: 9726352.5 | AI103: 0 | AK103: 0 | AM103: 9726352.5 | AO103: 9726352.5
A104: 000000000212401 | C104: 2016-06-20 | E104: 000000000212401 | G104: EPF SHARIAH WD NOM USD | I104: 0798059 | K104: GB0007980591 | M104: BP/ LN | O104: BP PLC | Q104: COMMON STOCK PAR USD 0.25 | S104: S | U104: GBP | W104: 553975 | Y104: 2080684.09 | AA104: 3028582.45 | AC104: 3.7895 | AE104: 2099288.26 | AG104: 3085010.96 | AI104: 0 | AK104: 0 | AM104: 2099288.26 | AO104: 3085010.96
A105: 000000000212401 | C105: 2016-06-20 | E105: 000000000212401 | G105: EPF SHARIAH WD NOM USD | I105: 2437071 | K105: US09061G1013 | M105: BMRN UW | O105: BIOMARIN PHARMACEUTICAL INC | Q105: COMMON STOCK PAR USD 0.001 | S105: S | U105: USD | W105: 21935 | Y105: 1887057.26 | AA105: 1887057.26 | AC105: 84.06 | AE105: 1843856.1 | AG105: 1843856.1 | AI105: 0 | AK105: 0 | AM105: 1843856.1 | AO105: 1843856.1
A106: 000000000212401 | C106: 2016-06-20 | E106: 000000000212401 | G106: EPF SHARIAH WD NOM USD | I106: 2455965 | K106: US09062X1037 | M106: BIIB UW | O106: BIOGEN INC | Q106: COMMON STOCK PAR USD 0.0005 | S106: S | U106: USD | W106: 15770 | Y106: 6452120.47 | AA106: 6452120.47 | AC106: 237.39 | AE106: 3743640.3 | AG106: 3743640.3 | AI106: 0 | AK106: 0 | AM106: 3743640.3 | AO106: 3743640.3
A107: 000000000212401 | C107: 2016-06-20 | E107: 000000000212401 | G107: EPF SHARIAH WD NOM USD | I107: 0922320 | K107: GB0009223206 | M107: SN/ LN | O107: SMITH & NEPHEW PLC | Q107: COMMON STOCK PAR USD 0.2 | S107: S | U107: GBP | W107: 179671 | Y107: 1968494.38 | AA107: 2971636.91 | AC107: 11.5 | AE107: 2066216.5 | AG107: 3036410.33 | AI107: 0 | AK107: 0 | AM107: 2066216.5 | AO107: 3036410.33
A108: 000000000212401 | C108: 2016-06-20 | E108: 000000000212401 | G108: EPF SHARIAH WD NOM USD | I108: 0989529 | K108: GB0009895292 | M108: AZN LN | O108: ASTRAZENECA PLC | Q108: COMMON STOCK PAR USD 0.25 | S108: S | U108: GBP | W108: 105508 | Y108: 4481817.69 | AA108: 7313535.71 | AC108: 38.48 | AE108: 4059947.84 | AG108: 5966300.02 | AI108: 0 | AK108: 0 | AM108: 4059947.84 | AO108: 5966300.02
A109: 000000000212401 | C109: 2016-06-20 | E109: 000000000212401 | G109: EPF SHARIAH WD NOM USD | I109: 2577609 | K109: US1266501006 | M109: CVS UN | O109: CVS HEALTH CORP | Q109: COMMON STOCK PAR USD 0.01 | S109: S | U109: USD | W109: 71558 | Y109: 7444403.48 | AA109: 7444403.48 | AC109: 93.23 | AE109: 6671352.34 | AG109: 6671352.34 | AI109: 0 | AK109: 0 | AM109: 6671352.34 | AO109: 6671352.34
A110: 000000000212401 | C110: 2016-06-20 | E110: 000000000212401 | G110: EPF SHARIAH WD NOM USD | I110: 2838555 | K110: US1667641005 | M110: CVX UN | O110: CHEVRON CORP | Q110: COMMON STOCK PAR USD 0.75 | S110: S | U110: USD | W110: 47610 | Y110: 4836001.33 | AA110: 4836001.33 | AC110: 102.61 | AE110: 4885262.1 | AG110: 4885262.1 | AI110: 0 | AK110: 0 | AM110: 4885262.1 | AO110: 4885262.1
A111: 000000000212401 | C111: 2016-06-20 | E111: 000000000212401 | G111: EPF SHARIAH WD NOM USD | I111: 2257019 | K111: US1924461023 | M111: CTSH UW | O111: COGNIZANT TECH SOLUTIONS-A | Q111: COMMON STOCK PAR USD 0.01 | S111: S | U111: USD | W111: 88530 | Y111: 5514072.99 | AA111: 5514072.99 | AC111: 61.3 | AE111: 5426889 | AG111: 5426889 | AI111: 0 | AK111: 0 | AM111: 5426889 | AO111: 5426889
A112: 000000000212401 | C112: 2016-06-20 | E112: 000000000212401 | G112: EPF SHARIAH WD NOM USD | I112: 2685717 | K112: US20825C1045 | M112: COP UN | O112: CONOCOPHILLIPS | Q112: COMMON STOCK PAR USD 0.01 | S112: S | U112: USD | W112: 90365 | Y112: 6376801.49 | AA112: 6376801.49 | AC112: 44.69 | AE112: 4038411.85 | AG112: 4038411.85 | AI112: 0 | AK112: 0 | AM112: 4038411.85 | AO112: 4038411.85
A113: 000000000212401 | C113: 2016-06-20 | E113: 000000000212401 | G113: EPF SHARIAH WD NOM USD | I113: 2318024 | K113: US26875P1012 | M113: EOG UN | O113: EOG RESOURCES INC | Q113: COMMON STOCK PAR USD 0.01 | S113: S | U113: USD | W113: 59950 | Y113: 5722630.48 | AA113: 5722630.48 | AC113: 83.19 | AE113: 4987240.5 | AG113: 4987240.5 | AI113: 0 | AK113: 0 | AM113: 4987240.5 | AO113: 4987240.5
A114: 000000000212401 | C114: 2016-06-20 | E114: 000000000212401 | G114: EPF SHARIAH WD NOM USD | I114: 2293819 | K114: US2786421030 | M114: EBAY UW | O114: EBAY INC | Q114: COMMON STOCK PAR USD 0.001 | S114: S | U114: USD | W114: 183967 | Y114: 5059279.43 | AA114: 5059279.43 | AC114: 24.57 | AE114: 4520069.19 | AG114: 4520069.19 | AI114: 0 | AK114: 0 | AM114: 4520069.19 | AO114: 4520069.19
A115: 000000000212401 | C115: 2016-06-20 | E115: 000000000212401 | G115: EPF SHARIAH WD NOM USD | I115: B7QQYV9 | K115: US30219G1085 | M115: ESRX UW | O115: EXPRESS SCRIPTS HOLDING CO | Q115: COMMON STOCK PAR USD 0.01 | S115: S | U115: USD | W115: 81769 | Y115: 6240964.25 | AA115: 6240964.25 | AC115: 74.14 | AE115: 6062353.66 | AG115: 6062353.66 | AI115: 0 | AK115: 0 | AM115: 6062353.66 | AO115: 6062353.66
A116: 000000000212401 | C116: 2016-06-20 | E116: 000000000212401 | G116: EPF SHARIAH WD NOM USD | I116: 2326618 | K116: US30231G1022 | M116: XOM UN | O116: EXXON MOBIL CORP | Q116: COMMON STOCK | S116: S | U116: USD | W116: 131376 | Y116: 12658529.5 | AA116: 12658529.5 | AC116: 91.12 | AE116: 11970981.12 | AG116: 11970981.12 | AI116: 0 | AK116: 0 | AM116: 11970981.12 | AO116: 11970981.12
A117: 000000000212401 | C117: 2016-06-20 | E117: 000000000212401 | G117: EPF SHARIAH WD NOM USD | I117: 2696838 | K117: US3434121022 | M117: FLR UN | O117: FLUOR CORP | Q117: COMMON STOCK PAR USD 0.01 | S117: S | U117: USD | W117: 34293 | Y117: 2244997.91 | AA117: 2244997.91 | AC117: 51.57 | AE117: 1768490.01 | AG117: 1768490.01 | AI117: 5041.07 | AK117: 5041.07 | AM117: 1775691.54 | AO117: 1775691.54
A118: 000000000212401 | C118: 2016-06-20 | E118: 000000000212401 | G118: EPF SHARIAH WD NOM USD | I118: B665KZ5 | K118: US37045V1008 | M118: GM UN | O118: GENERAL MOTORS CO | Q118: COMMON STOCK PAR USD 0.01 | S118: S | U118: USD | W118: 99562 | Y118: 3592518.72 | AA118: 3592518.72 | AC118: 29.65 | AE118: 2952013.3 | AG118: 2952013.3 | AI118: 26483.49 | AK118: 26483.49 | AM118: 2989846.86 | AO118: 2989846.86
A119: 000000000212401 | C119: 2016-06-20 | E119: 000000000212401 | G119: EPF SHARIAH WD NOM USD | I119: 2369174 | K119: US3755581036 | M119: GILD UW | O119: GILEAD SCIENCES INC | Q119: COMMON STOCK PAR USD 0.001 | S119: S | U119: USD | W119: 71359 | Y119: 7986271.23 | AA119: 7986271.23 | AC119: 82.99 | AE119: 5922083.41 | AG119: 5922083.41 | AI119: 23477.11 | AK119: 23477.11 | AM119: 5955622.14 | AO119: 5955622.14
A120: 000000000212401 | C120: 2016-06-20 | E120: 000000000212401 | G120: EPF SHARIAH WD NOM USD | I120: 4356646 | K120: CH0011037469 | M120: SYNN VX | O120: SYNGENTA AG-REG | Q120: COMMON STOCK PAR CHF 0.1 | S120: S | U120: CHF | W120: 7030 | Y120: 2736973.86 | AA120: 2833877.16 | AC120: 382 | AE120: 2685460 | AG120: 2799103.61 | AI120: 0 | AK120: 0 | AM120: 2685460 | AO120: 2799103.61
A121: 000000000212401 | C121: 2016-06-20 | E121: 000000000212401 | G121: EPF SHARIAH WD NOM USD | I121: 2463247 | K121: US4581401001 | M121: INTC UW | O121: INTEL CORP | Q121: COMMON STOCK PAR USD 0.001 | S121: S | U121: USD | W121: 163831 | Y121: 5231586.46 | AA121: 5231586.46 | AC121: 32.17 | AE121: 5270443.27 | AG121: 5270443.27 | AI121: 0 | AK121: 0 | AM121: 5270443.27 | AO121: 5270443.27
A122: 000000000212401 | C122: 2016-06-20 | E122: 000000000212401 | G122: EPF SHARIAH WD NOM USD | I122: 2005973 | K122: US4592001014 | M122: IBM UN | O122: INTL BUSINESS MACHINES CORP | Q122: COMMON STOCK PAR USD 0.2 | S122: S | U122: USD | W122: 13775 | Y122: 2733400.8 | AA122: 2733400.8 | AC122: 153.61 | AE122: 2115977.75 | AG122: 2115977.75 | AI122: 0 | AK122: 0 | AM122: 2115977.75 | AO122: 2115977.75
A123: 000000000212401 | C123: 2016-06-20 | E123: 000000000212401 | G123: EPF SHARIAH WD NOM USD | I123: 4617859 | K123: DE0005552004 | M123: DPW GY | O123: DEUTSCHE POST AG-REG | Q123: COMMON STOCK | S123: S | U123: EUR | W123: 173855 | Y123: 4403200.51 | AA123: 5684651.11 | AC123: 26.285 | AE123: 4569778.68 | AG123: 5180755.54 | AI123: 0 | AK123: 0 | AM123: 4569778.68 | AO123: 5180755.54
A124: 000000000212401 | C124: 2016-06-20 | E124: 000000000212401 | G124: EPF SHARIAH WD NOM USD | I124: 2475833 | K124: US4781601046 | M124: JNJ UN | O124: JOHNSON & JOHNSON | Q124: COMMON STOCK PAR USD 1 | S124: S | U124: USD | W124: 4526 | Y124: 524799.97 | AA124: 524799.97 | AC124: 116.54 | AE124: 527460.04 | AG124: 527460.04 | AI124: 0 | AK124: 0 | AM124: 527460.04 | AO124: 527460.04
A125: 000000000212401 | C125: 2016-06-20 | E125: 000000000212401 | G125: EPF SHARIAH WD NOM USD | I125: 2476803 | K125: US4783661071 | M125: 1436513 | O125: JOHNSON CONTROLS INC | Q125: COMMON STOCK PAR USD 0.01388 | S125: S | U125: USD | W125: 122005 | Y125: 5729599.63 | AA125: 5729599.63 | AC125: 44.43 | AE125: 5420682.15 | AG125: 5420682.15 | AI125: 24767.01 | AK125: 24767.01 | AM125: 5456063.6 | AO125: 5456063.6
A126: 000000000212401 | C126: 2016-06-20 | E126: 000000000212401 | G126: EPF SHARIAH WD NOM USD | I126: 4846288 | K126: DE0007164600 | M126: SAP GY | O126: SAP SE | Q126: COMMON STOCK | S126: S | U126: EUR | W126: 53193 | Y126: 3650712.36 | AA126: 4097130.05 | AC126: 69.6 | AE126: 3702232.8 | AG126: 4197219.26 | AI126: 0 | AK126: 0 | AM126: 3702232.8 | AO126: 4197219.26
A127: 000000000212401 | C127: 2016-06-20 | E127: 000000000212401 | G127: EPF SHARIAH WD NOM USD | I127: 2607647 | K127: US4851703029 | M127: KSU UN | O127: KANSAS CITY SOUTHERN | Q127: COMMON STOCK PAR USD 0.01 | S127: S | U127: USD | W127: 38607 | Y127: 4191685.57 | AA127: 4191685.57 | AC127: 89.33 | AE127: 3448763.31 | AG127: 3448763.31 | AI127: 8918.22 | AK127: 8918.22 | AM127: 3461503.62 | AO127: 3461503.62
A128: 000000000212401 | C128: 2016-06-20 | E128: 000000000212401 | G128: EPF SHARIAH WD NOM USD | I128: 4874160 | K128: FR0000131708 | M128: TEC FP | O128: TECHNIP SA | Q128: COMMON STOCK PAR EUR 0.7625 | S128: S | U128: EUR | W128: 27735 | Y128: 1425723.53 | AA128: 1948657.27 | AC128: 50.15 | AE128: 1390910.25 | AG128: 1576874.18 | AI128: 0 | AK128: 0 | AM128: 1390910.25 | AO128: 1576874.18
A129: 000000000212401 | C129: 2016-06-20 | E129: 000000000212401 | G129: EPF SHARIAH WD NOM USD | I129: 5069211 | K129: DE000BAY0017 | M129: BAYN GY | O129: BAYER AG-REG | Q129: COMMON STOCK | S129: S | U129: EUR | W129: 46016 | Y129: 5952857.26 | AA129: 6676296.23 | AC129: 90.42 | AE129: 4160766.72 | AG129: 4717058.91 | AI129: 0 | AK129: 0 | AM129: 4160766.72 | AO129: 4717058.91
A130: 000000000212401 | C130: 2016-06-20 | E130: 000000000212401 | G130: EPF SHARIAH WD NOM USD | I130: 5086577 | K130: DE000BASF111 | M130: BAS GY | O130: BASF SE | Q130: COMMON STOCK | S130: S | U130: EUR | W130: 30566 | Y130: 2128743.12 | AA130: 2405194.01 | AC130: 69.71 | AE130: 2130755.86 | AG130: 2415636.73 | AI130: 0 | AK130: 0 | AM130: 2130755.86 | AO130: 2415636.73
A131: 000000000212401 | C131: 2016-06-20 | E131: 000000000212401 | G131: EPF SHARIAH WD NOM USD | I131: 5505072 | K131: FR0000121485 | M131: KER FP | O131: KERING | Q131: COMMON STOCK PAR EUR 4 | S131: S | U131: EUR | W131: 19296 | Y131: 3006069.04 | AA131: 3349322.13 | AC131: 152.4 | AE131: 2940710.4 | AG131: 3333881.74 | AI131: 0 | AK131: 0 | AM131: 2940710.4 | AO131: 3333881.74
A132: 000000000212401 | C132: 2016-06-20 | E132: 000000000212401 | G132: EPF SHARIAH WD NOM USD | I132: 5727973 | K132: DE0007236101 | M132: SIE GY | O132: SIEMENS AG-REG | Q132: COMMON STOCK | S132: S | U132: EUR | W132: 51637 | Y132: 4829453.01 | AA132: 6148078.21 | AC132: 94.95 | AE132: 4902933.15 | AG132: 5558452.58 | AI132: 0 | AK132: 0 | AM132: 4902933.15 | AO132: 5558452.58
A133: 000000000212401 | C133: 2016-06-20 | E133: 000000000212401 | G133: EPF SHARIAH WD NOM USD | I133: B4W9F29 | K133: US5828391061 | M133: MJN UN | O133: MEAD JOHNSON NUTRITION CO | Q133: COMMON STOCK PAR USD 0.01 | S133: S | U133: USD | W133: 41816 | Y133: 4076253.79 | AA133: 4076253.79 | AC133: 87.36 | AE133: 3653045.76 | AG133: 3653045.76 | AI133: 12074.37 | AK133: 12074.37 | AM133: 3670294.86 | AO133: 3670294.86
A134: 000000000212401 | C134: 2016-06-20 | E134: 000000000212401 | G134: EPF SHARIAH WD NOM USD | I134: 2588184 | K134: US5951121038 | M134: MU UW | O134: MICRON TECHNOLOGY INC | Q134: COMMON STOCK PAR USD 0.1 | S134: S | U134: USD | W134: 230595 | Y134: 7262607.44 | AA134: 7262607.44 | AC134: 12.32 | AE134: 2840930.4 | AG134: 2840930.4 | AI134: 0 | AK134: 0 | AM134: 2840930.4 | AO134: 2840930.4
A135: 000000000212401 | C135: 2016-06-20 | E135: 000000000212401 | G135: EPF SHARIAH WD NOM USD | I135: 5959378 | K135: SE0000108656 | M135: ERICB S | O135: ERICSSON LM-B SHS | Q135: COMMON STOCK PAR SEK 5 | S135: S | U135: SEK | W135: 388483 | Y135: 35466036.47 | AA135: 4199990.28 | AC135: 65.1 | AE135: 25290243.3 | AG135: 3068776 | AI135: 0 | AK135: 0 | AM135: 25290243.3 | AO135: 3068776
A136: 000000000212401 | C136: 2016-06-20 | E136: 000000000212401 | G136: EPF SHARIAH WD NOM USD | I136: 5962332 | K136: NL0000226223 | M136: STM FP | O136: STMICROELECTRONICS NV | Q136: COMMON STOCK PAR EUR 1.04 | S136: S | U136: EUR | W136: 439032 | Y136: 3076995.06 | AA136: 3945822.58 | AC136: 5.162 | AE136: 2266283.18 | AG136: 2569283.98 | AI136: 19866.2 | AK136: 22522.3 | AM136: 2289655.18 | AO136: 2595780.8
A137: 000000000212401 | C137: 2016-06-20 | E137: 000000000212401 | G137: EPF SHARIAH WD NOM USD | I137: 6021500 | K137: JP3126400005 | M137: 6770 JT | O137: ALPS ELECTRIC CO LTD | Q137: COMMON STOCK | S137: S | U137: JPY | W137: 141100 | Y137: 542468244 | AA137: 4409453.32 | AC137: 2232 | AE137: 314935200 | AG137: 3016331.77 | AI137: 1799025 | AK137: 17230.39 | AM137: 317051700 | AO137: 3036602.82
A138: 000000000212401 | C138: 2016-06-20 | E138: 000000000212401 | G138: EPF SHARIAH WD NOM USD | I138: 2654320 | K138: US61166W1018 | M138: MON UN | O138: MONSANTO CO | Q138: COMMON STOCK PAR USD 0.01 | S138: S | U138: USD | W138: 51033 | Y138: 5549088.46 | AA138: 5549088.46 | AC138: 108.71 | AE138: 5547797.43 | AG138: 5547797.43 | AI138: 0 | AK138: 0 | AM138: 5547797.43 | AO138: 5547797.43
A139: 000000000212401 | C139: 2016-06-20 | E139: 000000000212401 | G139: EPF SHARIAH WD NOM USD | I139: 6132101 | K139: JP3830800003 | M139: 5108 JT | O139: BRIDGESTONE CORP | Q139: COMMON STOCK | S139: S | U139: JPY | W139: 59100 | Y139: 278358944 | AA139: 2307287.2 | AC139: 3491 | AE139: 206318100 | AG139: 1976037.74 | AI139: 0 | AK139: 0 | AM139: 206318100 | AO139: 1976037.74
A140: 000000000212401 | C140: 2016-06-20 | E140: 000000000212401 | G140: EPF SHARIAH WD NOM USD | I140: 6248990 | K140: JP3496400007 | M140: 9433 JT | O140: KDDI CORP | Q140: COMMON STOCK | S140: S | U140: JPY | W140: 119500 | Y140: 369728507 | AA140: 3442717.94 | AC140: 3034 | AE140: 362563000 | AG140: 3472493.06 | AI140: 2799475 | AK140: 26812.32 | AM140: 365856500 | AO140: 3504036.97
A141: 000000000212401 | C141: 2016-06-20 | E141: 000000000212401 | G141: EPF SHARIAH WD NOM USD | I141: 6250724 | K141: JP3481800005 | M141: 6367 JT | O141: DAIKIN INDUSTRIES LTD | Q141: COMMON STOCK | S141: S | U141: JPY | W141: 0 | Y141: 0 | AA141: 0 | AC141: 8630 | AE141: 0 | AG141: 0 | AI141: 1768000 | AK141: 16933.24 | AM141: 2080000 | AO141: 19921.46
A142: 000000000212401 | C142: 2016-06-20 | E142: 000000000212401 | G142: EPF SHARIAH WD NOM USD | I142: 2624486 | K142: US6370711011 | M142: NOV UN | O142: NATIONAL OILWELL VARCO INC | Q142: COMMON STOCK PAR USD 0.01 | S142: S | U142: USD | W142: 67826 | Y142: 4387201.79 | AA142: 4387201.79 | AC142: 35.16 | AE142: 2384762.16 | AG142: 2384762.16 | AI142: 2373.91 | AK142: 2373.91 | AM142: 2388153.46 | AO142: 2388153.46
A143: 000000000212401 | C143: 2016-06-20 | E143: 000000000212401 | G143: EPF SHARIAH WD NOM USD | I143: 6467074 | K143: AU000000FXJ5 | M143: FXJ AT | O143: FAIRFAX MEDIA LTD | Q143: COMMON STOCK | S143: S | U143: AUD | W143: 2151242 | Y143: 1834464.8 | AA143: 1465252.37 | AC143: 0.935 | AE143: 2011411.27 | AG143: 1501619.1 | AI143: 0 | AK143: 0 | AM143: 2011411.27 | AO143: 1501619.1
A144: 000000000212401 | C144: 2016-06-20 | E144: 000000000212401 | G144: EPF SHARIAH WD NOM USD | I144: 6467104 | K144: JP3137200006 | M144: 7202 JT | O144: ISUZU MOTORS LTD | Q144: COMMON STOCK | S144: S | U144: JPY | W144: 172100 | Y144: 211192033 | AA144: 1972402.14 | AC144: 1293.5 | AE144: 222611350 | AG144: 2132088.4 | AI144: 1731280 | AK144: 16581.55 | AM144: 224648150 | AO144: 2151596.11
A145: 000000000212401 | C145: 2016-06-20 | E145: 000000000212401 | G145: EPF SHARIAH WD NOM USD | I145: 6483809 | K145: JP3205800000 | M145: 4452 JT | O145: KAO CORP | Q145: COMMON STOCK | S145: S | U145: JPY | W145: 36400 | Y145: 222141883 | AA145: 2040128.59 | AC145: 5821 | AE145: 211884400 | AG145: 2029349.68 | AI145: 0 | AK145: 0 | AM145: 211884400 | AO145: 2029349.68
A146: 000000000212401 | C146: 2016-06-20 | E146: 000000000212401 | G146: EPF SHARIAH WD NOM USD | I146: 6597045 | K146: JP3902400005 | M146: 6503 JT | O146: MITSUBISHI ELECTRIC CORP | Q146: COMMON STOCK | S146: S | U146: JPY | W146: 199000 | Y146: 274597242 | AA146: 2527058.53 | AC146: 1317.5 | AE146: 262182500 | AG146: 2511086.1 | AI146: 0 | AK146: 0 | AM146: 262182500 | AO146: 2511086.1
A147: 000000000212401 | C147: 2016-06-20 | E147: 000000000212401 | G147: EPF SHARIAH WD NOM USD | I147: 6640682 | K147: JP3734800000 | M147: 6594 JT | O147: NIDEC CORP | Q147: COMMON STOCK | S147: S | U147: JPY | W147: 43000 | Y147: 423090083 | AA147: 3435039.79 | AC147: 7769 | AE147: 334067000 | AG147: 3199569.01 | AI147: 0 | AK147: 0 | AM147: 334067000 | AO147: 3199569.01
A148: 000000000212401 | C148: 2016-06-20 | E148: 000000000212401 | G148: EPF SHARIAH WD NOM USD | I148: 6641801 | K148: JP3684000007 | M148: 6988 JT | O148: NITTO DENKO CORP | Q148: COMMON STOCK | S148: S | U148: JPY | W148: 50600 | Y148: 460654021 | AA148: 3750901.16 | AC148: 6780 | AE148: 343068000 | AG148: 3285777.22 | AI148: 3010700 | AK148: 28835.36 | AM148: 346610000 | AO148: 3319701.17
A149: 000000000212401 | C149: 2016-06-20 | E149: 000000000212401 | G149: EPF SHARIAH WD NOM USD | I149: 6673042 | K149: AU000000IPL1 | M149: IPL AT | O149: INCITEC PIVOT LTD | Q149: COMMON STOCK | S149: S | U149: AUD | W149: 1394380 | Y149: 5211201.19 | AA149: 3937343.43 | AC149: 3.35 | AE149: 4671173 | AG149: 3487264.23 | AI149: 38990.6 | AK149: 29108.43 | AM149: 4717044.29 | AO149: 3521509.44
A150: 000000000212401 | C150: 2016-06-20 | E150: 000000000212401 | G150: EPF SHARIAH WD NOM USD | I150: 6687571 | K150: JP3651210001 | M150: 6268 JT | O150: NABTESCO CORP | Q150: COMMON STOCK | S150: S | U150: JPY | W150: 39200 | Y150: 130459092 | AA150: 1086692.05 | AC150: 2640 | AE150: 103488000 | AG150: 991169.43 | AI150: 0 | AK150: 0 | AM150: 103488000 | AO150: 991169.43
A151: 000000000212401 | C151: 2016-06-20 | E151: 000000000212401 | G151: EPF SHARIAH WD NOM USD | I151: 6758455 | K151: JP3976300008 | M151: 7453 JT | O151: RYOHIN KEIKAKU CO LTD | Q151: COMMON STOCK | S151: S | U151: JPY | W151: 12900 | Y151: 326783065 | AA151: 2990319.21 | AC151: 25480 | AE151: 328692000 | AG151: 3148089.26 | AI151: 0 | AK151: 0 | AM151: 328692000 | AO151: 3148089.26
A152: 000000000212401 | C152: 2016-06-20 | E152: 000000000212401 | G152: EPF SHARIAH WD NOM USD | I152: 6870100 | K152: JP3443600006 | M152: 1801 JT | O152: TAISEI CORP | Q152: COMMON STOCK | S152: S | U152: JPY | W152: 342000 | Y152: 263105099 | AA152: 2418226.87 | AC152: 811 | AE152: 277362000 | AG152: 2656469.69 | AI152: 0 | AK152: 0 | AM152: 277362000 | AO152: 2656469.69
A153: 000000000212401 | C153: 2016-06-20 | E153: 000000000212401 | G153: EPF SHARIAH WD NOM USD | I153: 6900308 | K153: JP3868400007 | M153: 7261 JT | O153: MAZDA MOTOR CORP | Q153: COMMON STOCK | S153: S | U153: JPY | W153: 145400 | Y153: 366369260 | AA153: 3260657.47 | AC153: 1683.5 | AE153: 244780900 | AG153: 2344420.07 | AI153: 1853850 | AK153: 17755.48 | AM153: 246961900 | AO153: 2365308.87
A154: 000000000212401 | C154: 2016-06-20 | E154: 000000000212401 | G154: EPF SHARIAH WD NOM USD | I154: 6911485 | K154: JP3951600000 | M154: 8113 JT | O154: UNICHARM CORP | Q154: COMMON STOCK | S154: S | U154: JPY | W154: 107000 | Y154: 354963705 | AA154: 2962739.16 | AC154: 2158.5 | AE154: 230959500 | AG154: 2212043.87 | AI154: 0 | AK154: 0 | AM154: 230959500 | AO154: 2212043.87
A155: 000000000212401 | C155: 2016-06-20 | E155: 000000000212401 | G155: EPF SHARIAH WD NOM USD | I155: 7103065 | K155: CH0012005267 | M155: NOVN VX | O155: NOVARTIS AG-REG | Q155: COMMON STOCK PAR CHF 0.5 | S155: S | U155: CHF | W155: 39951 | Y155: 3578430.33 | AA155: 3706565.34 | AC155: 75.95 | AE155: 3034278.45 | AG155: 3162683.4 | AI155: 0 | AK155: 0 | AM155: 3034278.45 | AO155: 3162683.4
A156: 000000000212401 | C156: 2016-06-20 | E156: 000000000212401 | G156: EPF SHARIAH WD NOM USD | I156: 7110388 | K156: CH0012032048 | M156: ROG VX | O156: ROCHE HOLDING AG-GENUSSCHEIN | Q156: COMMON STOCK | S156: S | U156: CHF | W156: 31283 | Y156: 8346741.32 | AA156: 8997595.13 | AC156: 245.8 | AE156: 7689361.4 | AG156: 8014760.68 | AI156: 0 | AK156: 0 | AM156: 7689361.4 | AO156: 8014760.68
A157: 000000000212401 | C157: 2016-06-20 | E157: 000000000212401 | G157: EPF SHARIAH WD NOM USD | I157: 7110720 | K157: CH0012138605 | M157: ADEN VX | O157: ADECCO GROUP AG-REG | Q157: COMMON STOCK PAR CHF 1 | S157: S | U157: CHF | W157: 38971 | Y157: 2497295.48 | AA157: 2568633.94 | AC157: 57.65 | AE157: 2246678.15 | AG157: 2341753.34 | AI157: 0 | AK157: 0 | AM157: 2246678.15 | AO157: 2341753.34
A158: 000000000212401 | C158: 2016-06-20 | E158: 000000000212401 | G158: EPF SHARIAH WD NOM USD | I158: 2681511 | K158: US7134481081 | M158: PEP UN | O158: PEPSICO INC | Q158: COMMON STOCK PAR USD 0.017 | S158: S | U158: USD | W158: 0 | Y158: 0 | AA158: 0 | AC158: 103.37 | AE158: 0 | AG158: 0 | AI158: 38853.08 | AK158: 38853.08 | AM158: 55504.4 | AO158: 55504.4
A159: 000000000212401 | C159: 2016-06-20 | E159: 000000000212401 | G159: EPF SHARIAH WD NOM USD | I159: 7145056 | K159: IT0003132476 | M159: ENI IM | O159: ENI SPA | Q159: COMMON STOCK | S159: S | U159: EUR | W159: 245273 | Y159: 4312399.05 | AA159: 5670106.03 | AC159: 14.16 | AE159: 3473065.68 | AG159: 3937412.63 | AI159: 0 | AK159: 0 | AM159: 3473065.68 | AO159: 3937412.63
A160: 000000000212401 | C160: 2016-06-20 | E160: 000000000212401 | G160: EPF SHARIAH WD NOM USD | I160: 2684703 | K160: US7170811035 | M160: PFE UN | O160: PFIZER INC | Q160: COMMON STOCK PAR USD 0.05 | S160: S | U160: USD | W160: 232083 | Y160: 7941026.04 | AA160: 7941026.04 | AC160: 34.5 | AE160: 8006863.5 | AG160: 8006863.5 | AI160: 0 | AK160: 0 | AM160: 8006863.5 | AO160: 8006863.5
A161: 000000000212401 | C161: 2016-06-20 | E161: 000000000212401 | G161: EPF SHARIAH WD NOM USD | I161: 2779063 | K161: US7415034039 | M161: PCLN UW | O161: PRICELINE GROUP INC/THE | Q161: COMMON STOCK PAR USD 0.008 | S161: S | U161: USD | W161: 3339 | Y161: 4323710.68 | AA161: 4323710.68 | AC161: 1341.96 | AE161: 4480804.44 | AG161: 4480804.44 | AI161: 0 | AK161: 0 | AM161: 4480804.44 | AO161: 4480804.44
A162: 000000000212401 | C162: 2016-06-20 | E162: 000000000212401 | G162: EPF SHARIAH WD NOM USD | I162: 2704407 | K162: US7427181091 | M162: PG UN | O162: PROCTER & GAMBLE CO/THE | Q162: COMMON STOCK | S162: S | U162: USD | W162: 100283 | Y162: 8559405.17 | AA162: 8559405.17 | AC162: 83.04 | AE162: 8327500.32 | AG162: 8327500.32 | AI162: 0 | AK162: 0 | AM162: 8327500.32 | AO162: 8327500.32
A163: 000000000212401 | C163: 2016-06-20 | E163: 000000000212401 | G163: EPF SHARIAH WD NOM USD | I163: BR9YYP4 | K163: US74736K1016 | M163: QRVO UW | O163: QORVO INC | Q163: COMMON STOCK PAR USD 0.0001 | S163: S | U163: USD | W163: 78044 | Y163: 4285703.96 | AA163: 4285703.96 | AC163: 55.98 | AE163: 4368903.12 | AG163: 4368903.12 | AI163: 0 | AK163: 0 | AM163: 4368903.12 | AO163: 4368903.12
A164: 000000000212401 | C164: 2016-06-20 | E164: 000000000212401 | G164: EPF SHARIAH WD NOM USD | I164: 2746711 | K164: US7782961038 | M164: ROST UW | O164: ROSS STORES INC | Q164: COMMON STOCK PAR USD 0.01 | S164: S | U164: USD | W164: 71751 | Y164: 3917532.96 | AA164: 3917532.96 | AC164: 54.2 | AE164: 3888904.2 | AG164: 3888904.2 | AI164: 6473.63 | AK164: 6473.63 | AM164: 3898152.24 | AO164: 3898152.24
A165: 000000000212401 | C165: 2016-06-20 | E165: 000000000212401 | G165: EPF SHARIAH WD NOM USD | I165: 2779201 | K165: AN8068571086 | M165: SLB UN | O165: SCHLUMBERGER LTD | Q165: COMMON STOCK PAR USD 0.01 | S165: S | U165: USD | W165: 79914 | Y165: 8218652.66 | AA165: 8218652.66 | AC165: 77.59 | AE165: 6200527.26 | AG165: 6200527.26 | AI165: 39957 | AK165: 39957 | AM165: 6240484.26 | AO165: 6240484.26
A166: 000000000212401 | C166: 2016-06-20 | E166: 000000000212401 | G166: EPF SHARIAH WD NOM USD | I166: 2818740 | K166: US8330341012 | M166: SNA UN | O166: SNAP-ON INC | Q166: COMMON STOCK PAR USD 1 | S166: S | U166: USD | W166: 8623 | Y166: 1370226.27 | AA166: 1370226.27 | AC166: 154.2 | AE166: 1329666.6 | AG166: 1329666.6 | AI166: 0 | AK166: 0 | AM166: 1329666.6 | AO166: 1329666.6
A167: 000000000212401 | C167: 2016-06-20 | E167: 000000000212401 | G167: EPF SHARIAH WD NOM USD | I167: 2892090 | K167: US8865471085 | M167: TIF UN | O167: TIFFANY & CO | Q167: COMMON STOCK PAR USD 0.01 | S167: S | U167: USD | W167: 52498 | Y167: 3986462.29 | AA167: 3986462.29 | AC167: 61.75 | AE167: 3241751.5 | AG167: 3241751.5 | AI167: 16536.87 | AK167: 16536.87 | AM167: 3265375.6 | AO167: 3265375.6
A168: 000000000212401 | C168: 2016-06-20 | E168: 000000000212401 | G168: EPF SHARIAH WD NOM USD | I168: B019MQ5 | K168: JP3110650003 | M168: 7747 JT | O168: ASAHI INTECC CO LTD | Q168: COMMON STOCK | S168: S | U168: JPY | W168: 30000 | Y168: 154047820 | AA168: 1462206.39 | AC168: 5110 | AE168: 153300000 | AG168: 1468250.17 | AI168: 0 | AK168: 0 | AM168: 153300000 | AO168: 1468250.17
A169: 000000000212401 | C169: 2016-06-20 | E169: 000000000212401 | G169: EPF SHARIAH WD NOM USD | I169: B12T3J1 | K169: NL0000009355 | M169: UNA NA | O169: UNILEVER NV-CVA | Q169: DEPOSITORY RECEIPT | S169: S | U169: EUR | W169: 69579 | Y169: 2677237.43 | AA169: 3008608.09 | AC169: 39.465 | AE169: 2745935.24 | AG169: 3113065.25 | AI169: 0 | AK169: 0 | AM169: 2745935.24 | AO169: 3113065.25
A170: 000000000212401 | C170: 2016-06-20 | E170: 000000000212401 | G170: EPF SHARIAH WD NOM USD | I170: B15C557 | K170: FR0000120271 | M170: FP FP | O170: TOTAL SA | Q170: COMMON STOCK PAR EUR 2.5 | S170: S | U170: EUR | W170: 80760 | Y170: 3836454.01 | AA170: 4893017.27 | AC170: 42.72 | AE170: 3450067.2 | AG170: 3911339.26 | AI170: 34484.52 | AK170: 39095.09 | AM170: 3499330.8 | AO170: 3967189.38
A171: 000000000212401 | C171: 2016-06-20 | E171: 000000000212401 | G171: EPF SHARIAH WD NOM USD | I171: B1XZS82 | K171: GB00B1XZS820 | M171: AAL LN | O171: ANGLO AMERICAN PLC | Q171: COMMON STOCK PAR USD 0.54945 | S171: S | U171: GBP | W171: 78278 | Y171: 1032190.47 | AA171: 1609027.63 | AC171: 6.7 | AE171: 524462.6 | AG171: 770724.49 | AI171: 0 | AK171: 0 | AM171: 524462.6 | AO171: 770724.49
A172: 000000000212401 | C172: 2016-06-20 | E172: 000000000212401 | G172: EPF SHARIAH WD NOM USD | I172: B1YXBJ7 | K172: FR0000120073 | M172: AI FP | O172: AIR LIQUIDE SA | Q172: COMMON STOCK PAR EUR 5.5 | S172: S | U172: EUR | W172: 48698 | Y172: 4976879.16 | AA172: 5726419.45 | AC172: 93.55 | AE172: 4555697.9 | AG172: 5164792.17 | AI172: 0 | AK172: 0 | AM172: 4555697.9 | AO172: 5164792.17
A173: 000000000212401 | C173: 2016-06-20 | E173: 000000000212401 | G173: EPF SHARIAH WD NOM USD | I173: B2QKY05 | K173: JE00B2QKY057 | M173: SHP LN | O173: SHIRE PLC | Q173: COMMON STOCK PAR GBp 5 | S173: S | U173: GBP | W173: 86987 | Y173: 4405015.66 | AA173: 6747780.89 | AC173: 40.1 | AE173: 3488178.7 | AG173: 5126056.17 | AI173: 0 | AK173: 0 | AM173: 3488178.7 | AO173: 5126056.17
A174: 000000000212401 | C174: 2016-06-20 | E174: 000000000212401 | G174: EPF SHARIAH WD NOM USD | I174: B3CTNK6 | K174: BMG812761002 | M174: SIG UN | O174: SIGNET JEWELERS LTD | Q174: COMMON STOCK PAR USD 0.18 | S174: S | U174: USD | W174: 50498 | Y174: 6138140.69 | AA174: 6138140.69 | AC174: 86.01 | AE174: 4343332.98 | AG174: 4343332.98 | AI174: 0 | AK174: 0 | AM174: 4343332.98 | AO174: 4343332.98
A175: 000000000212401 | C175: 2016-06-20 | E175: 000000000212401 | G175: EPF SHARIAH WD NOM USD | I175: B3CY709 | K175: JP3547670004 | M175: 2181 JT | O175: TEMP HOLDINGS CO LTD | Q175: COMMON STOCK | S175: S | U175: JPY | W175: 0 | Y175: 0 | AA175: 0 | AC175: 1678 | AE175: 0 | AG175: 0 | AI175: 0 | AK175: 0 | AM175: 0 | AO175: 0
A176: 000000000212401 | C176: 2016-06-20 | E176: 000000000212401 | G176: EPF SHARIAH WD NOM USD | I176: B3NB1P2 | K176: CA8672241079 | M176: SU CT | O176: SUNCOR ENERGY INC | Q176: COMMON STOCK | S176: S | U176: CAD | W176: 76801 | Y176: 3179836.88 | AA176: 2964193.8 | AC176: 34.52 | AE176: 2651170.52 | AG176: 2072279.3 | AI176: 18931.45 | AK176: 14797.71 | AM176: 2673442.81 | AO176: 2089688.37
A177: 000000000212401 | C177: 2016-06-20 | E177: 000000000212401 | G177: EPF SHARIAH WD NOM USD | I177: B505PN7 | K177: NL0009538784 | M177: NXPI UW | O177: NXP SEMICONDUCTORS NV | Q177: COMMON STOCK | S177: S | U177: USD | W177: 30155 | Y177: 2632039.49 | AA177: 2632039.49 | AC177: 85.35 | AE177: 2573729.25 | AG177: 2573729.25 | AI177: 0 | AK177: 0 | AM177: 2573729.25 | AO177: 2573729.25
A178: 000000000212401 | C178: 2016-06-20 | E178: 000000000212401 | G178: EPF SHARIAH WD NOM USD | I178: B58JVZ5 | K178: IE00B58JVZ52 | M178: STX UW | O178: SEAGATE TECHNOLOGY | Q178: COMMON STOCK PAR USD 0.00001 | S178: S | U178: USD | W178: 79898 | Y178: 4060855.03 | AA178: 4060855.03 | AC178: 23.43 | AE178: 1872010.14 | AG178: 1872010.14 | AI178: 0 | AK178: 0 | AM178: 1872010.14 | AO178: 1872010.14
A179: 000000000212401 | C179: 2016-06-20 | E179: 000000000212401 | G179: EPF SHARIAH WD NOM USD | I179: B62B7C3 | K179: CH0102993182 | M179: TEL UN | O179: TE CONNECTIVITY LTD | Q179: COMMON STOCK PAR CHF 0.57 | S179: S | U179: USD | W179: 82481 | Y179: 5496451.7 | AA179: 5496451.7 | AC179: 61.49 | AE179: 5071756.69 | AG179: 5071756.69 | AI179: 0 | AK179: 0 | AM179: 5071756.69 | AO179: 5071756.69
A180: 000000000212401 | C180: 2016-06-20 | E180: 000000000212401 | G180: EPF SHARIAH WD NOM USD | I180: B633030 | K180: IE00B6330302 | M180: IR UN | O180: INGERSOLL-RAND PLC | Q180: COMMON STOCK PAR USD 1 | S180: S | U180: USD | W180: 53244 | Y180: 3487422.37 | AA180: 3487422.37 | AC180: 65.97 | AE180: 3512506.68 | AG180: 3512506.68 | AI180: 17038.08 | AK180: 17038.08 | AM180: 3529544.76 | AO180: 3529544.76
A181: 000000000212401 | C181: 2016-06-20 | E181: 000000000212401 | G181: EPF SHARIAH WD NOM USD | I181: B88MHC4 | K181: DE000A1PHFF7 | M181: BOSS GY | O181: HUGO BOSS AG -ORD | Q181: COMMON STOCK | S181: S | U181: EUR | W181: 41153 | Y181: 4024584.99 | AA181: 5052053.61 | AC181: 55.64 | AE181: 2289752.92 | AG181: 2595891.61 | AI181: 0 | AK181: 0 | AM181: 2289752.92 | AO181: 2595891.61
A182: 000000000212401 | C182: 2016-06-20 | E182: 000000000212401 | G182: EPF SHARIAH WD NOM USD | I182: B8KQN82 | K182: IE00B8KQN827 | M182: ETN UN | O182: EATON CORP PLC | Q182: COMMON STOCK PAR USD 0.01 | S182: S | U182: USD | W182: 76415 | Y182: 5488533.08 | AA182: 5488533.08 | AC182: 62.29 | AE182: 4759890.35 | AG182: 4759890.35 | AI182: 0 | AK182: 0 | AM182: 4759890.35 | AO182: 4759890.35
A183: 000000000212401 | C183: 2016-06-20 | E183: 000000000212401 | G183: EPF SHARIAH WD NOM USD | I183: BH4HKS3 | K183: GB00BH4HKS39 | M183: VOD LN | O183: VODAFONE GROUP PLC | Q183: COMMON STOCK PAR USD 0.2095 | S183: S | U183: GBP | W183: 1600786 | Y183: 4026278.78 | AA183: 6682777.01 | AC183: 2.1615 | AE183: 3460098.94 | AG183: 5084791.53 | AI183: 124381.07 | AK183: 182784.31 | AM183: 3584480.01 | AO183: 5267575.84
A184: 000000000212401 | C184: 2016-06-20 | E184: 000000000212401 | G184: EPF SHARIAH WD NOM USD | I184: BY9D546 | K184: IE00BY9D5467 | M184: AGN UN | O184: ALLERGAN PLC | Q184: COMMON STOCK PAR USD 0.0033 | S184: S | U184: USD | W184: 26601 | Y184: 7694052.68 | AA184: 7694052.68 | AC184: 235.26 | AE184: 6258151.26 | AG184: 6258151.26 | AI184: 0 | AK184: 0 | AM184: 6258151.26 | AO184: 6258151.26
A185: 000000000212401 | C185: 2016-09-19 | E185: 000000000212401 | G185: EPF SHARIAH WD NOM USD | I185: 2507457 | K185: US00971T1016 | M185: AKAM UW | O185: AKAMAI TECHNOLOGIES INC | Q185: COMMON STOCK PAR USD 0.01 | S185: S | U185: USD | W185: 80432 | Y185: 4457733.3 | AA185: 4457733.3 | AC185: 51.62 | AE185: 4151899.84 | AG185: 4151899.84 | AI185: 0 | AK185: 0 | AM185: 4151899.84 | AO185: 4151899.84
A186: 000000000212401 | C186: 2016-09-19 | E186: 000000000212401 | G186: EPF SHARIAH WD NOM USD | I186: 2795393 | K186: US03073E1055 | M186: ABC UN | O186: AMERISOURCEBERGEN CORP | Q186: COMMON STOCK PAR USD 0.01 | S186: S | U186: USD | W186: 62710 | Y186: 6338853.33 | AA186: 6338853.33 | AC186: 83.26 | AE186: 5221234.6 | AG186: 5221234.6 | AI186: 0 | AK186: 0 | AM186: 5221234.6 | AO186: 5221234.6
A187: 000000000212401 | C187: 2016-09-19 | E187: 000000000212401 | G187: EPF SHARIAH WD NOM USD | I187: 2043962 | K187: US0374111054 | M187: APA UN | O187: APACHE CORP | Q187: COMMON STOCK PAR USD 0.625 | S187: S | U187: USD | W187: 19000 | Y187: 1182612.54 | AA187: 1182612.54 | AC187: 57.85 | AE187: 1099150 | AG187: 1099150 | AI187: 0 | AK187: 0 | AM187: 1099150 | AO187: 1099150
A188: 000000000212401 | C188: 2016-09-19 | E188: 000000000212401 | G188: EPF SHARIAH WD NOM USD | I188: 2046251 | K188: US0378331005 | M188: AAPL UW | O188: APPLE INC | Q188: COMMON STOCK PAR USD 0.00001 | S188: S | U188: USD | W188: 166052 | Y188: 18900899.5 | AA188: 18900899.5 | AC188: 113.58 | AE188: 18860186.16 | AG188: 18860186.16 | AI188: 0 | AK188: 0 | AM188: 18860186.16 | AO188: 18860186.16
A189: 000000000212401 | C189: 2016-09-19 | E189: 000000000212401 | G189: EPF SHARIAH WD NOM USD | I189: 0798059 | K189: GB0007980591 | M189: BP/ LN | O189: BP PLC | Q189: COMMON STOCK PAR USD 0.25 | S189: S | U189: GBP | W189: 646760 | Y189: 2697741.49 | AA189: 3710382.2 | AC189: 4.263 | AE189: 2757137.88 | AG189: 3601234.94 | AI189: 0 | AK189: 0 | AM189: 2757137.88 | AO189: 3601234.94
A190: 000000000212401 | C190: 2016-09-19 | E190: 000000000212401 | G190: EPF SHARIAH WD NOM USD | I190: 2437071 | K190: US09061G1013 | M190: BMRN UW | O190: BIOMARIN PHARMACEUTICAL INC | Q190: COMMON STOCK PAR USD 0.001 | S190: S | U190: USD | W190: 36891 | Y190: 3388975.02 | AA190: 3388975.02 | AC190: 98.11 | AE190: 3619376.01 | AG190: 3619376.01 | AI190: 0 | AK190: 0 | AM190: 3619376.01 | AO190: 3619376.01
A191: 000000000212401 | C191: 2016-09-19 | E191: 000000000212401 | G191: EPF SHARIAH WD NOM USD | I191: 2455965 | K191: US09062X1037 | M191: BIIB UW | O191: BIOGEN INC | Q191: COMMON STOCK PAR USD 0.0005 | S191: S | U191: USD | W191: 16968 | Y191: 6823687.45 | AA191: 6823687.45 | AC191: 303.5 | AE191: 5149788 | AG191: 5149788 | AI191: 0 | AK191: 0 | AM191: 5149788 | AO191: 5149788
A192: 000000000212401 | C192: 2016-09-19 | E192: 000000000212401 | G192: EPF SHARIAH WD NOM USD | I192: 0922320 | K192: GB0009223206 | M192: SN/ LN | O192: SMITH & NEPHEW PLC | Q192: COMMON STOCK PAR USD 0.2 | S192: S | U192: GBP | W192: 212983 | Y192: 2386305.05 | AA192: 3520269.93 | AC192: 12.41 | AE192: 2643119.03 | AG192: 3452309.25 | AI192: 0 | AK192: 0 | AM192: 2643119.03 | AO192: 3452309.25
A193: 000000000212401 | C193: 2016-09-19 | E193: 000000000212401 | G193: EPF SHARIAH WD NOM USD | I193: 0989529 | K193: GB0009895292 | M193: AZN LN | O193: ASTRAZENECA PLC | Q193: COMMON STOCK PAR USD 0.25 | S193: S | U193: GBP | W193: 109832 | Y193: 4692245.15 | AA193: 7593719.75 | AC193: 50.79 | AE193: 5578367.28 | AG193: 7286183 | AI193: 0 | AK193: 0 | AM193: 5578367.28 | AO193: 7286183
A194: 000000000212401 | C194: 2016-09-19 | E194: 000000000212401 | G194: EPF SHARIAH WD NOM USD | I194: 2577609 | K194: US1266501006 | M194: CVS UN | O194: CVS HEALTH CORP | Q194: COMMON STOCK PAR USD 0.01 | S194: S | U194: USD | W194: 82898 | Y194: 8531202.91 | AA194: 8531202.91 | AC194: 89.17 | AE194: 7392014.66 | AG194: 7392014.66 | AI194: 0 | AK194: 0 | AM194: 7392014.66 | AO194: 7392014.66
A195: 000000000212401 | C195: 2016-09-19 | E195: 000000000212401 | G195: EPF SHARIAH WD NOM USD | I195: 2838555 | K195: US1667641005 | M195: CVX UN | O195: CHEVRON CORP | Q195: COMMON STOCK PAR USD 0.75 | S195: S | U195: USD | W195: 70748 | Y195: 7251487.23 | AA195: 7251487.23 | AC195: 98.04 | AE195: 6936133.92 | AG195: 6936133.92 | AI195: 0 | AK195: 0 | AM195: 6936133.92 | AO195: 6936133.92
A196: 000000000212401 | C196: 2016-09-19 | E196: 000000000212401 | G196: EPF SHARIAH WD NOM USD | I196: 2257019 | K196: US1924461023 | M196: CTSH UW | O196: COGNIZANT TECH SOLUTIONS-A | Q196: COMMON STOCK PAR USD 0.01 | S196: S | U196: USD | W196: 89869 | Y196: 5517821.39 | AA196: 5517821.39 | AC196: 53.33 | AE196: 4792713.77 | AG196: 4792713.77 | AI196: 0 | AK196: 0 | AM196: 4792713.77 | AO196: 4792713.77
A197: 000000000212401 | C197: 2016-09-19 | E197: 000000000212401 | G197: EPF SHARIAH WD NOM USD | I197: 2685717 | K197: US20825C1045 | M197: COP UN | O197: CONOCOPHILLIPS | Q197: COMMON STOCK PAR USD 0.01 | S197: S | U197: USD | W197: 103607 | Y197: 6949920.98 | AA197: 6949920.98 | AC197: 39.28 | AE197: 4069682.96 | AG197: 4069682.96 | AI197: 0 | AK197: 0 | AM197: 4069682.96 | AO197: 4069682.96
A198: 000000000212401 | C198: 2016-09-19 | E198: 000000000212401 | G198: EPF SHARIAH WD NOM USD | I198: 2318024 | K198: US26875P1012 | M198: EOG UN | O198: EOG RESOURCES INC | Q198: COMMON STOCK PAR USD 0.01 | S198: S | U198: USD | W198: 59257 | Y198: 5656421.19 | AA198: 5656421.19 | AC198: 90.05 | AE198: 5336092.85 | AG198: 5336092.85 | AI198: 0 | AK198: 0 | AM198: 5336092.85 | AO198: 5336092.85
A199: 000000000212401 | C199: 2016-09-19 | E199: 000000000212401 | G199: EPF SHARIAH WD NOM USD | I199: B7QQYV9 | K199: US30219G1085 | M199: ESRX UW | O199: EXPRESS SCRIPTS HOLDING CO | Q199: COMMON STOCK PAR USD 0.01 | S199: S | U199: USD | W199: 87773 | Y199: 6684375.29 | AA199: 6684375.29 | AC199: 69.66 | AE199: 6114267.18 | AG199: 6114267.18 | AI199: 0 | AK199: 0 | AM199: 6114267.18 | AO199: 6114267.18
A200: 000000000212401 | C200: 2016-09-19 | E200: 000000000212401 | G200: EPF SHARIAH WD NOM USD | I200: 2326618 | K200: US30231G1022 | M200: XOM UN | O200: EXXON MOBIL CORP | Q200: COMMON STOCK | S200: S | U200: USD | W200: 116973 | Y200: 11254354.69 | AA200: 11254354.69 | AC200: 83.83 | AE200: 9805846.59 | AG200: 9805846.59 | AI200: 0 | AK200: 0 | AM200: 9805846.59 | AO200: 9805846.59
A201: 000000000212401 | C201: 2016-09-19 | E201: 000000000212401 | G201: EPF SHARIAH WD NOM USD | I201: B665KZ5 | K201: US37045V1008 | M201: GM UN | O201: GENERAL MOTORS CO | Q201: COMMON STOCK PAR USD 0.01 | S201: S | U201: USD | W201: 102685 | Y201: 3691549.05 | AA201: 3691549.05 | AC201: 31.72 | AE201: 3257168.2 | AG201: 3257168.2 | AI201: 26483.49 | AK201: 26483.49 | AM201: 3295001.76 | AO201: 3295001.76
A202: 000000000212401 | C202: 2016-09-19 | E202: 000000000212401 | G202: EPF SHARIAH WD NOM USD | I202: 2369174 | K202: US3755581036 | M202: GILD UW | O202: GILEAD SCIENCES INC | Q202: COMMON STOCK PAR USD 0.001 | S202: S | U202: USD | W202: 80560 | Y202: 8717505.39 | AA202: 8717505.39 | AC202: 78.99 | AE202: 6363434.4 | AG202: 6363434.4 | AI202: 26504.24 | AK202: 26504.24 | AM202: 6401297.6 | AO202: 6401297.6
A203: 000000000212401 | C203: 2016-09-19 | E203: 000000000212401 | G203: EPF SHARIAH WD NOM USD | I203: 2463247 | K203: US4581401001 | M203: INTC UW | O203: INTEL CORP | Q203: COMMON STOCK PAR USD 0.001 | S203: S | U203: USD | W203: 111009 | Y203: 3948129.07 | AA203: 3948129.07 | AC203: 37.16 | AE203: 4125094.44 | AG203: 4125094.44 | AI203: 0 | AK203: 0 | AM203: 4125094.44 | AO203: 4125094.44
A204: 000000000212401 | C204: 2016-09-19 | E204: 000000000212401 | G204: EPF SHARIAH WD NOM USD | I204: 2005973 | K204: US4592001014 | M204: IBM UN | O204: INTL BUSINESS MACHINES CORP | Q204: COMMON STOCK PAR USD 0.2 | S204: S | U204: USD | W204: 9948 | Y204: 1974001.54 | AA204: 1974001.54 | AC204: 154.87 | AE204: 1540646.76 | AG204: 1540646.76 | AI204: 0 | AK204: 0 | AM204: 1540646.76 | AO204: 1540646.76
A205: 000000000212401 | C205: 2016-09-19 | E205: 000000000212401 | G205: EPF SHARIAH WD NOM USD | I205: 4617859 | K205: DE0005552004 | M205: DPW GY | O205: DEUTSCHE POST AG-REG | Q205: COMMON STOCK | S205: S | U205: EUR | W205: 181122 | Y205: 4611981.42 | AA205: 5920041.22 | AC205: 27.585 | AE205: 4996250.37 | AG205: 5587309.49 | AI205: 0 | AK205: 0 | AM205: 4996250.37 | AO205: 5587309.49
A206: 000000000212401 | C206: 2016-09-19 | E206: 000000000212401 | G206: EPF SHARIAH WD NOM USD | I206: 2475833 | K206: US4781601046 | M206: JNJ UN | O206: JOHNSON & JOHNSON | Q206: COMMON STOCK PAR USD 1 | S206: S | U206: USD | W206: 59089 | Y206: 7158399.32 | AA206: 7158399.32 | AC206: 117.66 | AE206: 6952411.74 | AG206: 6952411.74 | AI206: 0 | AK206: 0 | AM206: 6952411.74 | AO206: 6952411.74
... 171 more rows

Sheet BNYM_NAV_HistCost_MonthEnd
A1: EPF SHARIAH WD NOM USD Distribution
A2: 30-Apr-2022
A7: Account Number | C7: Position Date | E7: Account Number | G7: Account Name | I7: Security SEDOL | K7: Security ISIN | M7: Stock Ticker | O7: Security Description (Long 1) | Q7: Security Description (Long 2) | S7: Asset Group | U7: Trading Currency | W7: Shares/Par | Y7: Amortized Cost | AA7: Amortized Cost (Base) | AC7: Price (Price File) | AE7: Traded Market Value | AG7: Traded Market Value (Base) | AI7: Accrued Income Net | AK7: Accrued Income Net (Base) | AM7: Traded MV and Accrued Incm | AO7: Traded MV and Accrued Incm (Base)
A9: 000000000212401 | C9: 04/30/2022 | E9: 000000000212401 | G9: EPF SHARIAH WD NOM USD | O9: CASH ACCOUNT | S9: CA | U9: USD | W9: 74000 | Y9: 74000 | AA9: 74000 | AC9: 0 | AE9: 74000 | AG9: 74000 | AI9: 0 | AK9: 0 | AM9: 74000 | AO9: 74000
A10: 000000000212401 | C10: 04/30/2022 | E10: 000000000212401 | G10: EPF SHARIAH WD NOM USD | I10: 2002305 | K10: US0028241000 | M10: ABT UN | O10: ABBOTT LABORATORIES | Q10: COMMON STOCK | S10: S | U10: USD | W10: 95688 | Y10: 11740599.67 | AA10: 11740599.67 | AC10: 113.5 | AE10: 10860588 | AG10: 10860588 | AI10: 31481.35 | AK10: 31481.35 | AM10: 10905561.36 | AO10: 10905561.36
A11: 000000000212401 | C11: 04/30/2022 | E11: 000000000212401 | G11: EPF SHARIAH WD NOM USD | I11: 2008154 | K11: US00724F1012 | M11: ADBE UW | O11: ADOBE INC | Q11: COMMON STOCK PAR USD 0.0001 | S11: S | U11: USD | W11: 20112 | Y11: 10079320.57 | AA11: 10079320.57 | AC11: 395.95 | AE11: 7963346.4 | AG11: 7963346.4 | AI11: 0 | AK11: 0 | AM11: 7963346.4 | AO11: 7963346.4
A12: 000000000212401 | C12: 04/30/2022 | E12: 000000000212401 | G12: EPF SHARIAH WD NOM USD | I12: 2822019 | K12: US00751Y1064 | M12: AAP UN | O12: ADVANCE AUTO PARTS INC | Q12: COMMON STOCK PAR USD 0.0001 | S12: S | U12: USD | W12: 42057 | Y12: 8685523.74 | AA12: 8685523.74 | AC12: 199.63 | AE12: 8395838.91 | AG12: 8395838.91 | AI12: 0 | AK12: 0 | AM12: 8395838.91 | AO12: 8395838.91
A13: 000000000212401 | C13: 04/30/2022 | E13: 000000000212401 | G13: EPF SHARIAH WD NOM USD | I13: 2011602 | K13: US0091581068 | M13: APD UN | O13: AIR PRODUCTS & CHEMICALS INC | Q13: COMMON STOCK PAR USD 1 | S13: S | U13: USD | W13: 42626 | Y13: 12448602.52 | AA13: 12448602.52 | AC13: 234.07 | AE13: 9977467.82 | AG13: 9977467.82 | AI13: 48337.88 | AK13: 48337.88 | AM13: 10046521.94 | AO13: 10046521.94
A14: 000000000212401 | C14: 04/30/2022 | E14: 000000000212401 | G14: EPF SHARIAH WD NOM USD | I14: 2032067 | K14: US0326541051 | M14: ADI UW | O14: ANALOG DEVICES INC | Q14: COMMON STOCK PAR USD 0.167 | S14: S | U14: USD | W14: 55474 | Y14: 8979874.05 | AA14: 8979874.05 | AC14: 154.38 | AE14: 8564076.12 | AG14: 8564076.12 | AI14: 0 | AK14: 0 | AM14: 8564076.12 | AO14: 8564076.12
A15: 000000000212401 | C15: 04/30/2022 | E15: 000000000212401 | G15: EPF SHARIAH WD NOM USD | I15: 2046251 | K15: US0378331005 | M15: AAPL UW | O15: APPLE INC | Q15: COMMON STOCK PAR USD 0.00001 | S15: S | U15: USD | W15: 391766 | Y15: 59642629.31 | AA15: 59642629.31 | AC15: 157.65 | AE15: 61761909.9 | AG15: 61761909.9 | AI15: 0 | AK15: 0 | AM15: 61761909.9 | AO15: 61761909.9
A16: 000000000212401 | C16: 04/30/2022 | E16: 000000000212401 | G16: EPF SHARIAH WD NOM USD | I16: 2046552 | K16: US0382221051 | M16: AMAT UW | O16: APPLIED MATERIALS INC | Q16: COMMON STOCK PAR USD 0.01 | S16: S | U16: USD | W16: 50081 | Y16: 6866282.89 | AA16: 6866282.89 | AC16: 110.35 | AE16: 5526438.35 | AG16: 5526438.35 | AI16: 0 | AK16: 0 | AM16: 5526438.35 | AO16: 5526438.35
A17: 000000000212401 | C17: 04/30/2022 | E17: 000000000212401 | G17: EPF SHARIAH WD NOM USD | I17: 682538 | K17: GB0006825383 | M17: PSN LN | O17: PERSIMMON PLC | Q17: COMMON STOCK PAR GBP 10 | S17: S | U17: GBP | W17: 261415 | Y17: 6799210.92 | AA17: 9233592.91 | AC17: 21 | AE17: 5489715 | AG17: 6892340.82 | AI17: 0 | AK17: 0 | AM17: 5489715 | AO17: 6892340.82
A18: 000000000212401 | C18: 04/30/2022 | E18: 000000000212401 | G18: EPF SHARIAH WD NOM USD | I18: 2437071 | K18: US09061G1013 | M18: BMRN UW | O18: BIOMARIN PHARMACEUTICAL INC | Q18: COMMON STOCK PAR USD 0.001 | S18: S | U18: USD | W18: 42938 | Y18: 3527677.94 | AA18: 3527677.94 | AC18: 81.35 | AE18: 3493006.3 | AG18: 3493006.3 | AI18: 0 | AK18: 0 | AM18: 3493006.3 | AO18: 3493006.3
A19: 000000000212401 | C19: 04/30/2022 | E19: 000000000212401 | G19: EPF SHARIAH WD NOM USD | I19: 989529 | K19: GB0009895292 | M19: AZN LN | O19: ASTRAZENECA PLC | Q19: COMMON STOCK PAR USD 0.25 | S19: S | U19: GBP | W19: 58078 | Y19: 5772301.99 | AA19: 7596840.68 | AC19: 106.88 | AE19: 6207376.64 | AG19: 7793365.48 | AI19: 0 | AK19: 0 | AM19: 6207376.64 | AO19: 7793365.48
A20: 000000000212401 | C20: 04/30/2022 | E20: 000000000212401 | G20: EPF SHARIAH WD NOM USD | I20: 2113434 | K20: US1011371077 | M20: BSX UN | O20: BOSTON SCIENTIFIC CORP | Q20: COMMON STOCK PAR USD 0.01 | S20: S | U20: USD | W20: 244763 | Y20: 10197986.02 | AA20: 10197986.02 | AC20: 42.11 | AE20: 10306969.93 | AG20: 10306969.93 | AI20: 0 | AK20: 0 | AM20: 10306969.93 | AO20: 10306969.93
A21: 000000000212401 | C21: 04/30/2022 | E21: 000000000212401 | G21: EPF SHARIAH WD NOM USD | I21: 2126335 | K21: US1101221083 | M21: BMY UN | O21: BRISTOL-MYERS SQUIBB CO | Q21: COMMON STOCK PAR USD 0.1 | S21: S | U21: USD | W21: 175091 | Y21: 12041471.87 | AA21: 12041471.87 | AC21: 75.27 | AE21: 13179099.57 | AG21: 13179099.57 | AI21: 66184.4 | AK21: 66184.4 | AM21: 13273648.71 | AO21: 13273648.71
A22: 000000000212401 | C22: 04/30/2022 | E22: 000000000212401 | G22: EPF SHARIAH WD NOM USD | I22: 2577609 | K22: US1266501006 | M22: CVS UN | O22: CVS HEALTH CORP | Q22: COMMON STOCK PAR USD 0.01 | S22: S | U22: USD | W22: 143258 | Y22: 14200602.99 | AA22: 14200602.99 | AC22: 96.13 | AE22: 13771391.54 | AG22: 13771391.54 | AI22: 55154.33 | AK22: 55154.33 | AM22: 13850183.44 | AO22: 13850183.44
A23: 000000000212401 | C23: 04/30/2022 | E23: 000000000212401 | G23: EPF SHARIAH WD NOM USD | I23: 2685717 | K23: US20825C1045 | M23: COP UN | O23: CONOCOPHILLIPS | Q23: COMMON STOCK PAR USD 0.01 | S23: S | U23: USD | W23: 179470 | Y23: 17209999.37 | AA23: 17209999.37 | AC23: 95.52 | AE23: 17142974.4 | AG23: 17142974.4 | AI23: 0 | AK23: 0 | AM23: 17142974.4 | AO23: 17142974.4
A24: 000000000212401 | C24: 04/30/2022 | E24: 000000000212401 | G24: EPF SHARIAH WD NOM USD | I24: 2250687 | K24: US23331A1097 | M24: DHI UN | O24: DR HORTON INC | Q24: COMMON STOCK PAR USD 0.01 | S24: S | U24: USD | W24: 131260 | Y24: 11498892.5 | AA24: 11498892.5 | AC24: 69.59 | AE24: 9134383.4 | AG24: 9134383.4 | AI24: 0 | AK24: 0 | AM24: 9134383.4 | AO24: 9134383.4
A25: 000000000212401 | C25: 04/30/2022 | E25: 000000000212401 | G25: EPF SHARIAH WD NOM USD | I25: 2250870 | K25: US2358511028 | M25: DHR UN | O25: DANAHER CORP | Q25: COMMON STOCK PAR USD 0.01 | S25: S | U25: USD | W25: 30283 | Y25: 9558063.74 | AA25: 9558063.74 | AC25: 251.13 | AE25: 7604969.79 | AG25: 7604969.79 | AI25: 0 | AK25: 0 | AM25: 7604969.79 | AO25: 7604969.79
A26: 000000000212401 | C26: 04/30/2022 | E26: 000000000212401 | G26: EPF SHARIAH WD NOM USD | I26: B1W9D46 | K26: US2473617023 | M26: DAL UN | O26: DELTA AIR LINES INC | Q26: COMMON STOCK PAR USD 0.0001 | S26: S | U26: USD | W26: 75308 | Y26: 2606662.62 | AA26: 2606662.62 | AC26: 43.03 | AE26: 3240503.24 | AG26: 3240503.24 | AI26: 0 | AK26: 0 | AM26: 3240503.24 | AO26: 3240503.24
A27: 000000000212401 | C27: 04/30/2022 | E27: 000000000212401 | G27: EPF SHARIAH WD NOM USD | I27: 2272476 | K27: US2567461080 | M27: DLTR UW | O27: DOLLAR TREE INC | Q27: COMMON STOCK PAR USD 0.01 | S27: S | U27: USD | W27: 61945 | Y27: 7604253.66 | AA27: 7604253.66 | AC27: 162.45 | AE27: 10062965.25 | AG27: 10062965.25 | AI27: 0 | AK27: 0 | AM27: 10062965.25 | AO27: 10062965.25
A28: 000000000212401 | C28: 04/30/2022 | E28: 000000000212401 | G28: EPF SHARIAH WD NOM USD | I28: BHXCF84 | K28: US2605571031 | M28: DOW UN | O28: DOW INC | Q28: COMMON STOCK PAR USD 0.01 | S28: S | U28: USD | W28: 45798 | Y28: 2942740.12 | AA28: 2942740.12 | AC28: 66.5 | AE28: 3045567 | AG28: 3045567 | AI28: 0 | AK28: 0 | AM28: 3045567 | AO28: 3045567
A29: 000000000212401 | C29: 04/30/2022 | E29: 000000000212401 | G29: EPF SHARIAH WD NOM USD | I29: BK0VN47 | K29: US26614N1028 | M29: DD UN | O29: DUPONT DE NEMOURS INC | Q29: COMMON STOCK PAR USD 0.01 | S29: S | U29: USD | W29: 20753 | Y29: 2114918.14 | AA29: 2114918.14 | AC29: 65.93 | AE29: 1368245.29 | AG29: 1368245.29 | AI29: 0 | AK29: 0 | AM29: 1368245.29 | AO29: 1368245.29
A30: 000000000212401 | C30: 04/30/2022 | E30: 000000000212401 | G30: EPF SHARIAH WD NOM USD | I30: 2318024 | K30: US26875P1012 | M30: EOG UN | O30: EOG RESOURCES INC | Q30: COMMON STOCK PAR USD 0.01 | S30: S | U30: USD | W30: 72936 | Y30: 8728028.7 | AA30: 8728028.7 | AC30: 116.76 | AE30: 8516007.36 | AG30: 8516007.36 | AI30: 0 | AK30: 0 | AM30: 8516007.36 | AO30: 8516007.36
A31: 000000000212401 | C31: 04/30/2022 | E31: 000000000212401 | G31: EPF SHARIAH WD NOM USD | I31: 2304227 | K31: US2788651006 | M31: ECL UN | O31: ECOLAB INC | Q31: COMMON STOCK PAR USD 1 | S31: S | U31: USD | W31: 21482 | Y31: 4204573.66 | AA31: 4204573.66 | AC31: 169.34 | AE31: 3637761.88 | AG31: 3637761.88 | AI31: 0 | AK31: 0 | AM31: 3637761.88 | AO31: 3637761.88
A32: 000000000212401 | C32: 04/30/2022 | E32: 000000000212401 | G32: EPF SHARIAH WD NOM USD | I32: 2670519 | K32: US30161N1019 | M32: EXC UW | O32: EXELON CORP | Q32: COMMON STOCK | S32: S | U32: USD | W32: 162520 | Y32: 7235302.68 | AA32: 7235302.68 | AC32: 46.78 | AE32: 7602685.6 | AG32: 7602685.6 | AI32: 0 | AK32: 0 | AM32: 7602685.6 | AO32: 7602685.6
A33: 000000000212401 | C33: 04/30/2022 | E33: 000000000212401 | G33: EPF SHARIAH WD NOM USD | I33: 2326618 | K33: US30231G1022 | M33: XOM UN | O33: EXXON MOBIL CORP | Q33: COMMON STOCK | S33: S | U33: USD | W33: 268026 | Y33: 20936907.06 | AA33: 20936907.06 | AC33: 85.25 | AE33: 22849216.5 | AG33: 22849216.5 | AI33: 0 | AK33: 0 | AM33: 22849216.5 | AO33: 22849216.5
A34: 000000000212401 | C34: 04/30/2022 | E34: 000000000212401 | G34: EPF SHARIAH WD NOM USD | I34: 2142784 | K34: US31428X1063 | M34: FDX UN | O34: FEDEX CORP | Q34: COMMON STOCK PAR USD 0.1 | S34: S | U34: USD | W34: 65907 | Y34: 15918748.06 | AA34: 15918748.06 | AC34: 198.74 | AE34: 13098357.18 | AG34: 13098357.18 | AI34: 0 | AK34: 0 | AM34: 13098357.18 | AO34: 13098357.18
A35: 000000000212401 | C35: 04/30/2022 | E35: 000000000212401 | G35: EPF SHARIAH WD NOM USD | I35: B4R28B3 | K35: US3390411052 | M35: FLT UN | O35: FLEETCOR TECHNOLOGIES INC | Q35: COMMON STOCK PAR USD 0.001 | S35: S | U35: USD | W35: 28014 | Y35: 7186246.91 | AA35: 7186246.91 | AC35: 249.52 | AE35: 6990053.28 | AG35: 6990053.28 | AI35: 0 | AK35: 0 | AM35: 6990053.28 | AO35: 6990053.28
A36: 000000000212401 | C36: 04/30/2022 | E36: 000000000212401 | G36: EPF SHARIAH WD NOM USD | I36: 2352118 | K36: US35671D8570 | M36: FCX UN | O36: FREEPORT-MCMORAN INC | Q36: COMMON STOCK PAR USD 0.1 | S36: S | U36: USD | W36: 321307 | Y36: 14575346.7 | AA36: 14575346.7 | AC36: 40.55 | AE36: 13028998.85 | AG36: 13028998.85 | AI36: 33737.23 | AK36: 33737.23 | AM36: 13077194.9 | AO36: 13077194.9
A37: 000000000212401 | C37: 04/30/2022 | E37: 000000000212401 | G37: EPF SHARIAH WD NOM USD | I37: 4031976 | K37: DE000A1EWWW0 | M37: ADS GY | O37: ADIDAS AG | Q37: COMMON STOCK | S37: S | U37: EUR | W37: 30938 | Y37: 8811194.37 | AA37: 10228137.74 | AC37: 193.72 | AE37: 5993309.36 | AG37: 6322643.2 | AI37: 0 | AK37: 0 | AM37: 5993309.36 | AO37: 6322643.2
A38: 000000000212401 | C38: 04/30/2022 | E38: 000000000212401 | G38: EPF SHARIAH WD NOM USD | I38: 2463247 | K38: US4581401001 | M38: INTC UW | O38: INTEL CORP | Q38: COMMON STOCK PAR USD 0.001 | S38: S | U38: USD | W38: 96849 | Y38: 6383512.74 | AA38: 6383512.74 | AC38: 43.59 | AE38: 4221647.91 | AG38: 4221647.91 | AI38: 0 | AK38: 0 | AM38: 4221647.91 | AO38: 4221647.91
A39: 000000000212401 | C39: 04/30/2022 | E39: 000000000212401 | G39: EPF SHARIAH WD NOM USD | I39: 2459020 | K39: US4612021034 | M39: INTU UW | O39: INTUIT INC | Q39: COMMON STOCK PAR USD 0.01 | S39: S | U39: USD | W39: 7242 | Y39: 3922076.37 | AA39: 3922076.37 | AC39: 418.75 | AE39: 3032587.5 | AG39: 3032587.5 | AI39: 0 | AK39: 0 | AM39: 3032587.5 | AO39: 3032587.5
A40: 000000000212401 | C40: 04/30/2022 | E40: 000000000212401 | G40: EPF SHARIAH WD NOM USD | I40: 4617859 | K40: DE0005552004 | M40: DPW GY | O40: DEUTSCHE POST AG-REG | Q40: COMMON STOCK | S40: S | U40: EUR | W40: 202980 | Y40: 9308543.37 | AA40: 10726942.73 | AC40: 40.92 | AE40: 8305941.6 | AG40: 8762355.16 | AI40: 0 | AK40: 0 | AM40: 8305941.6 | AO40: 8762355.16
A41: 000000000212401 | C41: 04/30/2022 | E41: 000000000212401 | G41: EPF SHARIAH WD NOM USD | I41: 2475833 | K41: US4781601046 | M41: JNJ UN | O41: JOHNSON & JOHNSON | Q41: COMMON STOCK PAR USD 1 | S41: S | U41: USD | W41: 135719 | Y41: 22919073.25 | AA41: 22919073.25 | AC41: 180.46 | AE41: 24491850.74 | AG41: 24491850.74 | AI41: 0 | AK41: 0 | AM41: 24491850.74 | AO41: 24491850.74
A42: 000000000212401 | C42: 04/30/2022 | E42: 000000000212401 | G42: EPF SHARIAH WD NOM USD | I42: 4834108 | K42: FR0000121972 | M42: SU FP | O42: SCHNEIDER ELECTRIC SE | Q42: COMMON STOCK PAR EUR 4 | S42: S | U42: EUR | W42: 61679 | Y42: 8748413.29 | AA42: 10039194.02 | AC42: 137.7 | AE42: 8493198.3 | AG42: 8959901.66 | AI42: 0 | AK42: 0 | AM42: 8493198.3 | AO42: 8959901.66
A43: 000000000212401 | C43: 04/30/2022 | E43: 000000000212401 | G43: EPF SHARIAH WD NOM USD | I43: 4846288 | K43: DE0007164600 | M43: SAP GY | O43: SAP SE | Q43: COMMON STOCK | S43: S | U43: EUR | W43: 59776 | Y43: 8126260.69 | AA43: 9578857.97 | AC43: 97.56 | AE43: 5831746.56 | AG43: 6152202.48 | AI43: 0 | AK43: 0 | AM43: 5831746.56 | AO43: 6152202.48
A44: 000000000212401 | C44: 04/30/2022 | E44: 000000000212401 | G44: EPF SHARIAH WD NOM USD | I44: 2320524 | K44: US5184391044 | M44: EL UN | O44: ESTEE LAUDER COMPANIES-CL A | Q44: COMMON STOCK PAR USD 0.01 | S44: S | U44: USD | W44: 24093 | Y44: 7510396.24 | AA44: 7510396.24 | AC44: 264.06 | AE44: 6361997.58 | AG44: 6361997.58 | AI44: 0 | AK44: 0 | AM44: 6361997.58 | AO44: 6361997.58
A45: 000000000212401 | C45: 04/30/2022 | E45: 000000000212401 | G45: EPF SHARIAH WD NOM USD | I45: 2516152 | K45: US5324571083 | M45: LLY UN | O45: ELI LILLY & CO | Q45: COMMON STOCK | S45: S | U45: USD | W45: 14374 | Y45: 4192277.87 | AA45: 4192277.87 | AC45: 292.13 | AE45: 4199076.62 | AG45: 4199076.62 | AI45: 0 | AK45: 0 | AM45: 4199076.62 | AO45: 4199076.62
A46: 000000000212401 | C46: 04/30/2022 | E46: 000000000212401 | G46: EPF SHARIAH WD NOM USD | I46: 5671735 | K46: FR0000120578 | M46: SAN FP | O46: SANOFI | Q46: COMMON STOCK PAR EUR 2 | S46: S | U46: EUR | W46: 63027 | Y46: 5619723.88 | AA46: 6450805.87 | AC46: 101.18 | AE46: 6377071.86 | AG46: 6727493.54 | AI46: 0 | AK46: 0 | AM46: 6377071.86 | AO46: 6727493.54
A47: 000000000212401 | C47: 04/30/2022 | E47: 000000000212401 | G47: EPF SHARIAH WD NOM USD | I47: BNKJSM5 | K47: US5738741041 | M47: MRVL UW | O47: MARVELL TECHNOLOGY INC | Q47: COMMON STOCK | S47: S | U47: USD | W47: 182289 | Y47: 11279997 | AA47: 11279997 | AC47: 58.08 | AE47: 10587345.12 | AG47: 10587345.12 | AI47: 0 | AK47: 0 | AM47: 10587345.12 | AO47: 10587345.12
A48: 000000000212401 | C48: 04/30/2022 | E48: 000000000212401 | G48: EPF SHARIAH WD NOM USD | I48: 2588184 | K48: US5951121038 | M48: MU UW | O48: MICRON TECHNOLOGY INC | Q48: COMMON STOCK PAR USD 0.1 | S48: S | U48: USD | W48: 101192 | Y48: 8987229.15 | AA48: 8987229.15 | AC48: 68.19 | AE48: 6900282.48 | AG48: 6900282.48 | AI48: 0 | AK48: 0 | AM48: 6900282.48 | AO48: 6900282.48
A49: 000000000212401 | C49: 04/30/2022 | E49: 000000000212401 | G49: EPF SHARIAH WD NOM USD | I49: B8CKK03 | K49: US6092071058 | M49: MDLZ UW | O49: MONDELEZ INTERNATIONAL INC-A | Q49: COMMON STOCK | S49: S | U49: USD | W49: 49032 | Y49: 3004400.57 | AA49: 3004400.57 | AC49: 64.48 | AE49: 3161583.36 | AG49: 3161583.36 | AI49: 0 | AK49: 0 | AM49: 3161583.36 | AO49: 3161583.36
A50: 000000000212401 | C50: 04/30/2022 | E50: 000000000212401 | G50: EPF SHARIAH WD NOM USD | I50: 6185495 | K50: AU000000CSL8 | M50: CSL AT | O50: CSL LTD | Q50: COMMON STOCK | S50: S | U50: AUD | W50: 53711 | Y50: 14796377.43 | AA50: 11317632.71 | AC50: 273.3 | AE50: 14679216.3 | AG50: 10431788.45 | AI50: 0 | AK50: 0 | AM50: 14679216.3 | AO50: 10431788.45
A51: 000000000212401 | C51: 04/30/2022 | E51: 000000000212401 | G51: EPF SHARIAH WD NOM USD | I51: 6220103 | K51: AU000000RIO1 | M51: RIO AT | O51: RIO TINTO LTD | Q51: COMMON STOCK | S51: S | U51: AUD | W51: 173320 | Y51: 20401058.65 | AA51: 15104822.45 | AC51: 112.83 | AE51: 19555695.6 | AG51: 13897259.59 | AI51: 0 | AK51: 0 | AM51: 19555695.6 | AO51: 13897259.59
A52: 000000000212401 | C52: 04/30/2022 | E52: 000000000212401 | G52: EPF SHARIAH WD NOM USD | I52: 6250724 | K52: JP3481800005 | M52: 6367 JT | O52: DAIKIN INDUSTRIES LTD | Q52: COMMON STOCK | S52: S | U52: JPY | W52: 52700 | Y52: 1172740941 | AA52: 10697506.29 | AC52: 20045 | AE52: 1056371500 | AG52: 8153531.18 | AI52: 4031550 | AK52: 31117.24 | AM52: 1061114500 | AO52: 8190139.7
A53: 000000000212401 | C53: 04/30/2022 | E53: 000000000212401 | G53: EPF SHARIAH WD NOM USD | I53: 6640682 | K53: JP3734800000 | M53: 6594 JT | O53: NIDEC CORP | Q53: COMMON STOCK | S53: S | U53: JPY | W53: 101300 | Y53: 1202596097 | AA53: 11092432.24 | AC53: 8539 | AE53: 865000700 | AG53: 6676448.75 | AI53: 3013675 | AK53: 23260.85 | AM53: 868546200 | AO53: 6703814.45
A54: 000000000212401 | C54: 04/30/2022 | E54: 000000000212401 | G54: EPF SHARIAH WD NOM USD | I54: 6770620 | K54: JP3436100006 | M54: 9984 JT | O54: SOFTBANK GROUP CORP | Q54: COMMON STOCK | S54: S | U54: JPY | W54: 62500 | Y54: 439411294 | AA54: 3977806.12 | AC54: 5269 | AE54: 329312500 | AG54: 2541776.01 | AI54: 1512830 | AK54: 11676.67 | AM54: 331092300 | AO54: 2555513.27
A55: 000000000212401 | C55: 04/30/2022 | E55: 000000000212401 | G55: EPF SHARIAH WD NOM USD | I55: 6805265 | K55: JP3351600006 | M55: 4911 JT | O55: SHISEIDO CO LTD | Q55: COMMON STOCK | S55: S | U55: JPY | W55: 157800 | Y55: 1266538292 | AA55: 11620015.49 | AC55: 6136 | AE55: 968260800 | AG55: 7473454.77 | AI55: 0 | AK55: 0 | AM55: 968260800 | AO55: 7473454.77
A56: 000000000212401 | C56: 04/30/2022 | E56: 000000000212401 | G56: EPF SHARIAH WD NOM USD | I56: 6883807 | K56: JP3351100007 | M56: 6869 JT | O56: SYSMEX CORP | Q56: COMMON STOCK | S56: S | U56: JPY | W56: 48800 | Y56: 441708977.1 | AA56: 4017749.96 | AC56: 8610 | AE56: 420168000 | AG56: 3243037.97 | AI56: 1534760 | AK56: 11845.94 | AM56: 421973600 | AO56: 3256974.37
A57: 000000000212401 | C57: 04/30/2022 | E57: 000000000212401 | G57: EPF SHARIAH WD NOM USD | I57: 6895675 | K57: JP3571400005 | M57: 8035 JT | O57: TOKYO ELECTRON LTD | Q57: COMMON STOCK | S57: S | U57: JPY | W57: 18100 | Y57: 1042930978 | AA57: 9237445.06 | AC57: 55480 | AE57: 1004188000 | AG57: 7750756.41 | AI57: 10838520 | AK57: 83656.38 | AM57: 1016939200 | AO57: 7849175.68
A58: 000000000212401 | C58: 04/30/2022 | E58: 000000000212401 | G58: EPF SHARIAH WD NOM USD | I58: B95N910 | K58: US69370C1009 | M58: PTC UW | O58: PTC INC | Q58: COMMON STOCK PAR USD 0.01 | S58: S | U58: USD | W58: 42050 | Y58: 5607325.48 | AA58: 5607325.48 | AC58: 114.21 | AE58: 4802530.5 | AG58: 4802530.5 | AI58: 0 | AK58: 0 | AM58: 4802530.5 | AO58: 4802530.5
A59: 000000000212401 | C59: 04/30/2022 | E59: 000000000212401 | G59: EPF SHARIAH WD NOM USD | I59: B87ZMX0 | K59: US6974351057 | M59: PANW UW | O59: PALO ALTO NETWORKS INC | Q59: COMMON STOCK PAR USD 0.0001 | S59: S | U59: USD | W59: 10668 | Y59: 6171878.11 | AA59: 6171878.11 | AC59: 561.28 | AE59: 5987735.04 | AG59: 5987735.04 | AI59: 0 | AK59: 0 | AM59: 5987735.04 | AO59: 5987735.04
A60: 000000000212401 | C60: 04/30/2022 | E60: 000000000212401 | G60: EPF SHARIAH WD NOM USD | I60: 6985383 | K60: JP3942400007 | M60: 4503 JT | O60: ASTELLAS PHARMA INC | Q60: COMMON STOCK | S60: S | U60: JPY | W60: 567000 | Y60: 1077297394 | AA60: 9731427.99 | AC60: 1978 | AE60: 1121526000 | AG60: 8656421.74 | AI60: 12048750 | AK60: 92997.45 | AM60: 1135701000 | AO60: 8765830.51
A61: 000000000212401 | C61: 04/30/2022 | E61: 000000000212401 | G61: EPF SHARIAH WD NOM USD | I61: 7110388 | K61: CH0012032048 | M61: ROG SE | O61: ROCHE HOLDING AG-GENUSSCHEIN | Q61: COMMON STOCK | S61: S | U61: CHF | W61: 22218 | Y61: 7833657.39 | AA61: 8381430.5 | AC61: 362.4 | AE61: 8051803.2 | AG61: 8295269.36 | AI61: 0 | AK61: 0 | AM61: 8051803.2 | AO61: 8295269.36
A62: 000000000212401 | C62: 04/30/2022 | E62: 000000000212401 | G62: EPF SHARIAH WD NOM USD | I62: 7123870 | K62: CH0038863350 | M62: NESN SE | O62: NESTLE SA-REG | Q62: COMMON STOCK PAR CHF 0.1 | S62: S | U62: CHF | W62: 130617 | Y62: 15011451.46 | AA62: 16355085.82 | AC62: 126 | AE62: 16457742 | AG62: 16955382.48 | AI62: 0 | AK62: 0 | AM62: 16457742 | AO62: 16955382.48
A63: 000000000212401 | C63: 04/30/2022 | E63: 000000000212401 | G63: EPF SHARIAH WD NOM USD | I63: 7145056 | K63: IT0003132476 | M63: ENI IM | O63: ENI SPA | Q63: COMMON STOCK | S63: S | U63: EUR | W63: 206211 | Y63: 3514888.84 | AA63: 3859509.98 | AC63: 13.39 | AE63: 2761165.29 | AG63: 2912892.01 | AI63: 0 | AK63: 0 | AM63: 2761165.29 | AO63: 2912892.01
A64: 000000000212401 | C64: 04/30/2022 | E64: 000000000212401 | G64: EPF SHARIAH WD NOM USD | I64: 7212477 | K64: FR0000121667 | M64: EL FP | O64: ESSILORLUXOTTICA | Q64: COMMON STOCK PAR EUR 0.18 | S64: S | U64: EUR | W64: 53112 | Y64: 9725591.42 | AA64: 10991074.44 | AC64: 163.8 | AE64: 8699745.6 | AG64: 9177798.78 | AI64: 0 | AK64: 0 | AM64: 8699745.6 | AO64: 9177798.78
A65: 000000000212401 | C65: 04/30/2022 | E65: 000000000212401 | G65: EPF SHARIAH WD NOM USD | I65: 2310525 | K65: US79466L3024 | M65: CRM UN | O65: SALESFORCE INC | Q65: COMMON STOCK PAR USD 0.001 | S65: S | U65: USD | W65: 48848 | Y65: 11225310.58 | AA65: 11225310.58 | AC65: 175.94 | AE65: 8594317.12 | AG65: 8594317.12 | AI65: 0 | AK65: 0 | AM65: 8594317.12 | AO65: 8594317.12
A66: 000000000212401 | C66: 04/30/2022 | E66: 000000000212401 | G66: EPF SHARIAH WD NOM USD | I66: B80NXX8 | K66: US81762P1021 | M66: NOW UN | O66: SERVICENOW INC | Q66: COMMON STOCK PAR USD 0.001 | S66: S | U66: USD | W66: 10734 | Y66: 6988168.47 | AA66: 6988168.47 | AC66: 478.1 | AE66: 5131925.4 | AG66: 5131925.4 | AI66: 0 | AK66: 0 | AM66: 5131925.4 | AO66: 5131925.4
A67: 000000000212401 | C67: 04/30/2022 | E67: 000000000212401 | G67: EPF SHARIAH WD NOM USD | I67: B616C79 | K67: US88160R1014 | M67: TSLA UW | O67: TESLA INC | Q67: COMMON STOCK PAR USD 0.001 | S67: S | U67: USD | W67: 7293 | Y67: 7943674.79 | AA67: 7943674.79 | AC67: 870.76 | AE67: 6350452.68 | AG67: 6350452.68 | AI67: 0 | AK67: 0 | AM67: 6350452.68 | AO67: 6350452.68
A68: 000000000212401 | C68: 04/30/2022 | E68: 000000000212401 | G68: EPF SHARIAH WD NOM USD | I68: 2886907 | K68: US8835561023 | M68: TMO UN | O68: THERMO FISHER SCIENTIFIC INC | Q68: COMMON STOCK PAR USD 1 | S68: S | U68: USD | W68: 27158 | Y68: 15567824.72 | AA68: 15567824.72 | AC68: 552.92 | AE68: 15016201.36 | AG68: 15016201.36 | AI68: 0 | AK68: 0 | AM68: 15016201.36 | AO68: 15016201.36
A69: 000000000212401 | C69: 04/30/2022 | E69: 000000000212401 | G69: EPF SHARIAH WD NOM USD | I69: BK6N347 | K69: US90353T1007 | M69: UBER UN | O69: UBER TECHNOLOGIES INC | Q69: COMMON STOCK PAR USD 0.00001 | S69: S | U69: USD | W69: 62047 | Y69: 3826899.69 | AA69: 3826899.69 | AC69: 31.48 | AE69: 1953239.56 | AG69: 1953239.56 | AI69: 0 | AK69: 0 | AM69: 1953239.56 | AO69: 1953239.56
A70: 000000000212401 | C70: 04/30/2022 | E70: 000000000212401 | G70: EPF SHARIAH WD NOM USD | I70: 2041364 | K70: US91913Y1001 | M70: VLO UN | O70: VALERO ENERGY CORP | Q70: COMMON STOCK PAR USD 0.01 | S70: S | U70: USD | W70: 35641 | Y70: 3211333.86 | AA70: 3211333.86 | AC70: 111.48 | AE70: 3973258.68 | AG70: 3973258.68 | AI70: 0 | AK70: 0 | AM70: 3973258.68 | AO70: 3973258.68
A71: 000000000212401 | C71: 04/30/2022 | E71: 000000000212401 | G71: EPF SHARIAH WD NOM USD | O71: AUSTRALIAN DOLLAR | S71: CU | U71: AUD | W71: 4.67 | Y71: 3.37 | AA71: 3.37 | AC71: 0 | AE71: 3.32 | AG71: 3.32 | AI71: 0 | AK71: 0 | AM71: 3.32 | AO71: 3.32
A72: 000000000212401 | C72: 04/30/2022 | E72: 000000000212401 | G72: EPF SHARIAH WD NOM USD | I72: B019MQ5 | K72: JP3110650003 | M72: 7747 JT | O72: ASAHI INTECC CO LTD | Q72: COMMON STOCK | S72: S | U72: JPY | W72: 73600 | Y72: 216430715.6 | AA72: 2023390.88 | AC72: 2540 | AE72: 186944000 | AG72: 1442914.48 | AI72: 0 | AK72: 0 | AM72: 186944000 | AO72: 1442914.48
A73: 000000000212401 | C73: 04/30/2022 | E73: 000000000212401 | G73: EPF SHARIAH WD NOM USD | I73: B02L486 | K73: NO0003054108 | M73: MOWI NO | O73: MOWI ASA | Q73: COMMON STOCK PAR NOK 7.5 | S73: S | U73: NOK | W73: 85062 | Y73: 20843126.09 | AA73: 2384353.4 | AC73: 266.7 | AE73: 22686035.4 | AG73: 2435025.35 | AI73: 0 | AK73: 0 | AM73: 22686035.4 | AO73: 2435025.35
A74: 000000000212401 | C74: 04/30/2022 | E74: 000000000212401 | G74: EPF SHARIAH WD NOM USD | I74: B03FYZ4 | K74: AU000000GMG2 | M74: GMG AT | O74: GOODMAN GROUP | Q74: REIT | S74: S | U74: AUD | W74: 517098 | Y74: 12010158.74 | AA74: 8756040.93 | AC74: 23.98 | AE74: 12400010.04 | AG74: 8812070 | AI74: 0 | AK74: 0 | AM74: 12400010.04 | AO74: 8812070
A75: 000000000212401 | C75: 04/30/2022 | E75: 000000000212401 | G75: EPF SHARIAH WD NOM USD | I75: B15C557 | K75: FR0000120271 | M75: FP FP | O75: TOTALENERGIES SE | Q75: COMMON STOCK PAR EUR 2.5 | S75: S | U75: EUR | W75: 309888 | Y75: 14746929.3 | AA75: 16921234.13 | AC75: 47.225 | AE75: 14634460.8 | AG75: 15438628.06 | AI75: 0 | AK75: 0 | AM75: 14634460.8 | AO75: 15438628.06
A76: 000000000212401 | C76: 04/30/2022 | E76: 000000000212401 | G76: EPF SHARIAH WD NOM USD | I76: B1VP0K0 | K76: FR0010451203 | M76: RXL FP | O76: REXEL SA | Q76: COMMON STOCK PAR EUR 5 | S76: S | U76: EUR | W76: 219216 | Y76: 4189985.29 | AA76: 4743777.8 | AC76: 19.64 | AE76: 4305402.24 | AG76: 4541985.16 | AI76: 0 | AK76: 0 | AM76: 4305402.24 | AO76: 4541985.16
A77: 000000000212401 | C77: 04/30/2022 | E77: 000000000212401 | G77: EPF SHARIAH WD NOM USD | I77: B1XH026 | K77: FR0000125486 | M77: DG FP | O77: VINCI SA | Q77: COMMON STOCK PAR EUR 2.5 | S77: S | U77: EUR | W77: 113678 | Y77: 10854012.85 | AA77: 12179201.75 | AC77: 92.84 | AE77: 10553865.52 | AG77: 11133803.05 | AI77: 0 | AK77: 0 | AM77: 10553865.52 | AO77: 11133803.05
A78: 000000000212401 | C78: 04/30/2022 | E78: 000000000212401 | G78: EPF SHARIAH WD NOM USD | I78: B288C92 | K78: ES0144580Y14 | M78: IBE SQ | O78: IBERDROLA SA | Q78: COMMON STOCK PAR EUR 0.75 | S78: S | U78: EUR | W78: 992250 | Y78: 10360419.08 | AA78: 12300053.05 | AC78: 11.01 | AE78: 10924672.5 | AG78: 11524985.97 | AI78: 0 | AK78: 0 | AM78: 10924672.5 | AO78: 11524985.97
A79: 000000000212401 | C79: 04/30/2022 | E79: 000000000212401 | G79: EPF SHARIAH WD NOM USD | I79: B783TY6 | K79: JE00B783TY65 | M79: APTV UN | O79: APTIV PLC | Q79: COMMON STOCK PAR USD 0.01 | S79: S | U79: USD | W79: 71879 | Y79: 10712035.87 | AA79: 10712035.87 | AC79: 106.4 | AE79: 7647925.6 | AG79: 7647925.6 | AI79: 0 | AK79: 0 | AM79: 7647925.6 | AO79: 7647925.6
A80: 000000000212401 | C80: 04/30/2022 | E80: 000000000212401 | G80: EPF SHARIAH WD NOM USD | I80: B8KQN82 | K80: IE00B8KQN827 | M80: ETN UN | O80: EATON CORP PLC | Q80: COMMON STOCK PAR USD 0.01 | S80: S | U80: USD | W80: 39453 | Y80: 6058416.43 | AA80: 6058416.43 | AC80: 145.02 | AE80: 5721474.06 | AG80: 5721474.06 | AI80: 0 | AK80: 0 | AM80: 5721474.06 | AO80: 5721474.06
A81: 000000000212401 | C81: 04/30/2022 | E81: 000000000212401 | G81: EPF SHARIAH WD NOM USD | I81: B929F46 | K81: NL0010273215 | M81: ASML NA | O81: ASML HOLDING NV | Q81: COMMON STOCK PAR EUR 0.09 | S81: S | U81: EUR | W81: 23676 | Y81: 13656558.66 | AA81: 16477171.05 | AC81: 548 | AE81: 12974448 | AG81: 13687397.14 | AI81: 0 | AK81: 0 | AM81: 12974448 | AO81: 13687397.14
A82: 000000000212401 | C82: 04/30/2022 | E82: 000000000212401 | G82: EPF SHARIAH WD NOM USD | I82: BD97BS7 | K82: SE0011166628 | M82: ATCOB S | O82: ATLAS COPCO AB-B SHS | Q82: COMMON STOCK PAR SEK 0.639 | S82: S | U82: SEK | W82: 162879 | Y82: 74324959.97 | AA82: 8698300.38 | AC82: 394.1 | AE82: 64190613.9 | AG82: 6554510.35 | AI82: 526099.17 | AK82: 53720.04 | AM82: 64809554.1 | AO82: 6617710.4
A83: 000000000212401 | C83: 04/30/2022 | E83: 000000000212401 | G83: EPF SHARIAH WD NOM USD | I83: BF1HPT8 | K83: JP3397150008 | M83: 3563 JT | O83: FOOD & LIFE COMPANIES LTD | Q83: COMMON STOCK | S83: S | U83: JPY | W83: 242300 | Y83: 1113770305 | AA83: 10090405.72 | AC83: 3105 | AE83: 752341500 | AG83: 5806896.42 | AI83: 0 | AK83: 0 | AM83: 752341500 | AO83: 5806896.42
A84: 000000000212401 | C84: 04/30/2022 | E84: 000000000212401 | G84: EPF SHARIAH WD NOM USD | I84: BHC8X90 | K84: DK0060534915 | M84: NOVOB D | O84: NOVO NORDISK A/S-B | Q84: COMMON STOCK PAR DKK 0.2 | S84: S | U84: DKK | W84: 124351 | Y84: 94299281.89 | AA84: 13980951.74 | AC84: 812.3 | AE84: 101010317.3 | AG84: 14325063.08 | AI84: 0 | AK84: 0 | AM84: 101010317.3 | AO84: 14325063.08
A85: 000000000212401 | C85: 04/30/2022 | E85: 000000000212401 | G85: EPF SHARIAH WD NOM USD | I85: BM8Q5M0 | K85: GB00BM8Q5M07 | M85: JD/ LN | O85: JD SPORTS FASHION PLC | Q85: COMMON STOCK PAR GBP 0.25 | S85: S | U85: GBP | W85: 3208700 | Y85: 6135818.31 | AA85: 8508019.41 | AC85: 1.334 | AE85: 4280405.8 | AG85: 5374052.32 | AI85: 0 | AK85: 0 | AM85: 4280405.8 | AO85: 5374052.32
A86: 000000000212401 | C86: 04/30/2022 | E86: 000000000212401 | G86: EPF SHARIAH WD NOM USD | I86: BP6MXD8 | K86: GB00BP6MXD84 | M86: SHEL LN | O86: SHELL PLC-NEW | Q86: COMMON STOCK | S86: S | U86: GBP | W86: 28028 | Y86: 755145.68 | AA86: 1002930.99 | AC86: 21.73 | AE86: 609048.44 | AG86: 764660.72 | AI86: 0 | AK86: 0 | AM86: 609048.44 | AO86: 764660.72
A87: 000000000212401 | C87: 04/30/2022 | E87: 000000000212401 | G87: EPF SHARIAH WD NOM USD | O87: CS SCB | Q87: 12/31/2060 | S87: TD | U87: USD | W87: 61724685.3 | Y87: 61724685.3 | AA87: 61724685.3 | AC87: 0 | AE87: 61724685.3 | AG87: 61724685.3 | AI87: 0 | AK87: 0 | AM87: 61724685.3 | AO87: 61724685.3
A88: 000000000212401 | C88: 04/30/2022 | E88: 000000000212401 | G88: EPF SHARIAH WD NOM USD | I88: BTN1Y11 | K88: IE00BTN1Y115 | M88: MDT UN | O88: MEDTRONIC PLC | Q88: COMMON STOCK PAR USD 0.1 | S88: S | U88: USD | W88: 85483 | Y88: 10146333.93 | AA88: 10146333.93 | AC88: 104.36 | AE88: 8921005.88 | AG88: 8921005.88 | AI88: 0 | AK88: 0 | AM88: 8921005.88 | AO88: 8921005.88
A89: 000000000212401 | C89: 04/30/2022 | E89: 000000000212401 | G89: EPF SHARIAH WD NOM USD | I89: BY7QL61 | K89: IE00BY7QL619 | M89: JCI UN | O89: JOHNSON CONTROLS INTERNATION | Q89: COMMON STOCK PAR USD 0.01 | S89: S | U89: USD | W89: 177845 | Y89: 13271602.92 | AA89: 13271602.92 | AC89: 59.87 | AE89: 10647580.15 | AG89: 10647580.15 | AI89: 0 | AK89: 0 | AM89: 10647580.15 | AO89: 10647580.15
A90: 000000000212401 | C90: 04/30/2022 | E90: 000000000212401 | G90: EPF SHARIAH WD NOM USD | I90: BYP20B9 | K90: JP3835250006 | M90: 6532 JT | O90: BAYCURRENT CONSULTING INC | Q90: COMMON STOCK | S90: S | U90: JPY | W90: 2500 | Y90: 121255792.9 | AA90: 1064146.72 | AC90: 43150 | AE90: 107875000 | AG90: 832625.81 | AI90: 1040400 | AK90: 8030.26 | AM90: 109099000 | AO90: 842073.17
A91: 000000000212401 | C91: 04/30/2022 | E91: 000000000212401 | G91: EPF SHARIAH WD NOM USD | O91: SWISS FRANC | S91: CC | U91: CHF | W91: 190079.63 | Y91: 196438.7 | AA91: 196438.7 | AC91: 0 | AE91: 195827.16 | AG91: 195827.16 | AI91: 0 | AK91: 0 | AM91: 195827.16 | AO91: 0
A92: 000000000212401 | C92: 04/30/2022 | E92: 000000000212401 | O92: SWISS FRANC | S92: CC | U92: USD | W92: -196438.7 | Y92: -196438.7 | AA92: -196438.7 | AC92: 0 | AE92: -196438.7 | AG92: -196438.7 | AI92: 0 | AK92: 0 | AM92: -196438.7 | AO92: 0
A93: 000000000212401 | C93: 04/30/2022 | E93: 000000000212401 | O93: GREAT BRITISH POUND | S93: CU | U93: GBP | W93: 0.89 | Y93: 1.16 | AA93: 1.16 | AC93: 0 | AE93: 1.12 | AG93: 1.12 | AI93: 0 | AK93: 0 | AM93: 1.12 | AO93: 1.12
